Workbook

Sheet Total NF
A2: TNF
A4: State Name | B4: Series ID | C4: Jan 2009 | D4: Feb 2009 | E4: Mar 2009 | F4: Apr 2009 | G4: May 2009 | H4: Jun 2009 | I4: 2009-07-01 | J4: Aug 2009 | K4: Sep 2009 | L4: Oct 2009 | M4: Nov 2009 | N4: Dec 2009 | O4: Annual 2009 | P4: Jan 2010 | Q4: Feb 2010 | R4: Mar 2010 | S4: Apr 2010 | T4: May 2010 | U4: Jun 2010 | V4: Jul 2010 | W4: Aug 2010 | X4: Sep 2010 | Y4: Oct 2010 | Z4: Nov 2010 | AA4: Dec 2010 | AB4: Annual 2010 | AC4: Jan 2011 | AD4: Feb 2011 | AE4: Mar 2011 | AF4: Apr 2011 | AG4: May 2011 | AH4: Jun 2011 | AI4: 2011-07-01 | AJ4: 2011-08-01 | AK4: 2011-09-01 | AL4: 2011-10-01 | AM4: 2011-11-01 | AN4: 2011-12-01 | AP4: 2012-01-01 | AQ4: 2012-02-01 | AR4: 2012-03-01 | AS4: 2012-04-01 | AT4: 2012-05-01 | AU4: 2012-06-01 | AV4: 2012-07-01 | AW4: 2012-08-01 | AX4: 2012-09-01 | AY4: 2012-10-01 | AZ4: 2012-11-01 | BA4: 2012-12-01 | BC4: 2013-01-01 | BD4: 2013-02-01 | BE4: 2013-03-01 | BF4: 2013-04-01 | BG4: 2013-05-01 | BH4: 2013-06-01 | BI4: 2013-07-01 | BJ4: 2013-08-01 | BK4: 2013-09-01 | BL4: 2013-10-01 | BM4: 2013-11-01 | BN4: 2013-12-01 | BP4: 2014-01-01 | BQ4: 2014-02-01 | BR4: 2014-03-01 | BS4: 2014-04-01 | BT4: 2014-05-01 | BU4: 2014-06-01 | BV4: 2014-07-01 | BW4: 2014-08-01 | BX4: 2014-09-01 | BY4: 2014-10-01 | BZ4: 2014-11-01 | CA4: 2014-12-01 | CB4: 2015-01-01 | CC4: 2015-02-01 | CD4: 2015-03-01 | CE4: 2015-04-01 | CF4: 2015-05-01 | CG4: 2015-06-01 | CH4: 2015-07-01 | CI4: 2015-08-01 | CJ4: 2015-09-01 | CK4: 2015-10-01 | CL4: 2015-11-01 | CM4: 2015-12-01 | CN4: 2016-01-01 | CO4: 2016-02-01 | CP4: 2016-03-16 | CQ4: 2016-04-29 | CR4: 2016-05-29 | CS4: 2016-06-29 | CT4: 2016-07-29 | CU4: 2016-08-29 | CV4: 2016-09-29 | CW4: 2016-10-29 | CX4: 2016-11-29 | CY4: 2016-12-29 | CZ4: 2017-01-29 | DA4: 2017-02-28 | DB4: 2017-03-30 | DC4: 2017-04-29 | DD4: 2017-05-29 | DE4: 2017-06-29 | DF4: 2017-07-29 | DG4: 2017-08-29 | DH4: 2017-09-29 | DI4: 2017-10-29 | DJ4: 2017-11-29 | DK4: Month-to-Month | DL4: Month-to-Month % | DM4: Mo Chg Rank | DN4: Mo % Rank | DO4: Year-to-Year | DP4: Year-to-Year % | DQ4: Yr Chg Rank | DR4: Yr % Rank | DS4: Year-to-Date Chg | DT4: Year-to-Date % | DU4: Year-to-Date Chg Rank | DV4: Year-to-Date % Rank | DW4: Chg from Trough | DX4: % Chg from Trough | DY4: Trough Chg Rank | DZ4: Trough % Chg Rank
A5: Alabama | B5: SMS01000004000000001 | C5: 1929.2 | D5: 1915.2 | E5: 1903.6 | F5: 1896.9 | G5: 1891 | H5: 1883.8 | I5: 1880.2 | J5: 1873.9 | K5: 1867.6 | L5: 1864.7 | M5: 1865.8 | N5: 1864.2 | P5: 1863.9 | Q5: 1860.1 | R5: 1864.4 | S5: 1868.2 | T5: 1879 | U5: 1877.6 | V5: 1876.6 | W5: 1872.1 | X5: 1869 | Y5: 1873.8 | Z5: 1873.3 | AA5: 1873.4 | AC5: 1864.2 | AD5: 1869.1 | AE5: 1868.8 | AF5: 1870 | AG5: 1868.2 | AH5: 1865.9 | AI5: 1872.1 | AJ5: 1871.9 | AK5: 1876.6 | AL5: 1870.5 | AM5: 1873.4 | AN5: 1874.5 | AP5: 1875.6 | AQ5: 1877.9 | AR5: 1882.9 | AS5: 1885.3 | AT5: 1883.1 | AU5: 1884.5 | AV5: 1883.1 | AW5: 1886 | AX5: 1886.6 | AY5: 1889.7 | AZ5: 1892.8 | BA5: 1893.1 | BC5: 1891.3 | BD5: 1897 | BE5: 1898.4 | BF5: 1900.5 | BG5: 1901.3 | BH5: 1903.6 | BI5: 1905.5 | BJ5: 1906.4 | BK5: 1902.4 | BL5: 1908.9 | BM5: 1913.1 | BN5: 1916.6 | BP5: 1910.3 | BQ5: 1909.3 | BR5: 1911.5 | BS5: 1916.9 | BT5: 1918.1 | BU5: 1918.9 | BV5: 1922.7 | BW5: 1925.9 | BX5: 1927.2 | BY5: 1937.8 | BZ5: 1940.6 | CA5: 1942.8 | CB5: 1936.2 | CC5: 1938.4 | CD5: 1936.1 | CE5: 1939.5 | CF5: 1945.9 | CG5: 1946.4 | CH5: 1948.9 | CI5: 1952.5 | CJ5: 1951.1 | CK5: 1951.4 | CL5: 1957.5 | CM5: 1957.5 | CN5: 1966.9 | CO5: 1967.5 | CP5: 1967.7 | CQ5: 1972 | CR5: 1971.4 | CS5: 1970.1 | CT5: 1976.7 | CU5: 1977.9 | CV5: 1979.2 | CW5: 1983 | CX5: 1983.5 | CY5: 1983.7 | CZ5: 1995 | DA5: 1997.3 | DB5: 1997.7 | DC5: 1997.6 | DD5: 2003 | DE5: 2009.8 | DF5: 2007.7 | DG5: 2005.3 | DH5: 2012.2 | DI5: 2014.1 | DJ5: 2016.9 | DK5: =DJ5-DI5 -> 2.8 | DL5: =DK5/DI5 -> 0.001390199096 | DM5: =RANK(DK5,($DK$5:$DK$54)) -> 20 | DN5: =RANK(DL5,($DL$5:$DL$54)) -> 22 | DO5: =DJ5-CX5 -> 33.4 | DP5: =DO5/CX5 -> 0.0168389211 | DQ5: =RANK(DO5,($DO$5:$DO$54)) -> 24 | DR5: =RANK(DP5,($DP$5:$DP$54)) -> 14 | DS5: =DJ5-CY5 -> 33.2 | DT5: =DS5/CY5 -> 0.01673640167 | DU5: =RANK(DS5,DS$5:DS$54) -> 18 | DV5: =RANK(DT5,DT$5:DT$54) -> 14 | DW5: =DJ5-I5 -> 136.7 | DX5: =DW5/I5 -> 0.07270503138 | DY5: =RANK(DW5,($DW$5:$DW$54)) -> 28 | DZ5: =RANK(DX5,($DX$5:$DX$54)) -> 38
A6: Alaska | B6: SMS02000004000000001 | C6: 320.2 | D6: 321 | E6: 319.9 | F6: 320.5 | G6: 319.7 | H6: 319.6 | I6: 319.4 | J6: 319.5 | K6: 319.8 | L6: 320.1 | M6: 320 | N6: 319 | P6: 320.6 | Q6: 320 | R6: 320.3 | S6: 322.2 | T6: 323 | U6: 325.2 | V6: 325.3 | W6: 325 | X6: 325.3 | Y6: 326.3 | Z6: 327 | AA6: 327.2 | AC6: 328.4 | AD6: 327.8 | AE6: 327.7 | AF6: 328.4 | AG6: 327.8 | AH6: 329.2 | AI6: 330 | AJ6: 329.1 | AK6: 330.9 | AL6: 331 | AM6: 331.4 | AN6: 331.7 | AP6: 333.6 | AQ6: 333.7 | AR6: 334.2 | AS6: 334.7 | AT6: 335.5 | AU6: 334.7 | AV6: 334 | AW6: 333.7 | AX6: 334.6 | AY6: 338.6 | AZ6: 335.4 | BA6: 335.5 | BC6: 335.8 | BD6: 336.2 | BE6: 336.2 | BF6: 336.9 | BG6: 335.7 | BH6: 336.1 | BI6: 335.5 | BJ6: 336.3 | BK6: 336.6 | BL6: 337.2 | BM6: 338.6 | BN6: 338.8 | BP6: 337.7 | BQ6: 337 | BR6: 337.1 | BS6: 338.4 | BT6: 338 | BU6: 337.1 | BV6: 337.8 | BW6: 337 | BX6: 336.3 | BY6: 337.2 | BZ6: 338.1 | CA6: 340.6 | CB6: 340.4 | CC6: 339.9 | CD6: 340 | CE6: 340.2 | CF6: 341.4 | CG6: 339.1 | CH6: 339.3 | CI6: 338.1 | CJ6: 338.5 | CK6: 339.3 | CL6: 338.1 | CM6: 339.2 | CN6: 336.3 | CO6: 336 | CP6: 335.3 | CQ6: 335.1 | CR6: 333.6 | CS6: 331.3 | CT6: 332.1 | CU6: 331.8 | CV6: 329.9 | CW6: 330.6 | CX6: 329.9 | CY6: 329.4 | CZ6: 328.2 | DA6: 330.1 | DB6: 328.4 | DC6: 328.4 | DD6: 330.9 | DE6: 332.4 | DF6: 331.7 | DG6: 332 | DH6: 331.1 | DI6: 330.4 | DJ6: 327.4 | DK6: =DJ6-DI6 -> -3 | DL6: =DK6/DI6 -> -0.009079903148 | DM6: 43 | DN6: 50 | DO6: =DJ6-CX6 -> -2.5 | DP6: =DO6/CX6 -> -0.007578053956 | DQ6: =RANK(DO6,($DO$5:$DO$54)) -> 49 | DR6: =RANK(DP6,($DP$5:$DP$54)) -> 49 | DS6: =DJ6-CY6 -> -2 | DT6: =DS6/CY6 -> -0.006071645416 | DU6: =RANK(DS6,DS$5:DS$54) -> 50 | DV6: =RANK(DT6,DT$5:DT$54) -> 49 | DW6: =DJ6-I6 -> 8 | DX6: =DW6/I6 -> 0.02504696306 | DY6: =RANK(DW6,($DW$5:$DW$54)) -> 48 | DZ6: =RANK(DX6,($DX$5:$DX$54)) -> 48
A7: Arizona | B7: SMS04000004000000001 | C7: 2517.2 | D7: 2491.3 | E7: 2472.2 | F7: 2448 | G7: 2439.1 | H7: 2427 | I7: 2419.9 | J7: 2409.5 | K7: 2397.4 | L7: 2392.5 | M7: 2388.6 | N7: 2382.4 | P7: 2382 | Q7: 2381.9 | R7: 2384.1 | S7: 2385.8 | T7: 2400.3 | U7: 2389.4 | V7: 2384.6 | W7: 2380.3 | X7: 2374.5 | Y7: 2386.6 | Z7: 2389.8 | AA7: 2393.5 | AC7: 2398.9 | AD7: 2399 | AE7: 2402 | AF7: 2404.5 | AG7: 2412.1 | AH7: 2401 | AI7: 2399.3 | AJ7: 2417.6 | AK7: 2424.2 | AL7: 2426.5 | AM7: 2431.5 | AN7: 2431.4 | AP7: 2443 | AQ7: 2444.3 | AR7: 2452.3 | AS7: 2454.1 | AT7: 2449.2 | AU7: 2462.7 | AV7: 2452.9 | AW7: 2467.6 | AX7: 2474.2 | AY7: 2480.4 | AZ7: 2487.2 | BA7: 2491 | BC7: 2495.1 | BD7: 2500.1 | BE7: 2503.1 | BF7: 2509.7 | BG7: 2511.2 | BH7: 2512.3 | BI7: 2512.6 | BJ7: 2518.3 | BK7: 2525.6 | BL7: 2526.3 | BM7: 2534.2 | BN7: 2542.3 | BP7: 2546.2 | BQ7: 2552.3 | BR7: 2551.9 | BS7: 2557 | BT7: 2551.6 | BU7: 2562.7 | BV7: 2565.3 | BW7: 2571.1 | BX7: 2575.7 | BY7: 2589.3 | BZ7: 2598.6 | CA7: 2607.3 | CB7: 2605.7 | CC7: 2611.1 | CD7: 2612.4 | CE7: 2615.8 | CF7: 2616.7 | CG7: 2624.8 | CH7: 2636 | CI7: 2644.8 | CJ7: 2649.8 | CK7: 2664.7 | CL7: 2677.7 | CM7: 2681.6 | CN7: 2672.9 | CO7: 2680.9 | CP7: 2685 | CQ7: 2692.6 | CR7: 2695.3 | CS7: 2696.5 | CT7: 2712 | CU7: 2716.4 | CV7: 2730.8 | CW7: 2731 | CX7: 2728.2 | CY7: 2735.4 | CZ7: 2731.2 | DA7: 2739.9 | DB7: 2736.1 | DC7: 2742.6 | DD7: 2745.2 | DE7: 2751.1 | DF7: 2743.9 | DG7: 2754.6 | DH7: 2767.1 | DI7: 2762 | DJ7: 2769.5 | DK7: 7.5 | DL7: 0.002715423606 | DM7: 8 | DN7: 11 | DO7: 41.3 | DP7: 0.01513818635 | DQ7: 15 | DR7: 18 | DS7: 34.1 | DT7: 0.0124661841 | DU7: 17 | DV7: 21 | DW7: 349.6 | DX7: 0.1444687797 | DY7: 16 | DZ7: 16
A8: Arkansas | B8: SMS05000004000000001 | C8: 1183.4 | D8: 1180.8 | E8: 1174.4 | F8: 1168.9 | G8: 1164.5 | H8: 1161.3 | I8: 1161.6 | J8: 1160 | K8: 1156.5 | L8: 1155 | M8: 1156.2 | N8: 1155.6 | P8: 1152.4 | Q8: 1150.6 | R8: 1155.7 | S8: 1157.3 | T8: 1168.1 | U8: 1174.3 | V8: 1168.5 | W8: 1169.6 | X8: 1165.2 | Y8: 1164.6 | Z8: 1164 | AA8: 1166.2 | AC8: 1164.5 | AD8: 1161.4 | AE8: 1164.1 | AF8: 1172.3 | AG8: 1167.5 | AH8: 1164.2 | AI8: 1171.9 | AJ8: 1173.2 | AK8: 1172.3 | AL8: 1177.6 | AM8: 1177.3 | AN8: 1176.9 | AP8: 1176.6 | AQ8: 1176.8 | AR8: 1179.4 | AS8: 1178 | AT8: 1179.2 | AU8: 1178.1 | AV8: 1172.3 | AW8: 1173.8 | AX8: 1173.9 | AY8: 1174.9 | AZ8: 1176.3 | BA8: 1177.8 | BC8: 1177.2 | BD8: 1179.2 | BE8: 1176.9 | BF8: 1177.2 | BG8: 1175.1 | BH8: 1172.7 | BI8: 1173.7 | BJ8: 1172.8 | BK8: 1176.3 | BL8: 1181.1 | BM8: 1184.3 | BN8: 1185.1 | BP8: 1179.8 | BQ8: 1181.9 | BR8: 1181 | BS8: 1184.2 | BT8: 1187 | BU8: 1188.1 | BV8: 1185.4 | BW8: 1188 | BX8: 1192 | BY8: 1195.5 | BZ8: 1199.1 | CA8: 1204.6 | CB8: 1198.9 | CC8: 1201.1 | CD8: 1197.9 | CE8: 1199.9 | CF8: 1204.1 | CG8: 1206 | CH8: 1209.4 | CI8: 1212.7 | CJ8: 1214.2 | CK8: 1219.6 | CL8: 1220.2 | CM8: 1227 | CN8: 1221.7 | CO8: 1224.7 | CP8: 1226.5 | CQ8: 1225.3 | CR8: 1224.7 | CS8: 1224.9 | CT8: 1227.1 | CU8: 1228.5 | CV8: 1230.2 | CW8: 1234.7 | CX8: 1233.5 | CY8: 1237.3 | CZ8: 1234.9 | DA8: 1240.6 | DB8: 1240.1 | DC8: 1243.8 | DD8: 1245.1 | DE8: 1253.7 | DF8: 1259.1 | DG8: 1253.5 | DH8: 1255.1 | DI8: 1256.2 | DJ8: 1254.1 | DK8: -2.1 | DL8: -0.001671708327 | DM8: 41 | DN8: 43 | DO8: 20.6 | DP8: 0.01670044589 | DQ8: 30 | DR8: 15 | DS8: 16.8 | DT8: 0.01357795199 | DU8: 31 | DV8: 18 | DW8: 92.5 | DX8: 0.0796315427 | DY8: 32 | DZ8: 34
A9: California | B9: SMS06000004000000001 | C9: 14787 | D9: 14667.8 | E9: 14577.2 | F9: 14470.1 | G9: 14425.9 | H9: 14361.5 | I9: 14256.4 | J9: 14207.9 | K9: 14159.3 | L9: 14187.4 | M9: 14178.8 | N9: 14155.9 | P9: 14131.3 | Q9: 14121 | R9: 14125.8 | S9: 14209.5 | T9: 14250.8 | U9: 14235.9 | V9: 14217.8 | W9: 14214 | X9: 14204 | Y9: 14258.7 | Z9: 14264.1 | AA9: 14286.7 | AC9: 14296.9 | AD9: 14303.9 | AE9: 14302.3 | AF9: 14318.1 | AG9: 14317.6 | AH9: 14304.4 | AI9: 14362.2 | AJ9: 14373.2 | AK9: 14404.5 | AL9: 14415.1 | AM9: 14445.8 | AN9: 14466.1 | AP9: 14539.5 | AQ9: 14553.9 | AR9: 14585.9 | AS9: 14601.9 | AT9: 14632.9 | AU9: 14672.2 | AV9: 14700.5 | AW9: 14731.4 | AX9: 14752.6 | AY9: 14863.6 | AZ9: 14906.4 | BA9: 14931.9 | BC9: 14972.5 | BD9: 15013.8 | BE9: 15040.4 | BF9: 15084.4 | BG9: 15107.8 | BH9: 15116.4 | BI9: 15168.9 | BJ9: 15225.7 | BK9: 15233.5 | BL9: 15248.1 | BM9: 15306.4 | BN9: 15323.6 | BP9: 15430 | BQ9: 15472.8 | BR9: 15500.1 | BS9: 15554.9 | BT9: 15588.4 | BU9: 15607.2 | BV9: 15654.8 | BW9: 15715.1 | BX9: 15754.7 | BY9: 15790.1 | BZ9: 15840.9 | CA9: 15860.7 | CB9: 15827.7 | CC9: 15858.4 | CD9: 15900.1 | CE9: 15931.3 | CF9: 15966.8 | CG9: 15998.6 | CH9: 16114.4 | CI9: 16156.3 | CJ9: 16169.9 | CK9: 16197.3 | CL9: 16226.4 | CM9: 16274.1 | CN9: 16317.2 | CO9: 16360.3 | CP9: 16347.6 | CQ9: 16444.5 | CR9: 16454.9 | CS9: 16441.9 | CT9: 16507.7 | CU9: 16512.7 | CV9: 16550.2 | CW9: 16603.5 | CX9: 16633.1 | CY9: 16637.9 | CZ9: 16653.2 | DA9: 16674.7 | DB9: 16697.5 | DC9: 16679.9 | DD9: 16704.7 | DE9: 16701.5 | DF9: 16786 | DG9: 16778.3 | DH9: 16828.6 | DI9: 16874 | DJ9: 16921.4 | DK9: 47.4 | DL9: 0.002809055351 | DM9: 2 | DN9: 9 | DO9: 288.3 | DP9: 0.01733290848 | DQ9: 2 | DR9: 12 | DS9: 283.5 | DT9: 0.01703941002 | DU9: 2 | DV9: 13 | DW9: 2665 | DX9: 0.1869335877 | DY9: 1 | DZ9: 8
A10: Colorado | B10: SMS08000004000000001 | C10: 2308.3 | D10: 2287.6 | E10: 2271.7 | F10: 2254.5 | G10: 2251.7 | H10: 2239.9 | I10: 2232.1 | J10: 2225.9 | K10: 2222.3 | L10: 2219.9 | M10: 2217.7 | N10: 2213.8 | P10: 2211.3 | Q10: 2213.5 | R10: 2215.2 | S10: 2217.6 | T10: 2226.8 | U10: 2223 | V10: 2225.5 | W10: 2224.8 | X10: 2220.2 | Y10: 2228.4 | Z10: 2229 | AA10: 2232.8 | AC10: 2239.9 | AD10: 2238.3 | AE10: 2242.9 | AF10: 2252.8 | AG10: 2253.7 | AH10: 2254.1 | AI10: 2259.1 | AJ10: 2264.6 | AK10: 2272.7 | AL10: 2269.9 | AM10: 2275.2 | AN10: 2279.7 | AP10: 2286.7 | AQ10: 2288.4 | AR10: 2295.8 | AS10: 2301.1 | AT10: 2304.1 | AU10: 2309.9 | AV10: 2314.9 | AW10: 2316.7 | AX10: 2323.3 | AY10: 2333.7 | AZ10: 2337.3 | BA10: 2341.9 | BC10: 2349 | BD10: 2357 | BE10: 2362.3 | BF10: 2367.3 | BG10: 2373.3 | BH10: 2380.5 | BI10: 2386.6 | BJ10: 2393 | BK10: 2397.1 | BL10: 2400.9 | BM10: 2402.9 | BN10: 2404.9 | BP10: 2425.4 | BQ10: 2431.2 | BR10: 2436.4 | BS10: 2445.9 | BT10: 2453.4 | BU10: 2460.2 | BV10: 2467.1 | BW10: 2475.5 | BX10: 2482.2 | BY10: 2481.2 | BZ10: 2484.2 | CA10: 2492.8 | CB10: 2514.7 | CC10: 2521.8 | CD10: 2523.3 | CE10: 2526.1 | CF10: 2531.3 | CG10: 2537.2 | CH10: 2541.8 | CI10: 2546.2 | CJ10: 2552.2 | CK10: 2562.7 | CL10: 2564.9 | CM10: 2578.6 | CN10: 2576 | CO10: 2581.2 | CP10: 2585.3 | CQ10: 2590.2 | CR10: 2583.6 | CS10: 2592.1 | CT10: 2605 | CU10: 2609.5 | CV10: 2614.9 | CW10: 2621.2 | CX10: 2618 | CY10: 2618.3 | CZ10: 2629.5 | DA10: 2634.4 | DB10: 2634.1 | DC10: 2635 | DD10: 2640.5 | DE10: 2644.8 | DF10: 2650.9 | DG10: 2652.2 | DH10: 2657.6 | DI10: 2661.5 | DJ10: 2663.3 | DK10: 1.8 | DL10: 0.0006763103513 | DM10: 25 | DN10: 28 | DO10: 45.3 | DP10: 0.01730328495 | DQ10: 12 | DR10: 13 | DS10: 45 | DT10: 0.01718672421 | DU10: 12 | DV10: 12 | DW10: 431.2 | DX10: 0.1931813091 | DY10: 11 | DZ10: 4
A11: Connecticut | B11: SMS09000004000000001 | C11: 1663.8 | D11: 1656.6 | E11: 1646.7 | F11: 1627.9 | G11: 1629.7 | H11: 1624.8 | I11: 1614.8 | J11: 1612.6 | K11: 1613.5 | L11: 1609.2 | M11: 1608.5 | N11: 1606.4 | P11: 1594.5 | Q11: 1593.9 | R11: 1594.9 | S11: 1600.8 | T11: 1611.6 | U11: 1610.2 | V11: 1612.6 | W11: 1614.1 | X11: 1612.6 | Y11: 1616 | Z11: 1616.1 | AA11: 1616.9 | AC11: 1618.1 | AD11: 1620.7 | AE11: 1620.1 | AF11: 1627.4 | AG11: 1623.6 | AH11: 1622.3 | AI11: 1628.5 | AJ11: 1626.8 | AK11: 1628.9 | AL11: 1626.4 | AM11: 1628.3 | AN11: 1631.2 | AP11: 1637.2 | AQ11: 1639.9 | AR11: 1643 | AS11: 1636.9 | AT11: 1636.5 | AU11: 1639.5 | AV11: 1639.1 | AW11: 1640.9 | AX11: 1641.8 | AY11: 1643.1 | AZ11: 1645.6 | BA11: 1645.1 | BC11: 1649.2 | BD11: 1643.1 | BE11: 1649.5 | BF11: 1653.3 | BG11: 1653 | BH11: 1662.1 | BI11: 1661.1 | BJ11: 1659.7 | BK11: 1653.1 | BL11: 1658.8 | BM11: 1661.4 | BN11: 1663.5 | BP11: 1659.9 | BQ11: 1656.1 | BR11: 1659.6 | BS11: 1664 | BT11: 1665.7 | BU11: 1664.9 | BV11: 1665.4 | BW11: 1665.7 | BX11: 1666.5 | BY11: 1670 | BZ11: 1672.9 | CA11: 1678.1 | CB11: 1671.1 | CC11: 1669.6 | CD11: 1670.6 | CE11: 1669.7 | CF11: 1674.2 | CG11: 1675.5 | CH11: 1672.8 | CI11: 1672.2 | CJ11: 1672.2 | CK11: 1673.2 | CL11: 1678.5 | CM11: 1680 | CN11: 1677.8 | CO11: 1680.3 | CP11: 1683.8 | CQ11: 1677.7 | CR11: 1677.3 | CS11: 1678.8 | CT11: 1680.6 | CU11: 1681.2 | CV11: 1681.4 | CW11: 1679.2 | CX11: 1678.2 | CY11: 1677.5 | CZ11: 1684 | DA11: 1684.1 | DB11: 1684.7 | DC11: 1681.6 | DD11: 1687.2 | DE11: 1692.8 | DF11: 1691.1 | DG11: 1686.9 | DH11: 1687.2 | DI11: 1681 | DJ11: 1677.5 | DK11: -3.5 | DL11: -0.002082093992 | DM11: 45 | DN11: 46 | DO11: -0.7 | DP11: -0.0004171135741 | DQ11: 47 | DR11: 47 | DS11: 0 | DT11: 0 | DU11: 47 | DV11: 47 | DW11: 62.7 | DX11: 0.03882833787 | DY11: 39 | DZ11: 47
A12: Delaware | B12: SMS10000004000000001 | C12: 425.3 | D12: 424.5 | E12: 420.7 | F12: 417.2 | G12: 418.6 | H12: 416.2 | I12: 414.1 | J12: 413.5 | K12: 413 | L12: 412.7 | M12: 411.8 | N12: 410.4 | P12: 409.6 | Q12: 407.1 | R12: 409.7 | S12: 411.8 | T12: 414 | U12: 414.7 | V12: 417.4 | W12: 417 | X12: 416.3 | Y12: 416 | Z12: 415.6 | AA12: 416.6 | AC12: 417.1 | AD12: 417.9 | AE12: 417.4 | AF12: 419.9 | AG12: 417 | AH12: 416.4 | AI12: 417.3 | AJ12: 416.3 | AK12: 416.8 | AL12: 416.2 | AM12: 416.5 | AN12: 416.9 | AP12: 417.3 | AQ12: 417.4 | AR12: 418.1 | AS12: 417.8 | AT12: 418.8 | AU12: 418.8 | AV12: 419.4 | AW12: 419.1 | AX12: 419.8 | AY12: 421.5 | AZ12: 423.1 | BA12: 422.6 | BC12: 423.1 | BD12: 424.4 | BE12: 425.1 | BF12: 425.1 | BG12: 426.6 | BH12: 426.1 | BI12: 427.8 | BJ12: 428.6 | BK12: 428.5 | BL12: 431.4 | BM12: 433.6 | BN12: 432.8 | BP12: 435.6 | BQ12: 434.5 | BR12: 435.3 | BS12: 435.9 | BT12: 437.4 | BU12: 438.1 | BV12: 437.7 | BW12: 438.3 | BX12: 438.1 | BY12: 440.9 | BZ12: 442.3 | CA12: 442.8 | CB12: 444.9 | CC12: 445.3 | CD12: 446.2 | CE12: 443.4 | CF12: 447.3 | CG12: 448.1 | CH12: 450.3 | CI12: 449.1 | CJ12: 449.6 | CK12: 452.7 | CL12: 454.4 | CM12: 456 | CN12: 451.4 | CO12: 452.2 | CP12: 453.3 | CQ12: 453 | CR12: 451.7 | CS12: 452.9 | CT12: 454.5 | CU12: 454.5 | CV12: 454.2 | CW12: 453.9 | CX12: 453.8 | CY12: 454.4 | CZ12: 455.8 | DA12: 456.5 | DB12: 456.1 | DC12: 455.7 | DD12: 456 | DE12: 454.7 | DF12: 456.3 | DG12: 456.9 | DH12: 457.1 | DI12: 455.6 | DJ12: 454.1 | DK12: -1.5 | DL12: -0.003292361721 | DM12: 39 | DN12: 48 | DO12: 0.3 | DP12: 0.0006610841781 | DQ12: 46 | DR12: 46 | DS12: -0.3 | DT12: -0.0006602112676 | DU12: 48 | DV12: 48 | DW12: 40 | DX12: 0.09659502536 | DY12: 43 | DZ12: 26
A13: Florida | B13: SMS12000004000000001 | C13: 7417.2 | D13: 7360.4 | E13: 7311.8 | F13: 7265.3 | G13: 7244.9 | H13: 7221.1 | I13: 7193.8 | J13: 7173.8 | K13: 7155 | L13: 7150.5 | M13: 7145.4 | N13: 7128 | P13: 7133.5 | Q13: 7131.2 | R13: 7135.9 | S13: 7151.2 | T13: 7196.4 | U13: 7184.8 | V13: 7185.6 | W13: 7189.1 | X13: 7166.5 | Y13: 7197 | Z13: 7195.9 | AA13: 7201 | AC13: 7214.2 | AD13: 7210.9 | AE13: 7216.2 | AF13: 7242.2 | AG13: 7237.6 | AH13: 7232.3 | AI13: 7259.6 | AJ13: 7260.3 | AK13: 7277.2 | AL13: 7279.9 | AM13: 7292.4 | AN13: 7304.6 | AP13: 7324 | AQ13: 7333.8 | AR13: 7349.9 | AS13: 7375.9 | AT13: 7374.6 | AU13: 7389.9 | AV13: 7397.2 | AW13: 7405.4 | AX13: 7422 | AY13: 7449.9 | AZ13: 7466.9 | BA13: 7470.3 | BC13: 7485.2 | BD13: 7507 | BE13: 7517.8 | BF13: 7531.7 | BG13: 7543.1 | BH13: 7562.5 | BI13: 7587.4 | BJ13: 7607.3 | BK13: 7621.6 | BL13: 7650.4 | BM13: 7667.1 | BN13: 7680.6 | BP13: 7705.5 | BQ13: 7723.6 | BR13: 7738.8 | BS13: 7767.8 | BT13: 7790.6 | BU13: 7804.6 | BV13: 7833.5 | BW13: 7857.7 | BX13: 7878.2 | BY13: 7910.3 | BZ13: 7945.2 | CA13: 7965.7 | CB13: 7979.8 | CC13: 7998.5 | CD13: 8014.5 | CE13: 8029.4 | CF13: 8058.3 | CG13: 8080 | CH13: 8109.1 | CI13: 8132.6 | CJ13: 8151.7 | CK13: 8181.4 | CL13: 8201.1 | CM13: 8211.5 | CN13: 8268.8 | CO13: 8294.2 | CP13: 8307.9 | CQ13: 8337.1 | CR13: 8354 | CS13: 8364.1 | CT13: 8408.1 | CU13: 8428.5 | CV13: 8456.7 | CW13: 8457.6 | CX13: 8481.4 | CY13: 8492.4 | CZ13: 8548 | DA13: 8547.8 | DB13: 8541.6 | DC13: 8552.4 | DD13: 8583.3 | DE13: 8601.6 | DF13: 8629.8 | DG13: 8646.5 | DH13: 8529.8 | DI13: 8663.3 | DJ13: 8676.4 | DK13: 13.1 | DL13: 0.001512125864 | DM13: 4 | DN13: 21 | DO13: 195 | DP13: 0.02299148725 | DQ13: 3 | DR13: 4 | DS13: 184 | DT13: 0.02166643116 | DU13: 3 | DV13: 4 | DW13: 1482.6 | DX13: 0.2060941366 | DY13: 3 | DZ13: 3
A14: Georgia | B14: SMS13000004000000001 | C14: 4002.1 | D14: 3974.1 | E14: 3945.5 | F14: 3925.3 | G14: 3911.3 | H14: 3898.2 | I14: 3878.7 | J14: 3868.7 | K14: 3856.1 | L14: 3855.5 | M14: 3851.6 | N14: 3844.7 | P14: 3843 | Q14: 3839 | R14: 3843.8 | S14: 3849.7 | T14: 3870.5 | U14: 3866.8 | V14: 3871.3 | W14: 3867.9 | X14: 3865.1 | Y14: 3873.9 | Z14: 3875.1 | AA14: 3873.3 | AC14: 3851.4 | AD14: 3888.6 | AE14: 3893.5 | AF14: 3904.4 | AG14: 3904.1 | AH14: 3902.6 | AI14: 3910.2 | AJ14: 3910.8 | AK14: 3917.6 | AL14: 3911.2 | AM14: 3917.1 | AN14: 3913.4 | AP14: 3924.1 | AQ14: 3927.7 | AR14: 3938 | AS14: 3945 | AT14: 3948.6 | AU14: 3956.3 | AV14: 3950.6 | AW14: 3954.2 | AX14: 3957.3 | AY14: 3974.3 | AZ14: 3983.8 | BA14: 3986.3 | BC14: 3997.5 | BD14: 4008.1 | BE14: 4010.7 | BF14: 4019.2 | BG14: 4021.3 | BH14: 4027.2 | BI14: 4038.2 | BJ14: 4045.4 | BK14: 4051.8 | BL14: 4054.5 | BM14: 4067.6 | BN14: 4072.5 | BP14: 4090.2 | BQ14: 4088.4 | BR14: 4112.4 | BS14: 4125.6 | BT14: 4137.9 | BU14: 4148 | BV14: 4162.8 | BW14: 4177.1 | BX14: 4185.2 | BY14: 4205.7 | BZ14: 4216.2 | CA14: 4226.5 | CB14: 4210.9 | CC14: 4226.1 | CD14: 4229.1 | CE14: 4230.5 | CF14: 4245.9 | CG14: 4264.4 | CH14: 4270.2 | CI14: 4283.2 | CJ14: 4284.7 | CK14: 4313.2 | CL14: 4324.2 | CM14: 4330.1 | CN14: 4327.5 | CO14: 4338.2 | CP14: 4335.1 | CQ14: 4353.1 | CR14: 4362.2 | CS14: 4373.4 | CT14: 4383.6 | CU14: 4393.7 | CV14: 4413.1 | CW14: 4422.3 | CX14: 4428.1 | CY14: 4435.7 | CZ14: 4440.2 | DA14: 4456.6 | DB14: 4469.5 | DC14: 4469.1 | DD14: 4468.6 | DE14: 4493.9 | DF14: 4490.4 | DG14: 4497.7 | DH14: 4494.3 | DI14: 4510.4 | DJ14: 4513.3 | DK14: 2.9 | DL14: 0.0006429584959 | DM14: 18 | DN14: 30 | DO14: 85.2 | DP14: 0.01924075789 | DQ14: 5 | DR14: 10 | DS14: 77.6 | DT14: 0.01749442027 | DU14: 5 | DV14: 10 | DW14: 634.6 | DX14: 0.1636115193 | DY14: 5 | DZ14: 13
A15: Hawaii | B15: SMS15000004000000001 | C15: 602.8 | D15: 599.3 | E15: 597.5 | F15: 593.8 | G15: 592.3 | H15: 592.8 | I15: 589.6 | J15: 588.4 | K15: 585.3 | L15: 585.7 | M15: 584.2 | N15: 583 | P15: 583.9 | Q15: 583.7 | R15: 584.3 | S15: 585.3 | T15: 587.3 | U15: 585.3 | V15: 587.5 | W15: 585.4 | X15: 587.3 | Y15: 589.1 | Z15: 592.5 | AA15: 589.9 | AC15: 588.8 | AD15: 591.3 | AE15: 592.6 | AF15: 590.8 | AG15: 590.6 | AH15: 589.9 | AI15: 594.4 | AJ15: 592.9 | AK15: 596.3 | AL15: 596.3 | AM15: 598 | AN15: 598.8 | AP15: 592.9 | AQ15: 599.3 | AR15: 599.5 | AS15: 606.7 | AT15: 604.7 | AU15: 605.1 | AV15: 606 | AW15: 615.1 | AX15: 609.1 | AY15: 610.8 | AZ15: 613.4 | BA15: 612.9 | BC15: 608.8 | BD15: 614.6 | BE15: 615.5 | BF15: 617.5 | BG15: 616.7 | BH15: 617 | BI15: 619.2 | BJ15: 618.9 | BK15: 619.3 | BL15: 620.1 | BM15: 622.3 | BN15: 623.4 | BP15: 627.4 | BQ15: 622.9 | BR15: 624 | BS15: 623.2 | BT15: 624.5 | BU15: 624 | BV15: 624.9 | BW15: 628.5 | BX15: 626.6 | BY15: 625.2 | BZ15: 625.6 | CA15: 626 | CB15: 632.4 | CC15: 633.4 | CD15: 634.4 | CE15: 633.9 | CF15: 634.6 | CG15: 636.2 | CH15: 636.7 | CI15: 640.6 | CJ15: 637.3 | CK15: 640.2 | CL15: 640.5 | CM15: 642 | CN15: 642.6 | CO15: 645.5 | CP15: 645.6 | CQ15: 644.6 | CR15: 646 | CS15: 645.3 | CT15: 648.6 | CU15: 651.9 | CV15: 650.8 | CW15: 650.8 | CX15: 651.6 | CY15: 651.9 | CZ15: 650 | DA15: 650.3 | DB15: 650.1 | DC15: 653.1 | DD15: 653.9 | DE15: 654.3 | DF15: 658.2 | DG15: 655.8 | DH15: 658.4 | DI15: 657.8 | DJ15: 656.5 | DK15: -1.3 | DL15: -0.001976284585 | DM15: 38 | DN15: 45 | DO15: 4.9 | DP15: 0.00751995089 | DQ15: 40 | DR15: 37 | DS15: 4.6 | DT15: 0.007056296978 | DU15: 39 | DV15: 38 | DW15: 66.9 | DX15: 0.1134667571 | DY15: 37 | DZ15: 21
A16: Idaho | B16: SMS16000004000000001 | C16: 625.6 | D16: 619.7 | E16: 615 | F16: 610.6 | G16: 608.9 | H16: 609.4 | I16: 605.7 | J16: 605 | K16: 603.4 | L16: 605 | M16: 604.5 | N16: 603.7 | P16: 600 | Q16: 601.3 | R16: 602.6 | S16: 603.5 | T16: 606.2 | U16: 602.8 | V16: 603.9 | W16: 604.5 | X16: 602.3 | Y16: 605.2 | Z16: 605.6 | AA16: 605.1 | AC16: 606.3 | AD16: 606.6 | AE16: 605.6 | AF16: 608.2 | AG16: 608.5 | AH16: 608.3 | AI16: 611.7 | AJ16: 613.1 | AK16: 613.8 | AL16: 613.7 | AM16: 616.7 | AN16: 617.8 | AP16: 617.1 | AQ16: 618 | AR16: 618.7 | AS16: 618.1 | AT16: 620.1 | AU16: 620.6 | AV16: 621.7 | AW16: 622.5 | AX16: 624.5 | AY16: 627.5 | AZ16: 628.5 | BA16: 629.7 | BC16: 633.2 | BD16: 635.2 | BE16: 636.7 | BF16: 638.8 | BG16: 639.8 | BH16: 640.6 | BI16: 640.4 | BJ16: 640 | BK16: 639.8 | BL16: 640.4 | BM16: 639.1 | BN16: 638.2 | BP16: 648.2 | BQ16: 650.5 | BR16: 652.1 | BS16: 653.9 | BT16: 654.1 | BU16: 655 | BV16: 656.3 | BW16: 656 | BX16: 655.7 | BY16: 658.4 | BZ16: 659.1 | CA16: 659.1 | CB16: 664.3 | CC16: 665 | CD16: 667.8 | CE16: 669 | CF16: 670.6 | CG16: 672.2 | CH16: 673.7 | CI16: 673.5 | CJ16: 675.3 | CK16: 680.6 | CL16: 683.9 | CM16: 687.4 | CN16: 685.3 | CO16: 688.4 | CP16: 690.4 | CQ16: 691.6 | CR16: 692 | CS16: 694 | CT16: 697.4 | CU16: 698.9 | CV16: 700 | CW16: 702.7 | CX16: 705.2 | CY16: 707.9 | CZ16: 712.9 | DA16: 711.3 | DB16: 708.7 | DC16: 710 | DD16: 708.8 | DE16: 708.8 | DF16: 711.7 | DG16: 714.4 | DH16: 715.8 | DI16: 720.5 | DJ16: 721.4 | DK16: 0.9 | DL16: 0.001249132547 | DM16: 30 | DN16: 24 | DO16: 16.2 | DP16: 0.02297220647 | DQ16: 32 | DR16: 5 | DS16: 13.5 | DT16: 0.01907049018 | DU16: 33 | DV16: 7 | DW16: 115.7 | DX16: 0.1910186561 | DY16: 30 | DZ16: 6
A17: Illinois | B17: SMS17000004000000001 | C17: 5803.6 | D17: 5767.5 | E17: 5726.1 | F17: 5677.7 | G17: 5667.7 | H17: 5643.4 | I17: 5624.1 | J17: 5609.5 | K17: 5600.9 | L17: 5591.1 | M17: 5594.1 | N17: 5584.9 | P17: 5584.4 | Q17: 5587.8 | R17: 5586.1 | S17: 5600.9 | T17: 5623.6 | U17: 5615.3 | V17: 5597.9 | W17: 5619.9 | X17: 5618.3 | Y17: 5637.3 | Z17: 5642.2 | AA17: 5641.2 | AC17: 5648.1 | AD17: 5651 | AE17: 5659.2 | AF17: 5668.9 | AG17: 5669.7 | AH17: 5673.3 | AI17: 5683.3 | AJ17: 5690.6 | AK17: 5692.2 | AL17: 5690.6 | AM17: 5693.9 | AN17: 5698.9 | AP17: 5718 | AQ17: 5722.4 | AR17: 5738.8 | AS17: 5742.5 | AT17: 5741.2 | AU17: 5749.1 | AV17: 5749 | AW17: 5755.5 | AX17: 5765.6 | AY17: 5764.2 | AZ17: 5774.3 | BA17: 5778.4 | BC17: 5778.6 | BD17: 5789.7 | BE17: 5785.5 | BF17: 5779.1 | BG17: 5784.8 | BH17: 5793.1 | BI17: 5788.9 | BJ17: 5796.8 | BK17: 5794.6 | BL17: 5816.9 | BM17: 5825.1 | BN17: 5827.8 | BP17: 5834.9 | BQ17: 5836.2 | BR17: 5843.7 | BS17: 5856.8 | BT17: 5867.4 | BU17: 5872.7 | BV17: 5873.9 | BW17: 5879.2 | BX17: 5882.1 | BY17: 5886.9 | BZ17: 5891.5 | CA17: 5907 | CB17: 5918.1 | CC17: 5928.1 | CD17: 5929.1 | CE17: 5944.6 | CF17: 5958.4 | CG17: 5962.3 | CH17: 5970.7 | CI17: 5968.6 | CJ17: 5972.9 | CK17: 5993.1 | CL17: 5982.5 | CM17: 5974.2 | CN17: 6007.1 | CO17: 6008 | CP17: 6009.8 | CQ17: 6007.2 | CR17: 5996.9 | CS17: 5995 | CT17: 6015.8 | CU17: 6020.2 | CV17: 6030.4 | CW17: 6022.6 | CX17: 6019.3 | CY17: 6021.3 | CZ17: 6029.4 | DA17: 6044.2 | DB17: 6036.5 | DC17: 6029.2 | DD17: 6040.5 | DE17: 6046.9 | DF17: 6047.5 | DG17: 6044.9 | DH17: 6037 | DI17: 6046.3 | DJ17: 6045.2 | DK17: -1.1 | DL17: -0.0001819294445 | DM17: 37 | DN17: 34 | DO17: 25.9 | DP17: 0.00430282591 | DQ17: 26 | DR17: =RANK(DP17,($DP$5:$DP$54)) -> 41 | DS17: 23.9 | DT17: 0.003969242522 | DU17: 26 | DV17: 41 | DW17: 421.1 | DX17: 0.07487420209 | DY17: 13 | DZ17: 37
A18: Indiana | B18: SMS18000004000000001 | C18: 2858.2 | D18: 2843.5 | E18: 2819.9 | F18: 2795.2 | G18: 2789.1 | H18: 2776.4 | I18: 2757.7 | J18: 2773.3 | K18: 2770.5 | L18: 2772 | M18: 2779.5 | N18: 2777 | P18: 2779.4 | Q18: 2779.6 | R18: 2783.3 | S18: 2797.9 | T18: 2809.6 | U18: 2808.1 | V18: 2822.6 | W18: 2823.7 | X18: 2801.1 | Y18: 2811.5 | Z18: 2811.3 | AA18: 2814.7 | AC18: 2825.3 | AD18: 2828.5 | AE18: 2835 | AF18: 2840.9 | AG18: 2851.5 | AH18: 2844.8 | AI18: 2843.1 | AJ18: 2850.4 | AK18: 2861.9 | AL18: 2863.4 | AM18: 2866.1 | AN18: 2878.2 | AP18: 2888.1 | AQ18: 2894.6 | AR18: 2900.5 | AS18: 2891.9 | AT18: 2894.3 | AU18: 2902.3 | AV18: 2895.5 | AW18: 2898.8 | AX18: 2905.1 | AY18: 2905.6 | AZ18: 2909.6 | BA18: 2911.2 | BC18: 2911.3 | BD18: 2923 | BE18: 2920.1 | BF18: 2922.7 | BG18: 2921 | BH18: 2928.4 | BI18: 2925.5 | BJ18: 2939.5 | BK18: 2934.4 | BL18: 2954.1 | BM18: 2964 | BN18: 2965.2 | BP18: 2951.9 | BQ18: 2962.3 | BR18: 2965.5 | BS18: 2974.7 | BT18: 2980.1 | BU18: 2984 | BV18: 2979.9 | BW18: 2981.4 | BX18: 2986.3 | BY18: 2996.6 | BZ18: 3005.1 | CA18: 3012.1 | CB18: 3016.5 | CC18: 3021.8 | CD18: 3019.6 | CE18: 3023.8 | CF18: 3028.6 | CG18: 3030.4 | CH18: 3043 | CI18: 3043.2 | CJ18: 3041 | CK18: 3047.5 | CL18: 3050 | CM18: 3059.7 | CN18: 3066.3 | CO18: 3074.4 | CP18: 3074.2 | CQ18: 3075.4 | CR18: 3072.9 | CS18: 3076.4 | CT18: 3088 | CU18: 3094.2 | CV18: 3101.6 | CW18: 3100.6 | CX18: 3108.3 | CY18: 3103.9 | CZ18: 3106.5 | DA18: 3119.5 | DB18: 3117.8 | DC18: 3111 | DD18: 3110.6 | DE18: 3118.1 | DF18: 3126.6 | DG18: 3122.7 | DH18: 3129.1 | DI18: 3133.8 | DJ18: 3129.3 | DK18: -4.5 | DL18: -0.001435956347 | DM18: 48 | DN18: 41 | DO18: 21 | DP18: 0.006756104623 | DQ18: 29 | DR18: 39 | DS18: 25.4 | DT18: 0.008183253326 | DU18: 25 | DV18: 34 | DW18: 371.6 | DX18: 0.1347499728 | DY18: 15 | DZ18: 18
A19: Iowa | B19: SMS19000004000000001 | C19: 1502.9 | D19: 1499.6 | E19: 1490.7 | F19: 1482.3 | G19: 1480.9 | H19: 1476.2 | I19: 1470.5 | J19: 1471.6 | K19: 1471.6 | L19: 1468 | M19: 1467.3 | N19: 1462.8 | P19: 1463.6 | Q19: 1464.6 | R19: 1467.3 | S19: 1470.8 | T19: 1472.3 | U19: 1470.2 | V19: 1466.3 | W19: 1465.3 | X19: 1466.3 | Y19: 1473.2 | Z19: 1474.4 | AA19: 1474.9 | AC19: 1476.2 | AD19: 1477.3 | AE19: 1478.7 | AF19: 1483.3 | AG19: 1484 | AH19: 1482.3 | AI19: 1488.1 | AJ19: 1488.4 | AK19: 1493.2 | AL19: 1492.7 | AM19: 1494.2 | AN19: 1495.7 | AP19: 1500.3 | AQ19: 1502.8 | AR19: 1507.5 | AS19: 1509.4 | AT19: 1508.2 | AU19: 1506.5 | AV19: 1509.1 | AW19: 1511.6 | AX19: 1511.6 | AY19: 1512.3 | AZ19: 1513.7 | BA19: 1514.8 | BC19: 1517.4 | BD19: 1521.4 | BE19: 1520.8 | BF19: 1520.4 | BG19: 1523.4 | BH19: 1527.5 | BI19: 1533.7 | BJ19: 1535.5 | BK19: 1534.1 | BL19: 1541.5 | BM19: 1543 | BN19: 1544.2 | BP19: 1537.4 | BQ19: 1539.9 | BR19: 1541.2 | BS19: 1545.6 | BT19: 1546.8 | BU19: 1547.2 | BV19: 1546.5 | BW19: 1549.8 | BX19: 1549.3 | BY19: 1555 | BZ19: 1557.4 | CA19: 1559.1 | CB19: 1558.3 | CC19: 1558.6 | CD19: 1560.1 | CE19: 1560.8 | CF19: 1559.9 | CG19: 1559.9 | CH19: 1561 | CI19: 1559.4 | CJ19: 1558.2 | CK19: 1565.9 | CL19: 1570.1 | CM19: 1573.9 | CN19: 1568.3 | CO19: 1569.5 | CP19: 1572.5 | CQ19: 1571.7 | CR19: 1567.9 | CS19: 1566.2 | CT19: 1572.4 | CU19: 1572.9 | CV19: 1572.4 | CW19: 1573.2 | CX19: 1570.2 | CY19: 1571.8 | CZ19: 1577.4 | DA19: 1581.1 | DB19: 1580.2 | DC19: 1577.6 | DD19: 1580.6 | DE19: 1586.7 | DF19: 1587.8 | DG19: 1590.6 | DH19: 1586.7 | DI19: 1586.6 | DJ19: 1592.9 | DK19: 6.3 | DL19: 0.003970755074 | DM19: 11 | DN19: 2 | DO19: 22.7 | DP19: 0.0144567571 | DQ19: 28 | DR19: 19 | DS19: 21.1 | DT19: 0.01342409976 | DU19: 29 | DV19: 19 | DW19: 122.4 | DX19: 0.08323699422 | DY19: 29 | DZ19: 32
A20: Kansas | B20: SMS20000004000000001 | C20: 1381.4 | D20: 1370.8 | E20: 1361.7 | F20: 1350.3 | G20: 1346.1 | H20: 1339.5 | I20: 1333.9 | J20: 1329.9 | K20: 1328.5 | L20: 1325 | M20: 1326.3 | N20: 1324.1 | P20: 1323 | Q20: 1319 | R20: 1321.3 | S20: 1326.7 | T20: 1331.4 | U20: 1331.8 | V20: 1333.3 | W20: 1334.3 | X20: 1327 | Y20: 1333.2 | Z20: 1329.2 | AA20: 1331 | AC20: 1337.9 | AD20: 1331.3 | AE20: 1332.9 | AF20: 1339.8 | AG20: 1339.2 | AH20: 1331.7 | AI20: 1342 | AJ20: 1344.2 | AK20: 1343.5 | AL20: 1343.7 | AM20: 1344.2 | AN20: 1341.4 | AP20: 1354.2 | AQ20: 1354.7 | AR20: 1358.4 | AS20: 1353.6 | AT20: 1355.6 | AU20: 1356.6 | AV20: 1354.6 | AW20: 1359.6 | AX20: 1356.9 | AY20: 1360.7 | AZ20: 1362.7 | BA20: 1362.9 | BC20: 1364.1 | BD20: 1368 | BE20: 1366.2 | BF20: 1369.6 | BG20: 1367.6 | BH20: 1366.3 | BI20: 1373.3 | BJ20: 1376.7 | BK20: 1380.2 | BL20: 1382.7 | BM20: 1384.9 | BN20: 1382.7 | BP20: 1382 | BQ20: 1386.1 | BR20: 1388.4 | BS20: 1389.9 | BT20: 1392 | BU20: 1392.1 | BV20: 1394.6 | BW20: 1395.4 | BX20: 1395.5 | BY20: 1399.6 | BZ20: 1398.9 | CA20: 1401.9 | CB20: 1396.3 | CC20: 1401.3 | CD20: 1398.8 | CE20: 1396.1 | CF20: 1398.7 | CG20: 1400.5 | CH20: 1400.2 | CI20: 1401.2 | CJ20: 1401.7 | CK20: 1402 | CL20: 1398.7 | CM20: 1401.7 | CN20: 1409.4 | CO20: 1411.6 | CP20: 1410.4 | CQ20: 1411.3 | CR20: 1408.3 | CS20: 1407.4 | CT20: 1411.9 | CU20: 1410.9 | CV20: 1415.6 | CW20: 1412.3 | CX20: 1408.7 | CY20: 1410.5 | CZ20: 1407 | DA20: 1412.6 | DB20: 1413.6 | DC20: 1409.6 | DD20: 1406.9 | DE20: 1399.8 | DF20: 1401.1 | DG20: 1405.5 | DH20: 1408.8 | DI20: 1408.5 | DJ20: 1411.6 | DK20: 3.1 | DL20: 0.002200922968 | DM20: 17 | DN20: 13 | DO20: 2.9 | DP20: 0.002058635621 | DQ20: 42 | DR20: 45 | DS20: 1.1 | DT20: 0.000779865296 | DU20: 45 | DV20: 46 | DW20: 77.7 | DX20: 0.05825024365 | DY20: 35 | DZ20: 43
A21: Kentucky | B21: SMS21000004000000001 | C21: 1796.2 | D21: 1786.2 | E21: 1776.5 | F21: 1768.6 | G21: 1767.7 | H21: 1763.6 | I21: 1765.1 | J21: 1760.5 | K21: 1761.4 | L21: 1760.3 | M21: 1762 | N21: 1759.2 | P21: 1756.6 | Q21: 1748.5 | R21: 1757.5 | S21: 1764 | T21: 1774.1 | U21: 1775.3 | V21: 1772 | W21: 1767.5 | X21: 1772.7 | Y21: 1780.4 | Z21: 1778.8 | AA21: 1786.1 | AC21: 1779.2 | AD21: 1783.9 | AE21: 1786.4 | AF21: 1786.7 | AG21: 1785.9 | AH21: 1788.3 | AI21: 1794.7 | AJ21: 1798.4 | AK21: 1801.6 | AL21: 1800.6 | AM21: 1805.2 | AN21: 1807.7 | AP21: 1813.2 | AQ21: 1816.1 | AR21: 1819.1 | AS21: 1819.4 | AT21: 1820.9 | AU21: 1821.6 | AV21: 1823.9 | AW21: 1821 | AX21: 1823 | AY21: 1824.4 | AZ21: 1828.1 | BA21: 1828.8 | BC21: 1832.6 | BD21: 1834.2 | BE21: 1834 | BF21: 1834.9 | BG21: 1833.1 | BH21: 1833 | BI21: 1837.4 | BJ21: 1841.8 | BK21: 1842.8 | BL21: 1835.3 | BM21: 1839.9 | BN21: 1845.9 | BP21: 1843.7 | BQ21: 1841.3 | BR21: 1844.7 | BS21: 1852.4 | BT21: 1853.2 | BU21: 1854.1 | BV21: 1861.4 | BW21: 1861.6 | BX21: 1863.2 | BY21: 1872.3 | BZ21: 1879.3 | CA21: 1880 | CB21: 1877.2 | CC21: 1876.5 | CD21: 1871.4 | CE21: 1870 | CF21: 1881.4 | CG21: 1882.9 | CH21: 1884.6 | CI21: 1885.3 | CJ21: 1890.6 | CK21: 1895.9 | CL21: 1901.9 | CM21: 1908.4 | CN21: 1904.3 | CO21: 1909.8 | CP21: 1908.6 | CQ21: 1908.3 | CR21: 1911.1 | CS21: 1908.6 | CT21: 1920.6 | CU21: 1916.8 | CV21: 1919.9 | CW21: 1920.8 | CX21: 1927.4 | CY21: 1931.3 | CZ21: 1934.3 | DA21: 1936.2 | DB21: 1938.9 | DC21: 1939.5 | DD21: 1940 | DE21: 1936.2 | DF21: 1939 | DG21: 1947 | DH21: 1951.3 | DI21: 1948.8 | DJ21: 1953 | DK21: 4.2 | DL21: 0.002155172414 | DM21: 14 | DN21: 14 | DO21: 25.6 | DP21: 0.01328214175 | DQ21: 27 | DR21: 21 | DS21: 21.7 | DT21: 0.01123595506 | DU21: 28 | DV21: 24 | DW21: 187.9 | DX21: 0.1064528922 | DY21: 27 | DZ21: 23
A22: Louisiana | B22: SMS22000004000000001 | C22: 1931.4 | D22: 1928.7 | E22: 1917.4 | F22: 1904 | G22: 1904.4 | H22: 1896.7 | I22: 1894.1 | J22: 1894.2 | K22: 1892.7 | L22: 1885.7 | M22: 1886 | N22: 1878.6 | P22: 1876.3 | Q22: 1875 | R22: 1880.8 | S22: 1883.4 | T22: 1889.3 | U22: 1895.5 | V22: 1885.6 | W22: 1884.3 | X22: 1882.1 | Y22: 1885.6 | Z22: 1885 | AA22: 1889.2 | AC22: 1892.5 | AD22: 1897.2 | AE22: 1897.6 | AF22: 1899.1 | AG22: 1899 | AH22: 1894.3 | AI22: 1905 | AJ22: 1903.4 | AK22: 1906 | AL22: 1907.2 | AM22: 1908.8 | AN22: 1910.9 | AP22: 1914.8 | AQ22: 1917.4 | AR22: 1919.2 | AS22: 1929.4 | AT22: 1930.6 | AU22: 1928.1 | AV22: 1924.2 | AW22: 1923.1 | AX22: 1923.7 | AY22: 1927.5 | AZ22: 1933.8 | BA22: 1934.8 | BC22: 1938.2 | BD22: 1945.1 | BE22: 1944.5 | BF22: 1946.1 | BG22: 1948.5 | BH22: 1951.5 | BI22: 1949.5 | BJ22: 1953.1 | BK22: 1954.8 | BL22: 1964.4 | BM22: 1963.4 | BN22: 1963.2 | BP22: 1964.4 | BQ22: 1967.9 | BR22: 1970.1 | BS22: 1972.1 | BT22: 1978 | BU22: 1980.8 | BV22: 1982.3 | BW22: 1985.2 | BX22: 1987.5 | BY22: 1991.8 | BZ22: 1994.4 | CA22: 1996.6 | CB22: 1998.2 | CC22: 1997.2 | CD22: 1991.3 | CE22: 1990.8 | CF22: 1993.8 | CG22: 1993 | CH22: 1991.5 | CI22: 1989.6 | CJ22: 1986.4 | CK22: 1982.2 | CL22: 1981.7 | CM22: 1980 | CN22: 1982.5 | CO22: 1979.4 | CP22: 1977 | CQ22: 1975.7 | CR22: 1973.8 | CS22: 1968.1 | CT22: 1970.4 | CU22: 1961 | CV22: 1965.7 | CW22: 1969.1 | CX22: 1966 | CY22: 1969 | CZ22: 1975.7 | DA22: 1983.6 | DB22: 1973.9 | DC22: 1972.7 | DD22: 1984.4 | DE22: 1988.1 | DF22: 1981.8 | DG22: 1983.2 | DH22: 1980.5 | DI22: 1978 | DJ22: 1974.9 | DK22: -3.1 | DL22: -0.001567239636 | DM22: 44 | DN22: 42 | DO22: 8.9 | DP22: 0.004526958291 | DQ22: 36 | DR22: 40 | DS22: 5.9 | DT22: 0.002996444896 | DU22: 38 | DV22: 42 | DW22: 80.8 | DX22: 0.04265878254 | DY22: 34 | DZ22: 46
A23: Maine | B23: SMS23000004000000001 | C23: 604.6 | D23: 601.6 | E23: 598.3 | F23: 598.5 | G23: 598.6 | H23: 595.5 | I23: 593.5 | J23: 592.1 | K23: 594.3 | L23: 592.4 | M23: 592.6 | N23: 592.6 | P23: 592.7 | Q23: 591.9 | R23: 593.5 | S23: 594 | T23: 596 | U23: 593.1 | V23: 591.8 | W23: 590.5 | X23: 592.6 | Y23: 593.6 | Z23: 593.3 | AA23: 593.5 | AC23: 593 | AD23: 593.9 | AE23: 594.3 | AF23: 593.2 | AG23: 591.3 | AH23: 592.7 | AI23: 596 | AJ23: 595.7 | AK23: 596.7 | AL23: 595.8 | AM23: 596.2 | AN23: 595.6 | AP23: 596.1 | AQ23: 597.9 | AR23: 597.7 | AS23: 598.7 | AT23: 598.9 | AU23: 599.6 | AV23: 598.3 | AW23: 598.8 | AX23: 598.3 | AY23: 598.6 | AZ23: 597.2 | BA23: 597.8 | BC23: 599 | BD23: 599.1 | BE23: 599.1 | BF23: 599.5 | BG23: 601.1 | BH23: 603.4 | BI23: 603 | BJ23: 603.2 | BK23: 602.4 | BL23: 604.1 | BM23: 602.7 | BN23: 604.1 | BP23: 601.9 | BQ23: 603.5 | BR23: 603.6 | BS23: 603 | BT23: 604.9 | BU23: 605.5 | BV23: 605.3 | BW23: 605.3 | BX23: 605.8 | BY23: 605.9 | BZ23: 604.8 | CA23: 604.7 | CB23: 608.7 | CC23: 607.5 | CD23: 608.6 | CE23: 609.8 | CF23: 610.2 | CG23: 611.1 | CH23: 612.2 | CI23: 611.3 | CJ23: 610.3 | CK23: 609.7 | CL23: 609.6 | CM23: 610.9 | CN23: 615.7 | CO23: 617.3 | CP23: 617.7 | CQ23: 618 | CR23: 616.1 | CS23: 616.4 | CT23: 618.1 | CU23: 618.1 | CV23: 617.8 | CW23: 616 | CX23: 617.1 | CY23: 617.6 | CZ23: 621.9 | DA23: 620 | DB23: 622.9 | DC23: 621.9 | DD23: 620.5 | DE23: 623.3 | DF23: 624.5 | DG23: 621.9 | DH23: 621.4 | DI23: 619.2 | DJ23: 619.2 | DK23: 0 | DL23: 0 | DM23: 33 | DN23: 33 | DO23: 2.1 | DP23: 0.003403014098 | DQ23: 43 | DR23: 43 | DS23: 1.6 | DT23: 0.002590673575 | DU23: 43 | DV23: 43 | DW23: 25.7 | DX23: 0.04330244313 | DY23: 46 | DZ23: 45
A24: Maryland | B24: SMS24000004000000001 | C24: 2554 | D24: 2545 | E24: 2532.5 | F24: 2525.6 | G24: 2528.5 | H24: 2524.9 | I24: 2518.1 | J24: 2513.5 | K24: 2508.7 | L24: 2506.8 | M24: 2506.6 | N24: 2502.3 | P24: 2500.7 | Q24: 2467.9 | R24: 2500.3 | S24: 2515.6 | T24: 2526.8 | U24: 2527.2 | V24: 2525.6 | W24: 2525.5 | X24: 2523.1 | Y24: 2530.9 | Z24: 2527.6 | AA24: 2530.8 | AC24: 2529.6 | AD24: 2534.5 | AE24: 2536.5 | AF24: 2538 | AG24: 2539 | AH24: 2541.2 | AI24: 2549.3 | AJ24: 2542.8 | AK24: 2548.5 | AL24: 2551.3 | AM24: 2551 | AN24: 2555.5 | AP24: 2563.9 | AQ24: 2566.2 | AR24: 2573.1 | AS24: 2566.6 | AT24: 2569.8 | AU24: 2573.5 | AV24: 2571.1 | AW24: 2573.9 | AX24: 2581.5 | AY24: 2582.5 | AZ24: 2585.5 | BA24: 2586.4 | BC24: 2591 | BD24: 2595 | BE24: 2592.5 | BF24: 2592.1 | BG24: 2594.9 | BH24: 2595.1 | BI24: 2593.9 | BJ24: 2597 | BK24: 2597.5 | BL24: 2598.2 | BM24: 2605 | BN24: 2609.3 | BP24: 2603 | BQ24: 2601.7 | BR24: 2602.3 | BS24: 2613.3 | BT24: 2619.8 | BU24: 2620.2 | BV24: 2617.4 | BW24: 2621.4 | BX24: 2625.6 | BY24: 2632.8 | BZ24: 2636.3 | CA24: 2641.3 | CB24: 2640.4 | CC24: 2644.7 | CD24: 2641.2 | CE24: 2648.9 | CF24: 2658.8 | CG24: 2655.9 | CH24: 2661.3 | CI24: 2665.5 | CJ24: 2664.4 | CK24: 2677.5 | CL24: 2680 | CM24: 2683.3 | CN24: 2697.5 | CO24: 2697.7 | CP24: 2702.1 | CQ24: 2704.1 | CR24: 2700.9 | CS24: 2701.3 | CT24: 2710.5 | CU24: 2714.7 | CV24: 2716.8 | CW24: 2721.8 | CX24: 2722.2 | CY24: 2730.8 | CZ24: 2744 | DA24: 2753.5 | DB24: 2745.6 | DC24: 2745.6 | DD24: 2744.1 | DE24: 2760.7 | DF24: 2764.1 | DG24: 2778.5 | DH24: 2781.7 | DI24: 2777.5 | DJ24: 2782.9 | DK24: 5.4 | DL24: 0.001944194419 | DM24: 12 | DN24: 15 | DO24: 60.7 | DP24: 0.02229814121 | DQ24: 10 | DR24: 6 | DS24: 52.1 | DT24: 0.01907865827 | DU24: 10 | DV24: 6 | DW24: 264.8 | DX24: 0.1051586514 | DY24: 22 | DZ24: 24
A25: Massachusetts | B25: SMS25000004000000001 | C25: 3244 | D25: 3236.3 | E25: 3224 | F25: 3210.5 | G25: 3205.9 | H25: 3198.3 | I25: 3188.7 | J25: 3188 | K25: 3186.6 | L25: 3184.2 | M25: 3187.5 | N25: 3195.6 | P25: 3203.3 | Q25: 3200 | R25: 3203.2 | S25: 3211.3 | T25: 3225.5 | U25: 3213.3 | V25: 3218.4 | W25: 3219.5 | X25: 3215.5 | Y25: 3230.7 | Z25: 3231.9 | AA25: 3234.5 | AC25: 3236.1 | AD25: 3233.9 | AE25: 3239 | AF25: 3249.8 | AG25: 3248.4 | AH25: 3241.8 | AI25: 3265.7 | AJ25: 3264.5 | AK25: 3272.5 | AL25: 3273.4 | AM25: 3274.5 | AN25: 3278.4 | AP25: 3289.4 | AQ25: 3292.4 | AR25: 3302.2 | AS25: 3298.1 | AT25: 3299.9 | AU25: 3311.9 | AV25: 3311 | AW25: 3312.5 | AX25: 3319.1 | AY25: 3322.4 | AZ25: 3329.2 | BA25: 3331.5 | BC25: 3332.2 | BD25: 3339 | BE25: 3346 | BF25: 3349.7 | BG25: 3354.9 | BH25: 3360.6 | BI25: 3354.8 | BJ25: 3360.9 | BK25: 3360.9 | BL25: 3372 | BM25: 3378.9 | BN25: 3386.7 | BP25: 3380.5 | BQ25: 3389.5 | BR25: 3397.5 | BS25: 3403.2 | BT25: 3407.2 | BU25: 3413.4 | BV25: 3422.8 | BW25: 3412.2 | BX25: 3425.6 | BY25: 3428.1 | BZ25: 3436.8 | CA25: 3445.9 | CB25: 3464 | CC25: 3462.8 | CD25: 3476 | CE25: 3477.5 | CF25: 3492.5 | CG25: 3496.2 | CH25: 3506.5 | CI25: 3508.3 | CJ25: 3500.9 | CK25: 3505.3 | CL25: 3512.5 | CM25: 3515.4 | CN25: 3534.3 | CO25: 3545.9 | CP25: 3555.9 | CQ25: 3551.1 | CR25: 3549.6 | CS25: 3551.1 | CT25: 3572.5 | CU25: 3573.8 | CV25: 3575.4 | CW25: 3574.5 | CX25: 3583.4 | CY25: 3586.4 | CZ25: 3593.5 | DA25: 3604.7 | DB25: 3605.8 | DC25: 3605 | DD25: 3607 | DE25: 3617.9 | DF25: 3620.4 | DG25: 3628.4 | DH25: 3638.7 | DI25: 3641.9 | DJ25: 3648.6 | DK25: 6.7 | DL25: 0.001839699058 | DM25: 9 | DN25: 17 | DO25: 65.2 | DP25: 0.01819501033 | DQ25: 8 | DR25: 11 | DS25: 62.2 | DT25: 0.0173432969 | DU25: 7 | DV25: 11 | DW25: 459.9 | DX25: 0.1442280553 | DY25: 10 | DZ25: 17
A26: Michigan | B26: SMS26000004000000001 | C26: 3951.1 | D26: 3951.3 | E26: 3923 | F26: 3906.8 | G26: 3875 | H26: 3837.7 | I26: 3830.3 | J26: 3831.2 | K26: 3832.7 | L26: 3837.3 | M26: 3834.2 | N26: 3835.7 | P26: 3834.5 | Q26: 3835.4 | R26: 3829.8 | S26: 3848.8 | T26: 3861.5 | U26: 3864 | V26: 3879.9 | W26: 3864.9 | X26: 3872 | Y26: 3888.6 | Z26: 3891.4 | AA26: 3891.8 | AC26: 3910.1 | AD26: 3912.7 | AE26: 3921.2 | AF26: 3935.8 | AG26: 3937.9 | AH26: 3942 | AI26: 3963.2 | AJ26: 3965.8 | AK26: 3973 | AL26: 3983.3 | AM26: 3989.1 | AN26: 3988.5 | AP26: 4006.6 | AQ26: 4013.4 | AR26: 4021.6 | AS26: 4034.2 | AT26: 4024.5 | AU26: 4023.7 | AV26: 4039.2 | AW26: 4038 | AX26: 4039.3 | AY26: 4047.8 | AZ26: 4057 | BA26: 4065.3 | BC26: 4081.3 | BD26: 4093.4 | BE26: 4094.7 | BF26: 4091.5 | BG26: 4101.6 | BH26: 4106.7 | BI26: 4102.3 | BJ26: 4112.8 | BK26: 4113.2 | BL26: 4123.9 | BM26: 4124.4 | BN26: 4126 | BP26: 4143.5 | BQ26: 4158 | BR26: 4158.2 | BS26: 4156.5 | BT26: 4170.6 | BU26: 4188.1 | BV26: 4183.5 | BW26: 4188.9 | BX26: 4187.4 | BY26: 4197.3 | BZ26: 4207.3 | CA26: 4217.6 | CB26: 4220.1 | CC26: 4222.1 | CD26: 4223.5 | CE26: 4226.2 | CF26: 4238.5 | CG26: 4238.9 | CH26: 4240.6 | CI26: 4248.8 | CJ26: 4246.9 | CK26: 4266.3 | CL26: 4275.5 | CM26: 4288.6 | CN26: 4289.9 | CO26: 4294.4 | CP26: 4298.7 | CQ26: 4315.8 | CR26: 4308.2 | CS26: 4322.2 | CT26: 4331.5 | CU26: 4332.3 | CV26: 4340.8 | CW26: 4364.9 | CX26: 4368 | CY26: 4368.9 | CZ26: 4378.6 | DA26: 4376 | DB26: 4378.5 | DC26: 4390.5 | DD26: 4383.3 | DE26: 4386.1 | DF26: 4391.1 | DG26: 4392.9 | DH26: 4407 | DI26: 4406.1 | DJ26: 4414.3 | DK26: 8.2 | DL26: 0.001861056263 | DM26: 6 | DN26: 16 | DO26: 46.3 | DP26: 0.01059981685 | DQ26: 11 | DR26: 30 | DS26: 45.4 | DT26: 0.01039163176 | DU26: 11 | DV26: 28 | DW26: 584 | DX26: 0.1524684751 | DY26: 6 | DZ26: 14
A27: Minnesota | B27: SMS27000004000000001 | C27: 2710.7 | D27: 2694.3 | E27: 2679.5 | F27: 2662.8 | G27: 2662 | H27: 2647.6 | I27: 2645.1 | J27: 2637 | K27: 2621.9 | L27: 2631.7 | M27: 2632.3 | N27: 2633 | P27: 2627.1 | Q27: 2625.2 | R27: 2628.5 | S27: 2636.9 | T27: 2641.4 | U27: 2641.1 | V27: 2644.7 | W27: 2644 | X27: 2638.3 | Y27: 2654.4 | Z27: 2656.2 | AA27: 2655.2 | AC27: 2662.7 | AD27: 2668.1 | AE27: 2671.3 | AF27: 2680 | AG27: 2687.5 | AH27: 2688.9 | AI27: 2675.6 | AJ27: 2700.3 | AK27: 2709.1 | AL27: 2702.7 | AM27: 2703.9 | AN27: 2708.9 | AP27: 2708.6 | AQ27: 2712.7 | AR27: 2721.9 | AS27: 2736.4 | AT27: 2723.3 | AU27: 2726.6 | AV27: 2725.8 | AW27: 2733.1 | AX27: 2740.5 | AY27: 2744.4 | AZ27: 2747.3 | BA27: 2752.4 | BC27: 2758.4 | BD27: 2768.3 | BE27: 2770 | BF27: 2767 | BG27: 2771.5 | BH27: 2776.6 | BI27: 2770.3 | BJ27: 2780.2 | BK27: 2784 | BL27: 2797.6 | BM27: 2799.8 | BN27: 2811.7 | BP27: 2795.2 | BQ27: 2796.3 | BR27: 2795.4 | BS27: 2805.9 | BT27: 2809.3 | BU27: 2817.7 | BV27: 2829.2 | BW27: 2829.8 | BX27: 2819.2 | BY27: 2829.6 | BZ27: 2830.6 | CA27: 2831.4 | CB27: 2837.5 | CC27: 2842.3 | CD27: 2845.5 | CE27: 2851.6 | CF27: 2858.3 | CG27: 2859.5 | CH27: 2860.9 | CI27: 2862.7 | CJ27: 2859.2 | CK27: 2861 | CL27: 2867.8 | CM27: 2875.7 | CN27: 2880.8 | CO27: 2884.4 | CP27: 2884.7 | CQ27: 2895.1 | CR27: 2890.8 | CS27: 2884.6 | CT27: 2899.4 | CU27: 2904.1 | CV27: 2903.1 | CW27: 2908.4 | CX27: 2915.6 | CY27: 2921.4 | CZ27: 2917.5 | DA27: 2923.7 | DB27: 2929.3 | DC27: 2945.7 | DD27: 2942.8 | DE27: 2952.1 | DF27: 2954.7 | DG27: 2948.9 | DH27: 2955.5 | DI27: 2953.1 | DJ27: 2949.1 | DK27: -4 | DL27: -0.001354508821 | DM27: 47 | DN27: 39 | DO27: 33.5 | DP27: 0.01148991631 | DQ27: 23 | DR27: 27 | DS27: 27.7 | DT27: 0.009481755323 | DU27: 24 | DV27: 32 | DW27: 304 | DX27: 0.1149294923 | DY27: 20 | DZ27: 20
A28: Mississippi | B28: SMS28000004000000001 | C28: 1120.7 | D28: 1115.1 | E28: 1106.2 | F28: 1100.2 | G28: 1099.3 | H28: 1095.8 | I28: 1094.4 | J28: 1092.1 | K28: 1089.3 | L28: 1086.8 | M28: 1086.7 | N28: 1085.5 | P28: 1084.7 | Q28: 1084.5 | R28: 1086.6 | S28: 1092.2 | T28: 1098.4 | U28: 1098.8 | V28: 1097.5 | W28: 1093.2 | X28: 1092.7 | Y28: 1095.5 | Z28: 1092.5 | AA28: 1095.5 | AC28: 1091.2 | AD28: 1090.7 | AE28: 1092.6 | AF28: 1093.6 | AG28: 1093.3 | AH28: 1093.7 | AI28: 1093.8 | AJ28: 1092.7 | AK28: 1093.9 | AL28: 1094.6 | AM28: 1094.7 | AN28: 1094.8 | AP28: 1098.3 | AQ28: 1100.4 | AR28: 1101.4 | AS28: 1101.7 | AT28: 1101.2 | AU28: 1100.7 | AV28: 1102.1 | AW28: 1103 | AX28: 1102.1 | AY28: 1103.5 | AZ28: 1104.8 | BA28: 1106.2 | BC28: 1106.1 | BD28: 1109.4 | BE28: 1107.5 | BF28: 1108.5 | BG28: 1107.9 | BH28: 1108.2 | BI28: 1109.4 | BJ28: 1109.7 | BK28: 1112.3 | BL28: 1120.2 | BM28: 1120.5 | BN28: 1120.1 | BP28: 1120.1 | BQ28: 1116.8 | BR28: 1115.6 | BS28: 1117.2 | BT28: 1116.8 | BU28: 1117.6 | BV28: 1120.1 | BW28: 1119.5 | BX28: 1119.8 | BY28: 1122.9 | BZ28: 1122.6 | CA28: 1124.5 | CB28: 1127.2 | CC28: 1128.8 | CD28: 1125.9 | CE28: 1129.1 | CF28: 1132.4 | CG28: 1131.6 | CH28: 1134.9 | CI28: 1135.5 | CJ28: 1136 | CK28: 1140.9 | CL28: 1142.1 | CM28: 1144.7 | CN28: 1145.5 | CO28: 1147.1 | CP28: 1146 | CQ28: 1144.2 | CR28: 1141.9 | CS28: 1142.5 | CT28: 1147.3 | CU28: 1146.6 | CV28: 1147 | CW28: 1147.1 | CX28: 1146.8 | CY28: 1145 | CZ28: 1146.6 | DA28: 1146.2 | DB28: 1145.3 | DC28: 1145.1 | DD28: 1144.6 | DE28: 1151.3 | DF28: 1153.5 | DG28: 1152.1 | DH28: 1151.5 | DI28: 1155.6 | DJ28: 1159 | DK28: 3.4 | DL28: 0.002942194531 | DM28: 15 | DN28: 6 | DO28: 12.2 | DP28: 0.01063829787 | DQ28: 33 | DR28: 29 | DS28: 14 | DT28: 0.01222707424 | DU28: 32 | DV28: 22 | DW28: 64.6 | DX28: 0.05902777778 | DY28: 38 | DZ28: 42
A29: Missouri | B29: SMS29000004000000001 | C29: 2742.2 | D29: 2730.1 | E29: 2713.9 | F29: 2696.5 | G29: 2692.6 | H29: 2685.3 | I29: 2683.7 | J29: 2677.7 | K29: 2670.7 | L29: 2663.8 | M29: 2662.5 | N29: 2658.4 | P29: 2652.1 | Q29: 2655 | R29: 2655.4 | S29: 2654.2 | T29: 2660.9 | U29: 2652.4 | V29: 2658.8 | W29: 2672.7 | X29: 2661.2 | Y29: 2662.6 | Z29: 2661.8 | AA29: 2662.6 | AC29: 2660.6 | AD29: 2657.6 | AE29: 2661.9 | AF29: 2666.9 | AG29: 2666.9 | AH29: 2664.9 | AI29: 2671.5 | AJ29: 2669 | AK29: 2672 | AL29: 2669.3 | AM29: 2671.9 | AN29: 2676.6 | AP29: 2678.4 | AQ29: 2677.6 | AR29: 2681.6 | AS29: 2681.7 | AT29: 2681.6 | AU29: 2687.1 | AV29: 2689.6 | AW29: 2689.9 | AX29: 2693.9 | AY29: 2702 | AZ29: 2705.8 | BA29: 2708.6 | BC29: 2711.1 | BD29: 2718.5 | BE29: 2714.1 | BF29: 2724.8 | BG29: 2724.1 | BH29: 2724.6 | BI29: 2728 | BJ29: 2728.9 | BK29: 2734 | BL29: 2740.4 | BM29: 2750.7 | BN29: 2750.3 | BP29: 2715.7 | BQ29: 2723.8 | BR29: 2721.5 | BS29: 2733 | BT29: 2735 | BU29: 2735.1 | BV29: 2737.1 | BW29: 2740.5 | BX29: 2739.7 | BY29: 2740.6 | BZ29: 2740.2 | CA29: 2744.6 | CB29: 2774.7 | CC29: 2779.8 | CD29: 2774.6 | CE29: 2779.1 | CF29: 2785.3 | CG29: 2787.4 | CH29: 2795.1 | CI29: 2794.8 | CJ29: 2794.7 | CK29: 2787.6 | CL29: 2785.1 | CM29: 2783.3 | CN29: 2823.8 | CO29: 2826.5 | CP29: 2828.7 | CQ29: 2832.5 | CR29: 2830.8 | CS29: 2839.7 | CT29: 2844.9 | CU29: 2848.3 | CV29: 2850.6 | CW29: 2860.3 | CX29: 2864.2 | CY29: 2871.7 | CZ29: 2877 | DA29: 2880.6 | DB29: 2865.9 | DC29: 2869.5 | DD29: 2874.4 | DE29: 2889 | DF29: 2900.4 | DG29: 2899.4 | DH29: 2890 | DI29: 2891.9 | DJ29: 2894.4 | DK29: 2.5 | DL29: 0.0008644835575 | DM29: 21 | DN29: 26 | DO29: 30.2 | DP29: 0.01054395643 | DQ29: 25 | DR29: 32 | DS29: 22.7 | DT29: 0.007904725424 | DU29: 27 | DV29: 36 | DW29: 210.7 | DX29: 0.07851101092 | DY29: 26 | DZ29: 35
A30: Montana | B30: SMS30000004000000001 | C30: 434.2 | D30: 432.6 | E30: 428.7 | F30: 429 | G30: 429.2 | H30: 429.3 | I30: 428.3 | J30: 427.6 | K30: 426.8 | L30: 427.5 | M30: 427.4 | N30: 426.5 | P30: 427.2 | Q30: 426.7 | R30: 428.1 | S30: 427.6 | T30: 429.7 | U30: 429 | V30: 429.2 | W30: 429.1 | X30: 427.7 | Y30: 428.3 | Z30: 427.2 | AA30: 427.3 | AC30: 427.4 | AD30: 428.6 | AE30: 429.1 | AF30: 429.1 | AG30: 430.8 | AH30: 430.1 | AI30: 429.8 | AJ30: 431.9 | AK30: 433.1 | AL30: 433.9 | AM30: 434.4 | AN30: 435.4 | AP30: 436.4 | AQ30: 436.7 | AR30: 437.2 | AS30: 439.4 | AT30: 440.4 | AU30: 439.9 | AV30: 440.7 | AW30: 441.3 | AX30: 442.3 | AY30: 443.2 | AZ30: 444 | BA30: 445 | BC30: 445.5 | BD30: 448.5 | BE30: 448 | BF30: 449.5 | BG30: 448.6 | BH30: 448.3 | BI30: 449.1 | BJ30: 449.3 | BK30: 449.8 | BL30: 448.3 | BM30: 449.9 | BN30: 450.6 | BP30: 453.2 | BQ30: 453.9 | BR30: 452.6 | BS30: 454.4 | BT30: 453.5 | BU30: 454.7 | BV30: 454.3 | BW30: 454.6 | BX30: 453.7 | BY30: 453.3 | BZ30: 453.8 | CA30: 454.7 | CB30: 459 | CC30: 459.8 | CD30: 461.3 | CE30: 460.7 | CF30: 460.9 | CG30: 461.2 | CH30: 460.8 | CI30: 461 | CJ30: 461.4 | CK30: 460.8 | CL30: 461 | CM30: 461.1 | CN30: 465.4 | CO30: 466 | CP30: 466.4 | CQ30: 467.5 | CR30: 467.5 | CS30: 467.1 | CT30: 467.8 | CU30: 467.6 | CV30: 468.7 | CW30: 469.6 | CX30: 472.1 | CY30: 471.7 | CZ30: 474.3 | DA30: 477 | DB30: 476.7 | DC30: 475.5 | DD30: 474.4 | DE30: 473.7 | DF30: 473.2 | DG30: 474.6 | DH30: 474.1 | DI30: 476.3 | DJ30: 476 | DK30: -0.3 | DL30: -0.0006298551333 | DM30: 34 | DN30: 35 | DO30: 3.9 | DP30: 0.008260961661 | DQ30: 41 | DR30: 36 | DS30: 4.3 | DT30: 0.009115963536 | DU30: 40 | DV30: 33 | DW30: 47.7 | DX30: 0.1113705347 | DY30: 41 | DZ30: 22
A31: Nebraska | B31: SMS31000004000000001 | C31: 962.6 | D31: 959.5 | E31: 956.3 | F31: 949.8 | G31: 950 | H31: 947.7 | I31: 949.3 | J31: 946.2 | K31: 944 | L31: 941.9 | M31: 942.7 | N31: 939.4 | P31: 939.6 | Q31: 940.5 | R31: 940.7 | S31: 942.8 | T31: 945.2 | U31: 947.3 | V31: 948.5 | W31: 948.1 | X31: 945.7 | Y31: 947.8 | Z31: 946.1 | AA31: 948 | AC31: 947.4 | AD31: 947.3 | AE31: 948.3 | AF31: 951.4 | AG31: 951.4 | AH31: 950.4 | AI31: 952.6 | AJ31: 953.7 | AK31: 955.6 | AL31: 956.5 | AM31: 958.2 | AN31: 959.5 | AP31: 963.5 | AQ31: 963.1 | AR31: 967.2 | AS31: 967.9 | AT31: 968 | AU31: 967.7 | AV31: 968.9 | AW31: 968.7 | AX31: 970.6 | AY31: 971.7 | AZ31: 973 | BA31: 975.7 | BC31: 974.7 | BD31: 975.4 | BE31: 975.6 | BF31: 974.8 | BG31: 977.7 | BH31: 977 | BI31: 979.1 | BJ31: 980.9 | BK31: 981.9 | BL31: 983.5 | BM31: 983.3 | BN31: 982.5 | BP31: 989.3 | BQ31: 991.1 | BR31: 991.2 | BS31: 993.2 | BT31: 992.9 | BU31: 992.7 | BV31: 993.5 | BW31: 994.1 | BX31: 994.8 | BY31: 995.8 | BZ31: 996 | CA31: 996.8 | CB31: 999.3 | CC31: 1000.9 | CD31: 1002.1 | CE31: 1002.1 | CF31: 1002.9 | CG31: 1004.6 | CH31: 1006.5 | CI31: 1007.9 | CJ31: 1007.8 | CK31: 1012.4 | CL31: 1013.8 | CM31: 1013.9 | CN31: 1010.5 | CO31: 1011.1 | CP31: 1014 | CQ31: 1012 | CR31: 1013.6 | CS31: 1014.8 | CT31: 1016.4 | CU31: 1013.6 | CV31: 1017.8 | CW31: 1017.6 | CX31: 1021.8 | CY31: 1021.9 | CZ31: 1018.8 | DA31: 1025 | DB31: 1022.8 | DC31: 1024.2 | DD31: 1024.5 | DE31: 1029.8 | DF31: 1029.6 | DG31: 1027.8 | DH31: 1034 | DI31: 1028.7 | DJ31: 1031.9 | DK31: 3.2 | DL31: 0.003110722271 | DM31: 16 | DN31: 5 | DO31: 10.1 | DP31: 0.009884517518 | DQ31: 35 | DR31: 34 | DS31: 10 | DT31: 0.009785693316 | DU31: 34 | DV31: 31 | DW31: 82.6 | DX31: 0.08701148214 | DY31: 33 | DZ31: 31
A32: Nevada | B32: SMS32000004000000001 | C32: 1198.5 | D32: 1184.8 | E32: 1170.6 | F32: 1156.2 | G32: 1149.8 | H32: 1144.1 | I32: 1136.7 | J32: 1131.9 | K32: 1129.2 | L32: 1126.4 | M32: 1125 | N32: 1126.5 | P32: 1120.7 | Q32: 1118.9 | R32: 1116.6 | S32: 1118.4 | T32: 1122.1 | U32: 1120.7 | V32: 1119.7 | W32: 1117.9 | X32: 1111.5 | Y32: 1114.9 | Z32: 1116.4 | AA32: 1119.2 | AC32: 1124 | AD32: 1122.6 | AE32: 1122.1 | AF32: 1123.6 | AG32: 1124.1 | AH32: 1122.2 | AI32: 1125.1 | AJ32: 1126 | AK32: 1128.3 | AL32: 1129.1 | AM32: 1130.2 | AN32: 1131.2 | AP32: 1136.7 | AQ32: 1136.3 | AR32: 1138.4 | AS32: 1139.9 | AT32: 1141.7 | AU32: 1143.8 | AV32: 1141.9 | AW32: 1145.3 | AX32: 1148.7 | AY32: 1152 | AZ32: 1156.5 | BA32: 1153.6 | BC32: 1161.7 | BD32: 1161.7 | BE32: 1165.3 | BF32: 1168.2 | BG32: 1169.2 | BH32: 1174.2 | BI32: 1172.8 | BJ32: 1179.4 | BK32: 1179.7 | BL32: 1185.4 | BM32: 1189.7 | BN32: 1193.1 | BP32: 1193.8 | BQ32: 1198.6 | BR32: 1203.1 | BS32: 1207.5 | BT32: 1212.8 | BU32: 1213.7 | BV32: 1215.5 | BW32: 1223.4 | BX32: 1227.1 | BY32: 1224.3 | BZ32: 1228.4 | CA32: 1230.5 | CB32: 1241.6 | CC32: 1246.5 | CD32: 1247.7 | CE32: 1250.2 | CF32: 1253.4 | CG32: 1254.4 | CH32: 1258.2 | CI32: 1264.1 | CJ32: 1265.3 | CK32: 1271 | CL32: 1267.6 | CM32: 1267.7 | CN32: 1277.9 | CO32: 1283.4 | CP32: 1285.5 | CQ32: 1290.8 | CR32: 1292.1 | CS32: 1293.4 | CT32: 1307 | CU32: 1309.1 | CV32: 1315.7 | CW32: 1315.3 | CX32: 1318.8 | CY32: 1321.3 | CZ32: 1321.5 | DA32: 1325.9 | DB32: 1325.7 | DC32: 1333.6 | DD32: 1331.5 | DE32: 1337.4 | DF32: 1345.2 | DG32: 1347.8 | DH32: 1349.1 | DI32: 1352.1 | DJ32: 1353.9 | DK32: 1.8 | DL32: 0.001331262481 | DM32: 25 | DN32: 23 | DO32: 35.1 | DP32: 0.02661510464 | DQ32: 21 | DR32: 3 | DS32: 32.6 | DT32: 0.02467267085 | DU32: 22 | DV32: 3 | DW32: 217.2 | DX32: 0.1910794405 | DY32: 25 | DZ32: 5
A33: New Hampshire | B33: SMS33000004000000001 | C33: 640.1 | D33: 636.2 | E33: 631.6 | F33: 629.4 | G33: 630.6 | H33: 628.4 | I33: 624.5 | J33: 624.7 | K33: 624.9 | L33: 624.5 | M33: 623.5 | N33: 624.8 | P33: 621.3 | Q33: 623.1 | R33: 624.5 | S33: 625.1 | T33: 627.1 | U33: 625.4 | V33: 625.2 | W33: 625.1 | X33: 624.6 | Y33: 626.4 | Z33: 625.2 | AA33: 626.6 | AC33: 626.2 | AD33: 627.3 | AE33: 628.2 | AF33: 629.8 | AG33: 628.3 | AH33: 626.8 | AI33: 626.4 | AJ33: 627.3 | AK33: 629 | AL33: 629.7 | AM33: 630.8 | AN33: 631 | AP33: 632.9 | AQ33: 631.4 | AR33: 633.6 | AS33: 633.2 | AT33: 632.9 | AU33: 634.5 | AV33: 634.3 | AW33: 634.9 | AX33: 637.1 | AY33: 637 | AZ33: 637.2 | BA33: 637.4 | BC33: 638.2 | BD33: 638.9 | BE33: 638.1 | BF33: 639.4 | BG33: 640.6 | BH33: 640.9 | BI33: 639.2 | BJ33: 640.2 | BK33: 639.4 | BL33: 642.4 | BM33: 643.5 | BN33: 644.3 | BP33: 645.9 | BQ33: 646.4 | BR33: 646.4 | BS33: 646.9 | BT33: 645.7 | BU33: 648.1 | BV33: 649.7 | BW33: 642.6 | BX33: 650.1 | BY33: 651.5 | BZ33: 651.5 | CA33: 653 | CB33: 652.6 | CC33: 651.3 | CD33: 653.8 | CE33: 654.8 | CF33: 656.6 | CG33: 656.8 | CH33: 658.7 | CI33: 658.5 | CJ33: 657.4 | CK33: 659.7 | CL33: 660.2 | CM33: 661.1 | CN33: 663.9 | CO33: 666.4 | CP33: 665.2 | CQ33: 666.5 | CR33: 665.2 | CS33: 666.2 | CT33: 668 | CU33: 670.3 | CV33: 670 | CW33: 674.3 | CX33: 674.3 | CY33: 673.6 | CZ33: 680.4 | DA33: 678 | DB33: 675.3 | DC33: 678.5 | DD33: 675.2 | DE33: 676.9 | DF33: 680.4 | DG33: 683.8 | DH33: 678.1 | DI33: 681.1 | DJ33: 683 | DK33: 1.9 | DL33: 0.002789605051 | DM33: 24 | DN33: 10 | DO33: 8.7 | DP33: 0.01290226902 | DQ33: 37 | DR33: 22 | DS33: 9.4 | DT33: 0.01395486936 | DU33: 35 | DV33: 16 | DW33: 58.5 | DX33: 0.09367493995 | DY33: 40 | DZ33: 27
A34: New Jersey | B34: SMS34000004000000001 | C34: 3955.3 | D34: 3940.9 | E34: 3918.6 | F34: 3896.7 | G34: 3902.2 | H34: 3891 | I34: 3881.3 | J34: 3875.3 | K34: 3870.9 | L34: 3863.2 | M34: 3862.6 | N34: 3862.8 | P34: 3849.8 | Q34: 3837.6 | R34: 3840.7 | S34: 3854.6 | T34: 3867 | U34: 3863.4 | V34: 3855.5 | W34: 3846.5 | X34: 3835.6 | Y34: 3841.4 | Z34: 3842.1 | AA34: 3840.9 | AC34: 3834.3 | AD34: 3834.6 | AE34: 3835.8 | AF34: 3841.9 | AG34: 3839.7 | AH34: 3837.9 | AI34: 3850.3 | AJ34: 3846.5 | AK34: 3856.1 | AL34: 3855.8 | AM34: 3863.5 | AN34: 3866.1 | AP34: 3875.3 | AQ34: 3882.4 | AR34: 3891.7 | AS34: 3875.9 | AT34: 3883.8 | AU34: 3891.2 | AV34: 3884.7 | AW34: 3892.1 | AX34: 3900.3 | AY34: 3902.6 | AZ34: 3896.5 | BA34: 3910 | BC34: 3919.3 | BD34: 3924.7 | BE34: 3928.8 | BF34: 3927.7 | BG34: 3934.9 | BH34: 3938.6 | BI34: 3937 | BJ34: 3946.5 | BK34: 3947.1 | BL34: 3942.5 | BM34: 3947.9 | BN34: 3928.8 | BP34: 3945.6 | BQ34: 3939.7 | BR34: 3941.3 | BS34: 3956.3 | BT34: 3966.3 | BU34: 3963.1 | BV34: 3966.5 | BW34: 3967.1 | BX34: 3969.7 | BY34: 3974.3 | BZ34: 3982.1 | CA34: 3982.3 | CB34: 3987.9 | CC34: 3988.7 | CD34: 3991.3 | CE34: 4002.5 | CF34: 4018.1 | CG34: 4021.6 | CH34: 4025.9 | CI34: 4028.6 | CJ34: 4031.6 | CK34: 4051.4 | CL34: 4060.4 | CM34: 4072.8 | CN34: 4046.6 | CO34: 4056.5 | CP34: 4061.3 | CQ34: 4064.1 | CR34: 4060.5 | CS34: 4069.9 | CT34: 4085 | CU34: 4091.3 | CV34: 4095.7 | CW34: 4095.7 | CX34: 4094.8 | CY34: 4103.7 | CZ34: 4117.6 | DA34: 4128.5 | DB34: 4116 | DC34: 4116.7 | DD34: 4107.6 | DE34: 4122.5 | DF34: 4129.2 | DG34: 4130.5 | DH34: 4124 | DI34: 4130.3 | DJ34: 4136.7 | DK34: 6.4 | DL34: 0.001549524248 | DM34: 10 | DN34: 19 | DO34: 41.9 | DP34: 0.01023248999 | DQ34: 14 | DR34: 33 | DS34: 33 | DT34: 0.008041523503 | DU34: 20 | DV34: 35 | DW34: 255.4 | DX34: 0.06580269497 | DY34: 23 | DZ34: 41
A35: New Mexico | B35: SMS35000004000000001 | C35: 829.1 | D35: 825 | E35: 818.8 | F35: 813.7 | G35: 813.8 | H35: 811.2 | I35: 809.3 | J35: 809.8 | K35: 807.3 | L35: 804.7 | M35: 803.6 | N35: 802.5 | P35: 801.1 | Q35: 802.5 | R35: 803.1 | S35: 804.7 | T35: 807.6 | U35: 806.9 | V35: 805.9 | W35: 803.8 | X35: 797.7 | Y35: 800.8 | Z35: 800.8 | AA35: 802 | AC35: 799.9 | AD35: 802.5 | AE35: 802.5 | AF35: 804.9 | AG35: 805.3 | AH35: 804.7 | AI35: 804.3 | AJ35: 803.2 | AK35: 804.3 | AL35: 801.6 | AM35: 802.7 | AN35: 802.1 | AP35: 802.1 | AQ35: 804.2 | AR35: 806 | AS35: 804.2 | AT35: 804.5 | AU35: 805.2 | AV35: 802.9 | AW35: 803.8 | AX35: 805.8 | AY35: 814.4 | AZ35: 814.5 | BA35: 812.7 | BC35: 813.6 | BD35: 814.1 | BE35: 811.7 | BF35: 814.2 | BG35: 813.8 | BH35: 808.3 | BI35: 809.5 | BJ35: 811.8 | BK35: 810.4 | BL35: 810.8 | BM35: 811.1 | BN35: 811 | BP35: 816 | BQ35: 816.2 | BR35: 815.7 | BS35: 816.8 | BT35: 819.6 | BU35: 816.4 | BV35: 821.5 | BW35: 822.2 | BX35: 821.6 | BY35: 824.7 | BZ35: 828.8 | CA35: 827.4 | CB35: 825 | CC35: 826.2 | CD35: 826 | CE35: 825.9 | CF35: 826.2 | CG35: 824.2 | CH35: 822.9 | CI35: 826.4 | CJ35: 825.5 | CK35: 826.2 | CL35: 828.2 | CM35: 828 | CN35: 828.5 | CO35: 831.7 | CP35: 829.6 | CQ35: 830.5 | CR35: 829.5 | CS35: 828.6 | CT35: 830.2 | CU35: 830.4 | CV35: 830.6 | CW35: 830.8 | CX35: 835.4 | CY35: 836.4 | CZ35: 833.5 | DA35: 837 | DB35: 837.3 | DC35: 840 | DD35: 837.7 | DE35: 834.3 | DF35: 833.5 | DG35: 839.6 | DH35: 842.6 | DI35: 844.3 | DJ35: 845.6 | DK35: 1.3 | DL35: 0.00153973706 | DM35: 28 | DN35: 20 | DO35: 10.2 | DP35: 0.01220971989 | DQ35: 34 | DR35: 24 | DS35: 9.2 | DT35: 0.01099952176 | DU35: 36 | DV35: 25 | DW35: 36.3 | DX35: 0.04485357717 | DY35: 44 | DZ35: 44
A36: New York | B36: SMS36000004000000001 | C36: 8664.9 | D36: 8636.2 | E36: 8598.7 | F36: 8529.9 | G36: 8539.2 | H36: 8522.6 | I36: 8552.8 | J36: 8536.6 | K36: 8496.9 | L36: 8486.8 | M36: 8488.8 | N36: 8489.8 | P36: 8501 | Q36: 8499.8 | R36: 8516.7 | S36: 8552.7 | T36: 8588.1 | U36: 8583.2 | V36: 8555.2 | W36: 8553.5 | X36: 8549 | Y36: 8580.3 | Z36: 8592.2 | AA36: 8592.8 | AC36: 8618.9 | AD36: 8628.4 | AE36: 8633.2 | AF36: 8665.9 | AG36: 8659.2 | AH36: 8661.1 | AI36: 8693.5 | AJ36: 8694.8 | AK36: 8707.2 | AL36: 8701.5 | AM36: 8717.6 | AN36: 8725.2 | AP36: 8746.4 | AQ36: 8768.7 | AR36: 8783.4 | AS36: 8777.1 | AT36: 8789.9 | AU36: 8791.6 | AV36: 8783.4 | AW36: 8805.9 | AX36: 8824.3 | AY36: 8836.5 | AZ36: 8814.2 | BA36: 8849.9 | BC36: 8848.1 | BD36: 8860.8 | BE36: 8877.5 | BF36: 8904.8 | BG36: 8912.5 | BH36: 8915 | BI36: 8927.4 | BJ36: 8933.2 | BK36: 8938.9 | BL36: 8942.7 | BM36: 8959 | BN36: 8966.9 | BP36: 9008.6 | BQ36: 9028 | BR36: 9041.3 | BS36: 9063.4 | BT36: 9084.7 | BU36: 9087.4 | BV36: 9104.9 | BW36: 9118.7 | BX36: 9133.9 | BY36: 9132.9 | BZ36: 9134.8 | CA36: 9156.3 | CB36: 9186.2 | CC36: 9193.3 | CD36: 9202.1 | CE36: 9209.8 | CF36: 9242.2 | CG36: 9260.6 | CH36: 9283.8 | CI36: 9283.4 | CJ36: 9278.1 | CK36: 9281.9 | CL36: 9293.8 | CM36: 9298.4 | CN36: 9347.2 | CO36: 9361.7 | CP36: 9379.5 | CQ36: 9388.4 | CR36: 9363.6 | CS36: 9382.5 | CT36: 9416.7 | CU36: 9421.4 | CV36: 9426.5 | CW36: 9420.8 | CX36: 9435.8 | CY36: 9458.3 | CZ36: 9484.5 | DA36: 9498 | DB36: 9480.6 | DC36: 9485 | DD36: 9504.8 | DE36: 9533.2 | DF36: 9547.8 | DG36: 9553.7 | DH36: 9538 | DI36: 9527.7 | DJ36: 9552.6 | DK36: 24.9 | DL36: 0.002613432413 | DM36: 3 | DN36: 12 | DO36: 116.8 | DP36: 0.01237838869 | DQ36: 4 | DR36: 23 | DS36: 94.3 | DT36: 0.00997007919 | DU36: 4 | DV36: 30 | DW36: 999.8 | DX36: 0.1168973903 | DY36: 4 | DZ36: 19
A37: North Carolina | B37: SMS37000004000000001 | C37: 3997.8 | D37: 3978.2 | E37: 3944.8 | F37: 3917.2 | G37: 3909.9 | H37: 3897 | I37: 3885.1 | J37: 3875.9 | K37: 3867.7 | L37: 3859.1 | M37: 3856.1 | N37: 3846.8 | P37: 3842.9 | Q37: 3839.2 | R37: 3847.9 | S37: 3858.6 | T37: 3878.1 | U37: 3874.1 | V37: 3877.7 | W37: 3874.1 | X37: 3873.6 | Y37: 3889.3 | Z37: 3893.7 | AA37: 3895.8 | AC37: 3887.3 | AD37: 3902.4 | AE37: 3905.2 | AF37: 3911.3 | AG37: 3911.3 | AH37: 3917.3 | AI37: 3920.8 | AJ37: 3923.7 | AK37: 3929.2 | AL37: 3929.6 | AM37: 3938.6 | AN37: 3945.4 | AP37: 3961.2 | AQ37: 3964.7 | AR37: 3970.1 | AS37: 3976.1 | AT37: 3982.5 | AU37: 3977.6 | AV37: 3979.4 | AW37: 3985.6 | AX37: 3987.9 | AY37: 4008.7 | AZ37: 4013.6 | BA37: 4018.6 | BC37: 4026.9 | BD37: 4034.5 | BE37: 4035.3 | BF37: 4042.8 | BG37: 4044.7 | BH37: 4044.7 | BI37: 4050.8 | BJ37: 4054.9 | BK37: 4061.5 | BL37: 4099.2 | BM37: 4096.5 | BN37: 4104.2 | BP37: 4095.4 | BQ37: 4086.9 | BR37: 4105.9 | BS37: 4124.9 | BT37: 4134.4 | BU37: 4140.5 | BV37: 4148.8 | BW37: 4151.4 | BX37: 4152 | BY37: 4174.5 | BZ37: 4187.8 | CA37: 4203.1 | CB37: 4193.9 | CC37: 4208.5 | CD37: 4204.4 | CE37: 4215.9 | CF37: 4229.6 | CG37: 4240.1 | CH37: 4246.5 | CI37: 4252.4 | CJ37: 4254.7 | CK37: 4259.7 | CL37: 4271.4 | CM37: 4275 | CN37: 4296.9 | CO37: 4309.3 | CP37: 4317.9 | CQ37: 4327.2 | CR37: 4328.7 | CS37: 4334.7 | CT37: 4350 | CU37: 4352.5 | CV37: 4361.1 | CW37: 4364.1 | CX37: 4375 | CY37: 4382.7 | CZ37: 4377 | DA37: 4387.1 | DB37: 4387.5 | DC37: 4379.1 | DD37: 4394.3 | DE37: 4405.6 | DF37: 4414.6 | DG37: 4420 | DH37: 4427.9 | DI37: 4443.6 | DJ37: 4446.5 | DK37: 2.9 | DL37: 0.0006526239986 | DM37: =RANK(DK37,($DK$5:$DK$54)) -> 19 | DN37: =RANK(DL37,($DL$5:$DL$54)) -> 29 | DO37: 71.5 | DP37: 0.01634285714 | DQ37: 6 | DR37: 16 | DS37: 63.8 | DT37: 0.01455723641 | DU37: 6 | DV37: 15 | DW37: 561.4 | DX37: 0.1445007851 | DY37: 7 | DZ37: 15
A38: North Dakota | B38: SMS38000004000000001 | C38: 366.2 | D38: 366.4 | E38: 365.6 | F38: 362.8 | G38: 366.6 | H38: 367 | I38: 366.2 | J38: 366.1 | K38: 367.6 | L38: 367.8 | M38: 367.8 | N38: 368.3 | P38: 367.8 | Q38: 369.5 | R38: 371.2 | S38: 374.4 | T38: 375 | U38: 374.5 | V38: 375.2 | W38: 376.6 | X38: 378 | Y38: 381.6 | Z38: 382.6 | AA38: 384 | AC38: 385.5 | AD38: 386.3 | AE38: 388.3 | AF38: 389.3 | AG38: 392 | AH38: 392.7 | AI38: 396.6 | AJ38: 398.5 | AK38: 403 | AL38: 405 | AM38: 408.8 | AN38: 412.3 | AP38: 416.7 | AQ38: 419.6 | AR38: 422.2 | AS38: 425.9 | AT38: 428 | AU38: 430.5 | AV38: 433.2 | AW38: 433.9 | AX38: 433.8 | AY38: 434.7 | AZ38: 434.7 | BA38: 435.5 | BC38: 436.9 | BD38: 439.4 | BE38: 439.7 | BF38: 438.1 | BG38: 441.8 | BH38: 443.1 | BI38: 445.5 | BJ38: 447.1 | BK38: 447.6 | BL38: 449.2 | BM38: 451.6 | BN38: 451.7 | BP38: 451 | BQ38: 453.2 | BR38: 454.3 | BS38: 457.4 | BT38: 459.2 | BU38: 461 | BV38: 463.3 | BW38: 464.1 | BX38: 466 | BY38: 467.7 | BZ38: 469.7 | CA38: 469.8 | CB38: 466.3 | CC38: 463.8 | CD38: 461 | CE38: 457.5 | CF38: 454.9 | CG38: 453.2 | CH38: 452.7 | CI38: 450 | CJ38: 447.8 | CK38: 449.3 | CL38: 447.6 | CM38: 444.7 | CN38: 438.3 | CO38: 437.1 | CP38: 435.8 | CQ38: 435.5 | CR38: 433.9 | CS38: 433.3 | CT38: 434.8 | CU38: 435.1 | CV38: 434.2 | CW38: 435.4 | CX38: 434.2 | CY38: 433.8 | CZ38: 435.3 | DA38: 434.2 | DB38: 434.6 | DC38: 437 | DD38: 439.6 | DE38: 439.6 | DF38: 441.3 | DG38: 441 | DH38: 440.2 | DI38: 438.5 | DJ38: 435.8 | DK38: -2.7 | DL38: -0.006157354618 | DM38: 42 | DN38: 49 | DO38: 1.6 | DP38: 0.003684937817 | DQ38: 44 | DR38: 42 | DS38: 2 | DT38: 0.004610419548 | DU38: 42 | DV38: 40 | DW38: 69.6 | DX38: 0.1900600765 | DY38: 36 | DZ38: 7
A39: Ohio | B39: SMS39000004000000001 | C39: 5203.9 | D39: 5175.4 | E39: 5136 | F39: 5091 | G39: 5072 | H39: 5042.8 | I39: 5030.6 | J39: 5022.9 | K39: 5021.2 | L39: 5011.1 | M39: 5006.9 | N39: 5003.7 | P39: 5005.9 | Q39: 4998.9 | R39: 5001.8 | S39: 5016.9 | T39: 5031.1 | U39: 5026.8 | V39: 5036.6 | W39: 5034 | X39: 5037.2 | Y39: 5054.1 | Z39: 5057.7 | AA39: 5061 | AC39: 5061.5 | AD39: 5070 | AE39: 5072.2 | AF39: 5082.6 | AG39: 5079.6 | AH39: 5073.5 | AI39: 5110.9 | AJ39: 5113.2 | AK39: 5117.8 | AL39: 5116.9 | AM39: 5132.7 | AN39: 5142.1 | AP39: 5152.2 | AQ39: 5167.2 | AR39: 5183.7 | AS39: 5180.5 | AT39: 5185.6 | AU39: 5192.6 | AV39: 5188.9 | AW39: 5191.2 | AX39: 5197.3 | AY39: 5211.2 | AZ39: 5212.5 | BA39: 5217.9 | BC39: 5218.5 | BD39: 5230 | BE39: 5229.3 | BF39: 5242.3 | BG39: 5251.5 | BH39: 5255.2 | BI39: 5264.5 | BJ39: 5274.7 | BK39: 5270.7 | BL39: 5269.7 | BM39: 5264 | BN39: 5268.9 | BP39: 5297.2 | BQ39: 5302.8 | BR39: 5309.1 | BS39: 5320.7 | BT39: 5330.3 | BU39: 5324.9 | BV39: 5342.3 | BW39: 5352.5 | BX39: 5351.6 | BY39: 5349.8 | BZ39: 5361.2 | CA39: 5368.8 | CB39: 5394.7 | CC39: 5399 | CD39: 5399.1 | CE39: 5405.9 | CF39: 5415.9 | CG39: 5415.4 | CH39: 5427.5 | CI39: 5425.1 | CJ39: 5424.5 | CK39: 5446.1 | CL39: 5456.6 | CM39: 5475.4 | CN39: 5470.5 | CO39: 5476.6 | CP39: 5482.2 | CQ39: 5476.9 | CR39: 5474.3 | CS39: 5472 | CT39: 5490.6 | CU39: 5488.1 | CV39: 5495.4 | CW39: 5491.5 | CX39: 5501.2 | CY39: 5503.7 | CZ39: 5506.8 | DA39: 5522.8 | DB39: 5518.5 | DC39: 5509.1 | DD39: 5517.3 | DE39: 5536.5 | DF39: 5540 | DG39: 5546.5 | DH39: 5546.6 | DI39: 5545.4 | DJ39: 5539.8 | DK39: -5.6 | DL39: -0.001009845998 | DM39: 49 | DN39: 37 | DO39: 38.6 | DP39: 0.007016650913 | DQ39: 18 | DR39: 38 | DS39: 36.1 | DT39: 0.006559223795 | DU39: 16 | DV39: 39 | DW39: 509.2 | DX39: 0.1012205304 | DY39: 8 | DZ39: 25
A40: Oklahoma | B40: SMS40000004000000001 | C40: 1603.6 | D40: 1597.4 | E40: 1586.5 | F40: 1573.4 | G40: 1570.1 | H40: 1565.9 | I40: 1563.9 | J40: 1557.4 | K40: 1552.7 | L40: 1548.8 | M40: 1546.9 | N40: 1544.8 | P40: 1542.9 | Q40: 1543.3 | R40: 1545.8 | S40: 1550.4 | T40: 1559.9 | U40: 1562.3 | V40: 1563.5 | W40: 1557.7 | X40: 1552.3 | Y40: 1561.1 | Z40: 1563.1 | AA40: 1566.6 | AC40: 1563.5 | AD40: 1556.5 | AE40: 1567.3 | AF40: 1573.7 | AG40: 1574.3 | AH40: 1576.2 | AI40: 1582.5 | AJ40: 1580.1 | AK40: 1588.8 | AL40: 1587 | AM40: 1589.1 | AN40: 1593.1 | AP40: 1596.9 | AQ40: 1601.9 | AR40: 1605.3 | AS40: 1610.5 | AT40: 1612.6 | AU40: 1615.4 | AV40: 1613.6 | AW40: 1615.4 | AX40: 1616.8 | AY40: 1623.7 | AZ40: 1626.6 | BA40: 1630 | BC40: 1623.3 | BD40: 1626.6 | BE40: 1628.7 | BF40: 1628.4 | BG40: 1630.2 | BH40: 1631.9 | BI40: 1633.5 | BJ40: 1635.2 | BK40: 1636.6 | BL40: 1637.1 | BM40: 1643.5 | BN40: 1645.2 | BP40: 1644.7 | BQ40: 1647.9 | BR40: 1646 | BS40: 1645.7 | BT40: 1646.5 | BU40: 1650.1 | BV40: 1655.7 | BW40: 1657.3 | BX40: 1658.1 | BY40: 1662.5 | BZ40: 1665.6 | CA40: 1668.3 | CB40: 1675.5 | CC40: 1675.7 | CD40: 1670.1 | CE40: 1665.7 | CF40: 1666.9 | CG40: 1667 | CH40: 1667.7 | CI40: 1666.8 | CJ40: 1665.5 | CK40: 1668.3 | CL40: 1667 | CM40: 1663.1 | CN40: 1661.7 | CO40: 1662.6 | CP40: 1657.7 | CQ40: 1654.6 | CR40: 1650.2 | CS40: 1646.7 | CT40: 1648.8 | CU40: 1649.1 | CV40: 1648.5 | CW40: 1652 | CX40: 1649.2 | CY40: 1650.2 | CZ40: 1652.7 | DA40: 1656 | DB40: 1655.4 | DC40: 1651.9 | DD40: 1651.8 | DE40: 1656.8 | DF40: 1665.1 | DG40: 1668.8 | DH40: 1668 | DI40: 1672.1 | DJ40: 1668.3 | DK40: -3.8 | DL40: -0.002272591352 | DM40: 46 | DN40: 47 | DO40: 19.1 | DP40: 0.01158137279 | DQ40: 31 | DR40: 26 | DS40: 18.1 | DT40: 0.01096836747 | DU40: 30 | DV40: 26 | DW40: 104.4 | DX40: 0.06675618646 | DY40: 31 | DZ40: 40
A41: Oregon | B41: SMS41000004000000001 | C41: 1656.2 | D41: 1642 | E41: 1626.7 | F41: 1616.1 | G41: 1613.4 | H41: 1608.1 | I41: 1607.4 | J41: 1600.7 | K41: 1598.4 | L41: 1594.2 | M41: 1592.4 | N41: 1592 | P41: 1591.8 | Q41: 1590.4 | R41: 1592.9 | S41: 1597.4 | T41: 1604.2 | U41: 1605.6 | V41: 1604.4 | W41: 1604.4 | X41: 1602.2 | Y41: 1609.6 | Z41: 1609.6 | AA41: 1608.7 | AC41: 1614.9 | AD41: 1616.1 | AE41: 1617.2 | AF41: 1618 | AG41: 1617.4 | AH41: 1617 | AI41: 1619 | AJ41: 1621.5 | AK41: 1623.7 | AL41: 1621.5 | AM41: 1625.3 | AN41: 1626.8 | AP41: 1631 | AQ41: 1632.1 | AR41: 1634.4 | AS41: 1635.3 | AT41: 1638.1 | AU41: 1636.8 | AV41: 1640.7 | AW41: 1642.9 | AX41: 1642.8 | AY41: 1645.9 | AZ41: 1649 | BA41: 1650.7 | BC41: 1654.2 | BD41: 1659.1 | BE41: 1662.6 | BF41: 1667.2 | BG41: 1671.1 | BH41: 1670.7 | BI41: 1674.2 | BJ41: 1676.9 | BK41: 1681.4 | BL41: 1685.7 | BM41: 1691.5 | BN41: 1697 | BP41: 1697.4 | BQ41: 1698.2 | BR41: 1703.4 | BS41: 1712.1 | BT41: 1714.1 | BU41: 1716.2 | BV41: 1721.3 | BW41: 1723.6 | BX41: 1728.7 | BY41: 1737.2 | BZ41: 1746.9 | CA41: 1750.8 | CB41: 1754 | CC41: 1762 | CD41: 1764.7 | CE41: 1766.6 | CF41: 1770.6 | CG41: 1776.7 | CH41: 1778.9 | CI41: 1783.8 | CJ41: 1785.5 | CK41: 1795.1 | CL41: 1802.4 | CM41: 1803.7 | CN41: 1811.9 | CO41: 1821.5 | CP41: 1823.7 | CQ41: 1826.7 | CR41: 1828.5 | CS41: 1829.8 | CT41: 1832.7 | CU41: 1836.5 | CV41: 1841.9 | CW41: 1844.8 | CX41: 1849.3 | CY41: 1852.5 | CZ41: 1853.2 | DA41: 1860.8 | DB41: 1862.1 | DC41: 1868.9 | DD41: 1871.5 | DE41: 1880.2 | DF41: 1887.6 | DG41: 1880.6 | DH41: 1879.5 | DI41: 1887.4 | DJ41: 1885.6 | DK41: -1.8 | DL41: -0.0009536929109 | DM41: 40 | DN41: 36 | DO41: 36.3 | DP41: 0.01962904883 | DQ41: 19 | DR41: 9 | DS41: 33.1 | DT41: 0.01786774629 | DU41: 19 | DV41: 9 | DW41: 278.2 | DX41: 0.1730745303 | DY41: 21 | DZ41: 11
A42: Pennsylvania | B42: SMS42000004000000001 | C42: 5709.9 | D42: 5689.7 | E42: 5654.6 | F42: 5626.1 | G42: 5621.3 | H42: 5606.2 | I42: 5591.5 | J42: 5583.9 | K42: 5581 | L42: 5580.9 | M42: 5585 | N42: 5580.5 | P42: 5579.4 | Q42: 5564.3 | R42: 5587.2 | S42: 5611.3 | T42: 5637.6 | U42: 5638.1 | V42: 5629.6 | W42: 5635.9 | X42: 5631.4 | Y42: 5649.8 | Z42: 5655.4 | AA42: 5659.5 | AC42: 5664.9 | AD42: 5668.1 | AE42: 5675 | AF42: 5687.2 | AG42: 5689.9 | AH42: 5689.2 | AI42: 5685.1 | AJ42: 5683.4 | AK42: 5693.4 | AL42: 5695.5 | AM42: 5705.6 | AN42: 5706.4 | AP42: 5711.2 | AQ42: 5726.2 | AR42: 5743.9 | AS42: 5731.7 | AT42: 5734 | AU42: 5717.9 | AV42: 5718.8 | AW42: 5720.6 | AX42: 5729.6 | AY42: 5728.3 | AZ42: 5731.6 | BA42: 5728.7 | BC42: 5730.2 | BD42: 5741.4 | BE42: 5741.7 | BF42: 5734.4 | BG42: 5732.5 | BH42: 5733 | BI42: 5738.9 | BJ42: 5745.7 | BK42: 5747.2 | BL42: 5754.1 | BM42: 5765.1 | BN42: 5758.1 | BP42: 5759.6 | BQ42: 5756.1 | BR42: 5764.6 | BS42: 5781.4 | BT42: 5790.1 | BU42: 5789.4 | BV42: 5789.6 | BW42: 5798.4 | BX42: 5802.3 | BY42: 5809.5 | BZ42: 5816.2 | CA42: 5825.5 | CB42: 5817.5 | CC42: 5822.9 | CD42: 5810.7 | CE42: 5822.7 | CF42: 5831.8 | CG42: 5830.7 | CH42: 5833.1 | CI42: 5843.7 | CJ42: 5843.7 | CK42: 5862 | CL42: 5856.4 | CM42: 5868.1 | CN42: 5861.3 | CO42: 5867.6 | CP42: 5873.6 | CQ42: 5879.1 | CR42: 5867.7 | CS42: 5862.4 | CT42: 5892.2 | CU42: 5894.3 | CV42: 5903.8 | CW42: 5908 | CX42: 5913.4 | CY42: 5916.3 | CZ42: 5929.1 | DA42: 5950.3 | DB42: 5929.8 | DC42: 5925.7 | DD42: 5930.3 | DE42: 5924.8 | DF42: 5961.7 | DG42: 5960.1 | DH42: 5978.1 | DI42: 5973.7 | DJ42: 5976 | DK42: 2.3 | DL42: 0.0003850210088 | DM42: 23 | DN42: 32 | DO42: 62.6 | DP42: 0.01058612642 | DQ42: 9 | DR42: 31 | DS42: 59.7 | DT42: 0.01009076619 | DU42: 9 | DV42: 29 | DW42: 384.5 | DX42: 0.06876508987 | DY42: 14 | DZ42: 39
A43: Rhode Island | B43: SMS44000004000000001 | C43: 467.9 | D43: 466 | E43: 463.2 | F43: 459.7 | G43: 460 | H43: 458.8 | I43: 455.9 | J43: 455.9 | K43: 456.1 | L43: 456.1 | M43: 456.3 | N43: 456.3 | P43: 457.1 | Q43: 456.2 | R43: 457.3 | S43: 457 | T43: 458.4 | U43: 457.2 | V43: 458.8 | W43: 459.8 | X43: 458.5 | Y43: 458.1 | Z43: 458.7 | AA43: 458.4 | AC43: 458.3 | AD43: 458.3 | AE43: 459 | AF43: 461.2 | AG43: 460.6 | AH43: 461.1 | AI43: 462.6 | AJ43: 461 | AK43: 460.9 | AL43: 461.4 | AM43: 461.5 | AN43: 461.2 | AP43: 462.6 | AQ43: 464.9 | AR43: 465.3 | AS43: 464.3 | AT43: 465 | AU43: 465.1 | AV43: 465 | AW43: 466.5 | AX43: 467.7 | AY43: 466.1 | AZ43: 466.4 | BA43: 468.1 | BC43: 468.9 | BD43: 468.3 | BE43: 469.4 | BF43: 469.3 | BG43: 470.1 | BH43: 472.4 | BI43: 472.2 | BJ43: 472.2 | BK43: 473 | BL43: 472.9 | BM43: 473.9 | BN43: 471.2 | BP43: 475.1 | BQ43: 475.1 | BR43: 475.1 | BS43: 477.1 | BT43: 478 | BU43: 477.9 | BV43: 480 | BW43: 479.4 | BX43: 479.1 | BY43: 477.9 | BZ43: 478.7 | CA43: 479.3 | CB43: 483.8 | CC43: 480.8 | CD43: 482.1 | CE43: 484 | CF43: 485.6 | CG43: 484.8 | CH43: 485.9 | CI43: 485 | CJ43: 484.9 | CK43: 485.8 | CL43: 487.2 | CM43: 488.5 | CN43: 488.1 | CO43: 489.3 | CP43: 490.6 | CQ43: 489.6 | CR43: 488.3 | CS43: 489.9 | CT43: 490.7 | CU43: 490.4 | CV43: 490.6 | CW43: 491.2 | CX43: 492.2 | CY43: 491.3 | CZ43: 493 | DA43: 495.3 | DB43: 494.8 | DC43: 494.8 | DD43: 496.4 | DE43: 496.1 | DF43: 499.7 | DG43: 498.8 | DH43: 496 | DI43: 497.1 | DJ43: 497.7 | DK43: 0.6 | DL43: 0.001207000604 | DM43: 32 | DN43: 25 | DO43: 5.5 | DP43: 0.01117431938 | DQ43: 38 | DR43: 28 | DS43: 6.4 | DT43: 0.01302666395 | DU43: 37 | DV43: 20 | DW43: 41.8 | DX43: 0.09168677342 | DY43: 42 | DZ43: 28
A44: South Carolina | B44: SMS45000004000000001 | C44: 1858 | D44: 1844.2 | E44: 1829.8 | F44: 1817.5 | G44: 1813.8 | H44: 1805.1 | I44: 1800.9 | J44: 1796.9 | K44: 1790.6 | L44: 1789.9 | M44: 1788.3 | N44: 1784.1 | P44: 1790.7 | Q44: 1792.6 | R44: 1791.8 | S44: 1802.5 | T44: 1815.4 | U44: 1810 | V44: 1813.2 | W44: 1812.6 | X44: 1810.2 | Y44: 1811.1 | Z44: 1810.7 | AA44: 1817 | AC44: 1810.5 | AD44: 1819.8 | AE44: 1820.7 | AF44: 1825.5 | AG44: 1827.4 | AH44: 1828.6 | AI44: 1830.4 | AJ44: 1830.6 | AK44: 1832.9 | AL44: 1830.5 | AM44: 1833.7 | AN44: 1837.5 | AP44: 1845.2 | AQ44: 1851.6 | AR44: 1856.8 | AS44: 1856.1 | AT44: 1855.9 | AU44: 1859.3 | AV44: 1856.4 | AW44: 1858.3 | AX44: 1858.8 | AY44: 1863.9 | AZ44: 1875.8 | BA44: 1875 | BC44: 1879.3 | BD44: 1884.9 | BE44: 1885 | BF44: 1889.3 | BG44: 1891.1 | BH44: 1890.6 | BI44: 1896.1 | BJ44: 1898 | BK44: 1903 | BL44: 1912.4 | BM44: 1916.5 | BN44: 1921.5 | BP44: 1928.2 | BQ44: 1925.3 | BR44: 1935.5 | BS44: 1942.4 | BT44: 1945.3 | BU44: 1945.8 | BV44: 1946.8 | BW44: 1949.5 | BX44: 1953.3 | BY44: 1965.3 | BZ44: 1972.8 | CA44: 1975.2 | CB44: 1981.9 | CC44: 1988.4 | CD44: 1987.2 | CE44: 1987.3 | CF44: 1996.4 | CG44: 1998.8 | CH44: 2007.2 | CI44: 2010.3 | CJ44: 2015.3 | CK44: 2021 | CL44: 2025.5 | CM44: 2035.2 | CN44: 2035.5 | CO44: 2042.3 | CP44: 2041.9 | CQ44: 2047.5 | CR44: 2048.2 | CS44: 2050.3 | CT44: 2062.2 | CU44: 2059.3 | CV44: 2063.3 | CW44: 2060 | CX44: 2068.8 | CY44: 2070.7 | CZ44: 2076.1 | DA44: 2076.3 | DB44: 2074.4 | DC44: 2073.3 | DD44: 2079.5 | DE44: 2084.3 | DF44: 2088.7 | DG44: 2095.9 | DH44: 2092.4 | DI44: 2105.7 | DJ44: 2113.6 | DK44: 7.9 | DL44: 0.003751721518 | DM44: 7 | DN44: 3 | DO44: 44.8 | DP44: 0.02165506574 | DQ44: 13 | DR44: 7 | DS44: 42.9 | DT44: 0.02071763172 | DU44: 13 | DV44: 5 | DW44: 312.7 | DX44: 0.1736354045 | DY44: 18 | DZ44: 10
A45: South Dakota | B45: SMS46000004000000001 | C45: 409.2 | D45: 407.7 | E45: 405.8 | F45: 401.4 | G45: 404.8 | H45: 403.4 | I45: 403.7 | J45: 402.4 | K45: 402.5 | L45: 401.2 | M45: 401.7 | N45: 400.7 | P45: 399.8 | Q45: 399.4 | R45: 400.4 | S45: 401.7 | T45: 403.3 | U45: 403.6 | V45: 404.2 | W45: 404.9 | X45: 404.8 | Y45: 405.4 | Z45: 405.5 | AA45: 404.7 | AC45: 404.5 | AD45: 405 | AE45: 405.1 | AF45: 405.6 | AG45: 406.6 | AH45: 407 | AI45: 407.4 | AJ45: 408.2 | AK45: 408.9 | AL45: 409.7 | AM45: 409.8 | AN45: 410.7 | AP45: 411.6 | AQ45: 411.6 | AR45: 413.2 | AS45: 415.3 | AT45: 414.2 | AU45: 414.3 | AV45: 414 | AW45: 413.9 | AX45: 414.7 | AY45: 414.9 | AZ45: 415.6 | BA45: 416.3 | BC45: 416.3 | BD45: 417 | BE45: 416.8 | BF45: 415.5 | BG45: 417.1 | BH45: 417.2 | BI45: 417.1 | BJ45: 418.1 | BK45: 418.5 | BL45: 416.7 | BM45: 418.1 | BN45: 418.1 | BP45: 422 | BQ45: 422.4 | BR45: 422.2 | BS45: 422.8 | BT45: 423 | BU45: 423.3 | BV45: 424 | BW45: 424 | BX45: 424.4 | BY45: 424.9 | BZ45: 423.9 | CA45: 424.7 | CB45: 426.4 | CC45: 426.7 | CD45: 427.9 | CE45: 428 | CF45: 428.2 | CG45: 428 | CH45: 427.4 | CI45: 427.7 | CJ45: 428.2 | CK45: 428.5 | CL45: 429.8 | CM45: 431.2 | CN45: 430.4 | CO45: 430.5 | CP45: 431 | CQ45: 431.6 | CR45: 431.7 | CS45: 432.9 | CT45: 433.8 | CU45: 433.5 | CV45: 433.8 | CW45: 434.3 | CX45: 435.3 | CY45: 435.4 | CZ45: 434.8 | DA45: 436.8 | DB45: 438.2 | DC45: 438.9 | DD45: 437.1 | DE45: 435.9 | DF45: 435.7 | DG45: 435.9 | DH45: 437.3 | DI45: 435.5 | DJ45: 436.3 | DK45: 0.8 | DL45: 0.001836969001 | DM45: 31 | DN45: 18 | DO45: 1 | DP45: 0.002297266253 | DQ45: 45 | DR45: 44 | DS45: 0.9 | DT45: 0.002067064768 | DU45: 46 | DV45: 44 | DW45: 32.6 | DX45: 0.08075303443 | DY45: 45 | DZ45: 33
A46: Tennessee | B46: SMS47000004000000001 | C46: 2687.2 | D46: 2667.3 | E46: 2646.1 | F46: 2623.3 | G46: 2619.9 | H46: 2605.7 | I46: 2601.1 | J46: 2597.9 | K46: 2593.9 | L46: 2595.8 | M46: 2599.4 | N46: 2592.3 | P46: 2595.1 | Q46: 2590.5 | R46: 2596.1 | S46: 2606.8 | T46: 2626.1 | U46: 2622.1 | V46: 2621 | W46: 2619.3 | X46: 2619.5 | Y46: 2627.9 | Z46: 2626.8 | AA46: 2630.7 | AC46: 2629.5 | AD46: 2637.5 | AE46: 2642.4 | AF46: 2650.9 | AG46: 2656.9 | AH46: 2655.5 | AI46: 2668.1 | AJ46: 2671.9 | AK46: 2673.1 | AL46: 2678.7 | AM46: 2685.2 | AN46: 2689.6 | AP46: 2693.2 | AQ46: 2699.4 | AR46: 2708.4 | AS46: 2709.5 | AT46: 2712.1 | AU46: 2714.4 | AV46: 2712.8 | AW46: 2714.1 | AX46: 2718.2 | AY46: 2725.3 | AZ46: 2731.8 | BA46: 2733.9 | BC46: 2734.5 | BD46: 2740.2 | BE46: 2739.4 | BF46: 2741.4 | BG46: 2742.5 | BH46: 2745.6 | BI46: 2748.8 | BJ46: 2751.2 | BK46: 2756 | BL46: 2765.7 | BM46: 2772.8 | BN46: 2774.4 | BP46: 2787.5 | BQ46: 2788.7 | BR46: 2795.4 | BS46: 2804.4 | BT46: 2807 | BU46: 2806.9 | BV46: 2816.4 | BW46: 2825 | BX46: 2830.3 | BY46: 2838.1 | BZ46: 2841.1 | CA46: 2850.9 | CB46: 2858.3 | CC46: 2861.5 | CD46: 2859 | CE46: 2869.2 | CF46: 2877.9 | CG46: 2885.8 | CH46: 2897.5 | CI46: 2901.9 | CJ46: 2908.8 | CK46: 2917.9 | CL46: 2927.4 | CM46: 2941.2 | CN46: 2936.5 | CO46: 2944.8 | CP46: 2951.2 | CQ46: 2953.5 | CR46: 2953.7 | CS46: 2958.9 | CT46: 2971.8 | CU46: 2975.4 | CV46: 2982.4 | CW46: 2988.6 | CX46: 2990.6 | CY46: 2994.1 | CZ46: 3002.6 | DA46: 3006.1 | DB46: 3016.4 | DC46: 3011.4 | DD46: 3012.3 | DE46: 3016.2 | DF46: 3019.4 | DG46: 3025.8 | DH46: 3025.7 | DI46: 3025 | DJ46: 3026.8 | DK46: 1.8 | DL46: 0.0005950413223 | DM46: 25 | DN46: 31 | DO46: 36.2 | DP46: 0.0121045944 | DQ46: 20 | DR46: 25 | DS46: 32.7 | DT46: 0.01092147891 | DU46: 21 | DV46: 27 | DW46: 425.7 | DX46: 0.1636615278 | DY46: 12 | DZ46: 12
A47: Texas | B47: SMS48000004000000001 | C47: 10519.9 | D47: 10465.4 | E47: 10400.3 | F47: 10327.6 | G47: 10312.1 | H47: 10283.7 | I47: 10252 | J47: 10225.4 | K47: 10223.7 | L47: 10214.3 | M47: 10213.1 | N47: 10207.1 | P47: 10232.2 | Q47: 10241.1 | R47: 10269.8 | S47: 10283.9 | T47: 10349.9 | U47: 10352.9 | V47: 10343.1 | W47: 10352.3 | X47: 10351.1 | Y47: 10403.6 | Z47: 10413.8 | AA47: 10435.6 | AC47: 10448.6 | AD47: 10455.2 | AE47: 10490 | AF47: 10523.1 | AG47: 10537 | AH47: 10560.5 | AI47: 10599 | AJ47: 10609.9 | AK47: 10624.5 | AL47: 10625.7 | AM47: 10650.7 | AN47: 10673.3 | AP47: 10716 | AQ47: 10738.6 | AR47: 10773.5 | AS47: 10807.2 | AT47: 10832 | AU47: 10861.5 | AV47: 10883.4 | AW47: 10918.2 | AX47: 10947.2 | AY47: 10974.4 | AZ47: 11010.3 | BA47: 11026.6 | BC47: 11036.9 | BD47: 11091.8 | BE47: 11106.6 | BF47: 11129.1 | BG47: 11148.7 | BH47: 11179 | BI47: 11211.6 | BJ47: 11228.2 | BK47: 11258.5 | BL47: 11286.5 | BM47: 11301 | BN47: 11325.4 | BP47: 11376.7 | BQ47: 11412.4 | BR47: 11425.7 | BS47: 11467.6 | BT47: 11502.3 | BU47: 11533.2 | BV47: 11567.8 | BW47: 11591.3 | BX47: 11621.1 | BY47: 11664.6 | BZ47: 11703.3 | CA47: 11749.5 | CB47: 11775.1 | CC47: 11793.5 | CD47: 11774 | CE47: 11780.3 | CF47: 11801.9 | CG47: 11816.2 | CH47: 11848.5 | CI47: 11862.8 | CJ47: 11878 | CK47: 11893.8 | CL47: 11915.5 | CM47: 11931.1 | CN47: 11963.8 | CO47: 11975.8 | CP47: 11966.1 | CQ47: 11989.2 | CR47: 11994.9 | CS47: 11987 | CT47: 12032.9 | CU47: 12035.3 | CV47: 12065 | CW47: 12078.8 | CX47: 12114.6 | CY47: 12137.8 | CZ47: 12191.5 | DA47: 12205.6 | DB47: 12217.7 | DC47: 12246.7 | DD47: 12266.1 | DE47: 12306.7 | DF47: 12328.4 | DG47: 12328.4 | DH47: 12323.4 | DI47: 12390.7 | DJ47: 12445.2 | DK47: 54.5 | DL47: 0.004398460135 | DM47: 1 | DN47: 1 | DO47: 330.6 | DP47: 0.02728938636 | DQ47: 1 | DR47: 2 | DS47: 307.4 | DT47: 0.02532584159 | DU47: 1 | DV47: 2 | DW47: 2193.2 | DX47: 0.2139289895 | DY47: 2 | DZ47: 2
A48: Utah | B48: SMS49000004000000001 | C48: 1218.8 | D48: 1211 | E48: 1202.9 | F48: 1191.6 | G48: 1190 | H48: 1186.2 | I48: 1181 | J48: 1178.9 | K48: 1178.3 | L48: 1177.3 | M48: 1175.8 | N48: 1174.2 | P48: 1174.4 | Q48: 1172.9 | R48: 1175.3 | S48: 1179.2 | T48: 1183.6 | U48: 1183.2 | V48: 1184.6 | W48: 1183.9 | X48: 1184.7 | Y48: 1188.5 | Z48: 1189.4 | AA48: 1191.8 | AC48: 1193 | AD48: 1195.4 | AE48: 1197.2 | AF48: 1201.1 | AG48: 1202 | AH48: 1204.1 | AI48: 1210.3 | AJ48: 1212.7 | AK48: 1215.9 | AL48: 1217.7 | AM48: 1219.5 | AN48: 1224.3 | AP48: 1228.7 | AQ48: 1231.5 | AR48: 1236 | AS48: 1244.5 | AT48: 1249.8 | AU48: 1251.6 | AV48: 1250.2 | AW48: 1253 | AX48: 1257.1 | AY48: 1263.1 | AZ48: 1266.6 | BA48: 1268.3 | BC48: 1274.8 | BD48: 1278.4 | BE48: 1281.8 | BF48: 1284.2 | BG48: 1286.9 | BH48: 1287.1 | BI48: 1292.1 | BJ48: 1291.7 | BK48: 1294.2 | BL48: 1300.7 | BM48: 1303.4 | BN48: 1303.6 | BP48: 1310.7 | BQ48: 1314.1 | BR48: 1316.9 | BS48: 1318.7 | BT48: 1323.2 | BU48: 1324.5 | BV48: 1327 | BW48: 1331.5 | BX48: 1335.4 | BY48: 1340.7 | BZ48: 1344.8 | CA48: 1353.6 | CB48: 1357.6 | CC48: 1362.3 | CD48: 1366 | CE48: 1367.1 | CF48: 1371.5 | CG48: 1375.5 | CH48: 1382.6 | CI48: 1383.6 | CJ48: 1388 | CK48: 1390.7 | CL48: 1393.8 | CM48: 1398.1 | CN48: 1405.6 | CO48: 1411 | CP48: 1415.1 | CQ48: 1419.2 | CR48: 1421.8 | CS48: 1424.7 | CT48: 1432.4 | CU48: 1434.7 | CV48: 1439.3 | CW48: 1442.7 | CX48: 1446.3 | CY48: 1449.4 | CZ48: 1451.7 | DA48: 1456.4 | DB48: 1459.5 | DC48: 1464.2 | DD48: 1469.7 | DE48: 1468.9 | DF48: 1468.4 | DG48: 1472.3 | DH48: 1479.9 | DI48: 1482.3 | DJ48: 1487.5 | DK48: 5.2 | DL48: 0.003508061796 | DM48: 13 | DN48: 4 | DO48: 41.2 | DP48: 0.02848648275 | DQ48: 16 | DR48: 1 | DS48: 38.1 | DT48: 0.02628673934 | DU48: 15 | DV48: 1 | DW48: 306.5 | DX48: 0.2595258256 | DY48: 19 | DZ48: 1
A49: Vermont | B49: SMS50000004000000001 | C49: 301.4 | D49: 300.7 | E49: 299 | F49: 297.2 | G49: 298.2 | H49: 296.7 | I49: 294.9 | J49: 296.5 | K49: 295 | L49: 295.6 | M49: 295.9 | N49: 295.4 | P49: 296 | Q49: 295.9 | R49: 296.6 | S49: 298.9 | T49: 297.9 | U49: 297.2 | V49: 299.6 | W49: 298.3 | X49: 298.2 | Y49: 300.8 | Z49: 299.1 | AA49: 298.4 | AC49: 298.9 | AD49: 299.6 | AE49: 299.7 | AF49: 299 | AG49: 299.4 | AH49: 299.8 | AI49: 300 | AJ49: 300.7 | AK49: 301.8 | AL49: 302.3 | AM49: 302.3 | AN49: 303.2 | AP49: 302.8 | AQ49: 303.6 | AR49: 304.4 | AS49: 302.3 | AT49: 304.4 | AU49: 304.4 | AV49: 304.7 | AW49: 306.1 | AX49: 305.3 | AY49: 304 | AZ49: 304.8 | BA49: 305.5 | BC49: 305.7 | BD49: 305.5 | BE49: 306.5 | BF49: 305.7 | BG49: 305.9 | BH49: 306.5 | BI49: 305.5 | BJ49: 305.4 | BK49: 305.3 | BL49: 305.9 | BM49: 307.6 | BN49: 306.3 | BP49: 308.9 | BQ49: 308.3 | BR49: 309.3 | BS49: 308.6 | BT49: 308.9 | BU49: 310.2 | BV49: 310 | BW49: 310.4 | BX49: 310.2 | BY49: 310.8 | BZ49: 312.5 | CA49: 311.7 | CB49: 312.3 | CC49: 311.2 | CD49: 311.7 | CE49: 311.2 | CF49: 312 | CG49: 312 | CH49: 312.5 | CI49: 311.7 | CJ49: 311.5 | CK49: 313.6 | CL49: 314.6 | CM49: 313.5 | CN49: 312.3 | CO49: 312.5 | CP49: 311.9 | CQ49: 311.8 | CR49: 312 | CS49: 312.6 | CT49: 315.9 | CU49: 314.3 | CV49: 314.3 | CW49: 313.9 | CX49: 312.6 | CY49: 313.9 | CZ49: 315.9 | DA49: 315.5 | DB49: 315 | DC49: 315 | DD49: 313.9 | DE49: 315 | DF49: 316.6 | DG49: 316.5 | DH49: 317.6 | DI49: 316.7 | DJ49: 317.6 | DK49: 0.9 | DL49: 0.002841806126 | DM49: 29 | DN49: 8 | DO49: 5 | DP49: 0.01599488164 | DQ49: 39 | DR49: 17 | DS49: 3.7 | DT49: 0.01178719337 | DU49: 41 | DV49: 23 | DW49: 22.7 | DX49: 0.07697524585 | DY49: 47 | DZ49: 36
A50: Virginia | B50: SMS51000004000000001 | C50: 3709.4 | D50: 3689.9 | E50: 3673.1 | F50: 3652.4 | G50: 3660.2 | H50: 3655.3 | I50: 3638.6 | J50: 3635.3 | K50: 3629 | L50: 3626.8 | M50: 3630.6 | N50: 3627 | P50: 3622.2 | Q50: 3598.2 | R50: 3618.6 | S50: 3641.9 | T50: 3664.3 | U50: 3665.4 | V50: 3661.8 | W50: 3655.6 | X50: 3657.4 | Y50: 3666.9 | Z50: 3665.4 | AA50: 3666.6 | AC50: 3673.3 | AD50: 3680.1 | AE50: 3683.9 | AF50: 3686.8 | AG50: 3684 | AH50: 3685.2 | AI50: 3700.7 | AJ50: 3698.5 | AK50: 3712 | AL50: 3708.1 | AM50: 3713.4 | AN50: 3708 | AP50: 3721 | AQ50: 3728.2 | AR50: 3731.4 | AS50: 3730.8 | AT50: 3724.4 | AU50: 3726.9 | AV50: 3724 | AW50: 3739.2 | AX50: 3745.3 | AY50: 3755.4 | AZ50: 3760.6 | BA50: 3758.6 | BC50: 3760.4 | BD50: 3769.1 | BE50: 3765.4 | BF50: 3769.4 | BG50: 3763.6 | BH50: 3761.4 | BI50: 3764.9 | BJ50: 3768.5 | BK50: 3766.3 | BL50: 3763.2 | BM50: 3769.2 | BN50: 3768.4 | BP50: 3759.6 | BQ50: 3755 | BR50: 3757.7 | BS50: 3771.7 | BT50: 3778.7 | BU50: 3774.9 | BV50: 3776.8 | BW50: 3776.8 | BX50: 3777.5 | BY50: 3778.9 | BZ50: 3795.9 | CA50: 3797.4 | CB50: 3815.4 | CC50: 3817.8 | CD50: 3813.2 | CE50: 3823.7 | CF50: 3834.5 | CG50: 3838.3 | CH50: 3857.1 | CI50: 3860.7 | CJ50: 3864.2 | CK50: 3881.4 | CL50: 3896.2 | CM50: 3902.1 | CN50: 3894.2 | CO50: 3904.2 | CP50: 3909.5 | CQ50: 3910.9 | CR50: 3907.1 | CS50: 3911.9 | CT50: 3915.6 | CU50: 3922.5 | CV50: 3928.7 | CW50: 3939.4 | CX50: 3932.8 | CY50: 3936.3 | CZ50: 3946.3 | DA50: 3960.3 | DB50: 3955.3 | DC50: 3953.6 | DD50: 3952.5 | DE50: 3967.6 | DF50: 3979 | DG50: 3978 | DH50: 3978.9 | DI50: 3972.2 | DJ50: 3966.5 | DK50: -5.7 | DL50: -0.001434973063 | DM50: 50 | DN50: 40 | DO50: 33.7 | DP50: 0.008568958503 | DQ50: 22 | DR50: 35 | DS50: 30.2 | DT50: 0.007672179458 | DU50: 23 | DV50: 37 | DW50: 327.9 | DX50: 0.090117078 | DY50: 17 | DZ50: 30
A51: Washington | B51: SMS53000004000000001 | C51: 2935.9 | D51: 2918.4 | E51: 2895.9 | F51: 2872.8 | G51: 2869.8 | H51: 2859.1 | I51: 2848 | J51: 2841.6 | K51: 2837 | L51: 2832 | M51: 2826.7 | N51: 2825.2 | P51: 2825.3 | Q51: 2823.8 | R51: 2827.2 | S51: 2832.5 | T51: 2842.5 | U51: 2839 | V51: 2837.3 | W51: 2835.1 | X51: 2835.1 | Y51: 2846.4 | Z51: 2847.7 | AA51: 2850 | AC51: 2857.2 | AD51: 2859.8 | AE51: 2857.9 | AF51: 2868 | AG51: 2868.5 | AH51: 2869.4 | AI51: 2880.7 | AJ51: 2882.7 | AK51: 2882.3 | AL51: 2880.5 | AM51: 2885.4 | AN51: 2887 | AP51: 2890.6 | AQ51: 2893.3 | AR51: 2903.2 | AS51: 2908.4 | AT51: 2914.7 | AU51: 2922.1 | AV51: 2925.1 | AW51: 2928.5 | AX51: 2932.2 | AY51: 2941 | AZ51: 2947.1 | BA51: 2953.3 | BC51: 2961.7 | BD51: 2967.7 | BE51: 2970.2 | BF51: 2974.8 | BG51: 2981.4 | BH51: 2984.8 | BI51: 2993.5 | BJ51: 2999.7 | BK51: 3004.5 | BL51: 3001.6 | BM51: 3004.7 | BN51: 3011.4 | BP51: 3040.8 | BQ51: 3043.7 | BR51: 3049.5 | BS51: 3052.6 | BT51: 3057.7 | BU51: 3065.9 | BV51: 3080.9 | BW51: 3089.5 | BX51: 3095.8 | BY51: 3105.3 | BZ51: 3113.7 | CA51: 3122.6 | CB51: 3115.2 | CC51: 3123.4 | CD51: 3132 | CE51: 3136.8 | CF51: 3145.3 | CG51: 3155.2 | CH51: 3155.5 | CI51: 3163 | CJ51: 3168.1 | CK51: 3173.4 | CL51: 3188.1 | CM51: 3195.3 | CN51: 3193.9 | CO51: 3206.6 | CP51: 3213.2 | CQ51: 3226.1 | CR51: 3235 | CS51: 3238.8 | CT51: 3247.2 | CU51: 3256.8 | CV51: 3267.7 | CW51: 3274.9 | CX51: 3283.5 | CY51: 3291.5 | CZ51: 3288.4 | DA51: 3294.9 | DB51: 3306.6 | DC51: 3309.2 | DD51: 3312.7 | DE51: 3316.9 | DF51: 3322.1 | DG51: 3325.2 | DH51: 3336.5 | DI51: 3342.8 | DJ51: 3352.6 | DK51: 9.8 | DL51: 0.002931674046 | DM51: 5 | DN51: 7 | DO51: 69.1 | DP51: 0.02104461702 | DQ51: 7 | DR51: 8 | DS51: 61.1 | DT51: 0.01856296521 | DU51: 8 | DV51: 8 | DW51: 504.6 | DX51: 0.1771769663 | DY51: 9 | DZ51: 9
A52: West Virginia | B52: SMS54000004000000001 | C52: 756.4 | D52: 754.6 | E52: 751.2 | F52: 746.4 | G52: 741.2 | H52: 749.3 | I52: 743.6 | J52: 743.8 | K52: 739.1 | L52: 739.9 | M52: 740 | N52: 742.4 | P52: 741 | Q52: 739.3 | R52: 744 | S52: 744.4 | T52: 751.5 | U52: 750.7 | V52: 750.7 | W52: 750.5 | X52: 748.5 | Y52: 749.8 | Z52: 750 | AA52: 748.2 | AC52: 747.1 | AD52: 749.6 | AE52: 750.6 | AF52: 753.6 | AG52: 748.1 | AH52: 752.2 | AI52: 754.6 | AJ52: 756.4 | AK52: 760 | AL52: 761.3 | AM52: 763.1 | AN52: 764.3 | AP52: 765.9 | AQ52: 766.6 | AR52: 767.8 | AS52: 767.4 | AT52: 770.9 | AU52: 762.4 | AV52: 761.8 | AW52: 761.8 | AX52: 765.2 | AY52: 764.9 | AZ52: 763.9 | BA52: 763.9 | BC52: 764.4 | BD52: 764.8 | BE52: 763.9 | BF52: 764 | BG52: 759.2 | BH52: 763 | BI52: 764 | BJ52: 763.8 | BK52: 760.9 | BL52: 763.9 | BM52: 764.8 | BN52: 764.8 | BP52: 761.3 | BQ52: 760 | BR52: 760.1 | BS52: 762 | BT52: 774.2 | BU52: 762 | BV52: 761.3 | BW52: 761.7 | BX52: 762.6 | BY52: 764.3 | BZ52: 761.5 | CA52: 763.1 | CB52: 772 | CC52: 769.7 | CD52: 766.2 | CE52: 766.1 | CF52: 766.4 | CG52: 763.9 | CH52: 761.9 | CI52: 760 | CJ52: 760.3 | CK52: 761.2 | CL52: 761 | CM52: 761.5 | CN52: 751.7 | CO52: 751 | CP52: 751.8 | CQ52: 749.5 | CR52: 750.3 | CS52: 745.6 | CT52: 745.5 | CU52: 744.5 | CV52: 743.8 | CW52: 745.5 | CX52: 754.4 | CY52: 746.8 | CZ52: 746.6 | DA52: 747.9 | DB52: 746.3 | DC52: 747.1 | DD52: 742.6 | DE52: 746.7 | DF52: 747.3 | DG52: 745.9 | DH52: 746.9 | DI52: 749.1 | DJ52: 748.1 | DK52: -1 | DL52: -0.001334935256 | DM52: 36 | DN52: 38 | DO52: -6.3 | DP52: -0.008351007423 | DQ52: 50 | DR52: 50 | DS52: 1.3 | DT52: 0.001740760578 | DU52: 44 | DV52: 45 | DW52: 4.5 | DX52: 0.006051640667 | DY52: 49 | DZ52: 49
A53: Wisconsin | B53: SMS55000004000000001 | C53: 2811.8 | D53: 2795.2 | E53: 2774.4 | F53: 2751 | G53: 2751.2 | H53: 2738.1 | I53: 2726.8 | J53: 2719.2 | K53: 2717.8 | L53: 2717.9 | M53: 2714.6 | N53: 2713.1 | P53: 2714.9 | Q53: 2713.2 | R53: 2714.4 | S53: 2725.6 | T53: 2730 | U53: 2727.4 | V53: 2730.6 | W53: 2733.3 | X53: 2729.5 | Y53: 2741.1 | Z53: 2743.2 | AA53: 2739.9 | AC53: 2747.8 | AD53: 2748.4 | AE53: 2749.3 | AF53: 2753.6 | AG53: 2756.2 | AH53: 2751.2 | AI53: 2764.7 | AJ53: 2764.6 | AK53: 2766.1 | AL53: 2761.6 | AM53: 2763.8 | AN53: 2767.9 | AP53: 2769.2 | AQ53: 2773.9 | AR53: 2784.3 | AS53: 2794 | AT53: 2793.7 | AU53: 2789.3 | AV53: 2783.2 | AW53: 2788.1 | AX53: 2792.3 | AY53: 2795.6 | AZ53: 2803.3 | BA53: 2802.5 | BC53: 2799.1 | BD53: 2815.9 | BE53: 2810.9 | BF53: 2803.6 | BG53: 2810.1 | BH53: 2814.2 | BI53: 2814.9 | BJ53: 2820.9 | BK53: 2824.7 | BL53: 2839.8 | BM53: 2841.3 | BN53: 2849 | BP53: 2829.3 | BQ53: 2832 | BR53: 2832.5 | BS53: 2838.6 | BT53: 2838.6 | BU53: 2843.7 | BV53: 2845.1 | BW53: 2851 | BX53: 2846.8 | BY53: 2858.1 | BZ53: 2869 | CA53: 2872 | CB53: 2876.9 | CC53: 2880.8 | CD53: 2883.2 | CE53: 2881.6 | CF53: 2883.6 | CG53: 2884.6 | CH53: 2887.7 | CI53: 2889.6 | CJ53: 2887.2 | CK53: 2906.6 | CL53: 2903.1 | CM53: 2904.1 | CN53: 2918.4 | CO53: 2922.6 | CP53: 2923 | CQ53: 2924.3 | CR53: 2916.7 | CS53: 2916.8 | CT53: 2928.2 | CU53: 2929.1 | CV53: 2923.8 | CW53: 2930.1 | CX53: 2933.8 | CY53: 2934.3 | CZ53: 2939.7 | DA53: 2950.8 | DB53: 2947.1 | DC53: 2960.2 | DD53: 2956.5 | DE53: 2951.1 | DF53: 2956.9 | DG53: 2949.8 | DH53: 2962 | DI53: 2971.9 | DJ53: 2974.4 | DK53: 2.5 | DL53: 0.0008412126922 | DM53: 21 | DN53: 27 | DO53: 40.6 | DP53: 0.01383870748 | DQ53: 17 | DR53: 20 | DS53: 40.1 | DT53: 0.01366595099 | DU53: 14 | DV53: 17 | DW53: 247.6 | DX53: 0.09080240575 | DY53: 24 | DZ53: 29
A54: Wyoming | B54: SMS56000004000000001 | C54: 294.8 | D54: 292.3 | E54: 290.5 | F54: 287 | G54: 288.2 | H54: 284.9 | I54: 283 | J54: 281.6 | K54: 282.1 | L54: 280.1 | M54: 279.8 | N54: 279.3 | P54: 279 | Q54: 279.6 | R54: 280 | S54: 281.4 | T54: 282.8 | U54: 282.3 | V54: 281.4 | W54: 282.2 | X54: 283.3 | Y54: 284.1 | Z54: 282.8 | AA54: 283.1 | AC54: 282.6 | AD54: 283 | AE54: 283.7 | AF54: 283.6 | AG54: 284.5 | AH54: 285 | AI54: 286.7 | AJ54: 288.4 | AK54: 288.6 | AL54: 288.3 | AM54: 288.6 | AN54: 289.9 | AP54: 289.5 | AQ54: 290.1 | AR54: 289.8 | AS54: 290.7 | AT54: 289.4 | AU54: 288.5 | AV54: 288.7 | AW54: 288.9 | AX54: 288.2 | AY54: 288.9 | AZ54: 289.2 | BA54: 289.7 | BC54: 290.1 | BD54: 289.8 | BE54: 289.9 | BF54: 290.2 | BG54: 290 | BH54: 290.5 | BI54: 290.5 | BJ54: 290.5 | BK54: 288.9 | BL54: 291.9 | BM54: 293.1 | BN54: 292.9 | BP54: 291.2 | BQ54: 291.4 | BR54: 291.2 | BS54: 292.5 | BT54: 292.7 | BU54: 293.1 | BV54: 293.7 | BW54: 292.5 | BX54: 293 | BY54: 293.6 | BZ54: 293 | CA54: 295 | CB54: 294.8 | CC54: 294.2 | CD54: 293.6 | CE54: 292.5 | CF54: 290.8 | CG54: 289.4 | CH54: 290 | CI54: 289.2 | CJ54: 289.1 | CK54: 289 | CL54: 288 | CM54: 286.6 | CN54: 287.1 | CO54: 285.6 | CP54: 284.6 | CQ54: 283.1 | CR54: 281.8 | CS54: 280.8 | CT54: 280 | CU54: 279.5 | CV54: 278.3 | CW54: 277 | CX54: 276.6 | CY54: 276.8 | CZ54: 277.9 | DA54: 277.7 | DB54: 278.3 | DC54: 279.4 | DD54: 279 | DE54: 277 | DF54: 277 | DG54: 277.7 | DH54: 275.5 | DI54: 275.4 | DJ54: 274.9 | DK54: -0.5 | DL54: -0.001815541031 | DM54: 35 | DN54: 44 | DO54: -1.7 | DP54: -0.006146059291 | DQ54: 48 | DR54: 48 | DS54: -1.9 | DT54: -0.00686416185 | DU54: 49 | DV54: 50 | DW54: -8.1 | DX54: -0.02862190813 | DY54: 50 | DZ54: 50

Sheet Total Private
A2: Private Sector
A4: State Name | B4: Series ID | C4: Jan 2009 | D4: Feb 2009 | E4: Mar 2009 | F4: Apr 2009 | G4: May 2009 | H4: Jun 2009 | I4: 2009-07-01 | J4: Aug 2009 | K4: Sep 2009 | L4: Oct 2009 | M4: Nov 2009 | N4: Dec 2009 | O4: Annual 2009 | P4: Jan 2010 | Q4: Feb 2010 | R4: Mar 2010 | S4: Apr 2010 | T4: May 2010 | U4: Jun 2010 | V4: Jul 2010 | W4: Aug 2010 | X4: Sep 2010 | Y4: Oct 2010 | Z4: Nov 2010 | AA4: Dec 2010 | AB4: Annual 2010 | AC4: Jan 2011 | AD4: Feb 2011 | AE4: Mar 2011 | AF4: Apr 2011 | AG4: May 2011 | AH4: Jun 2011 | AI4: 2011-07-01 | AJ4: 2011-08-01 | AK4: 2011-09-01 | AL4: 2011-10-01 | AM4: 2011-11-01 | AN4: 2011-12-01 | AP4: 2012-01-01 | AQ4: 2012-02-01 | AR4: 2012-03-01 | AS4: 2012-04-01 | AT4: 2012-05-01 | AU4: 2012-06-01 | AV4: 2012-07-01 | AW4: 2012-08-01 | AX4: 2012-09-01 | AY4: 2012-10-01 | AZ4: 2012-11-01 | BA4: 2012-12-01 | BC4: 2013-01-01 | BD4: 2013-02-01 | BE4: 2013-03-01 | BF4: 2013-04-01 | BG4: 2013-05-01 | BH4: 2013-06-01 | BI4: 2013-07-01 | BJ4: 2013-08-01 | BK4: 2013-09-01 | BL4: 2013-10-01 | BM4: 2013-11-01 | BN4: 2013-12-01 | BP4: 2014-01-01 | BQ4: 2014-02-01 | BR4: 2014-03-01 | BS4: 2014-04-01 | BT4: 2014-05-01 | BU4: 2014-06-01 | BV4: 2014-07-01 | BW4: 2014-08-01 | BX4: 2014-09-01 | BY4: 2014-10-01 | BZ4: 2014-11-01 | CA4: 2014-12-01 | CB4: 2015-01-01 | CC4: 2015-02-01 | CD4: 2015-03-01 | CE4: 2015-04-01 | CF4: 2015-05-01 | CG4: 2015-06-01 | CH4: 2015-07-01 | CI4: 2015-08-01 | CJ4: 2015-09-01 | CK4: 2015-10-01 | CL4: 2015-11-01 | CM4: 2015-12-01 | CN4: 2016-01-01 | CO4: 2016-02-01 | CP4: 2016-03-16 | CQ4: 2016-04-29 | CR4: 2016-05-29 | CS4: 2016-06-29 | CT4: 2016-07-29 | CU4: 2016-08-29 | CV4: 2016-09-29 | CW4: 2016-10-29 | CX4: 2016-11-29 | CY4: 2016-12-29 | CZ4: 2017-01-29 | DA4: 2017-02-28 | DB4: 2017-03-30 | DC4: 2017-04-29 | DD4: 2017-05-29 | DE4: 2017-06-29 | DF4: 2017-07-29 | DG4: 2017-08-29 | DH4: 2017-09-29 | DI4: 2017-10-29 | DJ4: 2017-11-29 | DK4: Month-to-Month | DL4: Month-to-Month % | DM4: Mo Chg Rank | DN4: Mo % Rank | DO4: Year-to-Year | DP4: Year-to-Year % | DQ4: Yr Chg Rank | DR4: Yr % Rank | DS4: Year-to-Date Chg | DT4: Year-to-Date % | DU4: Year-to-Date Chg Rank | DV4: Year-to-Date % Rank | DW4: Chg from Trough | DX4: % Chg from Trough | DY4: Trough Chg Rank | DZ4: Trough % Chg Rank
A5: Alabama | B5: SMS01000004000000001 | C5: ='Total NF'!C5-Govt!C5 -> 1545.1 | D5: ='Total NF'!D5-Govt!D5 -> 1531.8 | E5: ='Total NF'!E5-Govt!E5 -> 1520.5 | F5: ='Total NF'!F5-Govt!F5 -> 1511.8 | G5: ='Total NF'!G5-Govt!G5 -> 1506.9 | H5: ='Total NF'!H5-Govt!H5 -> 1499.3 | I5: ='Total NF'!I5-Govt!I5 -> 1497.2 | J5: ='Total NF'!J5-Govt!J5 -> 1490.8 | K5: ='Total NF'!K5-Govt!K5 -> 1484.1 | L5: ='Total NF'!L5-Govt!L5 -> 1480.8 | M5: ='Total NF'!M5-Govt!M5 -> 1481.3 | N5: ='Total NF'!N5-Govt!N5 -> 1478.8 | P5: ='Total NF'!P5-Govt!P5 -> 1478.8 | Q5: ='Total NF'!Q5-Govt!Q5 -> 1475.3 | R5: ='Total NF'!R5-Govt!R5 -> 1478.1 | S5: ='Total NF'!S5-Govt!S5 -> 1480.7 | T5: ='Total NF'!T5-Govt!T5 -> 1483.3 | U5: ='Total NF'!U5-Govt!U5 -> 1485.8 | V5: ='Total NF'!V5-Govt!V5 -> 1488.5 | W5: ='Total NF'!W5-Govt!W5 -> 1485.7 | X5: ='Total NF'!X5-Govt!X5 -> 1484.4 | Y5: ='Total NF'!Y5-Govt!Y5 -> 1488.7 | Z5: ='Total NF'!Z5-Govt!Z5 -> 1488.1 | AA5: ='Total NF'!AA5-Govt!AA5 -> 1487.1 | AC5: ='Total NF'!AC5-Govt!AC5 -> 1479.3 | AD5: ='Total NF'!AD5-Govt!AD5 -> 1484.5 | AE5: ='Total NF'!AE5-Govt!AE5 -> 1484.9 | AF5: ='Total NF'!AF5-Govt!AF5 -> 1486.3 | AG5: ='Total NF'!AG5-Govt!AG5 -> 1485.3 | AH5: ='Total NF'!AH5-Govt!AH5 -> 1483.9 | AI5: ='Total NF'!AI5-Govt!AI5 -> 1488.4 | AJ5: ='Total NF'!AJ5-Govt!AJ5 -> 1490.1 | AK5: ='Total NF'!AK5-Govt!AK5 -> 1495.5 | AL5: ='Total NF'!AL5-Govt!AL5 -> 1490.5 | AM5: ='Total NF'!AM5-Govt!AM5 -> 1493.3 | AN5: ='Total NF'!AN5-Govt!AN5 -> 1495.3 | AP5: ='Total NF'!AP5-Govt!AP5 -> 1496.6 | AQ5: ='Total NF'!AQ5-Govt!AQ5 -> 1498.9 | AR5: ='Total NF'!AR5-Govt!AR5 -> 1503.8 | AS5: ='Total NF'!AS5-Govt!AS5 -> 1506.9 | AT5: ='Total NF'!AT5-Govt!AT5 -> 1505.4 | AU5: ='Total NF'!AU5-Govt!AU5 -> 1507 | AV5: ='Total NF'!AV5-Govt!AV5 -> 1505.1 | AW5: ='Total NF'!AW5-Govt!AW5 -> 1509 | AX5: ='Total NF'!AX5-Govt!AX5 -> 1509.9 | AY5: ='Total NF'!AY5-Govt!AY5 -> 1511.8 | AZ5: ='Total NF'!AZ5-Govt!AZ5 -> 1515.2 | BA5: ='Total NF'!BA5-Govt!BA5 -> 1515.2 | BC5: ='Total NF'!BC5-Govt!BC5 -> 1513.7 | BD5: ='Total NF'!BD5-Govt!BD5 -> 1519.2 | BE5: ='Total NF'!BE5-Govt!BE5 -> 1520.5 | BF5: ='Total NF'!BF5-Govt!BF5 -> 1522.7 | BG5: ='Total NF'!BG5-Govt!BG5 -> 1523.9 | BH5: ='Total NF'!BH5-Govt!BH5 -> 1526.7 | BI5: ='Total NF'!BI5-Govt!BI5 -> 1523.6 | BJ5: ='Total NF'!BJ5-Govt!BJ5 -> 1526.1 | BK5: ='Total NF'!BK5-Govt!BK5 -> 1525 | BL5: ='Total NF'!BL5-Govt!BL5 -> 1531.9 | BM5: ='Total NF'!BM5-Govt!BM5 -> 1536.3 | BN5: ='Total NF'!BN5-Govt!BN5 -> 1541 | BO5: ='Total NF'!BO5-Govt!BO5 -> 0 | BP5: ='Total NF'!BP5-Govt!BP5 -> 1533.5 | BQ5: ='Total NF'!BQ5-Govt!BQ5 -> 1532.7 | BR5: ='Total NF'!BR5-Govt!BR5 -> 1535.2 | BS5: ='Total NF'!BS5-Govt!BS5 -> 1539.7 | BT5: ='Total NF'!BT5-Govt!BT5 -> 1541.2 | BU5: ='Total NF'!BU5-Govt!BU5 -> 1542.4 | BV5: ='Total NF'!BV5-Govt!BV5 -> 1545.1 | BW5: ='Total NF'!BW5-Govt!BW5 -> 1547.7 | BX5: ='Total NF'!BX5-Govt!BX5 -> 1549.2 | BY5: ='Total NF'!BY5-Govt!BY5 -> 1558.1 | BZ5: ='Total NF'!BZ5-Govt!BZ5 -> 1560.8 | CA5: ='Total NF'!CA5-Govt!CA5 -> 1563.3 | CB5: ='Total NF'!CB5-Govt!CB5 -> 1559 | CC5: ='Total NF'!CC5-Govt!CC5 -> 1561.7 | CD5: ='Total NF'!CD5-Govt!CD5 -> 1559.8 | CE5: ='Total NF'!CE5-Govt!CE5 -> 1562.2 | CF5: ='Total NF'!CF5-Govt!CF5 -> 1568.1 | CG5: ='Total NF'!CG5-Govt!CG5 -> 1568.2 | CH5: ='Total NF'!CH5-Govt!CH5 -> 1569.8 | CI5: ='Total NF'!CI5-Govt!CI5 -> 1572.6 | CJ5: ='Total NF'!CJ5-Govt!CJ5 -> 1572.2 | CK5: ='Total NF'!CK5-Govt!CK5 -> 1575.1 | CL5: ='Total NF'!CL5-Govt!CL5 -> 1581.7 | CM5: ='Total NF'!CM5-Govt!CM5 -> 1582.1 | CN5: ='Total NF'!CN5-Govt!CN5 -> 1589.6 | CO5: ='Total NF'!CO5-Govt!CO5 -> 1590.6 | CP5: ='Total NF'!CP5-Govt!CP5 -> 1590.7 | CQ5: ='Total NF'!CQ5-Govt!CQ5 -> 1594.3 | CR5: ='Total NF'!CR5-Govt!CR5 -> 1593.8 | CS5: ='Total NF'!CS5-Govt!CS5 -> 1591.5 | CT5: ='Total NF'!CT5-Govt!CT5 -> 1596.9 | CU5: ='Total NF'!CU5-Govt!CU5 -> 1596.1 | CV5: ='Total NF'!CV5-Govt!CV5 -> 1599.4 | CW5: ='Total NF'!CW5-Govt!CW5 -> 1602.5 | CX5: ='Total NF'!CX5-Govt!CX5 -> 1603.1 | CY5: ='Total NF'!CY5-Govt!CY5 -> 1603.9 | CZ5: ='Total NF'!CZ5-Govt!CZ5 -> 1615.7 | DA5: ='Total NF'!DA5-Govt!DA5 -> 1617.3 | DB5: ='Total NF'!DB5-Govt!DB5 -> 1616.8 | DC5: ='Total NF'!DC5-Govt!DC5 -> 1617.6 | DD5: ='Total NF'!DD5-Govt!DD5 -> 1623.5 | DE5: ='Total NF'!DE5-Govt!DE5 -> 1631.3 | DF5: ='Total NF'!DF5-Govt!DF5 -> 1629.3 | DG5: ='Total NF'!DG5-Govt!DG5 -> 1624.6 | DH5: ='Total NF'!DH5-Govt!DH5 -> 1630.4 | DI5: ='Total NF'!DI5-Govt!DI5 -> 1631.4 | DJ5: ='Total NF'!DJ5-Govt!DJ5 -> 1633.2 | DK5: =DJ5-DI5 -> 1.8 | DL5: =DK5/DI5 -> 0.001103346819 | DM5: =RANK(DK5,($DK$5:$DK$54)) -> 24 | DN5: =RANK(DL5,($DL$5:$DL$54)) -> 25 | DO5: =DJ5-CX5 -> 30.1 | DP5: =DO5/CX5 -> 0.01877612127 | DQ5: =RANK(DO5,($DO$5:$DO$54)) -> 25 | DR5: =RANK(DP5,($DP$5:$DP$54)) -> 16 | DS5: =DJ5-CY5 -> 29.3 | DT5: =DS5/CY5 -> 0.01826797182 | DU5: =RANK(DS5,DS$5:DS$54) -> 22 | DV5: =RANK(DT5,DT$5:DT$54) -> 11 | DW5: =DJ5-I5 -> 136 | DX5: =DW5/I5 -> 0.09083622762 | DY5: =RANK(DW5,($DW$5:$DW$54)) -> 28 | DZ5: =RANK(DX5,($DX$5:$DX$54)) -> 39
A6: Alaska | B6: SMS02000004000000001 | C6: ='Total NF'!C6-Govt!C6 -> 237.7 | D6: ='Total NF'!D6-Govt!D6 -> 238.2 | E6: ='Total NF'!E6-Govt!E6 -> 237.3 | F6: ='Total NF'!F6-Govt!F6 -> 236.8 | G6: ='Total NF'!G6-Govt!G6 -> 236.7 | H6: ='Total NF'!H6-Govt!H6 -> 235.7 | I6: ='Total NF'!I6-Govt!I6 -> 235.5 | J6: ='Total NF'!J6-Govt!J6 -> 235.5 | K6: ='Total NF'!K6-Govt!K6 -> 236 | L6: ='Total NF'!L6-Govt!L6 -> 235.9 | M6: ='Total NF'!M6-Govt!M6 -> 236 | N6: ='Total NF'!N6-Govt!N6 -> 234.7 | P6: ='Total NF'!P6-Govt!P6 -> 236.5 | Q6: ='Total NF'!Q6-Govt!Q6 -> 235.6 | R6: ='Total NF'!R6-Govt!R6 -> 235.5 | S6: ='Total NF'!S6-Govt!S6 -> 237 | T6: ='Total NF'!T6-Govt!T6 -> 237.4 | U6: ='Total NF'!U6-Govt!U6 -> 238.9 | V6: ='Total NF'!V6-Govt!V6 -> 239.7 | W6: ='Total NF'!W6-Govt!W6 -> 239.3 | X6: ='Total NF'!X6-Govt!X6 -> 239.6 | Y6: ='Total NF'!Y6-Govt!Y6 -> 240.9 | Z6: ='Total NF'!Z6-Govt!Z6 -> 241.7 | AA6: ='Total NF'!AA6-Govt!AA6 -> 241.8 | AC6: ='Total NF'!AC6-Govt!AC6 -> 241.9 | AD6: ='Total NF'!AD6-Govt!AD6 -> 242.7 | AE6: ='Total NF'!AE6-Govt!AE6 -> 243 | AF6: ='Total NF'!AF6-Govt!AF6 -> 243.6 | AG6: ='Total NF'!AG6-Govt!AG6 -> 243.2 | AH6: ='Total NF'!AH6-Govt!AH6 -> 243.8 | AI6: ='Total NF'!AI6-Govt!AI6 -> 245.2 | AJ6: ='Total NF'!AJ6-Govt!AJ6 -> 245.3 | AK6: ='Total NF'!AK6-Govt!AK6 -> 246.3 | AL6: ='Total NF'!AL6-Govt!AL6 -> 246.3 | AM6: ='Total NF'!AM6-Govt!AM6 -> 246.9 | AN6: ='Total NF'!AN6-Govt!AN6 -> 247.1 | AP6: ='Total NF'!AP6-Govt!AP6 -> 249.2 | AQ6: ='Total NF'!AQ6-Govt!AQ6 -> 249.1 | AR6: ='Total NF'!AR6-Govt!AR6 -> 249.4 | AS6: ='Total NF'!AS6-Govt!AS6 -> 250.5 | AT6: ='Total NF'!AT6-Govt!AT6 -> 251.1 | AU6: ='Total NF'!AU6-Govt!AU6 -> 250.8 | AV6: ='Total NF'!AV6-Govt!AV6 -> 250.1 | AW6: ='Total NF'!AW6-Govt!AW6 -> 249.6 | AX6: ='Total NF'!AX6-Govt!AX6 -> 250.3 | AY6: ='Total NF'!AY6-Govt!AY6 -> 254.8 | AZ6: ='Total NF'!AZ6-Govt!AZ6 -> 251.3 | BA6: ='Total NF'!BA6-Govt!BA6 -> 251.7 | BC6: ='Total NF'!BC6-Govt!BC6 -> 252.1 | BD6: ='Total NF'!BD6-Govt!BD6 -> 252.9 | BE6: ='Total NF'!BE6-Govt!BE6 -> 252.9 | BF6: ='Total NF'!BF6-Govt!BF6 -> 253.7 | BG6: ='Total NF'!BG6-Govt!BG6 -> 252.6 | BH6: ='Total NF'!BH6-Govt!BH6 -> 253.1 | BI6: ='Total NF'!BI6-Govt!BI6 -> 252.8 | BJ6: ='Total NF'!BJ6-Govt!BJ6 -> 253.8 | BK6: ='Total NF'!BK6-Govt!BK6 -> 254.4 | BL6: ='Total NF'!BL6-Govt!BL6 -> 255.3 | BM6: ='Total NF'!BM6-Govt!BM6 -> 256.6 | BN6: ='Total NF'!BN6-Govt!BN6 -> 256.8 | BO6: ='Total NF'!BO6-Govt!BO6 -> 0 | BP6: ='Total NF'!BP6-Govt!BP6 -> 255.5 | BQ6: ='Total NF'!BQ6-Govt!BQ6 -> 254.9 | BR6: ='Total NF'!BR6-Govt!BR6 -> 255 | BS6: ='Total NF'!BS6-Govt!BS6 -> 256.2 | BT6: ='Total NF'!BT6-Govt!BT6 -> 255.7 | BU6: ='Total NF'!BU6-Govt!BU6 -> 255 | BV6: ='Total NF'!BV6-Govt!BV6 -> 255.1 | BW6: ='Total NF'!BW6-Govt!BW6 -> 254.9 | BX6: ='Total NF'!BX6-Govt!BX6 -> 254.5 | BY6: ='Total NF'!BY6-Govt!BY6 -> 255.4 | BZ6: ='Total NF'!BZ6-Govt!BZ6 -> 256.1 | CA6: ='Total NF'!CA6-Govt!CA6 -> 258.6 | CB6: ='Total NF'!CB6-Govt!CB6 -> 258.2 | CC6: ='Total NF'!CC6-Govt!CC6 -> 258 | CD6: ='Total NF'!CD6-Govt!CD6 -> 258 | CE6: ='Total NF'!CE6-Govt!CE6 -> 258.2 | CF6: ='Total NF'!CF6-Govt!CF6 -> 258.6 | CG6: ='Total NF'!CG6-Govt!CG6 -> 257.2 | CH6: ='Total NF'!CH6-Govt!CH6 -> 257.3 | CI6: ='Total NF'!CI6-Govt!CI6 -> 256.3 | CJ6: ='Total NF'!CJ6-Govt!CJ6 -> 256.6 | CK6: ='Total NF'!CK6-Govt!CK6 -> 257.8 | CL6: ='Total NF'!CL6-Govt!CL6 -> 256.5 | CM6: ='Total NF'!CM6-Govt!CM6 -> 257.6 | CN6: ='Total NF'!CN6-Govt!CN6 -> 254.4 | CO6: ='Total NF'!CO6-Govt!CO6 -> 254.3 | CP6: ='Total NF'!CP6-Govt!CP6 -> 253.8 | CQ6: ='Total NF'!CQ6-Govt!CQ6 -> 253.8 | CR6: ='Total NF'!CR6-Govt!CR6 -> 252.5 | CS6: ='Total NF'!CS6-Govt!CS6 -> 250.1 | CT6: ='Total NF'!CT6-Govt!CT6 -> 251.1 | CU6: ='Total NF'!CU6-Govt!CU6 -> 250.9 | CV6: ='Total NF'!CV6-Govt!CV6 -> 249.2 | CW6: ='Total NF'!CW6-Govt!CW6 -> 249.6 | CX6: ='Total NF'!CX6-Govt!CX6 -> 248.9 | CY6: ='Total NF'!CY6-Govt!CY6 -> 248.6 | CZ6: ='Total NF'!CZ6-Govt!CZ6 -> 247 | DA6: ='Total NF'!DA6-Govt!DA6 -> 248.7 | DB6: ='Total NF'!DB6-Govt!DB6 -> 246.8 | DC6: ='Total NF'!DC6-Govt!DC6 -> 247.2 | DD6: ='Total NF'!DD6-Govt!DD6 -> 248.8 | DE6: ='Total NF'!DE6-Govt!DE6 -> 250.7 | DF6: ='Total NF'!DF6-Govt!DF6 -> 250.9 | DG6: ='Total NF'!DG6-Govt!DG6 -> 250.5 | DH6: ='Total NF'!DH6-Govt!DH6 -> 249.7 | DI6: ='Total NF'!DI6-Govt!DI6 -> 249.3 | DJ6: ='Total NF'!DJ6-Govt!DJ6 -> 246.5 | DK6: =DJ6-DI6 -> -2.8 | DL6: =DK6/DI6 -> -0.01123144805 | DM6: 44 | DN6: 50 | DO6: =DJ6-CX6 -> -2.4 | DP6: =DO6/CX6 -> -0.009642426677 | DQ6: 50 | DR6: 50 | DS6: =DJ6-CY6 -> -2.1 | DT6: -0.008447304907 | DU6: 50 | DV6: 50 | DW6: =DJ6-I6 -> 11 | DX6: =DW6/I6 -> 0.04670912951 | DY6: 48 | DZ6: 48
A7: Arizona | B7: SMS04000004000000001 | C7: ='Total NF'!C7-Govt!C7 -> 2087.3 | D7: ='Total NF'!D7-Govt!D7 -> 2064.1 | E7: ='Total NF'!E7-Govt!E7 -> 2045.6 | F7: ='Total NF'!F7-Govt!F7 -> 2020.5 | G7: ='Total NF'!G7-Govt!G7 -> 2015.8 | H7: ='Total NF'!H7-Govt!H7 -> 2005 | I7: ='Total NF'!I7-Govt!I7 -> 1996.9 | J7: ='Total NF'!J7-Govt!J7 -> 1989.4 | K7: ='Total NF'!K7-Govt!K7 -> 1978.2 | L7: ='Total NF'!L7-Govt!L7 -> 1973 | M7: ='Total NF'!M7-Govt!M7 -> 1970.5 | N7: ='Total NF'!N7-Govt!N7 -> 1965.5 | P7: ='Total NF'!P7-Govt!P7 -> 1964.6 | Q7: ='Total NF'!Q7-Govt!Q7 -> 1964.9 | R7: ='Total NF'!R7-Govt!R7 -> 1967.3 | S7: ='Total NF'!S7-Govt!S7 -> 1967.3 | T7: ='Total NF'!T7-Govt!T7 -> 1970.9 | U7: ='Total NF'!U7-Govt!U7 -> 1970.3 | V7: ='Total NF'!V7-Govt!V7 -> 1966.7 | W7: ='Total NF'!W7-Govt!W7 -> 1966.7 | X7: ='Total NF'!X7-Govt!X7 -> 1962.3 | Y7: ='Total NF'!Y7-Govt!Y7 -> 1974.9 | Z7: ='Total NF'!Z7-Govt!Z7 -> 1978.4 | AA7: ='Total NF'!AA7-Govt!AA7 -> 1983.6 | AC7: ='Total NF'!AC7-Govt!AC7 -> 1987.6 | AD7: ='Total NF'!AD7-Govt!AD7 -> 1989 | AE7: ='Total NF'!AE7-Govt!AE7 -> 1991.3 | AF7: ='Total NF'!AF7-Govt!AF7 -> 1994.2 | AG7: ='Total NF'!AG7-Govt!AG7 -> 2001.7 | AH7: ='Total NF'!AH7-Govt!AH7 -> 1997.1 | AI7: ='Total NF'!AI7-Govt!AI7 -> 2003.4 | AJ7: ='Total NF'!AJ7-Govt!AJ7 -> 2007.7 | AK7: ='Total NF'!AK7-Govt!AK7 -> 2014.5 | AL7: ='Total NF'!AL7-Govt!AL7 -> 2015.8 | AM7: ='Total NF'!AM7-Govt!AM7 -> 2022.2 | AN7: ='Total NF'!AN7-Govt!AN7 -> 2025.6 | AP7: ='Total NF'!AP7-Govt!AP7 -> 2034.7 | AQ7: ='Total NF'!AQ7-Govt!AQ7 -> 2034.6 | AR7: ='Total NF'!AR7-Govt!AR7 -> 2041.8 | AS7: ='Total NF'!AS7-Govt!AS7 -> 2043.1 | AT7: ='Total NF'!AT7-Govt!AT7 -> 2045 | AU7: ='Total NF'!AU7-Govt!AU7 -> 2048.4 | AV7: ='Total NF'!AV7-Govt!AV7 -> 2050.1 | AW7: ='Total NF'!AW7-Govt!AW7 -> 2055.9 | AX7: ='Total NF'!AX7-Govt!AX7 -> 2062.8 | AY7: ='Total NF'!AY7-Govt!AY7 -> 2068.7 | AZ7: ='Total NF'!AZ7-Govt!AZ7 -> 2075.5 | BA7: ='Total NF'!BA7-Govt!BA7 -> 2079.3 | BC7: ='Total NF'!BC7-Govt!BC7 -> 2083.3 | BD7: ='Total NF'!BD7-Govt!BD7 -> 2088.8 | BE7: ='Total NF'!BE7-Govt!BE7 -> 2092.3 | BF7: ='Total NF'!BF7-Govt!BF7 -> 2098.1 | BG7: ='Total NF'!BG7-Govt!BG7 -> 2101.5 | BH7: ='Total NF'!BH7-Govt!BH7 -> 2104.2 | BI7: ='Total NF'!BI7-Govt!BI7 -> 2109.3 | BJ7: ='Total NF'!BJ7-Govt!BJ7 -> 2112.9 | BK7: ='Total NF'!BK7-Govt!BK7 -> 2116 | BL7: ='Total NF'!BL7-Govt!BL7 -> 2115.9 | BM7: ='Total NF'!BM7-Govt!BM7 -> 2126.1 | BN7: ='Total NF'!BN7-Govt!BN7 -> 2134.7 | BO7: ='Total NF'!BO7-Govt!BO7 -> 0 | BP7: ='Total NF'!BP7-Govt!BP7 -> 2135.1 | BQ7: ='Total NF'!BQ7-Govt!BQ7 -> 2142.2 | BR7: ='Total NF'!BR7-Govt!BR7 -> 2141.9 | BS7: ='Total NF'!BS7-Govt!BS7 -> 2147 | BT7: ='Total NF'!BT7-Govt!BT7 -> 2149.3 | BU7: ='Total NF'!BU7-Govt!BU7 -> 2152.3 | BV7: ='Total NF'!BV7-Govt!BV7 -> 2155.4 | BW7: ='Total NF'!BW7-Govt!BW7 -> 2160.8 | BX7: ='Total NF'!BX7-Govt!BX7 -> 2164.3 | BY7: ='Total NF'!BY7-Govt!BY7 -> 2177 | BZ7: ='Total NF'!BZ7-Govt!BZ7 -> 2187.7 | CA7: ='Total NF'!CA7-Govt!CA7 -> 2196.2 | CB7: ='Total NF'!CB7-Govt!CB7 -> 2195.3 | CC7: ='Total NF'!CC7-Govt!CC7 -> 2201 | CD7: ='Total NF'!CD7-Govt!CD7 -> 2202.3 | CE7: ='Total NF'!CE7-Govt!CE7 -> 2206.5 | CF7: ='Total NF'!CF7-Govt!CF7 -> 2212.5 | CG7: ='Total NF'!CG7-Govt!CG7 -> 2217.1 | CH7: ='Total NF'!CH7-Govt!CH7 -> 2229.7 | CI7: ='Total NF'!CI7-Govt!CI7 -> 2235.9 | CJ7: ='Total NF'!CJ7-Govt!CJ7 -> 2240.2 | CK7: ='Total NF'!CK7-Govt!CK7 -> 2257.3 | CL7: ='Total NF'!CL7-Govt!CL7 -> 2268.3 | CM7: ='Total NF'!CM7-Govt!CM7 -> 2273.7 | CN7: ='Total NF'!CN7-Govt!CN7 -> 2263.6 | CO7: ='Total NF'!CO7-Govt!CO7 -> 2271 | CP7: ='Total NF'!CP7-Govt!CP7 -> 2274.5 | CQ7: ='Total NF'!CQ7-Govt!CQ7 -> 2282.3 | CR7: ='Total NF'!CR7-Govt!CR7 -> 2285.3 | CS7: ='Total NF'!CS7-Govt!CS7 -> 2285.3 | CT7: ='Total NF'!CT7-Govt!CT7 -> 2300.6 | CU7: ='Total NF'!CU7-Govt!CU7 -> 2305.8 | CV7: ='Total NF'!CV7-Govt!CV7 -> 2317.4 | CW7: ='Total NF'!CW7-Govt!CW7 -> 2318.8 | CX7: ='Total NF'!CX7-Govt!CX7 -> 2316.4 | CY7: ='Total NF'!CY7-Govt!CY7 -> 2323.7 | CZ7: ='Total NF'!CZ7-Govt!CZ7 -> 2320.6 | DA7: ='Total NF'!DA7-Govt!DA7 -> 2329.2 | DB7: ='Total NF'!DB7-Govt!DB7 -> 2327.2 | DC7: ='Total NF'!DC7-Govt!DC7 -> 2333.5 | DD7: ='Total NF'!DD7-Govt!DD7 -> 2334.1 | DE7: ='Total NF'!DE7-Govt!DE7 -> 2334.8 | DF7: ='Total NF'!DF7-Govt!DF7 -> 2329.7 | DG7: ='Total NF'!DG7-Govt!DG7 -> 2338.3 | DH7: ='Total NF'!DH7-Govt!DH7 -> 2352.8 | DI7: ='Total NF'!DI7-Govt!DI7 -> 2349.9 | DJ7: ='Total NF'!DJ7-Govt!DJ7 -> 2357.2 | DK7: 7.3 | DL7: 0.003106515171 | DM7: 9 | DN7: 13 | DO7: 40.8 | DP7: 0.01761353825 | DQ7: 16 | DR7: 18 | DS7: 33.5 | DT7: 0.01441666308 | DU7: 18 | DV7: 25 | DW7: 360.3 | DX7: 0.180429666 | DY7: 16 | DZ7: 15
A8: Arkansas | B8: SMS05000004000000001 | C8: ='Total NF'!C8-Govt!C8 -> 968.7 | D8: ='Total NF'!D8-Govt!D8 -> 964.7 | E8: ='Total NF'!E8-Govt!E8 -> 958 | F8: ='Total NF'!F8-Govt!F8 -> 951.9 | G8: ='Total NF'!G8-Govt!G8 -> 947.6 | H8: ='Total NF'!H8-Govt!H8 -> 943.8 | I8: ='Total NF'!I8-Govt!I8 -> 944.1 | J8: ='Total NF'!J8-Govt!J8 -> 942.2 | K8: ='Total NF'!K8-Govt!K8 -> 940.9 | L8: ='Total NF'!L8-Govt!L8 -> 937.8 | M8: ='Total NF'!M8-Govt!M8 -> 938.7 | N8: ='Total NF'!N8-Govt!N8 -> 937.3 | P8: ='Total NF'!P8-Govt!P8 -> 937.4 | Q8: ='Total NF'!Q8-Govt!Q8 -> 935.7 | R8: ='Total NF'!R8-Govt!R8 -> 938.8 | S8: ='Total NF'!S8-Govt!S8 -> 939.8 | T8: ='Total NF'!T8-Govt!T8 -> 944.2 | U8: ='Total NF'!U8-Govt!U8 -> 950.9 | V8: ='Total NF'!V8-Govt!V8 -> 947.5 | W8: ='Total NF'!W8-Govt!W8 -> 950.1 | X8: ='Total NF'!X8-Govt!X8 -> 948.3 | Y8: ='Total NF'!Y8-Govt!Y8 -> 948.2 | Z8: ='Total NF'!Z8-Govt!Z8 -> 947.9 | AA8: ='Total NF'!AA8-Govt!AA8 -> 949.4 | AC8: ='Total NF'!AC8-Govt!AC8 -> 947.5 | AD8: ='Total NF'!AD8-Govt!AD8 -> 945 | AE8: ='Total NF'!AE8-Govt!AE8 -> 947.1 | AF8: ='Total NF'!AF8-Govt!AF8 -> 954.3 | AG8: ='Total NF'!AG8-Govt!AG8 -> 949.5 | AH8: ='Total NF'!AH8-Govt!AH8 -> 946.5 | AI8: ='Total NF'!AI8-Govt!AI8 -> 957.1 | AJ8: ='Total NF'!AJ8-Govt!AJ8 -> 955.6 | AK8: ='Total NF'!AK8-Govt!AK8 -> 955.9 | AL8: ='Total NF'!AL8-Govt!AL8 -> 960.2 | AM8: ='Total NF'!AM8-Govt!AM8 -> 960 | AN8: ='Total NF'!AN8-Govt!AN8 -> 960.3 | AP8: ='Total NF'!AP8-Govt!AP8 -> 960.6 | AQ8: ='Total NF'!AQ8-Govt!AQ8 -> 960.1 | AR8: ='Total NF'!AR8-Govt!AR8 -> 962.6 | AS8: ='Total NF'!AS8-Govt!AS8 -> 962.1 | AT8: ='Total NF'!AT8-Govt!AT8 -> 962.7 | AU8: ='Total NF'!AU8-Govt!AU8 -> 961.1 | AV8: ='Total NF'!AV8-Govt!AV8 -> 956.4 | AW8: ='Total NF'!AW8-Govt!AW8 -> 958 | AX8: ='Total NF'!AX8-Govt!AX8 -> 957.9 | AY8: ='Total NF'!AY8-Govt!AY8 -> 958.9 | AZ8: ='Total NF'!AZ8-Govt!AZ8 -> 960.2 | BA8: ='Total NF'!BA8-Govt!BA8 -> 961.5 | BC8: ='Total NF'!BC8-Govt!BC8 -> 961.1 | BD8: ='Total NF'!BD8-Govt!BD8 -> 963.2 | BE8: ='Total NF'!BE8-Govt!BE8 -> 961.1 | BF8: ='Total NF'!BF8-Govt!BF8 -> 961.3 | BG8: ='Total NF'!BG8-Govt!BG8 -> 959.9 | BH8: ='Total NF'!BH8-Govt!BH8 -> 957.1 | BI8: ='Total NF'!BI8-Govt!BI8 -> 958.1 | BJ8: ='Total NF'!BJ8-Govt!BJ8 -> 957.2 | BK8: ='Total NF'!BK8-Govt!BK8 -> 960.6 | BL8: ='Total NF'!BL8-Govt!BL8 -> 966 | BM8: ='Total NF'!BM8-Govt!BM8 -> 968.6 | BN8: ='Total NF'!BN8-Govt!BN8 -> 969.3 | BO8: ='Total NF'!BO8-Govt!BO8 -> 0 | BP8: ='Total NF'!BP8-Govt!BP8 -> 966.6 | BQ8: ='Total NF'!BQ8-Govt!BQ8 -> 968.7 | BR8: ='Total NF'!BR8-Govt!BR8 -> 967.8 | BS8: ='Total NF'!BS8-Govt!BS8 -> 970.9 | BT8: ='Total NF'!BT8-Govt!BT8 -> 973.3 | BU8: ='Total NF'!BU8-Govt!BU8 -> 974.5 | BV8: ='Total NF'!BV8-Govt!BV8 -> 971.5 | BW8: ='Total NF'!BW8-Govt!BW8 -> 974.1 | BX8: ='Total NF'!BX8-Govt!BX8 -> 978.2 | BY8: ='Total NF'!BY8-Govt!BY8 -> 982.4 | BZ8: ='Total NF'!BZ8-Govt!BZ8 -> 986 | CA8: ='Total NF'!CA8-Govt!CA8 -> 991.4 | CB8: ='Total NF'!CB8-Govt!CB8 -> 985.9 | CC8: ='Total NF'!CC8-Govt!CC8 -> 988.4 | CD8: ='Total NF'!CD8-Govt!CD8 -> 985.4 | CE8: ='Total NF'!CE8-Govt!CE8 -> 987.5 | CF8: ='Total NF'!CF8-Govt!CF8 -> 991.8 | CG8: ='Total NF'!CG8-Govt!CG8 -> 993.3 | CH8: ='Total NF'!CH8-Govt!CH8 -> 996.2 | CI8: ='Total NF'!CI8-Govt!CI8 -> 999.4 | CJ8: ='Total NF'!CJ8-Govt!CJ8 -> 1000.9 | CK8: ='Total NF'!CK8-Govt!CK8 -> 1006.5 | CL8: ='Total NF'!CL8-Govt!CL8 -> 1006.9 | CM8: ='Total NF'!CM8-Govt!CM8 -> 1013.6 | CN8: ='Total NF'!CN8-Govt!CN8 -> 1008.9 | CO8: ='Total NF'!CO8-Govt!CO8 -> 1011.7 | CP8: ='Total NF'!CP8-Govt!CP8 -> 1012.8 | CQ8: ='Total NF'!CQ8-Govt!CQ8 -> 1012.4 | CR8: ='Total NF'!CR8-Govt!CR8 -> 1012.1 | CS8: ='Total NF'!CS8-Govt!CS8 -> 1012.4 | CT8: ='Total NF'!CT8-Govt!CT8 -> 1014.5 | CU8: ='Total NF'!CU8-Govt!CU8 -> 1016 | CV8: ='Total NF'!CV8-Govt!CV8 -> 1018.5 | CW8: ='Total NF'!CW8-Govt!CW8 -> 1023.6 | CX8: ='Total NF'!CX8-Govt!CX8 -> 1022.4 | CY8: ='Total NF'!CY8-Govt!CY8 -> 1026.1 | CZ8: ='Total NF'!CZ8-Govt!CZ8 -> 1023.6 | DA8: ='Total NF'!DA8-Govt!DA8 -> 1029.3 | DB8: ='Total NF'!DB8-Govt!DB8 -> 1028.2 | DC8: ='Total NF'!DC8-Govt!DC8 -> 1032.3 | DD8: ='Total NF'!DD8-Govt!DD8 -> 1034 | DE8: ='Total NF'!DE8-Govt!DE8 -> 1042.6 | DF8: ='Total NF'!DF8-Govt!DF8 -> 1047.6 | DG8: ='Total NF'!DG8-Govt!DG8 -> 1042.3 | DH8: ='Total NF'!DH8-Govt!DH8 -> 1044.5 | DI8: ='Total NF'!DI8-Govt!DI8 -> 1045.7 | DJ8: ='Total NF'!DJ8-Govt!DJ8 -> 1043.8 | DK8: -1.9 | DL8: -0.001816964713 | DM8: 40 | DN8: 44 | DO8: 21.4 | DP8: 0.02093114241 | DQ8: 29 | DR8: 11 | DS8: 17.7 | DT8: 0.01724978072 | DU8: 29 | DV8: 15 | DW8: 99.7 | DX8: 0.10560322 | DY8: 33 | DZ8: 31
A9: California | B9: SMS06000004000000001 | C9: ='Total NF'!C9-Govt!C9 -> 12272.4 | D9: ='Total NF'!D9-Govt!D9 -> 12156.2 | E9: ='Total NF'!E9-Govt!E9 -> 12070.3 | F9: ='Total NF'!F9-Govt!F9 -> 11958.2 | G9: ='Total NF'!G9-Govt!G9 -> 11926.5 | H9: ='Total NF'!H9-Govt!H9 -> 11868.7 | I9: ='Total NF'!I9-Govt!I9 -> 11783.1 | J9: ='Total NF'!J9-Govt!J9 -> 11750 | K9: ='Total NF'!K9-Govt!K9 -> 11726.8 | L9: ='Total NF'!L9-Govt!L9 -> 11734 | M9: ='Total NF'!M9-Govt!M9 -> 11730.7 | N9: ='Total NF'!N9-Govt!N9 -> 11711.5 | P9: ='Total NF'!P9-Govt!P9 -> 11686.4 | Q9: ='Total NF'!Q9-Govt!Q9 -> 11682.4 | R9: ='Total NF'!R9-Govt!R9 -> 11691 | S9: ='Total NF'!S9-Govt!S9 -> 11735.8 | T9: ='Total NF'!T9-Govt!T9 -> 11738.3 | U9: ='Total NF'!U9-Govt!U9 -> 11755.7 | V9: ='Total NF'!V9-Govt!V9 -> 11767.3 | W9: ='Total NF'!W9-Govt!W9 -> 11783 | X9: ='Total NF'!X9-Govt!X9 -> 11777.5 | Y9: ='Total NF'!Y9-Govt!Y9 -> 11826 | Z9: ='Total NF'!Z9-Govt!Z9 -> 11833.9 | AA9: ='Total NF'!AA9-Govt!AA9 -> 11861.1 | AC9: ='Total NF'!AC9-Govt!AC9 -> 11870.2 | AD9: ='Total NF'!AD9-Govt!AD9 -> 11881.5 | AE9: ='Total NF'!AE9-Govt!AE9 -> 11880.6 | AF9: ='Total NF'!AF9-Govt!AF9 -> 11899.7 | AG9: ='Total NF'!AG9-Govt!AG9 -> 11905.8 | AH9: ='Total NF'!AH9-Govt!AH9 -> 11897 | AI9: ='Total NF'!AI9-Govt!AI9 -> 11961 | AJ9: ='Total NF'!AJ9-Govt!AJ9 -> 11980.5 | AK9: ='Total NF'!AK9-Govt!AK9 -> 12012.6 | AL9: ='Total NF'!AL9-Govt!AL9 -> 12023.7 | AM9: ='Total NF'!AM9-Govt!AM9 -> 12056.8 | AN9: ='Total NF'!AN9-Govt!AN9 -> 12082.7 | AP9: ='Total NF'!AP9-Govt!AP9 -> 12154.8 | AQ9: ='Total NF'!AQ9-Govt!AQ9 -> 12170.2 | AR9: ='Total NF'!AR9-Govt!AR9 -> 12205.1 | AS9: ='Total NF'!AS9-Govt!AS9 -> 12222.9 | AT9: ='Total NF'!AT9-Govt!AT9 -> 12255 | AU9: ='Total NF'!AU9-Govt!AU9 -> 12293.4 | AV9: ='Total NF'!AV9-Govt!AV9 -> 12322.9 | AW9: ='Total NF'!AW9-Govt!AW9 -> 12358.3 | AX9: ='Total NF'!AX9-Govt!AX9 -> 12382.4 | AY9: ='Total NF'!AY9-Govt!AY9 -> 12494.8 | AZ9: ='Total NF'!AZ9-Govt!AZ9 -> 12538.1 | BA9: ='Total NF'!BA9-Govt!BA9 -> 12561.3 | BC9: ='Total NF'!BC9-Govt!BC9 -> 12606.7 | BD9: ='Total NF'!BD9-Govt!BD9 -> 12648 | BE9: ='Total NF'!BE9-Govt!BE9 -> 12674.5 | BF9: ='Total NF'!BF9-Govt!BF9 -> 12721.1 | BG9: ='Total NF'!BG9-Govt!BG9 -> 12743.4 | BH9: ='Total NF'!BH9-Govt!BH9 -> 12751.8 | BI9: ='Total NF'!BI9-Govt!BI9 -> 12803.8 | BJ9: ='Total NF'!BJ9-Govt!BJ9 -> 12843.3 | BK9: ='Total NF'!BK9-Govt!BK9 -> 12851.1 | BL9: ='Total NF'!BL9-Govt!BL9 -> 12873.8 | BM9: ='Total NF'!BM9-Govt!BM9 -> 12927.6 | BN9: ='Total NF'!BN9-Govt!BN9 -> 12946.4 | BO9: ='Total NF'!BO9-Govt!BO9 -> 0 | BP9: ='Total NF'!BP9-Govt!BP9 -> 13037.6 | BQ9: ='Total NF'!BQ9-Govt!BQ9 -> 13080.9 | BR9: ='Total NF'!BR9-Govt!BR9 -> 13104.5 | BS9: ='Total NF'!BS9-Govt!BS9 -> 13153.7 | BT9: ='Total NF'!BT9-Govt!BT9 -> 13184.1 | BU9: ='Total NF'!BU9-Govt!BU9 -> 13201.8 | BV9: ='Total NF'!BV9-Govt!BV9 -> 13249.3 | BW9: ='Total NF'!BW9-Govt!BW9 -> 13297.1 | BX9: ='Total NF'!BX9-Govt!BX9 -> 13328.7 | BY9: ='Total NF'!BY9-Govt!BY9 -> 13354.7 | BZ9: ='Total NF'!BZ9-Govt!BZ9 -> 13408.2 | CA9: ='Total NF'!CA9-Govt!CA9 -> 13429 | CB9: ='Total NF'!CB9-Govt!CB9 -> 13385.6 | CC9: ='Total NF'!CC9-Govt!CC9 -> 13416.5 | CD9: ='Total NF'!CD9-Govt!CD9 -> 13455.7 | CE9: ='Total NF'!CE9-Govt!CE9 -> 13484.8 | CF9: ='Total NF'!CF9-Govt!CF9 -> 13523.5 | CG9: ='Total NF'!CG9-Govt!CG9 -> 13542.7 | CH9: ='Total NF'!CH9-Govt!CH9 -> 13651.9 | CI9: ='Total NF'!CI9-Govt!CI9 -> 13675.8 | CJ9: ='Total NF'!CJ9-Govt!CJ9 -> 13699.1 | CK9: ='Total NF'!CK9-Govt!CK9 -> 13718.8 | CL9: ='Total NF'!CL9-Govt!CL9 -> 13750 | CM9: ='Total NF'!CM9-Govt!CM9 -> 13796.5 | CN9: ='Total NF'!CN9-Govt!CN9 -> 13830.4 | CO9: ='Total NF'!CO9-Govt!CO9 -> 13868.5 | CP9: ='Total NF'!CP9-Govt!CP9 -> 13849.1 | CQ9: ='Total NF'!CQ9-Govt!CQ9 -> 13944.6 | CR9: ='Total NF'!CR9-Govt!CR9 -> 13947.5 | CS9: ='Total NF'!CS9-Govt!CS9 -> 13929.9 | CT9: ='Total NF'!CT9-Govt!CT9 -> 13993.7 | CU9: ='Total NF'!CU9-Govt!CU9 -> 13995.4 | CV9: ='Total NF'!CV9-Govt!CV9 -> 14021.8 | CW9: ='Total NF'!CW9-Govt!CW9 -> 14060 | CX9: ='Total NF'!CX9-Govt!CX9 -> 14094.1 | CY9: ='Total NF'!CY9-Govt!CY9 -> 14092.3 | CZ9: ='Total NF'!CZ9-Govt!CZ9 -> 14113.5 | DA9: ='Total NF'!DA9-Govt!DA9 -> 14131.1 | DB9: ='Total NF'!DB9-Govt!DB9 -> 14148.6 | DC9: ='Total NF'!DC9-Govt!DC9 -> 14137.9 | DD9: ='Total NF'!DD9-Govt!DD9 -> 14149.5 | DE9: ='Total NF'!DE9-Govt!DE9 -> 14157.3 | DF9: ='Total NF'!DF9-Govt!DF9 -> 14223.1 | DG9: ='Total NF'!DG9-Govt!DG9 -> 14219.3 | DH9: ='Total NF'!DH9-Govt!DH9 -> 14254.5 | DI9: ='Total NF'!DI9-Govt!DI9 -> 14293.6 | DJ9: ='Total NF'!DJ9-Govt!DJ9 -> 14340.8 | DK9: 47.2 | DL9: 0.003302177198 | DM9: 2 | DN9: 9 | DO9: 246.7 | DP9: 0.01750377818 | DQ9: 2 | DR9: 19 | DS9: 248.5 | DT9: 0.01763374325 | DU9: 2 | DV9: 13 | DW9: 2557.7 | DX9: 0.2170651187 | DY9: 1 | DZ9: 6
A10: Colorado | B10: SMS08000004000000001 | C10: ='Total NF'!C10-Govt!C10 -> 1916.8 | D10: ='Total NF'!D10-Govt!D10 -> 1899.2 | E10: ='Total NF'!E10-Govt!E10 -> 1882.8 | F10: ='Total NF'!F10-Govt!F10 -> 1864.2 | G10: ='Total NF'!G10-Govt!G10 -> 1860.1 | H10: ='Total NF'!H10-Govt!H10 -> 1849 | I10: ='Total NF'!I10-Govt!I10 -> 1842.2 | J10: ='Total NF'!J10-Govt!J10 -> 1835.4 | K10: ='Total NF'!K10-Govt!K10 -> 1832.4 | L10: ='Total NF'!L10-Govt!L10 -> 1829.1 | M10: ='Total NF'!M10-Govt!M10 -> 1826.9 | N10: ='Total NF'!N10-Govt!N10 -> 1822.4 | P10: ='Total NF'!P10-Govt!P10 -> 1819.8 | Q10: ='Total NF'!Q10-Govt!Q10 -> 1821.1 | R10: ='Total NF'!R10-Govt!R10 -> 1821.2 | S10: ='Total NF'!S10-Govt!S10 -> 1823.9 | T10: ='Total NF'!T10-Govt!T10 -> 1825.1 | U10: ='Total NF'!U10-Govt!U10 -> 1827.2 | V10: ='Total NF'!V10-Govt!V10 -> 1829.8 | W10: ='Total NF'!W10-Govt!W10 -> 1831.1 | X10: ='Total NF'!X10-Govt!X10 -> 1828 | Y10: ='Total NF'!Y10-Govt!Y10 -> 1836 | Z10: ='Total NF'!Z10-Govt!Z10 -> 1836.3 | AA10: ='Total NF'!AA10-Govt!AA10 -> 1839.8 | AC10: ='Total NF'!AC10-Govt!AC10 -> 1847.1 | AD10: ='Total NF'!AD10-Govt!AD10 -> 1846 | AE10: ='Total NF'!AE10-Govt!AE10 -> 1850.3 | AF10: ='Total NF'!AF10-Govt!AF10 -> 1859 | AG10: ='Total NF'!AG10-Govt!AG10 -> 1860.4 | AH10: ='Total NF'!AH10-Govt!AH10 -> 1861.3 | AI10: ='Total NF'!AI10-Govt!AI10 -> 1866.3 | AJ10: ='Total NF'!AJ10-Govt!AJ10 -> 1872.3 | AK10: ='Total NF'!AK10-Govt!AK10 -> 1878.2 | AL10: ='Total NF'!AL10-Govt!AL10 -> 1876.7 | AM10: ='Total NF'!AM10-Govt!AM10 -> 1882.4 | AN10: ='Total NF'!AN10-Govt!AN10 -> 1886.6 | AP10: ='Total NF'!AP10-Govt!AP10 -> 1893.4 | AQ10: ='Total NF'!AQ10-Govt!AQ10 -> 1895.4 | AR10: ='Total NF'!AR10-Govt!AR10 -> 1902 | AS10: ='Total NF'!AS10-Govt!AS10 -> 1906.3 | AT10: ='Total NF'!AT10-Govt!AT10 -> 1909.8 | AU10: ='Total NF'!AU10-Govt!AU10 -> 1915.2 | AV10: ='Total NF'!AV10-Govt!AV10 -> 1920.3 | AW10: ='Total NF'!AW10-Govt!AW10 -> 1921.7 | AX10: ='Total NF'!AX10-Govt!AX10 -> 1928 | AY10: ='Total NF'!AY10-Govt!AY10 -> 1938.6 | AZ10: ='Total NF'!AZ10-Govt!AZ10 -> 1941.6 | BA10: ='Total NF'!BA10-Govt!BA10 -> 1946.1 | BC10: ='Total NF'!BC10-Govt!BC10 -> 1947.1 | BD10: ='Total NF'!BD10-Govt!BD10 -> 1955.2 | BE10: ='Total NF'!BE10-Govt!BE10 -> 1960.7 | BF10: ='Total NF'!BF10-Govt!BF10 -> 1965.1 | BG10: ='Total NF'!BG10-Govt!BG10 -> 1970.7 | BH10: ='Total NF'!BH10-Govt!BH10 -> 1976.8 | BI10: ='Total NF'!BI10-Govt!BI10 -> 1982.7 | BJ10: ='Total NF'!BJ10-Govt!BJ10 -> 1988.1 | BK10: ='Total NF'!BK10-Govt!BK10 -> 1991.5 | BL10: ='Total NF'!BL10-Govt!BL10 -> 1994.4 | BM10: ='Total NF'!BM10-Govt!BM10 -> 1996.6 | BN10: ='Total NF'!BN10-Govt!BN10 -> 1998.9 | BO10: ='Total NF'!BO10-Govt!BO10 -> 0 | BP10: ='Total NF'!BP10-Govt!BP10 -> 2019.6 | BQ10: ='Total NF'!BQ10-Govt!BQ10 -> 2025.4 | BR10: ='Total NF'!BR10-Govt!BR10 -> 2030.2 | BS10: ='Total NF'!BS10-Govt!BS10 -> 2039.2 | BT10: ='Total NF'!BT10-Govt!BT10 -> 2046.3 | BU10: ='Total NF'!BU10-Govt!BU10 -> 2051.5 | BV10: ='Total NF'!BV10-Govt!BV10 -> 2059.2 | BW10: ='Total NF'!BW10-Govt!BW10 -> 2067.9 | BX10: ='Total NF'!BX10-Govt!BX10 -> 2074.7 | BY10: ='Total NF'!BY10-Govt!BY10 -> 2073.6 | BZ10: ='Total NF'!BZ10-Govt!BZ10 -> 2074.9 | CA10: ='Total NF'!CA10-Govt!CA10 -> 2083.7 | CB10: ='Total NF'!CB10-Govt!CB10 -> 2102.1 | CC10: ='Total NF'!CC10-Govt!CC10 -> 2108.7 | CD10: ='Total NF'!CD10-Govt!CD10 -> 2109.9 | CE10: ='Total NF'!CE10-Govt!CE10 -> 2111.4 | CF10: ='Total NF'!CF10-Govt!CF10 -> 2115.7 | CG10: ='Total NF'!CG10-Govt!CG10 -> 2120.4 | CH10: ='Total NF'!CH10-Govt!CH10 -> 2124.8 | CI10: ='Total NF'!CI10-Govt!CI10 -> 2127.9 | CJ10: ='Total NF'!CJ10-Govt!CJ10 -> 2134.4 | CK10: ='Total NF'!CK10-Govt!CK10 -> 2142.9 | CL10: ='Total NF'!CL10-Govt!CL10 -> 2145.4 | CM10: ='Total NF'!CM10-Govt!CM10 -> 2158.1 | CN10: ='Total NF'!CN10-Govt!CN10 -> 2152 | CO10: ='Total NF'!CO10-Govt!CO10 -> 2156.1 | CP10: ='Total NF'!CP10-Govt!CP10 -> 2158.9 | CQ10: ='Total NF'!CQ10-Govt!CQ10 -> 2162.8 | CR10: ='Total NF'!CR10-Govt!CR10 -> 2163.5 | CS10: ='Total NF'!CS10-Govt!CS10 -> 2167.2 | CT10: ='Total NF'!CT10-Govt!CT10 -> 2178.6 | CU10: ='Total NF'!CU10-Govt!CU10 -> 2179.9 | CV10: ='Total NF'!CV10-Govt!CV10 -> 2185.4 | CW10: ='Total NF'!CW10-Govt!CW10 -> 2194.1 | CX10: ='Total NF'!CX10-Govt!CX10 -> 2190.2 | CY10: ='Total NF'!CY10-Govt!CY10 -> 2190.3 | CZ10: ='Total NF'!CZ10-Govt!CZ10 -> 2196.4 | DA10: ='Total NF'!DA10-Govt!DA10 -> 2204.1 | DB10: ='Total NF'!DB10-Govt!DB10 -> 2204 | DC10: ='Total NF'!DC10-Govt!DC10 -> 2206.3 | DD10: ='Total NF'!DD10-Govt!DD10 -> 2212.7 | DE10: ='Total NF'!DE10-Govt!DE10 -> 2218 | DF10: ='Total NF'!DF10-Govt!DF10 -> 2220.7 | DG10: ='Total NF'!DG10-Govt!DG10 -> 2218.9 | DH10: ='Total NF'!DH10-Govt!DH10 -> 2227.2 | DI10: ='Total NF'!DI10-Govt!DI10 -> 2233.6 | DJ10: ='Total NF'!DJ10-Govt!DJ10 -> 2235.2 | DK10: 1.6 | DL10: 0.0007163323782 | DM10: 27 | DN10: 30 | DO10: 45 | DP10: 0.02054606885 | DQ10: 13 | DR10: 12 | DS10: 44.9 | DT10: 0.02049947496 | DU10: 10 | DV10: 6 | DW10: 393 | DX10: 0.2133318858 | DY10: 14 | DZ10: 8
A11: Connecticut | B11: SMS09000004000000001 | C11: ='Total NF'!C11-Govt!C11 -> 1412.5 | D11: ='Total NF'!D11-Govt!D11 -> 1405.3 | E11: ='Total NF'!E11-Govt!E11 -> 1395.8 | F11: ='Total NF'!F11-Govt!F11 -> 1377.2 | G11: ='Total NF'!G11-Govt!G11 -> 1379.1 | H11: ='Total NF'!H11-Govt!H11 -> 1374.5 | I11: ='Total NF'!I11-Govt!I11 -> 1368.6 | J11: ='Total NF'!J11-Govt!J11 -> 1367.5 | K11: ='Total NF'!K11-Govt!K11 -> 1367.7 | L11: ='Total NF'!L11-Govt!L11 -> 1364.1 | M11: ='Total NF'!M11-Govt!M11 -> 1362.9 | N11: ='Total NF'!N11-Govt!N11 -> 1361.3 | P11: ='Total NF'!P11-Govt!P11 -> 1348.9 | Q11: ='Total NF'!Q11-Govt!Q11 -> 1348.4 | R11: ='Total NF'!R11-Govt!R11 -> 1351 | S11: ='Total NF'!S11-Govt!S11 -> 1357.5 | T11: ='Total NF'!T11-Govt!T11 -> 1362.1 | U11: ='Total NF'!U11-Govt!U11 -> 1363.9 | V11: ='Total NF'!V11-Govt!V11 -> 1368.1 | W11: ='Total NF'!W11-Govt!W11 -> 1370 | X11: ='Total NF'!X11-Govt!X11 -> 1370.8 | Y11: ='Total NF'!Y11-Govt!Y11 -> 1373.4 | Z11: ='Total NF'!Z11-Govt!Z11 -> 1374.4 | AA11: ='Total NF'!AA11-Govt!AA11 -> 1375.4 | AC11: ='Total NF'!AC11-Govt!AC11 -> 1377.1 | AD11: ='Total NF'!AD11-Govt!AD11 -> 1379.6 | AE11: ='Total NF'!AE11-Govt!AE11 -> 1379 | AF11: ='Total NF'!AF11-Govt!AF11 -> 1384.3 | AG11: ='Total NF'!AG11-Govt!AG11 -> 1383.3 | AH11: ='Total NF'!AH11-Govt!AH11 -> 1382.8 | AI11: ='Total NF'!AI11-Govt!AI11 -> 1387.6 | AJ11: ='Total NF'!AJ11-Govt!AJ11 -> 1388.3 | AK11: ='Total NF'!AK11-Govt!AK11 -> 1389.1 | AL11: ='Total NF'!AL11-Govt!AL11 -> 1386.8 | AM11: ='Total NF'!AM11-Govt!AM11 -> 1389.5 | AN11: ='Total NF'!AN11-Govt!AN11 -> 1391.7 | AP11: ='Total NF'!AP11-Govt!AP11 -> 1398.6 | AQ11: ='Total NF'!AQ11-Govt!AQ11 -> 1400 | AR11: ='Total NF'!AR11-Govt!AR11 -> 1403 | AS11: ='Total NF'!AS11-Govt!AS11 -> 1398.5 | AT11: ='Total NF'!AT11-Govt!AT11 -> 1399.8 | AU11: ='Total NF'!AU11-Govt!AU11 -> 1400.9 | AV11: ='Total NF'!AV11-Govt!AV11 -> 1400.1 | AW11: ='Total NF'!AW11-Govt!AW11 -> 1401.2 | AX11: ='Total NF'!AX11-Govt!AX11 -> 1403.2 | AY11: ='Total NF'!AY11-Govt!AY11 -> 1405.8 | AZ11: ='Total NF'!AZ11-Govt!AZ11 -> 1407.2 | BA11: ='Total NF'!BA11-Govt!BA11 -> 1406.6 | BC11: ='Total NF'!BC11-Govt!BC11 -> 1408.7 | BD11: ='Total NF'!BD11-Govt!BD11 -> 1406.2 | BE11: ='Total NF'!BE11-Govt!BE11 -> 1411.4 | BF11: ='Total NF'!BF11-Govt!BF11 -> 1415 | BG11: ='Total NF'!BG11-Govt!BG11 -> 1415.3 | BH11: ='Total NF'!BH11-Govt!BH11 -> 1416.6 | BI11: ='Total NF'!BI11-Govt!BI11 -> 1417.2 | BJ11: ='Total NF'!BJ11-Govt!BJ11 -> 1419.3 | BK11: ='Total NF'!BK11-Govt!BK11 -> 1417.6 | BL11: ='Total NF'!BL11-Govt!BL11 -> 1423.9 | BM11: ='Total NF'!BM11-Govt!BM11 -> 1426.4 | BN11: ='Total NF'!BN11-Govt!BN11 -> 1427.9 | BO11: ='Total NF'!BO11-Govt!BO11 -> 0 | BP11: ='Total NF'!BP11-Govt!BP11 -> 1422.9 | BQ11: ='Total NF'!BQ11-Govt!BQ11 -> 1419 | BR11: ='Total NF'!BR11-Govt!BR11 -> 1421.9 | BS11: ='Total NF'!BS11-Govt!BS11 -> 1425.8 | BT11: ='Total NF'!BT11-Govt!BT11 -> 1427.3 | BU11: ='Total NF'!BU11-Govt!BU11 -> 1426.1 | BV11: ='Total NF'!BV11-Govt!BV11 -> 1427.2 | BW11: ='Total NF'!BW11-Govt!BW11 -> 1427.5 | BX11: ='Total NF'!BX11-Govt!BX11 -> 1428.1 | BY11: ='Total NF'!BY11-Govt!BY11 -> 1432.7 | BZ11: ='Total NF'!BZ11-Govt!BZ11 -> 1435.5 | CA11: ='Total NF'!CA11-Govt!CA11 -> 1440.4 | CB11: ='Total NF'!CB11-Govt!CB11 -> 1431.6 | CC11: ='Total NF'!CC11-Govt!CC11 -> 1430.2 | CD11: ='Total NF'!CD11-Govt!CD11 -> 1431.4 | CE11: ='Total NF'!CE11-Govt!CE11 -> 1431.1 | CF11: ='Total NF'!CF11-Govt!CF11 -> 1434.6 | CG11: ='Total NF'!CG11-Govt!CG11 -> 1436.3 | CH11: ='Total NF'!CH11-Govt!CH11 -> 1433.6 | CI11: ='Total NF'!CI11-Govt!CI11 -> 1433.5 | CJ11: ='Total NF'!CJ11-Govt!CJ11 -> 1433.2 | CK11: ='Total NF'!CK11-Govt!CK11 -> 1435.7 | CL11: ='Total NF'!CL11-Govt!CL11 -> 1440.8 | CM11: ='Total NF'!CM11-Govt!CM11 -> 1442.5 | CN11: ='Total NF'!CN11-Govt!CN11 -> 1439.7 | CO11: ='Total NF'!CO11-Govt!CO11 -> 1442.2 | CP11: ='Total NF'!CP11-Govt!CP11 -> 1445.8 | CQ11: ='Total NF'!CQ11-Govt!CQ11 -> 1440.1 | CR11: ='Total NF'!CR11-Govt!CR11 -> 1439.1 | CS11: ='Total NF'!CS11-Govt!CS11 -> 1440.7 | CT11: ='Total NF'!CT11-Govt!CT11 -> 1444.6 | CU11: ='Total NF'!CU11-Govt!CU11 -> 1445.5 | CV11: ='Total NF'!CV11-Govt!CV11 -> 1445.9 | CW11: ='Total NF'!CW11-Govt!CW11 -> 1445.3 | CX11: ='Total NF'!CX11-Govt!CX11 -> 1443.9 | CY11: ='Total NF'!CY11-Govt!CY11 -> 1443.6 | CZ11: ='Total NF'!CZ11-Govt!CZ11 -> 1450.3 | DA11: ='Total NF'!DA11-Govt!DA11 -> 1450.5 | DB11: ='Total NF'!DB11-Govt!DB11 -> 1451 | DC11: ='Total NF'!DC11-Govt!DC11 -> 1448.4 | DD11: ='Total NF'!DD11-Govt!DD11 -> 1453.3 | DE11: ='Total NF'!DE11-Govt!DE11 -> 1459 | DF11: ='Total NF'!DF11-Govt!DF11 -> 1458.2 | DG11: ='Total NF'!DG11-Govt!DG11 -> 1454.1 | DH11: ='Total NF'!DH11-Govt!DH11 -> 1455.3 | DI11: ='Total NF'!DI11-Govt!DI11 -> 1450 | DJ11: ='Total NF'!DJ11-Govt!DJ11 -> 1446.7 | DK11: -3.3 | DL11: -0.002275862069 | DM11: 46 | DN11: 46 | DO11: 2.8 | DP11: 0.001939192465 | DQ11: 44 | DR11: 46 | DS11: 3.1 | DT11: 0.002147409255 | DU11: 42 | DV11: 46 | DW11: 78.1 | DX11: 0.0570656145 | DY11: 36 | DZ11: 47
A12: Delaware | B12: SMS10000004000000001 | C12: ='Total NF'!C12-Govt!C12 -> 362.3 | D12: ='Total NF'!D12-Govt!D12 -> 360.9 | E12: ='Total NF'!E12-Govt!E12 -> 357.1 | F12: ='Total NF'!F12-Govt!F12 -> 354.1 | G12: ='Total NF'!G12-Govt!G12 -> 355.2 | H12: ='Total NF'!H12-Govt!H12 -> 353.2 | I12: ='Total NF'!I12-Govt!I12 -> 351.4 | J12: ='Total NF'!J12-Govt!J12 -> 350.5 | K12: ='Total NF'!K12-Govt!K12 -> 350 | L12: ='Total NF'!L12-Govt!L12 -> 349 | M12: ='Total NF'!M12-Govt!M12 -> 348 | N12: ='Total NF'!N12-Govt!N12 -> 347 | P12: ='Total NF'!P12-Govt!P12 -> 346.6 | Q12: ='Total NF'!Q12-Govt!Q12 -> 344.1 | R12: ='Total NF'!R12-Govt!R12 -> 346.5 | S12: ='Total NF'!S12-Govt!S12 -> 348.6 | T12: ='Total NF'!T12-Govt!T12 -> 349.2 | U12: ='Total NF'!U12-Govt!U12 -> 350.2 | V12: ='Total NF'!V12-Govt!V12 -> 352.6 | W12: ='Total NF'!W12-Govt!W12 -> 352.9 | X12: ='Total NF'!X12-Govt!X12 -> 352.4 | Y12: ='Total NF'!Y12-Govt!Y12 -> 352.5 | Z12: ='Total NF'!Z12-Govt!Z12 -> 351.7 | AA12: ='Total NF'!AA12-Govt!AA12 -> 352.7 | AC12: ='Total NF'!AC12-Govt!AC12 -> 353.2 | AD12: ='Total NF'!AD12-Govt!AD12 -> 354.2 | AE12: ='Total NF'!AE12-Govt!AE12 -> 354 | AF12: ='Total NF'!AF12-Govt!AF12 -> 355.7 | AG12: ='Total NF'!AG12-Govt!AG12 -> 353.6 | AH12: ='Total NF'!AH12-Govt!AH12 -> 352.8 | AI12: ='Total NF'!AI12-Govt!AI12 -> 353.8 | AJ12: ='Total NF'!AJ12-Govt!AJ12 -> 352.4 | AK12: ='Total NF'!AK12-Govt!AK12 -> 353 | AL12: ='Total NF'!AL12-Govt!AL12 -> 352.4 | AM12: ='Total NF'!AM12-Govt!AM12 -> 352.8 | AN12: ='Total NF'!AN12-Govt!AN12 -> 353.2 | AP12: ='Total NF'!AP12-Govt!AP12 -> 353.7 | AQ12: ='Total NF'!AQ12-Govt!AQ12 -> 353.7 | AR12: ='Total NF'!AR12-Govt!AR12 -> 354.5 | AS12: ='Total NF'!AS12-Govt!AS12 -> 354.5 | AT12: ='Total NF'!AT12-Govt!AT12 -> 355 | AU12: ='Total NF'!AU12-Govt!AU12 -> 355 | AV12: ='Total NF'!AV12-Govt!AV12 -> 355.8 | AW12: ='Total NF'!AW12-Govt!AW12 -> 355.6 | AX12: ='Total NF'!AX12-Govt!AX12 -> 356.2 | AY12: ='Total NF'!AY12-Govt!AY12 -> 357.9 | AZ12: ='Total NF'!AZ12-Govt!AZ12 -> 359.5 | BA12: ='Total NF'!BA12-Govt!BA12 -> 358.9 | BC12: ='Total NF'!BC12-Govt!BC12 -> 360.2 | BD12: ='Total NF'!BD12-Govt!BD12 -> 360.7 | BE12: ='Total NF'!BE12-Govt!BE12 -> 361.2 | BF12: ='Total NF'!BF12-Govt!BF12 -> 361.2 | BG12: ='Total NF'!BG12-Govt!BG12 -> 362.5 | BH12: ='Total NF'!BH12-Govt!BH12 -> 362.2 | BI12: ='Total NF'!BI12-Govt!BI12 -> 363.8 | BJ12: ='Total NF'!BJ12-Govt!BJ12 -> 364.6 | BK12: ='Total NF'!BK12-Govt!BK12 -> 364.4 | BL12: ='Total NF'!BL12-Govt!BL12 -> 367.1 | BM12: ='Total NF'!BM12-Govt!BM12 -> 369.1 | BN12: ='Total NF'!BN12-Govt!BN12 -> 369 | BO12: ='Total NF'!BO12-Govt!BO12 -> 0 | BP12: ='Total NF'!BP12-Govt!BP12 -> 369.9 | BQ12: ='Total NF'!BQ12-Govt!BQ12 -> 369 | BR12: ='Total NF'!BR12-Govt!BR12 -> 370.4 | BS12: ='Total NF'!BS12-Govt!BS12 -> 371.2 | BT12: ='Total NF'!BT12-Govt!BT12 -> 372.7 | BU12: ='Total NF'!BU12-Govt!BU12 -> 373.6 | BV12: ='Total NF'!BV12-Govt!BV12 -> 373 | BW12: ='Total NF'!BW12-Govt!BW12 -> 373.9 | BX12: ='Total NF'!BX12-Govt!BX12 -> 373.3 | BY12: ='Total NF'!BY12-Govt!BY12 -> 375.5 | BZ12: ='Total NF'!BZ12-Govt!BZ12 -> 377.1 | CA12: ='Total NF'!CA12-Govt!CA12 -> 377.5 | CB12: ='Total NF'!CB12-Govt!CB12 -> 379.7 | CC12: ='Total NF'!CC12-Govt!CC12 -> 380.6 | CD12: ='Total NF'!CD12-Govt!CD12 -> 379.9 | CE12: ='Total NF'!CE12-Govt!CE12 -> 379.5 | CF12: ='Total NF'!CF12-Govt!CF12 -> 381.9 | CG12: ='Total NF'!CG12-Govt!CG12 -> 382.5 | CH12: ='Total NF'!CH12-Govt!CH12 -> 384.6 | CI12: ='Total NF'!CI12-Govt!CI12 -> 383.8 | CJ12: ='Total NF'!CJ12-Govt!CJ12 -> 384.2 | CK12: ='Total NF'!CK12-Govt!CK12 -> 386.8 | CL12: ='Total NF'!CL12-Govt!CL12 -> 388.6 | CM12: ='Total NF'!CM12-Govt!CM12 -> 390.4 | CN12: ='Total NF'!CN12-Govt!CN12 -> 386.2 | CO12: ='Total NF'!CO12-Govt!CO12 -> 387.3 | CP12: ='Total NF'!CP12-Govt!CP12 -> 388 | CQ12: ='Total NF'!CQ12-Govt!CQ12 -> 387.8 | CR12: ='Total NF'!CR12-Govt!CR12 -> 386.3 | CS12: ='Total NF'!CS12-Govt!CS12 -> 387.7 | CT12: ='Total NF'!CT12-Govt!CT12 -> 388.8 | CU12: ='Total NF'!CU12-Govt!CU12 -> 389.1 | CV12: ='Total NF'!CV12-Govt!CV12 -> 388.7 | CW12: ='Total NF'!CW12-Govt!CW12 -> 388.3 | CX12: ='Total NF'!CX12-Govt!CX12 -> 388.7 | CY12: ='Total NF'!CY12-Govt!CY12 -> 389.4 | CZ12: ='Total NF'!CZ12-Govt!CZ12 -> 390.8 | DA12: ='Total NF'!DA12-Govt!DA12 -> 391 | DB12: ='Total NF'!DB12-Govt!DB12 -> 390.8 | DC12: ='Total NF'!DC12-Govt!DC12 -> 390.2 | DD12: ='Total NF'!DD12-Govt!DD12 -> 390.7 | DE12: ='Total NF'!DE12-Govt!DE12 -> 390 | DF12: ='Total NF'!DF12-Govt!DF12 -> 390.8 | DG12: ='Total NF'!DG12-Govt!DG12 -> 391.7 | DH12: ='Total NF'!DH12-Govt!DH12 -> 390.9 | DI12: ='Total NF'!DI12-Govt!DI12 -> 390.5 | DJ12: ='Total NF'!DJ12-Govt!DJ12 -> 389.2 | DK12: -1.3 | DL12: -0.003329065301 | DM12: 39 | DN12: 48 | DO12: 0.5 | DP12: 0.001286339079 | DQ12: 47 | DR12: 47 | DS12: -0.2 | DT12: -0.0005136106831 | DU12: 47 | DV12: 47 | DW12: 37.8 | DX12: 0.1075697211 | DY12: 44 | DZ12: 29
A13: Florida | B13: SMS12000004000000001 | C13: ='Total NF'!C13-Govt!C13 -> 6296.2 | D13: ='Total NF'!D13-Govt!D13 -> 6241.9 | E13: ='Total NF'!E13-Govt!E13 -> 6196.5 | F13: ='Total NF'!F13-Govt!F13 -> 6141.9 | G13: ='Total NF'!G13-Govt!G13 -> 6128.8 | H13: ='Total NF'!H13-Govt!H13 -> 6107.2 | I13: ='Total NF'!I13-Govt!I13 -> 6077.4 | J13: ='Total NF'!J13-Govt!J13 -> 6058.8 | K13: ='Total NF'!K13-Govt!K13 -> 6043 | L13: ='Total NF'!L13-Govt!L13 -> 6041.2 | M13: ='Total NF'!M13-Govt!M13 -> 6035.7 | N13: ='Total NF'!N13-Govt!N13 -> 6021 | P13: ='Total NF'!P13-Govt!P13 -> 6024.2 | Q13: ='Total NF'!Q13-Govt!Q13 -> 6024.5 | R13: ='Total NF'!R13-Govt!R13 -> 6029.3 | S13: ='Total NF'!S13-Govt!S13 -> 6036.8 | T13: ='Total NF'!T13-Govt!T13 -> 6049.2 | U13: ='Total NF'!U13-Govt!U13 -> 6059.7 | V13: ='Total NF'!V13-Govt!V13 -> 6070.9 | W13: ='Total NF'!W13-Govt!W13 -> 6074.1 | X13: ='Total NF'!X13-Govt!X13 -> 6058.8 | Y13: ='Total NF'!Y13-Govt!Y13 -> 6093.6 | Z13: ='Total NF'!Z13-Govt!Z13 -> 6092.3 | AA13: ='Total NF'!AA13-Govt!AA13 -> 6101.1 | AC13: ='Total NF'!AC13-Govt!AC13 -> 6110.9 | AD13: ='Total NF'!AD13-Govt!AD13 -> 6108.5 | AE13: ='Total NF'!AE13-Govt!AE13 -> 6116.2 | AF13: ='Total NF'!AF13-Govt!AF13 -> 6139.5 | AG13: ='Total NF'!AG13-Govt!AG13 -> 6141.5 | AH13: ='Total NF'!AH13-Govt!AH13 -> 6139.1 | AI13: ='Total NF'!AI13-Govt!AI13 -> 6167.8 | AJ13: ='Total NF'!AJ13-Govt!AJ13 -> 6172.2 | AK13: ='Total NF'!AK13-Govt!AK13 -> 6191.3 | AL13: ='Total NF'!AL13-Govt!AL13 -> 6191.8 | AM13: ='Total NF'!AM13-Govt!AM13 -> 6206.6 | AN13: ='Total NF'!AN13-Govt!AN13 -> 6219.5 | AP13: ='Total NF'!AP13-Govt!AP13 -> 6241.1 | AQ13: ='Total NF'!AQ13-Govt!AQ13 -> 6249.6 | AR13: ='Total NF'!AR13-Govt!AR13 -> 6267.5 | AS13: ='Total NF'!AS13-Govt!AS13 -> 6296 | AT13: ='Total NF'!AT13-Govt!AT13 -> 6299.5 | AU13: ='Total NF'!AU13-Govt!AU13 -> 6311.1 | AV13: ='Total NF'!AV13-Govt!AV13 -> 6318.1 | AW13: ='Total NF'!AW13-Govt!AW13 -> 6329 | AX13: ='Total NF'!AX13-Govt!AX13 -> 6344.8 | AY13: ='Total NF'!AY13-Govt!AY13 -> 6371.7 | AZ13: ='Total NF'!AZ13-Govt!AZ13 -> 6389.3 | BA13: ='Total NF'!BA13-Govt!BA13 -> 6392.8 | BC13: ='Total NF'!BC13-Govt!BC13 -> 6407.3 | BD13: ='Total NF'!BD13-Govt!BD13 -> 6429.3 | BE13: ='Total NF'!BE13-Govt!BE13 -> 6440.2 | BF13: ='Total NF'!BF13-Govt!BF13 -> 6452.7 | BG13: ='Total NF'!BG13-Govt!BG13 -> 6467.8 | BH13: ='Total NF'!BH13-Govt!BH13 -> 6486.2 | BI13: ='Total NF'!BI13-Govt!BI13 -> 6513.3 | BJ13: ='Total NF'!BJ13-Govt!BJ13 -> 6533.3 | BK13: ='Total NF'!BK13-Govt!BK13 -> 6546.6 | BL13: ='Total NF'!BL13-Govt!BL13 -> 6574 | BM13: ='Total NF'!BM13-Govt!BM13 -> 6589.9 | BN13: ='Total NF'!BN13-Govt!BN13 -> 6603.9 | BO13: ='Total NF'!BO13-Govt!BO13 -> 0 | BP13: ='Total NF'!BP13-Govt!BP13 -> 6632.3 | BQ13: ='Total NF'!BQ13-Govt!BQ13 -> 6650.1 | BR13: ='Total NF'!BR13-Govt!BR13 -> 6664.4 | BS13: ='Total NF'!BS13-Govt!BS13 -> 6693.9 | BT13: ='Total NF'!BT13-Govt!BT13 -> 6716 | BU13: ='Total NF'!BU13-Govt!BU13 -> 6731.6 | BV13: ='Total NF'!BV13-Govt!BV13 -> 6761 | BW13: ='Total NF'!BW13-Govt!BW13 -> 6786.2 | BX13: ='Total NF'!BX13-Govt!BX13 -> 6806.5 | BY13: ='Total NF'!BY13-Govt!BY13 -> 6834.5 | BZ13: ='Total NF'!BZ13-Govt!BZ13 -> 6866.8 | CA13: ='Total NF'!CA13-Govt!CA13 -> 6886.4 | CB13: ='Total NF'!CB13-Govt!CB13 -> 6904.4 | CC13: ='Total NF'!CC13-Govt!CC13 -> 6920.7 | CD13: ='Total NF'!CD13-Govt!CD13 -> 6936.3 | CE13: ='Total NF'!CE13-Govt!CE13 -> 6950.4 | CF13: ='Total NF'!CF13-Govt!CF13 -> 6979.1 | CG13: ='Total NF'!CG13-Govt!CG13 -> 7000.4 | CH13: ='Total NF'!CH13-Govt!CH13 -> 7028.6 | CI13: ='Total NF'!CI13-Govt!CI13 -> 7050.5 | CJ13: ='Total NF'!CJ13-Govt!CJ13 -> 7070 | CK13: ='Total NF'!CK13-Govt!CK13 -> 7095.2 | CL13: ='Total NF'!CL13-Govt!CL13 -> 7115.4 | CM13: ='Total NF'!CM13-Govt!CM13 -> 7124.7 | CN13: ='Total NF'!CN13-Govt!CN13 -> 7182.4 | CO13: ='Total NF'!CO13-Govt!CO13 -> 7206.3 | CP13: ='Total NF'!CP13-Govt!CP13 -> 7219.1 | CQ13: ='Total NF'!CQ13-Govt!CQ13 -> 7246.5 | CR13: ='Total NF'!CR13-Govt!CR13 -> 7260.7 | CS13: ='Total NF'!CS13-Govt!CS13 -> 7269.5 | CT13: ='Total NF'!CT13-Govt!CT13 -> 7310.6 | CU13: ='Total NF'!CU13-Govt!CU13 -> 7328.3 | CV13: ='Total NF'!CV13-Govt!CV13 -> 7352.7 | CW13: ='Total NF'!CW13-Govt!CW13 -> 7358.4 | CX13: ='Total NF'!CX13-Govt!CX13 -> 7382.9 | CY13: ='Total NF'!CY13-Govt!CY13 -> 7392.3 | CZ13: ='Total NF'!CZ13-Govt!CZ13 -> 7444.7 | DA13: ='Total NF'!DA13-Govt!DA13 -> 7451.2 | DB13: ='Total NF'!DB13-Govt!DB13 -> 7440.6 | DC13: ='Total NF'!DC13-Govt!DC13 -> 7455.1 | DD13: ='Total NF'!DD13-Govt!DD13 -> 7479.5 | DE13: ='Total NF'!DE13-Govt!DE13 -> 7496.3 | DF13: ='Total NF'!DF13-Govt!DF13 -> 7518.8 | DG13: ='Total NF'!DG13-Govt!DG13 -> 7537.7 | DH13: ='Total NF'!DH13-Govt!DH13 -> 7420.8 | DI13: ='Total NF'!DI13-Govt!DI13 -> 7551.8 | DJ13: ='Total NF'!DJ13-Govt!DJ13 -> 7565.7 | DK13: 13.9 | DL13: 0.001840620779 | DM13: 4 | DN13: 18 | DO13: 182.8 | DP13: 0.02475991819 | DQ13: 3 | DR13: 4 | DS13: 173.4 | DT13: 0.02345684023 | DU13: 3 | DV13: 3 | DW13: 1488.3 | DX13: 0.2448909073 | DY13: 3 | DZ13: 2
A14: Georgia | B14: SMS13000004000000001 | C14: ='Total NF'!C14-Govt!C14 -> 3286.4 | D14: ='Total NF'!D14-Govt!D14 -> 3259.5 | E14: ='Total NF'!E14-Govt!E14 -> 3231.7 | F14: ='Total NF'!F14-Govt!F14 -> 3209.1 | G14: ='Total NF'!G14-Govt!G14 -> 3199.7 | H14: ='Total NF'!H14-Govt!H14 -> 3188.4 | I14: ='Total NF'!I14-Govt!I14 -> 3170.9 | J14: ='Total NF'!J14-Govt!J14 -> 3162.7 | K14: ='Total NF'!K14-Govt!K14 -> 3149.5 | L14: ='Total NF'!L14-Govt!L14 -> 3151.9 | M14: ='Total NF'!M14-Govt!M14 -> 3151.4 | N14: ='Total NF'!N14-Govt!N14 -> 3144.3 | P14: ='Total NF'!P14-Govt!P14 -> 3141.6 | Q14: ='Total NF'!Q14-Govt!Q14 -> 3139.4 | R14: ='Total NF'!R14-Govt!R14 -> 3143.6 | S14: ='Total NF'!S14-Govt!S14 -> 3147.8 | T14: ='Total NF'!T14-Govt!T14 -> 3155.3 | U14: ='Total NF'!U14-Govt!U14 -> 3157.3 | V14: ='Total NF'!V14-Govt!V14 -> 3164.1 | W14: ='Total NF'!W14-Govt!W14 -> 3169.4 | X14: ='Total NF'!X14-Govt!X14 -> 3173.6 | Y14: ='Total NF'!Y14-Govt!Y14 -> 3183.4 | Z14: ='Total NF'!Z14-Govt!Z14 -> 3185.6 | AA14: ='Total NF'!AA14-Govt!AA14 -> 3184.2 | AC14: ='Total NF'!AC14-Govt!AC14 -> 3162.2 | AD14: ='Total NF'!AD14-Govt!AD14 -> 3199.4 | AE14: ='Total NF'!AE14-Govt!AE14 -> 3204.7 | AF14: ='Total NF'!AF14-Govt!AF14 -> 3218.5 | AG14: ='Total NF'!AG14-Govt!AG14 -> 3216.1 | AH14: ='Total NF'!AH14-Govt!AH14 -> 3216 | AI14: ='Total NF'!AI14-Govt!AI14 -> 3219.9 | AJ14: ='Total NF'!AJ14-Govt!AJ14 -> 3223.6 | AK14: ='Total NF'!AK14-Govt!AK14 -> 3230.4 | AL14: ='Total NF'!AL14-Govt!AL14 -> 3225 | AM14: ='Total NF'!AM14-Govt!AM14 -> 3231.8 | AN14: ='Total NF'!AN14-Govt!AN14 -> 3227.9 | AP14: ='Total NF'!AP14-Govt!AP14 -> 3239.8 | AQ14: ='Total NF'!AQ14-Govt!AQ14 -> 3244.6 | AR14: ='Total NF'!AR14-Govt!AR14 -> 3252.5 | AS14: ='Total NF'!AS14-Govt!AS14 -> 3259.7 | AT14: ='Total NF'!AT14-Govt!AT14 -> 3263.8 | AU14: ='Total NF'!AU14-Govt!AU14 -> 3268.7 | AV14: ='Total NF'!AV14-Govt!AV14 -> 3266.1 | AW14: ='Total NF'!AW14-Govt!AW14 -> 3270 | AX14: ='Total NF'!AX14-Govt!AX14 -> 3272.7 | AY14: ='Total NF'!AY14-Govt!AY14 -> 3287.7 | AZ14: ='Total NF'!AZ14-Govt!AZ14 -> 3296.5 | BA14: ='Total NF'!BA14-Govt!BA14 -> 3299.8 | BC14: ='Total NF'!BC14-Govt!BC14 -> 3311.6 | BD14: ='Total NF'!BD14-Govt!BD14 -> 3322 | BE14: ='Total NF'!BE14-Govt!BE14 -> 3325.9 | BF14: ='Total NF'!BF14-Govt!BF14 -> 3335 | BG14: ='Total NF'!BG14-Govt!BG14 -> 3338.6 | BH14: ='Total NF'!BH14-Govt!BH14 -> 3345.6 | BI14: ='Total NF'!BI14-Govt!BI14 -> 3356.8 | BJ14: ='Total NF'!BJ14-Govt!BJ14 -> 3365.2 | BK14: ='Total NF'!BK14-Govt!BK14 -> 3370.7 | BL14: ='Total NF'!BL14-Govt!BL14 -> 3374.5 | BM14: ='Total NF'!BM14-Govt!BM14 -> 3388.7 | BN14: ='Total NF'!BN14-Govt!BN14 -> 3394.7 | BO14: ='Total NF'!BO14-Govt!BO14 -> 0 | BP14: ='Total NF'!BP14-Govt!BP14 -> 3408.9 | BQ14: ='Total NF'!BQ14-Govt!BQ14 -> 3408.9 | BR14: ='Total NF'!BR14-Govt!BR14 -> 3431.7 | BS14: ='Total NF'!BS14-Govt!BS14 -> 3442.7 | BT14: ='Total NF'!BT14-Govt!BT14 -> 3453.2 | BU14: ='Total NF'!BU14-Govt!BU14 -> 3463.4 | BV14: ='Total NF'!BV14-Govt!BV14 -> 3477.1 | BW14: ='Total NF'!BW14-Govt!BW14 -> 3487.6 | BX14: ='Total NF'!BX14-Govt!BX14 -> 3497.9 | BY14: ='Total NF'!BY14-Govt!BY14 -> 3517.4 | BZ14: ='Total NF'!BZ14-Govt!BZ14 -> 3527.7 | CA14: ='Total NF'!CA14-Govt!CA14 -> 3539 | CB14: ='Total NF'!CB14-Govt!CB14 -> 3532 | CC14: ='Total NF'!CC14-Govt!CC14 -> 3547.2 | CD14: ='Total NF'!CD14-Govt!CD14 -> 3550.4 | CE14: ='Total NF'!CE14-Govt!CE14 -> 3551.7 | CF14: ='Total NF'!CF14-Govt!CF14 -> 3568.2 | CG14: ='Total NF'!CG14-Govt!CG14 -> 3584.9 | CH14: ='Total NF'!CH14-Govt!CH14 -> 3590.1 | CI14: ='Total NF'!CI14-Govt!CI14 -> 3599.7 | CJ14: ='Total NF'!CJ14-Govt!CJ14 -> 3606.9 | CK14: ='Total NF'!CK14-Govt!CK14 -> 3631.7 | CL14: ='Total NF'!CL14-Govt!CL14 -> 3642.2 | CM14: ='Total NF'!CM14-Govt!CM14 -> 3649 | CN14: ='Total NF'!CN14-Govt!CN14 -> 3646.1 | CO14: ='Total NF'!CO14-Govt!CO14 -> 3655.9 | CP14: ='Total NF'!CP14-Govt!CP14 -> 3658.3 | CQ14: ='Total NF'!CQ14-Govt!CQ14 -> 3669 | CR14: ='Total NF'!CR14-Govt!CR14 -> 3676.4 | CS14: ='Total NF'!CS14-Govt!CS14 -> 3685.8 | CT14: ='Total NF'!CT14-Govt!CT14 -> 3696 | CU14: ='Total NF'!CU14-Govt!CU14 -> 3703.8 | CV14: ='Total NF'!CV14-Govt!CV14 -> 3722.8 | CW14: ='Total NF'!CW14-Govt!CW14 -> 3731.4 | CX14: ='Total NF'!CX14-Govt!CX14 -> 3736 | CY14: ='Total NF'!CY14-Govt!CY14 -> 3744.6 | CZ14: ='Total NF'!CZ14-Govt!CZ14 -> 3747.1 | DA14: ='Total NF'!DA14-Govt!DA14 -> 3763.1 | DB14: ='Total NF'!DB14-Govt!DB14 -> 3777.6 | DC14: ='Total NF'!DC14-Govt!DC14 -> 3776 | DD14: ='Total NF'!DD14-Govt!DD14 -> 3774.8 | DE14: ='Total NF'!DE14-Govt!DE14 -> 3798.7 | DF14: ='Total NF'!DF14-Govt!DF14 -> 3789.7 | DG14: ='Total NF'!DG14-Govt!DG14 -> 3798.1 | DH14: ='Total NF'!DH14-Govt!DH14 -> 3796.5 | DI14: ='Total NF'!DI14-Govt!DI14 -> 3808.6 | DJ14: ='Total NF'!DJ14-Govt!DJ14 -> 3812.1 | DK14: 3.5 | DL14: 0.0009189728509 | DM14: 17 | DN14: 27 | DO14: 76.1 | DP14: 0.02036937901 | DQ14: 5 | DR14: 14 | DS14: 67.5 | DT14: 0.01802595738 | DU14: 5 | DV14: 12 | DW14: 641.2 | DX14: 0.2022138825 | DY14: 5 | DZ14: 11
A15: Hawaii | B15: SMS15000004000000001 | C15: ='Total NF'!C15-Govt!C15 -> 476.2 | D15: ='Total NF'!D15-Govt!D15 -> 473.9 | E15: ='Total NF'!E15-Govt!E15 -> 471.6 | F15: ='Total NF'!F15-Govt!F15 -> 467 | G15: ='Total NF'!G15-Govt!G15 -> 465.9 | H15: ='Total NF'!H15-Govt!H15 -> 465.8 | I15: ='Total NF'!I15-Govt!I15 -> 463 | J15: ='Total NF'!J15-Govt!J15 -> 462.2 | K15: ='Total NF'!K15-Govt!K15 -> 461.6 | L15: ='Total NF'!L15-Govt!L15 -> 462.1 | M15: ='Total NF'!M15-Govt!M15 -> 460.5 | N15: ='Total NF'!N15-Govt!N15 -> 459.3 | P15: ='Total NF'!P15-Govt!P15 -> 459.8 | Q15: ='Total NF'!Q15-Govt!Q15 -> 460.1 | R15: ='Total NF'!R15-Govt!R15 -> 459.8 | S15: ='Total NF'!S15-Govt!S15 -> 460.3 | T15: ='Total NF'!T15-Govt!T15 -> 461.2 | U15: ='Total NF'!U15-Govt!U15 -> 459.9 | V15: ='Total NF'!V15-Govt!V15 -> 460.3 | W15: ='Total NF'!W15-Govt!W15 -> 461.5 | X15: ='Total NF'!X15-Govt!X15 -> 462.6 | Y15: ='Total NF'!Y15-Govt!Y15 -> 464.7 | Z15: ='Total NF'!Z15-Govt!Z15 -> 464.6 | AA15: ='Total NF'!AA15-Govt!AA15 -> 465.7 | AC15: ='Total NF'!AC15-Govt!AC15 -> 464.6 | AD15: ='Total NF'!AD15-Govt!AD15 -> 466.6 | AE15: ='Total NF'!AE15-Govt!AE15 -> 468 | AF15: ='Total NF'!AF15-Govt!AF15 -> 466.4 | AG15: ='Total NF'!AG15-Govt!AG15 -> 466.2 | AH15: ='Total NF'!AH15-Govt!AH15 -> 465.4 | AI15: ='Total NF'!AI15-Govt!AI15 -> 468.6 | AJ15: ='Total NF'!AJ15-Govt!AJ15 -> 469.6 | AK15: ='Total NF'!AK15-Govt!AK15 -> 471.4 | AL15: ='Total NF'!AL15-Govt!AL15 -> 471.4 | AM15: ='Total NF'!AM15-Govt!AM15 -> 473.5 | AN15: ='Total NF'!AN15-Govt!AN15 -> 474.2 | AP15: ='Total NF'!AP15-Govt!AP15 -> 473.7 | AQ15: ='Total NF'!AQ15-Govt!AQ15 -> 474.5 | AR15: ='Total NF'!AR15-Govt!AR15 -> 474.5 | AS15: ='Total NF'!AS15-Govt!AS15 -> 477.8 | AT15: ='Total NF'!AT15-Govt!AT15 -> 479.6 | AU15: ='Total NF'!AU15-Govt!AU15 -> 480 | AV15: ='Total NF'!AV15-Govt!AV15 -> 481.1 | AW15: ='Total NF'!AW15-Govt!AW15 -> 483 | AX15: ='Total NF'!AX15-Govt!AX15 -> 484.1 | AY15: ='Total NF'!AY15-Govt!AY15 -> 485.4 | AZ15: ='Total NF'!AZ15-Govt!AZ15 -> 487.9 | BA15: ='Total NF'!BA15-Govt!BA15 -> 487.5 | BC15: ='Total NF'!BC15-Govt!BC15 -> 488.7 | BD15: ='Total NF'!BD15-Govt!BD15 -> 489.6 | BE15: ='Total NF'!BE15-Govt!BE15 -> 490.4 | BF15: ='Total NF'!BF15-Govt!BF15 -> 491.7 | BG15: ='Total NF'!BG15-Govt!BG15 -> 491.4 | BH15: ='Total NF'!BH15-Govt!BH15 -> 492 | BI15: ='Total NF'!BI15-Govt!BI15 -> 494.1 | BJ15: ='Total NF'!BJ15-Govt!BJ15 -> 494 | BK15: ='Total NF'!BK15-Govt!BK15 -> 494.1 | BL15: ='Total NF'!BL15-Govt!BL15 -> 494.6 | BM15: ='Total NF'!BM15-Govt!BM15 -> 496.5 | BN15: ='Total NF'!BN15-Govt!BN15 -> 497.5 | BO15: ='Total NF'!BO15-Govt!BO15 -> 0 | BP15: ='Total NF'!BP15-Govt!BP15 -> 497.7 | BQ15: ='Total NF'!BQ15-Govt!BQ15 -> 497.6 | BR15: ='Total NF'!BR15-Govt!BR15 -> 499.1 | BS15: ='Total NF'!BS15-Govt!BS15 -> 498.4 | BT15: ='Total NF'!BT15-Govt!BT15 -> 499.5 | BU15: ='Total NF'!BU15-Govt!BU15 -> 498.8 | BV15: ='Total NF'!BV15-Govt!BV15 -> 499.7 | BW15: ='Total NF'!BW15-Govt!BW15 -> 499.6 | BX15: ='Total NF'!BX15-Govt!BX15 -> 501.4 | BY15: ='Total NF'!BY15-Govt!BY15 -> 500.2 | BZ15: ='Total NF'!BZ15-Govt!BZ15 -> 501.2 | CA15: ='Total NF'!CA15-Govt!CA15 -> 501.2 | CB15: ='Total NF'!CB15-Govt!CB15 -> 506.3 | CC15: ='Total NF'!CC15-Govt!CC15 -> 507.5 | CD15: ='Total NF'!CD15-Govt!CD15 -> 508.4 | CE15: ='Total NF'!CE15-Govt!CE15 -> 507.8 | CF15: ='Total NF'!CF15-Govt!CF15 -> 508.8 | CG15: ='Total NF'!CG15-Govt!CG15 -> 510 | CH15: ='Total NF'!CH15-Govt!CH15 -> 510.7 | CI15: ='Total NF'!CI15-Govt!CI15 -> 511.3 | CJ15: ='Total NF'!CJ15-Govt!CJ15 -> 511.1 | CK15: ='Total NF'!CK15-Govt!CK15 -> 513 | CL15: ='Total NF'!CL15-Govt!CL15 -> 513.7 | CM15: ='Total NF'!CM15-Govt!CM15 -> 515.1 | CN15: ='Total NF'!CN15-Govt!CN15 -> 518 | CO15: ='Total NF'!CO15-Govt!CO15 -> 519.6 | CP15: ='Total NF'!CP15-Govt!CP15 -> 519.3 | CQ15: ='Total NF'!CQ15-Govt!CQ15 -> 520 | CR15: ='Total NF'!CR15-Govt!CR15 -> 520.2 | CS15: ='Total NF'!CS15-Govt!CS15 -> 519.2 | CT15: ='Total NF'!CT15-Govt!CT15 -> 522.6 | CU15: ='Total NF'!CU15-Govt!CU15 -> 523.9 | CV15: ='Total NF'!CV15-Govt!CV15 -> 524 | CW15: ='Total NF'!CW15-Govt!CW15 -> 524.1 | CX15: ='Total NF'!CX15-Govt!CX15 -> 523.4 | CY15: ='Total NF'!CY15-Govt!CY15 -> 525.7 | CZ15: ='Total NF'!CZ15-Govt!CZ15 -> 524.1 | DA15: ='Total NF'!DA15-Govt!DA15 -> 523.6 | DB15: ='Total NF'!DB15-Govt!DB15 -> 523.7 | DC15: ='Total NF'!DC15-Govt!DC15 -> 526.6 | DD15: ='Total NF'!DD15-Govt!DD15 -> 527.4 | DE15: ='Total NF'!DE15-Govt!DE15 -> 528.7 | DF15: ='Total NF'!DF15-Govt!DF15 -> 534.7 | DG15: ='Total NF'!DG15-Govt!DG15 -> 531.6 | DH15: ='Total NF'!DH15-Govt!DH15 -> 532.6 | DI15: ='Total NF'!DI15-Govt!DI15 -> 532.5 | DJ15: ='Total NF'!DJ15-Govt!DJ15 -> 532.7 | DK15: 0.2 | DL15: 0.0003755868545 | DM15: 35 | DN15: 34 | DO15: 9.3 | DP15: 0.01776843714 | DQ15: 36 | DR15: 17 | DS15: 7 | DT15: 0.01331557923 | DU15: 38 | DV15: 27 | DW15: 69.7 | DX15: 0.1505399568 | DY15: 38 | DZ15: 20
A16: Idaho | B16: SMS16000004000000001 | C16: ='Total NF'!C16-Govt!C16 -> 505.2 | D16: ='Total NF'!D16-Govt!D16 -> 501.7 | E16: ='Total NF'!E16-Govt!E16 -> 495.6 | F16: ='Total NF'!F16-Govt!F16 -> 489.9 | G16: ='Total NF'!G16-Govt!G16 -> 489.4 | H16: ='Total NF'!H16-Govt!H16 -> 488.4 | I16: ='Total NF'!I16-Govt!I16 -> 486.4 | J16: ='Total NF'!J16-Govt!J16 -> 485.7 | K16: ='Total NF'!K16-Govt!K16 -> 485.7 | L16: ='Total NF'!L16-Govt!L16 -> 485.6 | M16: ='Total NF'!M16-Govt!M16 -> 485.3 | N16: ='Total NF'!N16-Govt!N16 -> 484.4 | P16: ='Total NF'!P16-Govt!P16 -> 482.1 | Q16: ='Total NF'!Q16-Govt!Q16 -> 483 | R16: ='Total NF'!R16-Govt!R16 -> 483.8 | S16: ='Total NF'!S16-Govt!S16 -> 484.3 | T16: ='Total NF'!T16-Govt!T16 -> 484.3 | U16: ='Total NF'!U16-Govt!U16 -> 483.4 | V16: ='Total NF'!V16-Govt!V16 -> 484.7 | W16: ='Total NF'!W16-Govt!W16 -> 485.6 | X16: ='Total NF'!X16-Govt!X16 -> 484.6 | Y16: ='Total NF'!Y16-Govt!Y16 -> 487.9 | Z16: ='Total NF'!Z16-Govt!Z16 -> 488.7 | AA16: ='Total NF'!AA16-Govt!AA16 -> 488.1 | AC16: ='Total NF'!AC16-Govt!AC16 -> 490 | AD16: ='Total NF'!AD16-Govt!AD16 -> 489.4 | AE16: ='Total NF'!AE16-Govt!AE16 -> 488.3 | AF16: ='Total NF'!AF16-Govt!AF16 -> 491.1 | AG16: ='Total NF'!AG16-Govt!AG16 -> 491.1 | AH16: ='Total NF'!AH16-Govt!AH16 -> 491.2 | AI16: ='Total NF'!AI16-Govt!AI16 -> 493.8 | AJ16: ='Total NF'!AJ16-Govt!AJ16 -> 495.2 | AK16: ='Total NF'!AK16-Govt!AK16 -> 496.6 | AL16: ='Total NF'!AL16-Govt!AL16 -> 497.1 | AM16: ='Total NF'!AM16-Govt!AM16 -> 499.8 | AN16: ='Total NF'!AN16-Govt!AN16 -> 500.7 | AP16: ='Total NF'!AP16-Govt!AP16 -> 500.5 | AQ16: ='Total NF'!AQ16-Govt!AQ16 -> 501.3 | AR16: ='Total NF'!AR16-Govt!AR16 -> 502.4 | AS16: ='Total NF'!AS16-Govt!AS16 -> 501.3 | AT16: ='Total NF'!AT16-Govt!AT16 -> 503.1 | AU16: ='Total NF'!AU16-Govt!AU16 -> 503.6 | AV16: ='Total NF'!AV16-Govt!AV16 -> 504.4 | AW16: ='Total NF'!AW16-Govt!AW16 -> 505.2 | AX16: ='Total NF'!AX16-Govt!AX16 -> 506.7 | AY16: ='Total NF'!AY16-Govt!AY16 -> 509.2 | AZ16: ='Total NF'!AZ16-Govt!AZ16 -> 510.2 | BA16: ='Total NF'!BA16-Govt!BA16 -> 511.5 | BC16: ='Total NF'!BC16-Govt!BC16 -> 514.3 | BD16: ='Total NF'!BD16-Govt!BD16 -> 516.7 | BE16: ='Total NF'!BE16-Govt!BE16 -> 518.5 | BF16: ='Total NF'!BF16-Govt!BF16 -> 520.7 | BG16: ='Total NF'!BG16-Govt!BG16 -> 521.5 | BH16: ='Total NF'!BH16-Govt!BH16 -> 522.2 | BI16: ='Total NF'!BI16-Govt!BI16 -> 522.6 | BJ16: ='Total NF'!BJ16-Govt!BJ16 -> 522.7 | BK16: ='Total NF'!BK16-Govt!BK16 -> 522 | BL16: ='Total NF'!BL16-Govt!BL16 -> 521 | BM16: ='Total NF'!BM16-Govt!BM16 -> 519.5 | BN16: ='Total NF'!BN16-Govt!BN16 -> 518.7 | BO16: ='Total NF'!BO16-Govt!BO16 -> 0 | BP16: ='Total NF'!BP16-Govt!BP16 -> 530.4 | BQ16: ='Total NF'!BQ16-Govt!BQ16 -> 533 | BR16: ='Total NF'!BR16-Govt!BR16 -> 534.1 | BS16: ='Total NF'!BS16-Govt!BS16 -> 535.9 | BT16: ='Total NF'!BT16-Govt!BT16 -> 536.1 | BU16: ='Total NF'!BU16-Govt!BU16 -> 537 | BV16: ='Total NF'!BV16-Govt!BV16 -> 537.6 | BW16: ='Total NF'!BW16-Govt!BW16 -> 537.6 | BX16: ='Total NF'!BX16-Govt!BX16 -> 537.3 | BY16: ='Total NF'!BY16-Govt!BY16 -> 538.3 | BZ16: ='Total NF'!BZ16-Govt!BZ16 -> 538.7 | CA16: ='Total NF'!CA16-Govt!CA16 -> 538.9 | CB16: ='Total NF'!CB16-Govt!CB16 -> 545.4 | CC16: ='Total NF'!CC16-Govt!CC16 -> 546.6 | CD16: ='Total NF'!CD16-Govt!CD16 -> 549.3 | CE16: ='Total NF'!CE16-Govt!CE16 -> 550.3 | CF16: ='Total NF'!CF16-Govt!CF16 -> 551.2 | CG16: ='Total NF'!CG16-Govt!CG16 -> 553 | CH16: ='Total NF'!CH16-Govt!CH16 -> 554.1 | CI16: ='Total NF'!CI16-Govt!CI16 -> 554.6 | CJ16: ='Total NF'!CJ16-Govt!CJ16 -> 555.9 | CK16: ='Total NF'!CK16-Govt!CK16 -> 559.7 | CL16: ='Total NF'!CL16-Govt!CL16 -> 562.9 | CM16: ='Total NF'!CM16-Govt!CM16 -> 566.3 | CN16: ='Total NF'!CN16-Govt!CN16 -> 565.2 | CO16: ='Total NF'!CO16-Govt!CO16 -> 568.1 | CP16: ='Total NF'!CP16-Govt!CP16 -> 569.9 | CQ16: ='Total NF'!CQ16-Govt!CQ16 -> 571.3 | CR16: ='Total NF'!CR16-Govt!CR16 -> 571.3 | CS16: ='Total NF'!CS16-Govt!CS16 -> 572.7 | CT16: ='Total NF'!CT16-Govt!CT16 -> 575.5 | CU16: ='Total NF'!CU16-Govt!CU16 -> 576.9 | CV16: ='Total NF'!CV16-Govt!CV16 -> 577.8 | CW16: ='Total NF'!CW16-Govt!CW16 -> 579.7 | CX16: ='Total NF'!CX16-Govt!CX16 -> 582 | CY16: ='Total NF'!CY16-Govt!CY16 -> 584.9 | CZ16: ='Total NF'!CZ16-Govt!CZ16 -> 588.8 | DA16: ='Total NF'!DA16-Govt!DA16 -> 588.2 | DB16: ='Total NF'!DB16-Govt!DB16 -> 585.3 | DC16: ='Total NF'!DC16-Govt!DC16 -> 586.1 | DD16: ='Total NF'!DD16-Govt!DD16 -> 584.8 | DE16: ='Total NF'!DE16-Govt!DE16 -> 584.2 | DF16: ='Total NF'!DF16-Govt!DF16 -> 586.5 | DG16: ='Total NF'!DG16-Govt!DG16 -> 588.8 | DH16: ='Total NF'!DH16-Govt!DH16 -> 589.2 | DI16: ='Total NF'!DI16-Govt!DI16 -> 594.5 | DJ16: ='Total NF'!DJ16-Govt!DJ16 -> 594.9 | DK16: 0.4 | DL16: 0.0006728343146 | DM16: 33 | DN16: 31 | DO16: 12.9 | DP16: 0.02216494845 | DQ16: 34 | DR16: 8 | DS16: 10 | DT16: 0.01709693965 | DU16: 34 | DV16: 16 | DW16: 108.5 | DX16: 0.2230674342 | DY16: 31 | DZ16: 5
A17: Illinois | B17: SMS17000004000000001 | C17: ='Total NF'!C17-Govt!C17 -> 4946.8 | D17: ='Total NF'!D17-Govt!D17 -> 4912.2 | E17: ='Total NF'!E17-Govt!E17 -> 4871.6 | F17: ='Total NF'!F17-Govt!F17 -> 4816.2 | G17: ='Total NF'!G17-Govt!G17 -> 4806.6 | H17: ='Total NF'!H17-Govt!H17 -> 4785 | I17: ='Total NF'!I17-Govt!I17 -> 4766.8 | J17: ='Total NF'!J17-Govt!J17 -> 4756.2 | K17: ='Total NF'!K17-Govt!K17 -> 4743.8 | L17: ='Total NF'!L17-Govt!L17 -> 4734.8 | M17: ='Total NF'!M17-Govt!M17 -> 4735.8 | N17: ='Total NF'!N17-Govt!N17 -> 4728.2 | P17: ='Total NF'!P17-Govt!P17 -> 4727.8 | Q17: ='Total NF'!Q17-Govt!Q17 -> 4730.5 | R17: ='Total NF'!R17-Govt!R17 -> 4731.3 | S17: ='Total NF'!S17-Govt!S17 -> 4743.9 | T17: ='Total NF'!T17-Govt!T17 -> 4752.9 | U17: ='Total NF'!U17-Govt!U17 -> 4755.1 | V17: ='Total NF'!V17-Govt!V17 -> 4750.3 | W17: ='Total NF'!W17-Govt!W17 -> 4764.3 | X17: ='Total NF'!X17-Govt!X17 -> 4767.9 | Y17: ='Total NF'!Y17-Govt!Y17 -> 4789.4 | Z17: ='Total NF'!Z17-Govt!Z17 -> 4796.9 | AA17: ='Total NF'!AA17-Govt!AA17 -> 4798.5 | AC17: ='Total NF'!AC17-Govt!AC17 -> 4806.5 | AD17: ='Total NF'!AD17-Govt!AD17 -> 4809.8 | AE17: ='Total NF'!AE17-Govt!AE17 -> 4819.3 | AF17: ='Total NF'!AF17-Govt!AF17 -> 4827.5 | AG17: ='Total NF'!AG17-Govt!AG17 -> 4830.4 | AH17: ='Total NF'!AH17-Govt!AH17 -> 4833.9 | AI17: ='Total NF'!AI17-Govt!AI17 -> 4842.1 | AJ17: ='Total NF'!AJ17-Govt!AJ17 -> 4851.4 | AK17: ='Total NF'!AK17-Govt!AK17 -> 4856.3 | AL17: ='Total NF'!AL17-Govt!AL17 -> 4857.4 | AM17: ='Total NF'!AM17-Govt!AM17 -> 4861.5 | AN17: ='Total NF'!AN17-Govt!AN17 -> 4867 | AP17: ='Total NF'!AP17-Govt!AP17 -> 4886.5 | AQ17: ='Total NF'!AQ17-Govt!AQ17 -> 4892.1 | AR17: ='Total NF'!AR17-Govt!AR17 -> 4906.9 | AS17: ='Total NF'!AS17-Govt!AS17 -> 4910 | AT17: ='Total NF'!AT17-Govt!AT17 -> 4909.5 | AU17: ='Total NF'!AU17-Govt!AU17 -> 4916.7 | AV17: ='Total NF'!AV17-Govt!AV17 -> 4919.3 | AW17: ='Total NF'!AW17-Govt!AW17 -> 4923 | AX17: ='Total NF'!AX17-Govt!AX17 -> 4931.5 | AY17: ='Total NF'!AY17-Govt!AY17 -> 4929.6 | AZ17: ='Total NF'!AZ17-Govt!AZ17 -> 4940.4 | BA17: ='Total NF'!BA17-Govt!BA17 -> 4944.6 | BC17: ='Total NF'!BC17-Govt!BC17 -> 4945.9 | BD17: ='Total NF'!BD17-Govt!BD17 -> 4957.7 | BE17: ='Total NF'!BE17-Govt!BE17 -> 4954.8 | BF17: ='Total NF'!BF17-Govt!BF17 -> 4948.7 | BG17: ='Total NF'!BG17-Govt!BG17 -> 4958.7 | BH17: ='Total NF'!BH17-Govt!BH17 -> 4964.7 | BI17: ='Total NF'!BI17-Govt!BI17 -> 4962.2 | BJ17: ='Total NF'!BJ17-Govt!BJ17 -> 4970 | BK17: ='Total NF'!BK17-Govt!BK17 -> 4968.3 | BL17: ='Total NF'!BL17-Govt!BL17 -> 4986.9 | BM17: ='Total NF'!BM17-Govt!BM17 -> 4995.1 | BN17: ='Total NF'!BN17-Govt!BN17 -> 4995.9 | BO17: ='Total NF'!BO17-Govt!BO17 -> 0 | BP17: ='Total NF'!BP17-Govt!BP17 -> 5008.4 | BQ17: ='Total NF'!BQ17-Govt!BQ17 -> 5011.8 | BR17: ='Total NF'!BR17-Govt!BR17 -> 5019 | BS17: ='Total NF'!BS17-Govt!BS17 -> 5030.5 | BT17: ='Total NF'!BT17-Govt!BT17 -> 5040.8 | BU17: ='Total NF'!BU17-Govt!BU17 -> 5044.8 | BV17: ='Total NF'!BV17-Govt!BV17 -> 5046.6 | BW17: ='Total NF'!BW17-Govt!BW17 -> 5050.9 | BX17: ='Total NF'!BX17-Govt!BX17 -> 5053.7 | BY17: ='Total NF'!BY17-Govt!BY17 -> 5054.3 | BZ17: ='Total NF'!BZ17-Govt!BZ17 -> 5060.1 | CA17: ='Total NF'!CA17-Govt!CA17 -> 5075.8 | CB17: ='Total NF'!CB17-Govt!CB17 -> 5090.5 | CC17: ='Total NF'!CC17-Govt!CC17 -> 5099.8 | CD17: ='Total NF'!CD17-Govt!CD17 -> 5100.8 | CE17: ='Total NF'!CE17-Govt!CE17 -> 5115.9 | CF17: ='Total NF'!CF17-Govt!CF17 -> 5130.3 | CG17: ='Total NF'!CG17-Govt!CG17 -> 5133.5 | CH17: ='Total NF'!CH17-Govt!CH17 -> 5141.4 | CI17: ='Total NF'!CI17-Govt!CI17 -> 5139 | CJ17: ='Total NF'!CJ17-Govt!CJ17 -> 5143 | CK17: ='Total NF'!CK17-Govt!CK17 -> 5159.1 | CL17: ='Total NF'!CL17-Govt!CL17 -> 5150.2 | CM17: ='Total NF'!CM17-Govt!CM17 -> 5141.6 | CN17: ='Total NF'!CN17-Govt!CN17 -> 5178.3 | CO17: ='Total NF'!CO17-Govt!CO17 -> 5180.4 | CP17: ='Total NF'!CP17-Govt!CP17 -> 5181 | CQ17: ='Total NF'!CQ17-Govt!CQ17 -> 5180.8 | CR17: ='Total NF'!CR17-Govt!CR17 -> 5172.6 | CS17: ='Total NF'!CS17-Govt!CS17 -> 5169.5 | CT17: ='Total NF'!CT17-Govt!CT17 -> 5188.6 | CU17: ='Total NF'!CU17-Govt!CU17 -> 5191.5 | CV17: ='Total NF'!CV17-Govt!CV17 -> 5197.5 | CW17: ='Total NF'!CW17-Govt!CW17 -> 5189.8 | CX17: ='Total NF'!CX17-Govt!CX17 -> 5187.7 | CY17: ='Total NF'!CY17-Govt!CY17 -> 5189.7 | CZ17: ='Total NF'!CZ17-Govt!CZ17 -> 5199.9 | DA17: ='Total NF'!DA17-Govt!DA17 -> 5217.3 | DB17: ='Total NF'!DB17-Govt!DB17 -> 5211.7 | DC17: ='Total NF'!DC17-Govt!DC17 -> 5203.8 | DD17: ='Total NF'!DD17-Govt!DD17 -> 5218 | DE17: ='Total NF'!DE17-Govt!DE17 -> 5223 | DF17: ='Total NF'!DF17-Govt!DF17 -> 5222.6 | DG17: ='Total NF'!DG17-Govt!DG17 -> 5219.3 | DH17: ='Total NF'!DH17-Govt!DH17 -> 5211.9 | DI17: ='Total NF'!DI17-Govt!DI17 -> 5219.9 | DJ17: ='Total NF'!DJ17-Govt!DJ17 -> 5221.6 | DK17: 1.7 | DL17: 0.0003256767371 | DM17: 26 | DN17: 35 | DO17: 33.9 | DP17: 0.006534687819 | DQ17: 21 | DR17: 40 | DS17: 31.9 | DT17: 0.006146790759 | DU17: 20 | DV17: 40 | DW17: 454.8 | DX17: 0.0954099186 | DY17: 10 | DZ17: 35
A18: Indiana | B18: SMS18000004000000001 | C18: ='Total NF'!C18-Govt!C18 -> 2421.2 | D18: ='Total NF'!D18-Govt!D18 -> 2407.3 | E18: ='Total NF'!E18-Govt!E18 -> 2382 | F18: ='Total NF'!F18-Govt!F18 -> 2357.4 | G18: ='Total NF'!G18-Govt!G18 -> 2345.4 | H18: ='Total NF'!H18-Govt!H18 -> 2338 | I18: ='Total NF'!I18-Govt!I18 -> 2323.2 | J18: ='Total NF'!J18-Govt!J18 -> 2327.7 | K18: ='Total NF'!K18-Govt!K18 -> 2334.9 | L18: ='Total NF'!L18-Govt!L18 -> 2333 | M18: ='Total NF'!M18-Govt!M18 -> 2342.7 | N18: ='Total NF'!N18-Govt!N18 -> 2339.7 | P18: ='Total NF'!P18-Govt!P18 -> 2342.5 | Q18: ='Total NF'!Q18-Govt!Q18 -> 2342 | R18: ='Total NF'!R18-Govt!R18 -> 2347.6 | S18: ='Total NF'!S18-Govt!S18 -> 2357 | T18: ='Total NF'!T18-Govt!T18 -> 2359.8 | U18: ='Total NF'!U18-Govt!U18 -> 2362.8 | V18: ='Total NF'!V18-Govt!V18 -> 2372.8 | W18: ='Total NF'!W18-Govt!W18 -> 2374.6 | X18: ='Total NF'!X18-Govt!X18 -> 2373.9 | Y18: ='Total NF'!Y18-Govt!Y18 -> 2383.3 | Z18: ='Total NF'!Z18-Govt!Z18 -> 2384.4 | AA18: ='Total NF'!AA18-Govt!AA18 -> 2389.4 | AC18: ='Total NF'!AC18-Govt!AC18 -> 2398.2 | AD18: ='Total NF'!AD18-Govt!AD18 -> 2402.8 | AE18: ='Total NF'!AE18-Govt!AE18 -> 2409.5 | AF18: ='Total NF'!AF18-Govt!AF18 -> 2411.1 | AG18: ='Total NF'!AG18-Govt!AG18 -> 2415.2 | AH18: ='Total NF'!AH18-Govt!AH18 -> 2412.1 | AI18: ='Total NF'!AI18-Govt!AI18 -> 2421.3 | AJ18: ='Total NF'!AJ18-Govt!AJ18 -> 2425.6 | AK18: ='Total NF'!AK18-Govt!AK18 -> 2435 | AL18: ='Total NF'!AL18-Govt!AL18 -> 2437.5 | AM18: ='Total NF'!AM18-Govt!AM18 -> 2438.9 | AN18: ='Total NF'!AN18-Govt!AN18 -> 2447.5 | AP18: ='Total NF'!AP18-Govt!AP18 -> 2457.2 | AQ18: ='Total NF'!AQ18-Govt!AQ18 -> 2467.6 | AR18: ='Total NF'!AR18-Govt!AR18 -> 2472.4 | AS18: ='Total NF'!AS18-Govt!AS18 -> 2465.5 | AT18: ='Total NF'!AT18-Govt!AT18 -> 2468.2 | AU18: ='Total NF'!AU18-Govt!AU18 -> 2473.3 | AV18: ='Total NF'!AV18-Govt!AV18 -> 2472.3 | AW18: ='Total NF'!AW18-Govt!AW18 -> 2474 | AX18: ='Total NF'!AX18-Govt!AX18 -> 2480.5 | AY18: ='Total NF'!AY18-Govt!AY18 -> 2482.2 | AZ18: ='Total NF'!AZ18-Govt!AZ18 -> 2486.9 | BA18: ='Total NF'!BA18-Govt!BA18 -> 2492.1 | BC18: ='Total NF'!BC18-Govt!BC18 -> 2491.4 | BD18: ='Total NF'!BD18-Govt!BD18 -> 2500 | BE18: ='Total NF'!BE18-Govt!BE18 -> 2497.6 | BF18: ='Total NF'!BF18-Govt!BF18 -> 2499.9 | BG18: ='Total NF'!BG18-Govt!BG18 -> 2502 | BH18: ='Total NF'!BH18-Govt!BH18 -> 2507.8 | BI18: ='Total NF'!BI18-Govt!BI18 -> 2505.1 | BJ18: ='Total NF'!BJ18-Govt!BJ18 -> 2515 | BK18: ='Total NF'!BK18-Govt!BK18 -> 2515.3 | BL18: ='Total NF'!BL18-Govt!BL18 -> 2530 | BM18: ='Total NF'!BM18-Govt!BM18 -> 2541.6 | BN18: ='Total NF'!BN18-Govt!BN18 -> 2542.9 | BO18: ='Total NF'!BO18-Govt!BO18 -> 0 | BP18: ='Total NF'!BP18-Govt!BP18 -> 2534.5 | BQ18: ='Total NF'!BQ18-Govt!BQ18 -> 2535.9 | BR18: ='Total NF'!BR18-Govt!BR18 -> 2538.5 | BS18: ='Total NF'!BS18-Govt!BS18 -> 2547.5 | BT18: ='Total NF'!BT18-Govt!BT18 -> 2553.4 | BU18: ='Total NF'!BU18-Govt!BU18 -> 2555.4 | BV18: ='Total NF'!BV18-Govt!BV18 -> 2555 | BW18: ='Total NF'!BW18-Govt!BW18 -> 2554.8 | BX18: ='Total NF'!BX18-Govt!BX18 -> 2558.6 | BY18: ='Total NF'!BY18-Govt!BY18 -> 2571.3 | BZ18: ='Total NF'!BZ18-Govt!BZ18 -> 2577.7 | CA18: ='Total NF'!CA18-Govt!CA18 -> 2582.9 | CB18: ='Total NF'!CB18-Govt!CB18 -> 2590.3 | CC18: ='Total NF'!CC18-Govt!CC18 -> 2596.4 | CD18: ='Total NF'!CD18-Govt!CD18 -> 2594.9 | CE18: ='Total NF'!CE18-Govt!CE18 -> 2598.4 | CF18: ='Total NF'!CF18-Govt!CF18 -> 2602.4 | CG18: ='Total NF'!CG18-Govt!CG18 -> 2604.7 | CH18: ='Total NF'!CH18-Govt!CH18 -> 2613.3 | CI18: ='Total NF'!CI18-Govt!CI18 -> 2613.3 | CJ18: ='Total NF'!CJ18-Govt!CJ18 -> 2613.3 | CK18: ='Total NF'!CK18-Govt!CK18 -> 2622.2 | CL18: ='Total NF'!CL18-Govt!CL18 -> 2624.4 | CM18: ='Total NF'!CM18-Govt!CM18 -> 2633.1 | CN18: ='Total NF'!CN18-Govt!CN18 -> 2639.9 | CO18: ='Total NF'!CO18-Govt!CO18 -> 2646.8 | CP18: ='Total NF'!CP18-Govt!CP18 -> 2645 | CQ18: ='Total NF'!CQ18-Govt!CQ18 -> 2647.5 | CR18: ='Total NF'!CR18-Govt!CR18 -> 2644.7 | CS18: ='Total NF'!CS18-Govt!CS18 -> 2646.9 | CT18: ='Total NF'!CT18-Govt!CT18 -> 2661.5 | CU18: ='Total NF'!CU18-Govt!CU18 -> 2658.2 | CV18: ='Total NF'!CV18-Govt!CV18 -> 2668.8 | CW18: ='Total NF'!CW18-Govt!CW18 -> 2669 | CX18: ='Total NF'!CX18-Govt!CX18 -> 2676.9 | CY18: ='Total NF'!CY18-Govt!CY18 -> 2673.3 | CZ18: ='Total NF'!CZ18-Govt!CZ18 -> 2675.6 | DA18: ='Total NF'!DA18-Govt!DA18 -> 2685.8 | DB18: ='Total NF'!DB18-Govt!DB18 -> 2685.5 | DC18: ='Total NF'!DC18-Govt!DC18 -> 2678.3 | DD18: ='Total NF'!DD18-Govt!DD18 -> 2682.5 | DE18: ='Total NF'!DE18-Govt!DE18 -> 2686.3 | DF18: ='Total NF'!DF18-Govt!DF18 -> 2688.5 | DG18: ='Total NF'!DG18-Govt!DG18 -> 2685.5 | DH18: ='Total NF'!DH18-Govt!DH18 -> 2689.1 | DI18: ='Total NF'!DI18-Govt!DI18 -> 2694.8 | DJ18: ='Total NF'!DJ18-Govt!DJ18 -> 2690.6 | DK18: -4.2 | DL18: -0.001558557221 | DM18: 49 | DN18: 43 | DO18: 13.7 | DP18: 0.005117860211 | DQ18: 31 | DR18: 42 | DS18: 17.3 | DT18: 0.006471402387 | DU18: 30 | DV18: 39 | DW18: 367.4 | DX18: 0.1581439394 | DY18: 15 | DZ18: 19
A19: Iowa | B19: SMS19000004000000001 | C19: ='Total NF'!C19-Govt!C19 -> 1248.5 | D19: ='Total NF'!D19-Govt!D19 -> 1244.7 | E19: ='Total NF'!E19-Govt!E19 -> 1235.4 | F19: ='Total NF'!F19-Govt!F19 -> 1226.1 | G19: ='Total NF'!G19-Govt!G19 -> 1225 | H19: ='Total NF'!H19-Govt!H19 -> 1221.8 | I19: ='Total NF'!I19-Govt!I19 -> 1216.7 | J19: ='Total NF'!J19-Govt!J19 -> 1218 | K19: ='Total NF'!K19-Govt!K19 -> 1216.6 | L19: ='Total NF'!L19-Govt!L19 -> 1213.8 | M19: ='Total NF'!M19-Govt!M19 -> 1213.2 | N19: ='Total NF'!N19-Govt!N19 -> 1209.6 | P19: ='Total NF'!P19-Govt!P19 -> 1211.7 | Q19: ='Total NF'!Q19-Govt!Q19 -> 1212 | R19: ='Total NF'!R19-Govt!R19 -> 1213.2 | S19: ='Total NF'!S19-Govt!S19 -> 1217.3 | T19: ='Total NF'!T19-Govt!T19 -> 1215.8 | U19: ='Total NF'!U19-Govt!U19 -> 1215.6 | V19: ='Total NF'!V19-Govt!V19 -> 1214.7 | W19: ='Total NF'!W19-Govt!W19 -> 1214.8 | X19: ='Total NF'!X19-Govt!X19 -> 1215 | Y19: ='Total NF'!Y19-Govt!Y19 -> 1220.8 | Z19: ='Total NF'!Z19-Govt!Z19 -> 1221.2 | AA19: ='Total NF'!AA19-Govt!AA19 -> 1222.3 | AC19: ='Total NF'!AC19-Govt!AC19 -> 1224 | AD19: ='Total NF'!AD19-Govt!AD19 -> 1224.8 | AE19: ='Total NF'!AE19-Govt!AE19 -> 1225.9 | AF19: ='Total NF'!AF19-Govt!AF19 -> 1230 | AG19: ='Total NF'!AG19-Govt!AG19 -> 1231.3 | AH19: ='Total NF'!AH19-Govt!AH19 -> 1229.8 | AI19: ='Total NF'!AI19-Govt!AI19 -> 1231.8 | AJ19: ='Total NF'!AJ19-Govt!AJ19 -> 1234.6 | AK19: ='Total NF'!AK19-Govt!AK19 -> 1239.5 | AL19: ='Total NF'!AL19-Govt!AL19 -> 1240.2 | AM19: ='Total NF'!AM19-Govt!AM19 -> 1242.3 | AN19: ='Total NF'!AN19-Govt!AN19 -> 1243.4 | AP19: ='Total NF'!AP19-Govt!AP19 -> 1245.8 | AQ19: ='Total NF'!AQ19-Govt!AQ19 -> 1249.1 | AR19: ='Total NF'!AR19-Govt!AR19 -> 1253.9 | AS19: ='Total NF'!AS19-Govt!AS19 -> 1255.1 | AT19: ='Total NF'!AT19-Govt!AT19 -> 1254.6 | AU19: ='Total NF'!AU19-Govt!AU19 -> 1254.6 | AV19: ='Total NF'!AV19-Govt!AV19 -> 1255 | AW19: ='Total NF'!AW19-Govt!AW19 -> 1255.4 | AX19: ='Total NF'!AX19-Govt!AX19 -> 1257.6 | AY19: ='Total NF'!AY19-Govt!AY19 -> 1259 | AZ19: ='Total NF'!AZ19-Govt!AZ19 -> 1260.7 | BA19: ='Total NF'!BA19-Govt!BA19 -> 1261.4 | BC19: ='Total NF'!BC19-Govt!BC19 -> 1264.5 | BD19: ='Total NF'!BD19-Govt!BD19 -> 1267.6 | BE19: ='Total NF'!BE19-Govt!BE19 -> 1266.7 | BF19: ='Total NF'!BF19-Govt!BF19 -> 1266.5 | BG19: ='Total NF'!BG19-Govt!BG19 -> 1268.9 | BH19: ='Total NF'!BH19-Govt!BH19 -> 1274 | BI19: ='Total NF'!BI19-Govt!BI19 -> 1275.7 | BJ19: ='Total NF'!BJ19-Govt!BJ19 -> 1277.8 | BK19: ='Total NF'!BK19-Govt!BK19 -> 1277.9 | BL19: ='Total NF'!BL19-Govt!BL19 -> 1284.4 | BM19: ='Total NF'!BM19-Govt!BM19 -> 1286.2 | BN19: ='Total NF'!BN19-Govt!BN19 -> 1287.6 | BO19: ='Total NF'!BO19-Govt!BO19 -> 0 | BP19: ='Total NF'!BP19-Govt!BP19 -> 1283.2 | BQ19: ='Total NF'!BQ19-Govt!BQ19 -> 1285.4 | BR19: ='Total NF'!BR19-Govt!BR19 -> 1286.3 | BS19: ='Total NF'!BS19-Govt!BS19 -> 1291 | BT19: ='Total NF'!BT19-Govt!BT19 -> 1292.7 | BU19: ='Total NF'!BU19-Govt!BU19 -> 1294.5 | BV19: ='Total NF'!BV19-Govt!BV19 -> 1291.9 | BW19: ='Total NF'!BW19-Govt!BW19 -> 1293.1 | BX19: ='Total NF'!BX19-Govt!BX19 -> 1293.2 | BY19: ='Total NF'!BY19-Govt!BY19 -> 1296.7 | BZ19: ='Total NF'!BZ19-Govt!BZ19 -> 1299.3 | CA19: ='Total NF'!CA19-Govt!CA19 -> 1301.4 | CB19: ='Total NF'!CB19-Govt!CB19 -> 1302.6 | CC19: ='Total NF'!CC19-Govt!CC19 -> 1303 | CD19: ='Total NF'!CD19-Govt!CD19 -> 1304.7 | CE19: ='Total NF'!CE19-Govt!CE19 -> 1305.6 | CF19: ='Total NF'!CF19-Govt!CF19 -> 1305.3 | CG19: ='Total NF'!CG19-Govt!CG19 -> 1306.8 | CH19: ='Total NF'!CH19-Govt!CH19 -> 1307.3 | CI19: ='Total NF'!CI19-Govt!CI19 -> 1305.4 | CJ19: ='Total NF'!CJ19-Govt!CJ19 -> 1304.2 | CK19: ='Total NF'!CK19-Govt!CK19 -> 1310.2 | CL19: ='Total NF'!CL19-Govt!CL19 -> 1314.4 | CM19: ='Total NF'!CM19-Govt!CM19 -> 1319.1 | CN19: ='Total NF'!CN19-Govt!CN19 -> 1311.3 | CO19: ='Total NF'!CO19-Govt!CO19 -> 1312.5 | CP19: ='Total NF'!CP19-Govt!CP19 -> 1315.4 | CQ19: ='Total NF'!CQ19-Govt!CQ19 -> 1314.1 | CR19: ='Total NF'!CR19-Govt!CR19 -> 1310.7 | CS19: ='Total NF'!CS19-Govt!CS19 -> 1308.1 | CT19: ='Total NF'!CT19-Govt!CT19 -> 1314.1 | CU19: ='Total NF'!CU19-Govt!CU19 -> 1314.1 | CV19: ='Total NF'!CV19-Govt!CV19 -> 1313.4 | CW19: ='Total NF'!CW19-Govt!CW19 -> 1314.5 | CX19: ='Total NF'!CX19-Govt!CX19 -> 1312.3 | CY19: ='Total NF'!CY19-Govt!CY19 -> 1313.3 | CZ19: ='Total NF'!CZ19-Govt!CZ19 -> 1319.1 | DA19: ='Total NF'!DA19-Govt!DA19 -> 1324.2 | DB19: ='Total NF'!DB19-Govt!DB19 -> 1323.4 | DC19: ='Total NF'!DC19-Govt!DC19 -> 1321.9 | DD19: ='Total NF'!DD19-Govt!DD19 -> 1325.9 | DE19: ='Total NF'!DE19-Govt!DE19 -> 1330.3 | DF19: ='Total NF'!DF19-Govt!DF19 -> 1331 | DG19: ='Total NF'!DG19-Govt!DG19 -> 1332 | DH19: ='Total NF'!DH19-Govt!DH19 -> 1329.2 | DI19: ='Total NF'!DI19-Govt!DI19 -> 1327.9 | DJ19: ='Total NF'!DJ19-Govt!DJ19 -> 1334.6 | DK19: 6.7 | DL19: 0.00504556066 | DM19: 10 | DN19: 1 | DO19: 22.3 | DP19: 0.01699306561 | DQ19: 28 | DR19: 23 | DS19: 21.3 | DT19: 0.01621868575 | DU19: 28 | DV19: 17 | DW19: 117.9 | DX19: 0.09690145475 | DY19: 30 | DZ19: 34
A20: Kansas | B20: SMS20000004000000001 | C20: ='Total NF'!C20-Govt!C20 -> 1116.7 | D20: ='Total NF'!D20-Govt!D20 -> 1108.5 | E20: ='Total NF'!E20-Govt!E20 -> 1100.1 | F20: ='Total NF'!F20-Govt!F20 -> 1088.1 | G20: ='Total NF'!G20-Govt!G20 -> 1081.9 | H20: ='Total NF'!H20-Govt!H20 -> 1078.2 | I20: ='Total NF'!I20-Govt!I20 -> 1074.9 | J20: ='Total NF'!J20-Govt!J20 -> 1072.5 | K20: ='Total NF'!K20-Govt!K20 -> 1069.5 | L20: ='Total NF'!L20-Govt!L20 -> 1064.2 | M20: ='Total NF'!M20-Govt!M20 -> 1064.8 | N20: ='Total NF'!N20-Govt!N20 -> 1062 | P20: ='Total NF'!P20-Govt!P20 -> 1060.8 | Q20: ='Total NF'!Q20-Govt!Q20 -> 1059.5 | R20: ='Total NF'!R20-Govt!R20 -> 1059.9 | S20: ='Total NF'!S20-Govt!S20 -> 1064.8 | T20: ='Total NF'!T20-Govt!T20 -> 1064.8 | U20: ='Total NF'!U20-Govt!U20 -> 1065.2 | V20: ='Total NF'!V20-Govt!V20 -> 1067.8 | W20: ='Total NF'!W20-Govt!W20 -> 1068.1 | X20: ='Total NF'!X20-Govt!X20 -> 1065.4 | Y20: ='Total NF'!Y20-Govt!Y20 -> 1073.4 | Z20: ='Total NF'!Z20-Govt!Z20 -> 1072.2 | AA20: ='Total NF'!AA20-Govt!AA20 -> 1072.4 | AC20: ='Total NF'!AC20-Govt!AC20 -> 1074.2 | AD20: ='Total NF'!AD20-Govt!AD20 -> 1072 | AE20: ='Total NF'!AE20-Govt!AE20 -> 1073.8 | AF20: ='Total NF'!AF20-Govt!AF20 -> 1078.9 | AG20: ='Total NF'!AG20-Govt!AG20 -> 1079.6 | AH20: ='Total NF'!AH20-Govt!AH20 -> 1075.1 | AI20: ='Total NF'!AI20-Govt!AI20 -> 1080.2 | AJ20: ='Total NF'!AJ20-Govt!AJ20 -> 1081.9 | AK20: ='Total NF'!AK20-Govt!AK20 -> 1082.5 | AL20: ='Total NF'!AL20-Govt!AL20 -> 1084.8 | AM20: ='Total NF'!AM20-Govt!AM20 -> 1085.6 | AN20: ='Total NF'!AN20-Govt!AN20 -> 1084.7 | AP20: ='Total NF'!AP20-Govt!AP20 -> 1094.7 | AQ20: ='Total NF'!AQ20-Govt!AQ20 -> 1095.9 | AR20: ='Total NF'!AR20-Govt!AR20 -> 1099.8 | AS20: ='Total NF'!AS20-Govt!AS20 -> 1096.3 | AT20: ='Total NF'!AT20-Govt!AT20 -> 1097.3 | AU20: ='Total NF'!AU20-Govt!AU20 -> 1100.7 | AV20: ='Total NF'!AV20-Govt!AV20 -> 1096.2 | AW20: ='Total NF'!AW20-Govt!AW20 -> 1097.8 | AX20: ='Total NF'!AX20-Govt!AX20 -> 1099.4 | AY20: ='Total NF'!AY20-Govt!AY20 -> 1101.8 | AZ20: ='Total NF'!AZ20-Govt!AZ20 -> 1103.5 | BA20: ='Total NF'!BA20-Govt!BA20 -> 1104.4 | BC20: ='Total NF'!BC20-Govt!BC20 -> 1106.4 | BD20: ='Total NF'!BD20-Govt!BD20 -> 1108.9 | BE20: ='Total NF'!BE20-Govt!BE20 -> 1108.4 | BF20: ='Total NF'!BF20-Govt!BF20 -> 1111.1 | BG20: ='Total NF'!BG20-Govt!BG20 -> 1112.8 | BH20: ='Total NF'!BH20-Govt!BH20 -> 1114.3 | BI20: ='Total NF'!BI20-Govt!BI20 -> 1117.5 | BJ20: ='Total NF'!BJ20-Govt!BJ20 -> 1119.6 | BK20: ='Total NF'!BK20-Govt!BK20 -> 1121.2 | BL20: ='Total NF'!BL20-Govt!BL20 -> 1123.9 | BM20: ='Total NF'!BM20-Govt!BM20 -> 1126.4 | BN20: ='Total NF'!BN20-Govt!BN20 -> 1124.4 | BO20: ='Total NF'!BO20-Govt!BO20 -> 0 | BP20: ='Total NF'!BP20-Govt!BP20 -> 1125.6 | BQ20: ='Total NF'!BQ20-Govt!BQ20 -> 1129.4 | BR20: ='Total NF'!BR20-Govt!BR20 -> 1131.6 | BS20: ='Total NF'!BS20-Govt!BS20 -> 1133.6 | BT20: ='Total NF'!BT20-Govt!BT20 -> 1135.8 | BU20: ='Total NF'!BU20-Govt!BU20 -> 1135.5 | BV20: ='Total NF'!BV20-Govt!BV20 -> 1137.3 | BW20: ='Total NF'!BW20-Govt!BW20 -> 1138.8 | BX20: ='Total NF'!BX20-Govt!BX20 -> 1138.8 | BY20: ='Total NF'!BY20-Govt!BY20 -> 1141.9 | BZ20: ='Total NF'!BZ20-Govt!BZ20 -> 1140.9 | CA20: ='Total NF'!CA20-Govt!CA20 -> 1144.2 | CB20: ='Total NF'!CB20-Govt!CB20 -> 1139.3 | CC20: ='Total NF'!CC20-Govt!CC20 -> 1144.2 | CD20: ='Total NF'!CD20-Govt!CD20 -> 1141.7 | CE20: ='Total NF'!CE20-Govt!CE20 -> 1139 | CF20: ='Total NF'!CF20-Govt!CF20 -> 1141.6 | CG20: ='Total NF'!CG20-Govt!CG20 -> 1143.3 | CH20: ='Total NF'!CH20-Govt!CH20 -> 1143.5 | CI20: ='Total NF'!CI20-Govt!CI20 -> 1144.7 | CJ20: ='Total NF'!CJ20-Govt!CJ20 -> 1145.3 | CK20: ='Total NF'!CK20-Govt!CK20 -> 1145.9 | CL20: ='Total NF'!CL20-Govt!CL20 -> 1142.8 | CM20: ='Total NF'!CM20-Govt!CM20 -> 1145.8 | CN20: ='Total NF'!CN20-Govt!CN20 -> 1154.1 | CO20: ='Total NF'!CO20-Govt!CO20 -> 1156.1 | CP20: ='Total NF'!CP20-Govt!CP20 -> 1154.4 | CQ20: ='Total NF'!CQ20-Govt!CQ20 -> 1155.1 | CR20: ='Total NF'!CR20-Govt!CR20 -> 1152.9 | CS20: ='Total NF'!CS20-Govt!CS20 -> 1151.5 | CT20: ='Total NF'!CT20-Govt!CT20 -> 1156.3 | CU20: ='Total NF'!CU20-Govt!CU20 -> 1155.3 | CV20: ='Total NF'!CV20-Govt!CV20 -> 1159.1 | CW20: ='Total NF'!CW20-Govt!CW20 -> 1155.9 | CX20: ='Total NF'!CX20-Govt!CX20 -> 1152.8 | CY20: ='Total NF'!CY20-Govt!CY20 -> 1153.2 | CZ20: ='Total NF'!CZ20-Govt!CZ20 -> 1151.9 | DA20: ='Total NF'!DA20-Govt!DA20 -> 1158.5 | DB20: ='Total NF'!DB20-Govt!DB20 -> 1158.6 | DC20: ='Total NF'!DC20-Govt!DC20 -> 1154.2 | DD20: ='Total NF'!DD20-Govt!DD20 -> 1150.9 | DE20: ='Total NF'!DE20-Govt!DE20 -> 1145.4 | DF20: ='Total NF'!DF20-Govt!DF20 -> 1144.9 | DG20: ='Total NF'!DG20-Govt!DG20 -> 1148.6 | DH20: ='Total NF'!DH20-Govt!DH20 -> 1152.9 | DI20: ='Total NF'!DI20-Govt!DI20 -> 1152.6 | DJ20: ='Total NF'!DJ20-Govt!DJ20 -> 1156.2 | DK20: 3.6 | DL20: 0.003123373243 | DM20: 16 | DN20: 12 | DO20: 3.4 | DP20: 0.002949340736 | DQ20: 42 | DR20: 45 | DS20: 3 | DT20: 0.002601456816 | DU20: 43 | DV20: 45 | DW20: 81.3 | DX20: 0.07563494279 | DY20: 35 | DZ20: 45
A21: Kentucky | B21: SMS21000004000000001 | C21: ='Total NF'!C21-Govt!C21 -> 1475.7 | D21: ='Total NF'!D21-Govt!D21 -> 1467.1 | E21: ='Total NF'!E21-Govt!E21 -> 1456.6 | F21: ='Total NF'!F21-Govt!F21 -> 1445.5 | G21: ='Total NF'!G21-Govt!G21 -> 1443.3 | H21: ='Total NF'!H21-Govt!H21 -> 1439.3 | I21: ='Total NF'!I21-Govt!I21 -> 1437.2 | J21: ='Total NF'!J21-Govt!J21 -> 1434.6 | K21: ='Total NF'!K21-Govt!K21 -> 1434.7 | L21: ='Total NF'!L21-Govt!L21 -> 1433.2 | M21: ='Total NF'!M21-Govt!M21 -> 1434.4 | N21: ='Total NF'!N21-Govt!N21 -> 1432.4 | P21: ='Total NF'!P21-Govt!P21 -> 1429.2 | Q21: ='Total NF'!Q21-Govt!Q21 -> 1421.3 | R21: ='Total NF'!R21-Govt!R21 -> 1429.4 | S21: ='Total NF'!S21-Govt!S21 -> 1434.7 | T21: ='Total NF'!T21-Govt!T21 -> 1437.4 | U21: ='Total NF'!U21-Govt!U21 -> 1440.4 | V21: ='Total NF'!V21-Govt!V21 -> 1439.2 | W21: ='Total NF'!W21-Govt!W21 -> 1440.6 | X21: ='Total NF'!X21-Govt!X21 -> 1441.6 | Y21: ='Total NF'!Y21-Govt!Y21 -> 1448.5 | Z21: ='Total NF'!Z21-Govt!Z21 -> 1447.3 | AA21: ='Total NF'!AA21-Govt!AA21 -> 1454.2 | AC21: ='Total NF'!AC21-Govt!AC21 -> 1447.7 | AD21: ='Total NF'!AD21-Govt!AD21 -> 1450.8 | AE21: ='Total NF'!AE21-Govt!AE21 -> 1453.4 | AF21: ='Total NF'!AF21-Govt!AF21 -> 1453.8 | AG21: ='Total NF'!AG21-Govt!AG21 -> 1452.5 | AH21: ='Total NF'!AH21-Govt!AH21 -> 1453.8 | AI21: ='Total NF'!AI21-Govt!AI21 -> 1459.8 | AJ21: ='Total NF'!AJ21-Govt!AJ21 -> 1463.2 | AK21: ='Total NF'!AK21-Govt!AK21 -> 1465.3 | AL21: ='Total NF'!AL21-Govt!AL21 -> 1464.5 | AM21: ='Total NF'!AM21-Govt!AM21 -> 1468.6 | AN21: ='Total NF'!AN21-Govt!AN21 -> 1469.4 | AP21: ='Total NF'!AP21-Govt!AP21 -> 1475 | AQ21: ='Total NF'!AQ21-Govt!AQ21 -> 1477.8 | AR21: ='Total NF'!AR21-Govt!AR21 -> 1480 | AS21: ='Total NF'!AS21-Govt!AS21 -> 1479.5 | AT21: ='Total NF'!AT21-Govt!AT21 -> 1482.1 | AU21: ='Total NF'!AU21-Govt!AU21 -> 1483.6 | AV21: ='Total NF'!AV21-Govt!AV21 -> 1487.6 | AW21: ='Total NF'!AW21-Govt!AW21 -> 1484.9 | AX21: ='Total NF'!AX21-Govt!AX21 -> 1485.5 | AY21: ='Total NF'!AY21-Govt!AY21 -> 1487 | AZ21: ='Total NF'!AZ21-Govt!AZ21 -> 1490.8 | BA21: ='Total NF'!BA21-Govt!BA21 -> 1491.7 | BC21: ='Total NF'!BC21-Govt!BC21 -> 1495.8 | BD21: ='Total NF'!BD21-Govt!BD21 -> 1497 | BE21: ='Total NF'!BE21-Govt!BE21 -> 1496.5 | BF21: ='Total NF'!BF21-Govt!BF21 -> 1498.2 | BG21: ='Total NF'!BG21-Govt!BG21 -> 1497.3 | BH21: ='Total NF'!BH21-Govt!BH21 -> 1497.5 | BI21: ='Total NF'!BI21-Govt!BI21 -> 1500.5 | BJ21: ='Total NF'!BJ21-Govt!BJ21 -> 1504.1 | BK21: ='Total NF'!BK21-Govt!BK21 -> 1505 | BL21: ='Total NF'!BL21-Govt!BL21 -> 1498.7 | BM21: ='Total NF'!BM21-Govt!BM21 -> 1502.5 | BN21: ='Total NF'!BN21-Govt!BN21 -> 1508.2 | BO21: ='Total NF'!BO21-Govt!BO21 -> 0 | BP21: ='Total NF'!BP21-Govt!BP21 -> 1520.8 | BQ21: ='Total NF'!BQ21-Govt!BQ21 -> 1519.6 | BR21: ='Total NF'!BR21-Govt!BR21 -> 1522.9 | BS21: ='Total NF'!BS21-Govt!BS21 -> 1530.1 | BT21: ='Total NF'!BT21-Govt!BT21 -> 1530.7 | BU21: ='Total NF'!BU21-Govt!BU21 -> 1531 | BV21: ='Total NF'!BV21-Govt!BV21 -> 1536.7 | BW21: ='Total NF'!BW21-Govt!BW21 -> 1537 | BX21: ='Total NF'!BX21-Govt!BX21 -> 1539.4 | BY21: ='Total NF'!BY21-Govt!BY21 -> 1548.1 | BZ21: ='Total NF'!BZ21-Govt!BZ21 -> 1554.7 | CA21: ='Total NF'!CA21-Govt!CA21 -> 1555.4 | CB21: ='Total NF'!CB21-Govt!CB21 -> 1556.1 | CC21: ='Total NF'!CC21-Govt!CC21 -> 1556.5 | CD21: ='Total NF'!CD21-Govt!CD21 -> 1552.3 | CE21: ='Total NF'!CE21-Govt!CE21 -> 1550.9 | CF21: ='Total NF'!CF21-Govt!CF21 -> 1562.5 | CG21: ='Total NF'!CG21-Govt!CG21 -> 1564.5 | CH21: ='Total NF'!CH21-Govt!CH21 -> 1567.2 | CI21: ='Total NF'!CI21-Govt!CI21 -> 1568.1 | CJ21: ='Total NF'!CJ21-Govt!CJ21 -> 1572.7 | CK21: ='Total NF'!CK21-Govt!CK21 -> 1579.2 | CL21: ='Total NF'!CL21-Govt!CL21 -> 1585.1 | CM21: ='Total NF'!CM21-Govt!CM21 -> 1591.8 | CN21: ='Total NF'!CN21-Govt!CN21 -> 1585.1 | CO21: ='Total NF'!CO21-Govt!CO21 -> 1590.9 | CP21: ='Total NF'!CP21-Govt!CP21 -> 1589.3 | CQ21: ='Total NF'!CQ21-Govt!CQ21 -> 1590.2 | CR21: ='Total NF'!CR21-Govt!CR21 -> 1592.5 | CS21: ='Total NF'!CS21-Govt!CS21 -> 1591 | CT21: ='Total NF'!CT21-Govt!CT21 -> 1602.1 | CU21: ='Total NF'!CU21-Govt!CU21 -> 1597.7 | CV21: ='Total NF'!CV21-Govt!CV21 -> 1601.2 | CW21: ='Total NF'!CW21-Govt!CW21 -> 1601.8 | CX21: ='Total NF'!CX21-Govt!CX21 -> 1608.5 | CY21: ='Total NF'!CY21-Govt!CY21 -> 1612.5 | CZ21: ='Total NF'!CZ21-Govt!CZ21 -> 1615.7 | DA21: ='Total NF'!DA21-Govt!DA21 -> 1619.9 | DB21: ='Total NF'!DB21-Govt!DB21 -> 1620.7 | DC21: ='Total NF'!DC21-Govt!DC21 -> 1621.8 | DD21: ='Total NF'!DD21-Govt!DD21 -> 1622.5 | DE21: ='Total NF'!DE21-Govt!DE21 -> 1620 | DF21: ='Total NF'!DF21-Govt!DF21 -> 1621.1 | DG21: ='Total NF'!DG21-Govt!DG21 -> 1629.2 | DH21: ='Total NF'!DH21-Govt!DH21 -> 1634.4 | DI21: ='Total NF'!DI21-Govt!DI21 -> 1631.6 | DJ21: ='Total NF'!DJ21-Govt!DJ21 -> 1636.3 | DK21: 4.7 | DL21: 0.002880607992 | DM21: 13 | DN21: 14 | DO21: 27.8 | DP21: 0.01728318309 | DQ21: 27 | DR21: 20 | DS21: 23.8 | DT21: 0.01475968992 | DU21: 27 | DV21: 24 | DW21: 199.1 | DX21: 0.1385332591 | DY21: 27 | DZ21: 21
A22: Louisiana | B22: SMS22000004000000001 | C22: ='Total NF'!C22-Govt!C22 -> 1563.9 | D22: ='Total NF'!D22-Govt!D22 -> 1559.9 | E22: ='Total NF'!E22-Govt!E22 -> 1549 | F22: ='Total NF'!F22-Govt!F22 -> 1534.2 | G22: ='Total NF'!G22-Govt!G22 -> 1534.6 | H22: ='Total NF'!H22-Govt!H22 -> 1527.9 | I22: ='Total NF'!I22-Govt!I22 -> 1526.8 | J22: ='Total NF'!J22-Govt!J22 -> 1526.1 | K22: ='Total NF'!K22-Govt!K22 -> 1524 | L22: ='Total NF'!L22-Govt!L22 -> 1515.5 | M22: ='Total NF'!M22-Govt!M22 -> 1515.6 | N22: ='Total NF'!N22-Govt!N22 -> 1507.9 | P22: ='Total NF'!P22-Govt!P22 -> 1507.1 | Q22: ='Total NF'!Q22-Govt!Q22 -> 1506.3 | R22: ='Total NF'!R22-Govt!R22 -> 1510 | S22: ='Total NF'!S22-Govt!S22 -> 1513.9 | T22: ='Total NF'!T22-Govt!T22 -> 1513.9 | U22: ='Total NF'!U22-Govt!U22 -> 1521.8 | V22: ='Total NF'!V22-Govt!V22 -> 1521.2 | W22: ='Total NF'!W22-Govt!W22 -> 1519.8 | X22: ='Total NF'!X22-Govt!X22 -> 1522 | Y22: ='Total NF'!Y22-Govt!Y22 -> 1525.6 | Z22: ='Total NF'!Z22-Govt!Z22 -> 1525.8 | AA22: ='Total NF'!AA22-Govt!AA22 -> 1529.4 | AC22: ='Total NF'!AC22-Govt!AC22 -> 1532.1 | AD22: ='Total NF'!AD22-Govt!AD22 -> 1537.7 | AE22: ='Total NF'!AE22-Govt!AE22 -> 1538.5 | AF22: ='Total NF'!AF22-Govt!AF22 -> 1541 | AG22: ='Total NF'!AG22-Govt!AG22 -> 1541.6 | AH22: ='Total NF'!AH22-Govt!AH22 -> 1538.1 | AI22: ='Total NF'!AI22-Govt!AI22 -> 1548.5 | AJ22: ='Total NF'!AJ22-Govt!AJ22 -> 1547.3 | AK22: ='Total NF'!AK22-Govt!AK22 -> 1550 | AL22: ='Total NF'!AL22-Govt!AL22 -> 1551.4 | AM22: ='Total NF'!AM22-Govt!AM22 -> 1554.5 | AN22: ='Total NF'!AN22-Govt!AN22 -> 1557.6 | AP22: ='Total NF'!AP22-Govt!AP22 -> 1562 | AQ22: ='Total NF'!AQ22-Govt!AQ22 -> 1565.6 | AR22: ='Total NF'!AR22-Govt!AR22 -> 1568.4 | AS22: ='Total NF'!AS22-Govt!AS22 -> 1577.9 | AT22: ='Total NF'!AT22-Govt!AT22 -> 1580 | AU22: ='Total NF'!AU22-Govt!AU22 -> 1578.8 | AV22: ='Total NF'!AV22-Govt!AV22 -> 1575.5 | AW22: ='Total NF'!AW22-Govt!AW22 -> 1575.7 | AX22: ='Total NF'!AX22-Govt!AX22 -> 1578.1 | AY22: ='Total NF'!AY22-Govt!AY22 -> 1581.8 | AZ22: ='Total NF'!AZ22-Govt!AZ22 -> 1588.5 | BA22: ='Total NF'!BA22-Govt!BA22 -> 1588.9 | BC22: ='Total NF'!BC22-Govt!BC22 -> 1594.9 | BD22: ='Total NF'!BD22-Govt!BD22 -> 1602.2 | BE22: ='Total NF'!BE22-Govt!BE22 -> 1602.1 | BF22: ='Total NF'!BF22-Govt!BF22 -> 1604.3 | BG22: ='Total NF'!BG22-Govt!BG22 -> 1607.2 | BH22: ='Total NF'!BH22-Govt!BH22 -> 1609.6 | BI22: ='Total NF'!BI22-Govt!BI22 -> 1608.4 | BJ22: ='Total NF'!BJ22-Govt!BJ22 -> 1612.9 | BK22: ='Total NF'!BK22-Govt!BK22 -> 1615.7 | BL22: ='Total NF'!BL22-Govt!BL22 -> 1625.1 | BM22: ='Total NF'!BM22-Govt!BM22 -> 1624.5 | BN22: ='Total NF'!BN22-Govt!BN22 -> 1624.6 | BO22: ='Total NF'!BO22-Govt!BO22 -> 0 | BP22: ='Total NF'!BP22-Govt!BP22 -> 1632.9 | BQ22: ='Total NF'!BQ22-Govt!BQ22 -> 1636.1 | BR22: ='Total NF'!BR22-Govt!BR22 -> 1639.5 | BS22: ='Total NF'!BS22-Govt!BS22 -> 1642.2 | BT22: ='Total NF'!BT22-Govt!BT22 -> 1648.4 | BU22: ='Total NF'!BU22-Govt!BU22 -> 1651 | BV22: ='Total NF'!BV22-Govt!BV22 -> 1655.2 | BW22: ='Total NF'!BW22-Govt!BW22 -> 1657.6 | BX22: ='Total NF'!BX22-Govt!BX22 -> 1659.5 | BY22: ='Total NF'!BY22-Govt!BY22 -> 1664.6 | BZ22: ='Total NF'!BZ22-Govt!BZ22 -> 1667.3 | CA22: ='Total NF'!CA22-Govt!CA22 -> 1669.5 | CB22: ='Total NF'!CB22-Govt!CB22 -> 1670 | CC22: ='Total NF'!CC22-Govt!CC22 -> 1668.8 | CD22: ='Total NF'!CD22-Govt!CD22 -> 1664.2 | CE22: ='Total NF'!CE22-Govt!CE22 -> 1663.1 | CF22: ='Total NF'!CF22-Govt!CF22 -> 1666.4 | CG22: ='Total NF'!CG22-Govt!CG22 -> 1665.4 | CH22: ='Total NF'!CH22-Govt!CH22 -> 1664.7 | CI22: ='Total NF'!CI22-Govt!CI22 -> 1662.5 | CJ22: ='Total NF'!CJ22-Govt!CJ22 -> 1659.5 | CK22: ='Total NF'!CK22-Govt!CK22 -> 1656.6 | CL22: ='Total NF'!CL22-Govt!CL22 -> 1655.4 | CM22: ='Total NF'!CM22-Govt!CM22 -> 1654.7 | CN22: ='Total NF'!CN22-Govt!CN22 -> 1655.9 | CO22: ='Total NF'!CO22-Govt!CO22 -> 1653.1 | CP22: ='Total NF'!CP22-Govt!CP22 -> 1651 | CQ22: ='Total NF'!CQ22-Govt!CQ22 -> 1649.9 | CR22: ='Total NF'!CR22-Govt!CR22 -> 1646.5 | CS22: ='Total NF'!CS22-Govt!CS22 -> 1642.7 | CT22: ='Total NF'!CT22-Govt!CT22 -> 1646.1 | CU22: ='Total NF'!CU22-Govt!CU22 -> 1637.2 | CV22: ='Total NF'!CV22-Govt!CV22 -> 1638.9 | CW22: ='Total NF'!CW22-Govt!CW22 -> 1645.2 | CX22: ='Total NF'!CX22-Govt!CX22 -> 1642.3 | CY22: ='Total NF'!CY22-Govt!CY22 -> 1645.9 | CZ22: ='Total NF'!CZ22-Govt!CZ22 -> 1651.4 | DA22: ='Total NF'!DA22-Govt!DA22 -> 1660 | DB22: ='Total NF'!DB22-Govt!DB22 -> 1650.7 | DC22: ='Total NF'!DC22-Govt!DC22 -> 1650 | DD22: ='Total NF'!DD22-Govt!DD22 -> 1660.3 | DE22: ='Total NF'!DE22-Govt!DE22 -> 1664.4 | DF22: ='Total NF'!DF22-Govt!DF22 -> 1661.2 | DG22: ='Total NF'!DG22-Govt!DG22 -> 1661.8 | DH22: ='Total NF'!DH22-Govt!DH22 -> 1659.6 | DI22: ='Total NF'!DI22-Govt!DI22 -> 1658.1 | DJ22: ='Total NF'!DJ22-Govt!DJ22 -> 1655.6 | DK22: -2.5 | DL22: -0.001507749834 | DM22: 42 | DN22: 42 | DO22: 13.3 | DP22: 0.008098398587 | DQ22: 32 | DR22: 39 | DS22: 9.7 | DT22: 0.005893432165 | DU22: 35 | DV22: 41 | DW22: 128.8 | DX22: 0.08435944459 | DY22: 29 | DZ22: 41
A23: Maine | B23: SMS23000004000000001 | C23: ='Total NF'!C23-Govt!C23 -> 500.7 | D23: ='Total NF'!D23-Govt!D23 -> 498 | E23: ='Total NF'!E23-Govt!E23 -> 494.7 | F23: ='Total NF'!F23-Govt!F23 -> 493.9 | G23: ='Total NF'!G23-Govt!G23 -> 494.5 | H23: ='Total NF'!H23-Govt!H23 -> 490.7 | I23: ='Total NF'!I23-Govt!I23 -> 490.7 | J23: ='Total NF'!J23-Govt!J23 -> 490.1 | K23: ='Total NF'!K23-Govt!K23 -> 490.6 | L23: ='Total NF'!L23-Govt!L23 -> 488.7 | M23: ='Total NF'!M23-Govt!M23 -> 489 | N23: ='Total NF'!N23-Govt!N23 -> 489.1 | P23: ='Total NF'!P23-Govt!P23 -> 488.7 | Q23: ='Total NF'!Q23-Govt!Q23 -> 488.2 | R23: ='Total NF'!R23-Govt!R23 -> 488.6 | S23: ='Total NF'!S23-Govt!S23 -> 489.1 | T23: ='Total NF'!T23-Govt!T23 -> 489.3 | U23: ='Total NF'!U23-Govt!U23 -> 487.9 | V23: ='Total NF'!V23-Govt!V23 -> 488.2 | W23: ='Total NF'!W23-Govt!W23 -> 488.4 | X23: ='Total NF'!X23-Govt!X23 -> 489.5 | Y23: ='Total NF'!Y23-Govt!Y23 -> 490.2 | Z23: ='Total NF'!Z23-Govt!Z23 -> 489.9 | AA23: ='Total NF'!AA23-Govt!AA23 -> 489.8 | AC23: ='Total NF'!AC23-Govt!AC23 -> 490 | AD23: ='Total NF'!AD23-Govt!AD23 -> 491.1 | AE23: ='Total NF'!AE23-Govt!AE23 -> 491.6 | AF23: ='Total NF'!AF23-Govt!AF23 -> 490.8 | AG23: ='Total NF'!AG23-Govt!AG23 -> 490 | AH23: ='Total NF'!AH23-Govt!AH23 -> 490.6 | AI23: ='Total NF'!AI23-Govt!AI23 -> 493.3 | AJ23: ='Total NF'!AJ23-Govt!AJ23 -> 493.4 | AK23: ='Total NF'!AK23-Govt!AK23 -> 494.3 | AL23: ='Total NF'!AL23-Govt!AL23 -> 494.7 | AM23: ='Total NF'!AM23-Govt!AM23 -> 494.6 | AN23: ='Total NF'!AN23-Govt!AN23 -> 494.6 | AP23: ='Total NF'!AP23-Govt!AP23 -> 495.3 | AQ23: ='Total NF'!AQ23-Govt!AQ23 -> 496.4 | AR23: ='Total NF'!AR23-Govt!AR23 -> 496.4 | AS23: ='Total NF'!AS23-Govt!AS23 -> 497.5 | AT23: ='Total NF'!AT23-Govt!AT23 -> 497.3 | AU23: ='Total NF'!AU23-Govt!AU23 -> 498.1 | AV23: ='Total NF'!AV23-Govt!AV23 -> 496.3 | AW23: ='Total NF'!AW23-Govt!AW23 -> 495.9 | AX23: ='Total NF'!AX23-Govt!AX23 -> 497 | AY23: ='Total NF'!AY23-Govt!AY23 -> 497.4 | AZ23: ='Total NF'!AZ23-Govt!AZ23 -> 496.5 | BA23: ='Total NF'!BA23-Govt!BA23 -> 497 | BC23: ='Total NF'!BC23-Govt!BC23 -> 497.6 | BD23: ='Total NF'!BD23-Govt!BD23 -> 498.4 | BE23: ='Total NF'!BE23-Govt!BE23 -> 498.4 | BF23: ='Total NF'!BF23-Govt!BF23 -> 498.8 | BG23: ='Total NF'!BG23-Govt!BG23 -> 500.5 | BH23: ='Total NF'!BH23-Govt!BH23 -> 503.1 | BI23: ='Total NF'!BI23-Govt!BI23 -> 502.5 | BJ23: ='Total NF'!BJ23-Govt!BJ23 -> 502.7 | BK23: ='Total NF'!BK23-Govt!BK23 -> 502.5 | BL23: ='Total NF'!BL23-Govt!BL23 -> 504 | BM23: ='Total NF'!BM23-Govt!BM23 -> 502.8 | BN23: ='Total NF'!BN23-Govt!BN23 -> 504.1 | BO23: ='Total NF'!BO23-Govt!BO23 -> 0 | BP23: ='Total NF'!BP23-Govt!BP23 -> 502.5 | BQ23: ='Total NF'!BQ23-Govt!BQ23 -> 504 | BR23: ='Total NF'!BR23-Govt!BR23 -> 503.9 | BS23: ='Total NF'!BS23-Govt!BS23 -> 503.4 | BT23: ='Total NF'!BT23-Govt!BT23 -> 505.5 | BU23: ='Total NF'!BU23-Govt!BU23 -> 505.9 | BV23: ='Total NF'!BV23-Govt!BV23 -> 505.5 | BW23: ='Total NF'!BW23-Govt!BW23 -> 505.4 | BX23: ='Total NF'!BX23-Govt!BX23 -> 505.6 | BY23: ='Total NF'!BY23-Govt!BY23 -> 505.6 | BZ23: ='Total NF'!BZ23-Govt!BZ23 -> 504.8 | CA23: ='Total NF'!CA23-Govt!CA23 -> 505 | CB23: ='Total NF'!CB23-Govt!CB23 -> 509.1 | CC23: ='Total NF'!CC23-Govt!CC23 -> 508.1 | CD23: ='Total NF'!CD23-Govt!CD23 -> 509.1 | CE23: ='Total NF'!CE23-Govt!CE23 -> 510.3 | CF23: ='Total NF'!CF23-Govt!CF23 -> 511.2 | CG23: ='Total NF'!CG23-Govt!CG23 -> 511.3 | CH23: ='Total NF'!CH23-Govt!CH23 -> 511.5 | CI23: ='Total NF'!CI23-Govt!CI23 -> 510.9 | CJ23: ='Total NF'!CJ23-Govt!CJ23 -> 510.7 | CK23: ='Total NF'!CK23-Govt!CK23 -> 510.5 | CL23: ='Total NF'!CL23-Govt!CL23 -> 510.4 | CM23: ='Total NF'!CM23-Govt!CM23 -> 511.5 | CN23: ='Total NF'!CN23-Govt!CN23 -> 516.6 | CO23: ='Total NF'!CO23-Govt!CO23 -> 517.6 | CP23: ='Total NF'!CP23-Govt!CP23 -> 517.9 | CQ23: ='Total NF'!CQ23-Govt!CQ23 -> 518.1 | CR23: ='Total NF'!CR23-Govt!CR23 -> 516.3 | CS23: ='Total NF'!CS23-Govt!CS23 -> 516 | CT23: ='Total NF'!CT23-Govt!CT23 -> 517.8 | CU23: ='Total NF'!CU23-Govt!CU23 -> 517.7 | CV23: ='Total NF'!CV23-Govt!CV23 -> 517.5 | CW23: ='Total NF'!CW23-Govt!CW23 -> 515.8 | CX23: ='Total NF'!CX23-Govt!CX23 -> 517.3 | CY23: ='Total NF'!CY23-Govt!CY23 -> 518.1 | CZ23: ='Total NF'!CZ23-Govt!CZ23 -> 522.5 | DA23: ='Total NF'!DA23-Govt!DA23 -> 520.2 | DB23: ='Total NF'!DB23-Govt!DB23 -> 523.1 | DC23: ='Total NF'!DC23-Govt!DC23 -> 521.6 | DD23: ='Total NF'!DD23-Govt!DD23 -> 520.6 | DE23: ='Total NF'!DE23-Govt!DE23 -> 522.2 | DF23: ='Total NF'!DF23-Govt!DF23 -> 522.6 | DG23: ='Total NF'!DG23-Govt!DG23 -> 520.3 | DH23: ='Total NF'!DH23-Govt!DH23 -> 520.6 | DI23: ='Total NF'!DI23-Govt!DI23 -> 519.5 | DJ23: ='Total NF'!DJ23-Govt!DJ23 -> 519.8 | DK23: 0.3 | DL23: 0.0005774783446 | DM23: 34 | DN23: 32 | DO23: 2.5 | DP23: 0.004832785618 | DQ23: 45 | DR23: 43 | DS23: 1.7 | DT23: 0.003281219842 | DU23: 46 | DV23: 44 | DW23: 29.1 | DX23: 0.05930303648 | DY23: 46 | DZ23: 46
A24: Maryland | B24: SMS24000004000000001 | C24: ='Total NF'!C24-Govt!C24 -> 2064.1 | D24: ='Total NF'!D24-Govt!D24 -> 2053.9 | E24: ='Total NF'!E24-Govt!E24 -> 2041.3 | F24: ='Total NF'!F24-Govt!F24 -> 2032.4 | G24: ='Total NF'!G24-Govt!G24 -> 2033.8 | H24: ='Total NF'!H24-Govt!H24 -> 2031.3 | I24: ='Total NF'!I24-Govt!I24 -> 2022.6 | J24: ='Total NF'!J24-Govt!J24 -> 2018.9 | K24: ='Total NF'!K24-Govt!K24 -> 2015.8 | L24: ='Total NF'!L24-Govt!L24 -> 2010.7 | M24: ='Total NF'!M24-Govt!M24 -> 2010.4 | N24: ='Total NF'!N24-Govt!N24 -> 2005.6 | P24: ='Total NF'!P24-Govt!P24 -> 2004.7 | Q24: ='Total NF'!Q24-Govt!Q24 -> 1973.2 | R24: ='Total NF'!R24-Govt!R24 -> 2002.6 | S24: ='Total NF'!S24-Govt!S24 -> 2016.2 | T24: ='Total NF'!T24-Govt!T24 -> 2018.3 | U24: ='Total NF'!U24-Govt!U24 -> 2020 | V24: ='Total NF'!V24-Govt!V24 -> 2021.3 | W24: ='Total NF'!W24-Govt!W24 -> 2020.8 | X24: ='Total NF'!X24-Govt!X24 -> 2022.8 | Y24: ='Total NF'!Y24-Govt!Y24 -> 2030.2 | Z24: ='Total NF'!Z24-Govt!Z24 -> 2025.6 | AA24: ='Total NF'!AA24-Govt!AA24 -> 2029.4 | AC24: ='Total NF'!AC24-Govt!AC24 -> 2026 | AD24: ='Total NF'!AD24-Govt!AD24 -> 2029.7 | AE24: ='Total NF'!AE24-Govt!AE24 -> 2030.8 | AF24: ='Total NF'!AF24-Govt!AF24 -> 2034.7 | AG24: ='Total NF'!AG24-Govt!AG24 -> 2034.1 | AH24: ='Total NF'!AH24-Govt!AH24 -> 2033.3 | AI24: ='Total NF'!AI24-Govt!AI24 -> 2041.8 | AJ24: ='Total NF'!AJ24-Govt!AJ24 -> 2039.3 | AK24: ='Total NF'!AK24-Govt!AK24 -> 2044.4 | AL24: ='Total NF'!AL24-Govt!AL24 -> 2044.5 | AM24: ='Total NF'!AM24-Govt!AM24 -> 2049.5 | AN24: ='Total NF'!AN24-Govt!AN24 -> 2051.5 | AP24: ='Total NF'!AP24-Govt!AP24 -> 2058.5 | AQ24: ='Total NF'!AQ24-Govt!AQ24 -> 2060.6 | AR24: ='Total NF'!AR24-Govt!AR24 -> 2065.5 | AS24: ='Total NF'!AS24-Govt!AS24 -> 2062.1 | AT24: ='Total NF'!AT24-Govt!AT24 -> 2064.7 | AU24: ='Total NF'!AU24-Govt!AU24 -> 2069.7 | AV24: ='Total NF'!AV24-Govt!AV24 -> 2069.2 | AW24: ='Total NF'!AW24-Govt!AW24 -> 2071.3 | AX24: ='Total NF'!AX24-Govt!AX24 -> 2074.9 | AY24: ='Total NF'!AY24-Govt!AY24 -> 2077.5 | AZ24: ='Total NF'!AZ24-Govt!AZ24 -> 2080.6 | BA24: ='Total NF'!BA24-Govt!BA24 -> 2081.7 | BC24: ='Total NF'!BC24-Govt!BC24 -> 2086 | BD24: ='Total NF'!BD24-Govt!BD24 -> 2090.5 | BE24: ='Total NF'!BE24-Govt!BE24 -> 2088.4 | BF24: ='Total NF'!BF24-Govt!BF24 -> 2086.9 | BG24: ='Total NF'!BG24-Govt!BG24 -> 2089.2 | BH24: ='Total NF'!BH24-Govt!BH24 -> 2090.1 | BI24: ='Total NF'!BI24-Govt!BI24 -> 2091.9 | BJ24: ='Total NF'!BJ24-Govt!BJ24 -> 2093.3 | BK24: ='Total NF'!BK24-Govt!BK24 -> 2092.5 | BL24: ='Total NF'!BL24-Govt!BL24 -> 2095.8 | BM24: ='Total NF'!BM24-Govt!BM24 -> 2102 | BN24: ='Total NF'!BN24-Govt!BN24 -> 2105.7 | BO24: ='Total NF'!BO24-Govt!BO24 -> 0 | BP24: ='Total NF'!BP24-Govt!BP24 -> 2100.3 | BQ24: ='Total NF'!BQ24-Govt!BQ24 -> 2099.2 | BR24: ='Total NF'!BR24-Govt!BR24 -> 2100.5 | BS24: ='Total NF'!BS24-Govt!BS24 -> 2110.2 | BT24: ='Total NF'!BT24-Govt!BT24 -> 2116.8 | BU24: ='Total NF'!BU24-Govt!BU24 -> 2114.4 | BV24: ='Total NF'!BV24-Govt!BV24 -> 2115.5 | BW24: ='Total NF'!BW24-Govt!BW24 -> 2118.3 | BX24: ='Total NF'!BX24-Govt!BX24 -> 2119.3 | BY24: ='Total NF'!BY24-Govt!BY24 -> 2125.8 | BZ24: ='Total NF'!BZ24-Govt!BZ24 -> 2129.4 | CA24: ='Total NF'!CA24-Govt!CA24 -> 2134.6 | CB24: ='Total NF'!CB24-Govt!CB24 -> 2137.2 | CC24: ='Total NF'!CC24-Govt!CC24 -> 2141.1 | CD24: ='Total NF'!CD24-Govt!CD24 -> 2138.3 | CE24: ='Total NF'!CE24-Govt!CE24 -> 2145.7 | CF24: ='Total NF'!CF24-Govt!CF24 -> 2155.4 | CG24: ='Total NF'!CG24-Govt!CG24 -> 2152.6 | CH24: ='Total NF'!CH24-Govt!CH24 -> 2161.2 | CI24: ='Total NF'!CI24-Govt!CI24 -> 2162.6 | CJ24: ='Total NF'!CJ24-Govt!CJ24 -> 2160.9 | CK24: ='Total NF'!CK24-Govt!CK24 -> 2174.2 | CL24: ='Total NF'!CL24-Govt!CL24 -> 2176.4 | CM24: ='Total NF'!CM24-Govt!CM24 -> 2180.6 | CN24: ='Total NF'!CN24-Govt!CN24 -> 2194.6 | CO24: ='Total NF'!CO24-Govt!CO24 -> 2196.1 | CP24: ='Total NF'!CP24-Govt!CP24 -> 2198.6 | CQ24: ='Total NF'!CQ24-Govt!CQ24 -> 2201.1 | CR24: ='Total NF'!CR24-Govt!CR24 -> 2197.3 | CS24: ='Total NF'!CS24-Govt!CS24 -> 2196.2 | CT24: ='Total NF'!CT24-Govt!CT24 -> 2205.8 | CU24: ='Total NF'!CU24-Govt!CU24 -> 2208.7 | CV24: ='Total NF'!CV24-Govt!CV24 -> 2212.5 | CW24: ='Total NF'!CW24-Govt!CW24 -> 2217.2 | CX24: ='Total NF'!CX24-Govt!CX24 -> 2216.4 | CY24: ='Total NF'!CY24-Govt!CY24 -> 2224.7 | CZ24: ='Total NF'!CZ24-Govt!CZ24 -> 2234.6 | DA24: ='Total NF'!DA24-Govt!DA24 -> 2242.2 | DB24: ='Total NF'!DB24-Govt!DB24 -> 2234.9 | DC24: ='Total NF'!DC24-Govt!DC24 -> 2233.3 | DD24: ='Total NF'!DD24-Govt!DD24 -> 2232.4 | DE24: ='Total NF'!DE24-Govt!DE24 -> 2242.8 | DF24: ='Total NF'!DF24-Govt!DF24 -> 2256.9 | DG24: ='Total NF'!DG24-Govt!DG24 -> 2266.6 | DH24: ='Total NF'!DH24-Govt!DH24 -> 2269.2 | DI24: ='Total NF'!DI24-Govt!DI24 -> 2264.1 | DJ24: ='Total NF'!DJ24-Govt!DJ24 -> 2267.9 | DK24: 3.8 | DL24: 0.001678371097 | DM24: 15 | DN24: 23 | DO24: 51.5 | DP24: 0.023235878 | DQ24: 10 | DR24: 6 | DS24: 43.2 | DT24: 0.01941834854 | DU24: 11 | DV24: 9 | DW24: 245.3 | DX24: 0.1212795412 | DY24: 24 | DZ24: 25
A25: Massachusetts | B25: SMS25000004000000001 | C25: ='Total NF'!C25-Govt!C25 -> 2807.4 | D25: ='Total NF'!D25-Govt!D25 -> 2798 | E25: ='Total NF'!E25-Govt!E25 -> 2786.6 | F25: ='Total NF'!F25-Govt!F25 -> 2769.4 | G25: ='Total NF'!G25-Govt!G25 -> 2767.7 | H25: ='Total NF'!H25-Govt!H25 -> 2759.3 | I25: ='Total NF'!I25-Govt!I25 -> 2750.5 | J25: ='Total NF'!J25-Govt!J25 -> 2750 | K25: ='Total NF'!K25-Govt!K25 -> 2751.7 | L25: ='Total NF'!L25-Govt!L25 -> 2746.9 | M25: ='Total NF'!M25-Govt!M25 -> 2751.5 | N25: ='Total NF'!N25-Govt!N25 -> 2755.5 | P25: ='Total NF'!P25-Govt!P25 -> 2763.6 | Q25: ='Total NF'!Q25-Govt!Q25 -> 2763.6 | R25: ='Total NF'!R25-Govt!R25 -> 2766 | S25: ='Total NF'!S25-Govt!S25 -> 2771.7 | T25: ='Total NF'!T25-Govt!T25 -> 2777.5 | U25: ='Total NF'!U25-Govt!U25 -> 2771.3 | V25: ='Total NF'!V25-Govt!V25 -> 2780.1 | W25: ='Total NF'!W25-Govt!W25 -> 2781.6 | X25: ='Total NF'!X25-Govt!X25 -> 2779.9 | Y25: ='Total NF'!Y25-Govt!Y25 -> 2792.6 | Z25: ='Total NF'!Z25-Govt!Z25 -> 2792.7 | AA25: ='Total NF'!AA25-Govt!AA25 -> 2796.8 | AC25: ='Total NF'!AC25-Govt!AC25 -> 2799.5 | AD25: ='Total NF'!AD25-Govt!AD25 -> 2798.5 | AE25: ='Total NF'!AE25-Govt!AE25 -> 2803.4 | AF25: ='Total NF'!AF25-Govt!AF25 -> 2816 | AG25: ='Total NF'!AG25-Govt!AG25 -> 2813.3 | AH25: ='Total NF'!AH25-Govt!AH25 -> 2807.6 | AI25: ='Total NF'!AI25-Govt!AI25 -> 2830.5 | AJ25: ='Total NF'!AJ25-Govt!AJ25 -> 2831 | AK25: ='Total NF'!AK25-Govt!AK25 -> 2837.2 | AL25: ='Total NF'!AL25-Govt!AL25 -> 2838.9 | AM25: ='Total NF'!AM25-Govt!AM25 -> 2842 | AN25: ='Total NF'!AN25-Govt!AN25 -> 2844.1 | AP25: ='Total NF'!AP25-Govt!AP25 -> 2853.8 | AQ25: ='Total NF'!AQ25-Govt!AQ25 -> 2858.2 | AR25: ='Total NF'!AR25-Govt!AR25 -> 2865.3 | AS25: ='Total NF'!AS25-Govt!AS25 -> 2863.4 | AT25: ='Total NF'!AT25-Govt!AT25 -> 2864 | AU25: ='Total NF'!AU25-Govt!AU25 -> 2874.8 | AV25: ='Total NF'!AV25-Govt!AV25 -> 2873.7 | AW25: ='Total NF'!AW25-Govt!AW25 -> 2874.1 | AX25: ='Total NF'!AX25-Govt!AX25 -> 2878.3 | AY25: ='Total NF'!AY25-Govt!AY25 -> 2884 | AZ25: ='Total NF'!AZ25-Govt!AZ25 -> 2888.8 | BA25: ='Total NF'!BA25-Govt!BA25 -> 2891.7 | BC25: ='Total NF'!BC25-Govt!BC25 -> 2894.6 | BD25: ='Total NF'!BD25-Govt!BD25 -> 2898 | BE25: ='Total NF'!BE25-Govt!BE25 -> 2904.1 | BF25: ='Total NF'!BF25-Govt!BF25 -> 2906.7 | BG25: ='Total NF'!BG25-Govt!BG25 -> 2913.2 | BH25: ='Total NF'!BH25-Govt!BH25 -> 2919.1 | BI25: ='Total NF'!BI25-Govt!BI25 -> 2916.9 | BJ25: ='Total NF'!BJ25-Govt!BJ25 -> 2921.7 | BK25: ='Total NF'!BK25-Govt!BK25 -> 2923 | BL25: ='Total NF'!BL25-Govt!BL25 -> 2933.3 | BM25: ='Total NF'!BM25-Govt!BM25 -> 2940.1 | BN25: ='Total NF'!BN25-Govt!BN25 -> 2946.1 | BO25: ='Total NF'!BO25-Govt!BO25 -> 0 | BP25: ='Total NF'!BP25-Govt!BP25 -> 2933.5 | BQ25: ='Total NF'!BQ25-Govt!BQ25 -> 2941.3 | BR25: ='Total NF'!BR25-Govt!BR25 -> 2948.5 | BS25: ='Total NF'!BS25-Govt!BS25 -> 2951.2 | BT25: ='Total NF'!BT25-Govt!BT25 -> 2958 | BU25: ='Total NF'!BU25-Govt!BU25 -> 2962.7 | BV25: ='Total NF'!BV25-Govt!BV25 -> 2972.1 | BW25: ='Total NF'!BW25-Govt!BW25 -> 2961.4 | BX25: ='Total NF'!BX25-Govt!BX25 -> 2972 | BY25: ='Total NF'!BY25-Govt!BY25 -> 2972.4 | BZ25: ='Total NF'!BZ25-Govt!BZ25 -> 2980.9 | CA25: ='Total NF'!CA25-Govt!CA25 -> 2989.3 | CB25: ='Total NF'!CB25-Govt!CB25 -> 3015.5 | CC25: ='Total NF'!CC25-Govt!CC25 -> 3013.4 | CD25: ='Total NF'!CD25-Govt!CD25 -> 3023.5 | CE25: ='Total NF'!CE25-Govt!CE25 -> 3026.4 | CF25: ='Total NF'!CF25-Govt!CF25 -> 3042.5 | CG25: ='Total NF'!CG25-Govt!CG25 -> 3043.5 | CH25: ='Total NF'!CH25-Govt!CH25 -> 3054.5 | CI25: ='Total NF'!CI25-Govt!CI25 -> 3057.3 | CJ25: ='Total NF'!CJ25-Govt!CJ25 -> 3051.1 | CK25: ='Total NF'!CK25-Govt!CK25 -> 3054.3 | CL25: ='Total NF'!CL25-Govt!CL25 -> 3060.9 | CM25: ='Total NF'!CM25-Govt!CM25 -> 3063.4 | CN25: ='Total NF'!CN25-Govt!CN25 -> 3083.4 | CO25: ='Total NF'!CO25-Govt!CO25 -> 3094.4 | CP25: ='Total NF'!CP25-Govt!CP25 -> 3099.2 | CQ25: ='Total NF'!CQ25-Govt!CQ25 -> 3100.1 | CR25: ='Total NF'!CR25-Govt!CR25 -> 3096.3 | CS25: ='Total NF'!CS25-Govt!CS25 -> 3097.5 | CT25: ='Total NF'!CT25-Govt!CT25 -> 3117.4 | CU25: ='Total NF'!CU25-Govt!CU25 -> 3117.7 | CV25: ='Total NF'!CV25-Govt!CV25 -> 3119.3 | CW25: ='Total NF'!CW25-Govt!CW25 -> 3115.1 | CX25: ='Total NF'!CX25-Govt!CX25 -> 3120.7 | CY25: ='Total NF'!CY25-Govt!CY25 -> 3128.9 | CZ25: ='Total NF'!CZ25-Govt!CZ25 -> 3133.1 | DA25: ='Total NF'!DA25-Govt!DA25 -> 3145.9 | DB25: ='Total NF'!DB25-Govt!DB25 -> 3146.1 | DC25: ='Total NF'!DC25-Govt!DC25 -> 3146.3 | DD25: ='Total NF'!DD25-Govt!DD25 -> 3148.3 | DE25: ='Total NF'!DE25-Govt!DE25 -> 3158.8 | DF25: ='Total NF'!DF25-Govt!DF25 -> 3163 | DG25: ='Total NF'!DG25-Govt!DG25 -> 3170.1 | DH25: ='Total NF'!DH25-Govt!DH25 -> 3179.6 | DI25: ='Total NF'!DI25-Govt!DI25 -> 3182.1 | DJ25: ='Total NF'!DJ25-Govt!DJ25 -> 3189.4 | DK25: 7.3 | DL25: 0.002294082524 | DM25: 8 | DN25: 16 | DO25: 68.7 | DP25: 0.02201429167 | DQ25: 6 | DR25: 10 | DS25: 60.5 | DT25: 0.01933586884 | DU25: 7 | DV25: 10 | DW25: 438.9 | DX25: 0.1595709871 | DY25: 12 | DZ25: 17
A26: Michigan | B26: SMS26000004000000001 | C26: ='Total NF'!C26-Govt!C26 -> 3300.1 | D26: ='Total NF'!D26-Govt!D26 -> 3302 | E26: ='Total NF'!E26-Govt!E26 -> 3274 | F26: ='Total NF'!F26-Govt!F26 -> 3254.3 | G26: ='Total NF'!G26-Govt!G26 -> 3223.3 | H26: ='Total NF'!H26-Govt!H26 -> 3190.5 | I26: ='Total NF'!I26-Govt!I26 -> 3186.6 | J26: ='Total NF'!J26-Govt!J26 -> 3186.8 | K26: ='Total NF'!K26-Govt!K26 -> 3190.7 | L26: ='Total NF'!L26-Govt!L26 -> 3193.8 | M26: ='Total NF'!M26-Govt!M26 -> 3191.8 | N26: ='Total NF'!N26-Govt!N26 -> 3194.4 | P26: ='Total NF'!P26-Govt!P26 -> 3195 | Q26: ='Total NF'!Q26-Govt!Q26 -> 3195.7 | R26: ='Total NF'!R26-Govt!R26 -> 3190.6 | S26: ='Total NF'!S26-Govt!S26 -> 3207.4 | T26: ='Total NF'!T26-Govt!T26 -> 3211.1 | U26: ='Total NF'!U26-Govt!U26 -> 3222.1 | V26: ='Total NF'!V26-Govt!V26 -> 3242.1 | W26: ='Total NF'!W26-Govt!W26 -> 3234.7 | X26: ='Total NF'!X26-Govt!X26 -> 3245.8 | Y26: ='Total NF'!Y26-Govt!Y26 -> 3261.3 | Z26: ='Total NF'!Z26-Govt!Z26 -> 3265.1 | AA26: ='Total NF'!AA26-Govt!AA26 -> 3266.4 | AC26: ='Total NF'!AC26-Govt!AC26 -> 3285.7 | AD26: ='Total NF'!AD26-Govt!AD26 -> 3292 | AE26: ='Total NF'!AE26-Govt!AE26 -> 3299.3 | AF26: ='Total NF'!AF26-Govt!AF26 -> 3315.4 | AG26: ='Total NF'!AG26-Govt!AG26 -> 3320.2 | AH26: ='Total NF'!AH26-Govt!AH26 -> 3324.1 | AI26: ='Total NF'!AI26-Govt!AI26 -> 3345.6 | AJ26: ='Total NF'!AJ26-Govt!AJ26 -> 3350.5 | AK26: ='Total NF'!AK26-Govt!AK26 -> 3358 | AL26: ='Total NF'!AL26-Govt!AL26 -> 3369.5 | AM26: ='Total NF'!AM26-Govt!AM26 -> 3376.3 | AN26: ='Total NF'!AN26-Govt!AN26 -> 3376.6 | AP26: ='Total NF'!AP26-Govt!AP26 -> 3391.6 | AQ26: ='Total NF'!AQ26-Govt!AQ26 -> 3400.3 | AR26: ='Total NF'!AR26-Govt!AR26 -> 3409.2 | AS26: ='Total NF'!AS26-Govt!AS26 -> 3423.4 | AT26: ='Total NF'!AT26-Govt!AT26 -> 3414.2 | AU26: ='Total NF'!AU26-Govt!AU26 -> 3418.3 | AV26: ='Total NF'!AV26-Govt!AV26 -> 3432.1 | AW26: ='Total NF'!AW26-Govt!AW26 -> 3429.1 | AX26: ='Total NF'!AX26-Govt!AX26 -> 3432.6 | AY26: ='Total NF'!AY26-Govt!AY26 -> 3442.4 | AZ26: ='Total NF'!AZ26-Govt!AZ26 -> 3452.2 | BA26: ='Total NF'!BA26-Govt!BA26 -> 3461.5 | BC26: ='Total NF'!BC26-Govt!BC26 -> 3479.1 | BD26: ='Total NF'!BD26-Govt!BD26 -> 3492.1 | BE26: ='Total NF'!BE26-Govt!BE26 -> 3495 | BF26: ='Total NF'!BF26-Govt!BF26 -> 3491.1 | BG26: ='Total NF'!BG26-Govt!BG26 -> 3500.2 | BH26: ='Total NF'!BH26-Govt!BH26 -> 3509.5 | BI26: ='Total NF'!BI26-Govt!BI26 -> 3503.7 | BJ26: ='Total NF'!BJ26-Govt!BJ26 -> 3514.9 | BK26: ='Total NF'!BK26-Govt!BK26 -> 3514.1 | BL26: ='Total NF'!BL26-Govt!BL26 -> 3524.9 | BM26: ='Total NF'!BM26-Govt!BM26 -> 3524.9 | BN26: ='Total NF'!BN26-Govt!BN26 -> 3525.8 | BO26: ='Total NF'!BO26-Govt!BO26 -> 0 | BP26: ='Total NF'!BP26-Govt!BP26 -> 3548 | BQ26: ='Total NF'!BQ26-Govt!BQ26 -> 3562.2 | BR26: ='Total NF'!BR26-Govt!BR26 -> 3562.4 | BS26: ='Total NF'!BS26-Govt!BS26 -> 3560.9 | BT26: ='Total NF'!BT26-Govt!BT26 -> 3575.9 | BU26: ='Total NF'!BU26-Govt!BU26 -> 3592.1 | BV26: ='Total NF'!BV26-Govt!BV26 -> 3586.8 | BW26: ='Total NF'!BW26-Govt!BW26 -> 3591.2 | BX26: ='Total NF'!BX26-Govt!BX26 -> 3592.6 | BY26: ='Total NF'!BY26-Govt!BY26 -> 3600.4 | BZ26: ='Total NF'!BZ26-Govt!BZ26 -> 3612.7 | CA26: ='Total NF'!CA26-Govt!CA26 -> 3622.4 | CB26: ='Total NF'!CB26-Govt!CB26 -> 3626.7 | CC26: ='Total NF'!CC26-Govt!CC26 -> 3628 | CD26: ='Total NF'!CD26-Govt!CD26 -> 3629.2 | CE26: ='Total NF'!CE26-Govt!CE26 -> 3632.1 | CF26: ='Total NF'!CF26-Govt!CF26 -> 3644.5 | CG26: ='Total NF'!CG26-Govt!CG26 -> 3646.4 | CH26: ='Total NF'!CH26-Govt!CH26 -> 3647.8 | CI26: ='Total NF'!CI26-Govt!CI26 -> 3653 | CJ26: ='Total NF'!CJ26-Govt!CJ26 -> 3655.9 | CK26: ='Total NF'!CK26-Govt!CK26 -> 3668.9 | CL26: ='Total NF'!CL26-Govt!CL26 -> 3678.3 | CM26: ='Total NF'!CM26-Govt!CM26 -> 3690 | CN26: ='Total NF'!CN26-Govt!CN26 -> 3695 | CO26: ='Total NF'!CO26-Govt!CO26 -> 3698.9 | CP26: ='Total NF'!CP26-Govt!CP26 -> 3701 | CQ26: ='Total NF'!CQ26-Govt!CQ26 -> 3719.4 | CR26: ='Total NF'!CR26-Govt!CR26 -> 3715.7 | CS26: ='Total NF'!CS26-Govt!CS26 -> 3720.1 | CT26: ='Total NF'!CT26-Govt!CT26 -> 3730.2 | CU26: ='Total NF'!CU26-Govt!CU26 -> 3730.4 | CV26: ='Total NF'!CV26-Govt!CV26 -> 3737.5 | CW26: ='Total NF'!CW26-Govt!CW26 -> 3756.6 | CX26: ='Total NF'!CX26-Govt!CX26 -> 3758.8 | CY26: ='Total NF'!CY26-Govt!CY26 -> 3759 | CZ26: ='Total NF'!CZ26-Govt!CZ26 -> 3769.1 | DA26: ='Total NF'!DA26-Govt!DA26 -> 3767.1 | DB26: ='Total NF'!DB26-Govt!DB26 -> 3770.1 | DC26: ='Total NF'!DC26-Govt!DC26 -> 3780.9 | DD26: ='Total NF'!DD26-Govt!DD26 -> 3776.1 | DE26: ='Total NF'!DE26-Govt!DE26 -> 3774 | DF26: ='Total NF'!DF26-Govt!DF26 -> 3775.6 | DG26: ='Total NF'!DG26-Govt!DG26 -> 3775.6 | DH26: ='Total NF'!DH26-Govt!DH26 -> 3788.3 | DI26: ='Total NF'!DI26-Govt!DI26 -> 3791.2 | DJ26: ='Total NF'!DJ26-Govt!DJ26 -> 3801.9 | DK26: 10.7 | DL26: 0.002822325385 | DM26: 6 | DN26: 15 | DO26: 43.1 | DP26: 0.01146642545 | DQ26: 14 | DR26: 34 | DS26: 42.9 | DT26: 0.01141260974 | DU26: 12 | DV26: 29 | DW26: 615.3 | DX26: 0.1930898136 | DY26: 6 | DZ26: 14
A27: Minnesota | B27: SMS27000004000000001 | C27: ='Total NF'!C27-Govt!C27 -> 2293.6 | D27: ='Total NF'!D27-Govt!D27 -> 2276.2 | E27: ='Total NF'!E27-Govt!E27 -> 2261.6 | F27: ='Total NF'!F27-Govt!F27 -> 2243.4 | G27: ='Total NF'!G27-Govt!G27 -> 2242.2 | H27: ='Total NF'!H27-Govt!H27 -> 2229.6 | I27: ='Total NF'!I27-Govt!I27 -> 2223.8 | J27: ='Total NF'!J27-Govt!J27 -> 2219.2 | K27: ='Total NF'!K27-Govt!K27 -> 2210.9 | L27: ='Total NF'!L27-Govt!L27 -> 2215 | M27: ='Total NF'!M27-Govt!M27 -> 2216.3 | N27: ='Total NF'!N27-Govt!N27 -> 2217.4 | P27: ='Total NF'!P27-Govt!P27 -> 2209.9 | Q27: ='Total NF'!Q27-Govt!Q27 -> 2208.6 | R27: ='Total NF'!R27-Govt!R27 -> 2210.4 | S27: ='Total NF'!S27-Govt!S27 -> 2218.8 | T27: ='Total NF'!T27-Govt!T27 -> 2219.5 | U27: ='Total NF'!U27-Govt!U27 -> 2222.7 | V27: ='Total NF'!V27-Govt!V27 -> 2226.7 | W27: ='Total NF'!W27-Govt!W27 -> 2228.3 | X27: ='Total NF'!X27-Govt!X27 -> 2225.7 | Y27: ='Total NF'!Y27-Govt!Y27 -> 2240.1 | Z27: ='Total NF'!Z27-Govt!Z27 -> 2241 | AA27: ='Total NF'!AA27-Govt!AA27 -> 2241.1 | AC27: ='Total NF'!AC27-Govt!AC27 -> 2249.3 | AD27: ='Total NF'!AD27-Govt!AD27 -> 2254.1 | AE27: ='Total NF'!AE27-Govt!AE27 -> 2257.7 | AF27: ='Total NF'!AF27-Govt!AF27 -> 2266.8 | AG27: ='Total NF'!AG27-Govt!AG27 -> 2274.8 | AH27: ='Total NF'!AH27-Govt!AH27 -> 2275.7 | AI27: ='Total NF'!AI27-Govt!AI27 -> 2283.2 | AJ27: ='Total NF'!AJ27-Govt!AJ27 -> 2288.1 | AK27: ='Total NF'!AK27-Govt!AK27 -> 2296.2 | AL27: ='Total NF'!AL27-Govt!AL27 -> 2291.2 | AM27: ='Total NF'!AM27-Govt!AM27 -> 2293.2 | AN27: ='Total NF'!AN27-Govt!AN27 -> 2297.9 | AP27: ='Total NF'!AP27-Govt!AP27 -> 2298.9 | AQ27: ='Total NF'!AQ27-Govt!AQ27 -> 2302.5 | AR27: ='Total NF'!AR27-Govt!AR27 -> 2310.8 | AS27: ='Total NF'!AS27-Govt!AS27 -> 2324.2 | AT27: ='Total NF'!AT27-Govt!AT27 -> 2311.8 | AU27: ='Total NF'!AU27-Govt!AU27 -> 2313.8 | AV27: ='Total NF'!AV27-Govt!AV27 -> 2316.5 | AW27: ='Total NF'!AW27-Govt!AW27 -> 2319.3 | AX27: ='Total NF'!AX27-Govt!AX27 -> 2326.5 | AY27: ='Total NF'!AY27-Govt!AY27 -> 2330 | AZ27: ='Total NF'!AZ27-Govt!AZ27 -> 2332.4 | BA27: ='Total NF'!BA27-Govt!BA27 -> 2337.8 | BC27: ='Total NF'!BC27-Govt!BC27 -> 2345.8 | BD27: ='Total NF'!BD27-Govt!BD27 -> 2353.8 | BE27: ='Total NF'!BE27-Govt!BE27 -> 2356.3 | BF27: ='Total NF'!BF27-Govt!BF27 -> 2353.9 | BG27: ='Total NF'!BG27-Govt!BG27 -> 2358.6 | BH27: ='Total NF'!BH27-Govt!BH27 -> 2363.9 | BI27: ='Total NF'!BI27-Govt!BI27 -> 2362.8 | BJ27: ='Total NF'!BJ27-Govt!BJ27 -> 2367.8 | BK27: ='Total NF'!BK27-Govt!BK27 -> 2370.1 | BL27: ='Total NF'!BL27-Govt!BL27 -> 2381.6 | BM27: ='Total NF'!BM27-Govt!BM27 -> 2385.2 | BN27: ='Total NF'!BN27-Govt!BN27 -> 2395.1 | BO27: ='Total NF'!BO27-Govt!BO27 -> 0 | BP27: ='Total NF'!BP27-Govt!BP27 -> 2377.4 | BQ27: ='Total NF'!BQ27-Govt!BQ27 -> 2378.4 | BR27: ='Total NF'!BR27-Govt!BR27 -> 2377.4 | BS27: ='Total NF'!BS27-Govt!BS27 -> 2387.2 | BT27: ='Total NF'!BT27-Govt!BT27 -> 2391.8 | BU27: ='Total NF'!BU27-Govt!BU27 -> 2397 | BV27: ='Total NF'!BV27-Govt!BV27 -> 2401.2 | BW27: ='Total NF'!BW27-Govt!BW27 -> 2403.7 | BX27: ='Total NF'!BX27-Govt!BX27 -> 2397.5 | BY27: ='Total NF'!BY27-Govt!BY27 -> 2410.1 | BZ27: ='Total NF'!BZ27-Govt!BZ27 -> 2409.9 | CA27: ='Total NF'!CA27-Govt!CA27 -> 2412.8 | CB27: ='Total NF'!CB27-Govt!CB27 -> 2417 | CC27: ='Total NF'!CC27-Govt!CC27 -> 2422.4 | CD27: ='Total NF'!CD27-Govt!CD27 -> 2426.1 | CE27: ='Total NF'!CE27-Govt!CE27 -> 2431.1 | CF27: ='Total NF'!CF27-Govt!CF27 -> 2437 | CG27: ='Total NF'!CG27-Govt!CG27 -> 2437.7 | CH27: ='Total NF'!CH27-Govt!CH27 -> 2439.4 | CI27: ='Total NF'!CI27-Govt!CI27 -> 2439.4 | CJ27: ='Total NF'!CJ27-Govt!CJ27 -> 2437.2 | CK27: ='Total NF'!CK27-Govt!CK27 -> 2439.7 | CL27: ='Total NF'!CL27-Govt!CL27 -> 2446.3 | CM27: ='Total NF'!CM27-Govt!CM27 -> 2450.9 | CN27: ='Total NF'!CN27-Govt!CN27 -> 2458.2 | CO27: ='Total NF'!CO27-Govt!CO27 -> 2463.3 | CP27: ='Total NF'!CP27-Govt!CP27 -> 2461.8 | CQ27: ='Total NF'!CQ27-Govt!CQ27 -> 2472.1 | CR27: ='Total NF'!CR27-Govt!CR27 -> 2467.6 | CS27: ='Total NF'!CS27-Govt!CS27 -> 2461.1 | CT27: ='Total NF'!CT27-Govt!CT27 -> 2476.2 | CU27: ='Total NF'!CU27-Govt!CU27 -> 2478.4 | CV27: ='Total NF'!CV27-Govt!CV27 -> 2477.5 | CW27: ='Total NF'!CW27-Govt!CW27 -> 2479.3 | CX27: ='Total NF'!CX27-Govt!CX27 -> 2486.9 | CY27: ='Total NF'!CY27-Govt!CY27 -> 2491.7 | CZ27: ='Total NF'!CZ27-Govt!CZ27 -> 2490.5 | DA27: ='Total NF'!DA27-Govt!DA27 -> 2499.1 | DB27: ='Total NF'!DB27-Govt!DB27 -> 2504.7 | DC27: ='Total NF'!DC27-Govt!DC27 -> 2518.1 | DD27: ='Total NF'!DD27-Govt!DD27 -> 2517.8 | DE27: ='Total NF'!DE27-Govt!DE27 -> 2525.6 | DF27: ='Total NF'!DF27-Govt!DF27 -> 2526.6 | DG27: ='Total NF'!DG27-Govt!DG27 -> 2520 | DH27: ='Total NF'!DH27-Govt!DH27 -> 2524.9 | DI27: ='Total NF'!DI27-Govt!DI27 -> 2522 | DJ27: ='Total NF'!DJ27-Govt!DJ27 -> 2518.6 | DK27: -3.4 | DL27: -0.0013481364 | DM27: 48 | DN27: 40 | DO27: 31.7 | DP27: 0.0127467932 | DQ27: 23 | DR27: 31 | DS27: 26.9 | DT27: 0.0107958422 | DU27: 24 | DV27: 31 | DW27: 294.8 | DX27: 0.1325658782 | DY27: 19 | DZ27: 23
A28: Mississippi | B28: SMS28000004000000001 | C28: ='Total NF'!C28-Govt!C28 -> 871.2 | D28: ='Total NF'!D28-Govt!D28 -> 865.9 | E28: ='Total NF'!E28-Govt!E28 -> 857.4 | F28: ='Total NF'!F28-Govt!F28 -> 850.3 | G28: ='Total NF'!G28-Govt!G28 -> 848.5 | H28: ='Total NF'!H28-Govt!H28 -> 845.6 | I28: ='Total NF'!I28-Govt!I28 -> 843.9 | J28: ='Total NF'!J28-Govt!J28 -> 842.4 | K28: ='Total NF'!K28-Govt!K28 -> 839.3 | L28: ='Total NF'!L28-Govt!L28 -> 837.1 | M28: ='Total NF'!M28-Govt!M28 -> 837.4 | N28: ='Total NF'!N28-Govt!N28 -> 835.9 | P28: ='Total NF'!P28-Govt!P28 -> 835.4 | Q28: ='Total NF'!Q28-Govt!Q28 -> 835 | R28: ='Total NF'!R28-Govt!R28 -> 835.9 | S28: ='Total NF'!S28-Govt!S28 -> 842.6 | T28: ='Total NF'!T28-Govt!T28 -> 845 | U28: ='Total NF'!U28-Govt!U28 -> 846.7 | V28: ='Total NF'!V28-Govt!V28 -> 847.7 | W28: ='Total NF'!W28-Govt!W28 -> 846.5 | X28: ='Total NF'!X28-Govt!X28 -> 846.6 | Y28: ='Total NF'!Y28-Govt!Y28 -> 848.3 | Z28: ='Total NF'!Z28-Govt!Z28 -> 846 | AA28: ='Total NF'!AA28-Govt!AA28 -> 846.3 | AC28: ='Total NF'!AC28-Govt!AC28 -> 845.2 | AD28: ='Total NF'!AD28-Govt!AD28 -> 845.3 | AE28: ='Total NF'!AE28-Govt!AE28 -> 847.3 | AF28: ='Total NF'!AF28-Govt!AF28 -> 847.6 | AG28: ='Total NF'!AG28-Govt!AG28 -> 847.4 | AH28: ='Total NF'!AH28-Govt!AH28 -> 847.6 | AI28: ='Total NF'!AI28-Govt!AI28 -> 846.8 | AJ28: ='Total NF'!AJ28-Govt!AJ28 -> 846 | AK28: ='Total NF'!AK28-Govt!AK28 -> 847.9 | AL28: ='Total NF'!AL28-Govt!AL28 -> 848.7 | AM28: ='Total NF'!AM28-Govt!AM28 -> 849 | AN28: ='Total NF'!AN28-Govt!AN28 -> 848.9 | AP28: ='Total NF'!AP28-Govt!AP28 -> 852 | AQ28: ='Total NF'!AQ28-Govt!AQ28 -> 854.6 | AR28: ='Total NF'!AR28-Govt!AR28 -> 855.2 | AS28: ='Total NF'!AS28-Govt!AS28 -> 856 | AT28: ='Total NF'!AT28-Govt!AT28 -> 854.8 | AU28: ='Total NF'!AU28-Govt!AU28 -> 854.7 | AV28: ='Total NF'!AV28-Govt!AV28 -> 856.5 | AW28: ='Total NF'!AW28-Govt!AW28 -> 857.3 | AX28: ='Total NF'!AX28-Govt!AX28 -> 856.7 | AY28: ='Total NF'!AY28-Govt!AY28 -> 857.8 | AZ28: ='Total NF'!AZ28-Govt!AZ28 -> 859 | BA28: ='Total NF'!BA28-Govt!BA28 -> 860.4 | BC28: ='Total NF'!BC28-Govt!BC28 -> 860.5 | BD28: ='Total NF'!BD28-Govt!BD28 -> 863.7 | BE28: ='Total NF'!BE28-Govt!BE28 -> 861.9 | BF28: ='Total NF'!BF28-Govt!BF28 -> 862.8 | BG28: ='Total NF'!BG28-Govt!BG28 -> 862.4 | BH28: ='Total NF'!BH28-Govt!BH28 -> 863.4 | BI28: ='Total NF'!BI28-Govt!BI28 -> 864.5 | BJ28: ='Total NF'!BJ28-Govt!BJ28 -> 864.7 | BK28: ='Total NF'!BK28-Govt!BK28 -> 866.7 | BL28: ='Total NF'!BL28-Govt!BL28 -> 874.6 | BM28: ='Total NF'!BM28-Govt!BM28 -> 874.5 | BN28: ='Total NF'!BN28-Govt!BN28 -> 874.4 | BO28: ='Total NF'!BO28-Govt!BO28 -> 0 | BP28: ='Total NF'!BP28-Govt!BP28 -> 875.5 | BQ28: ='Total NF'!BQ28-Govt!BQ28 -> 872.4 | BR28: ='Total NF'!BR28-Govt!BR28 -> 871.2 | BS28: ='Total NF'!BS28-Govt!BS28 -> 872.6 | BT28: ='Total NF'!BT28-Govt!BT28 -> 872.7 | BU28: ='Total NF'!BU28-Govt!BU28 -> 871.8 | BV28: ='Total NF'!BV28-Govt!BV28 -> 873.6 | BW28: ='Total NF'!BW28-Govt!BW28 -> 874.2 | BX28: ='Total NF'!BX28-Govt!BX28 -> 874.9 | BY28: ='Total NF'!BY28-Govt!BY28 -> 877.3 | BZ28: ='Total NF'!BZ28-Govt!BZ28 -> 877.1 | CA28: ='Total NF'!CA28-Govt!CA28 -> 879 | CB28: ='Total NF'!CB28-Govt!CB28 -> 883.4 | CC28: ='Total NF'!CC28-Govt!CC28 -> 885.1 | CD28: ='Total NF'!CD28-Govt!CD28 -> 882.3 | CE28: ='Total NF'!CE28-Govt!CE28 -> 885.6 | CF28: ='Total NF'!CF28-Govt!CF28 -> 888.8 | CG28: ='Total NF'!CG28-Govt!CG28 -> 888.1 | CH28: ='Total NF'!CH28-Govt!CH28 -> 889.5 | CI28: ='Total NF'!CI28-Govt!CI28 -> 891.2 | CJ28: ='Total NF'!CJ28-Govt!CJ28 -> 892.5 | CK28: ='Total NF'!CK28-Govt!CK28 -> 895.2 | CL28: ='Total NF'!CL28-Govt!CL28 -> 896.2 | CM28: ='Total NF'!CM28-Govt!CM28 -> 898.8 | CN28: ='Total NF'!CN28-Govt!CN28 -> 901.5 | CO28: ='Total NF'!CO28-Govt!CO28 -> 902.8 | CP28: ='Total NF'!CP28-Govt!CP28 -> 901.8 | CQ28: ='Total NF'!CQ28-Govt!CQ28 -> 899.2 | CR28: ='Total NF'!CR28-Govt!CR28 -> 897.8 | CS28: ='Total NF'!CS28-Govt!CS28 -> 898.3 | CT28: ='Total NF'!CT28-Govt!CT28 -> 902.8 | CU28: ='Total NF'!CU28-Govt!CU28 -> 902.2 | CV28: ='Total NF'!CV28-Govt!CV28 -> 902.4 | CW28: ='Total NF'!CW28-Govt!CW28 -> 901.8 | CX28: ='Total NF'!CX28-Govt!CX28 -> 901.6 | CY28: ='Total NF'!CY28-Govt!CY28 -> 900.1 | CZ28: ='Total NF'!CZ28-Govt!CZ28 -> 901.3 | DA28: ='Total NF'!DA28-Govt!DA28 -> 900.8 | DB28: ='Total NF'!DB28-Govt!DB28 -> 899.5 | DC28: ='Total NF'!DC28-Govt!DC28 -> 899.6 | DD28: ='Total NF'!DD28-Govt!DD28 -> 899 | DE28: ='Total NF'!DE28-Govt!DE28 -> 906.1 | DF28: ='Total NF'!DF28-Govt!DF28 -> 905.9 | DG28: ='Total NF'!DG28-Govt!DG28 -> 907.4 | DH28: ='Total NF'!DH28-Govt!DH28 -> 906.2 | DI28: ='Total NF'!DI28-Govt!DI28 -> 911 | DJ28: ='Total NF'!DJ28-Govt!DJ28 -> 914.1 | DK28: 3.1 | DL28: 0.003402854007 | DM28: 19 | DN28: 7 | DO28: 12.5 | DP28: 0.01386424135 | DQ28: 35 | DR28: 27 | DS28: 14 | DT28: 0.01555382735 | DU28: 32 | DV28: 20 | DW28: 70.2 | DX28: 0.08318521152 | DY28: 37 | DZ28: 43
A29: Missouri | B29: SMS29000004000000001 | C29: ='Total NF'!C29-Govt!C29 -> 2293.5 | D29: ='Total NF'!D29-Govt!D29 -> 2280.9 | E29: ='Total NF'!E29-Govt!E29 -> 2264.9 | F29: ='Total NF'!F29-Govt!F29 -> 2243.8 | G29: ='Total NF'!G29-Govt!G29 -> 2239.8 | H29: ='Total NF'!H29-Govt!H29 -> 2232.7 | I29: ='Total NF'!I29-Govt!I29 -> 2229.6 | J29: ='Total NF'!J29-Govt!J29 -> 2224.7 | K29: ='Total NF'!K29-Govt!K29 -> 2217 | L29: ='Total NF'!L29-Govt!L29 -> 2211.1 | M29: ='Total NF'!M29-Govt!M29 -> 2210.8 | N29: ='Total NF'!N29-Govt!N29 -> 2207 | P29: ='Total NF'!P29-Govt!P29 -> 2202.3 | Q29: ='Total NF'!Q29-Govt!Q29 -> 2203.9 | R29: ='Total NF'!R29-Govt!R29 -> 2203.9 | S29: ='Total NF'!S29-Govt!S29 -> 2205.5 | T29: ='Total NF'!T29-Govt!T29 -> 2204.4 | U29: ='Total NF'!U29-Govt!U29 -> 2206.4 | V29: ='Total NF'!V29-Govt!V29 -> 2215 | W29: ='Total NF'!W29-Govt!W29 -> 2214.4 | X29: ='Total NF'!X29-Govt!X29 -> 2215.9 | Y29: ='Total NF'!Y29-Govt!Y29 -> 2221 | Z29: ='Total NF'!Z29-Govt!Z29 -> 2220.9 | AA29: ='Total NF'!AA29-Govt!AA29 -> 2222.6 | AC29: ='Total NF'!AC29-Govt!AC29 -> 2217 | AD29: ='Total NF'!AD29-Govt!AD29 -> 2218.2 | AE29: ='Total NF'!AE29-Govt!AE29 -> 2223.1 | AF29: ='Total NF'!AF29-Govt!AF29 -> 2227.9 | AG29: ='Total NF'!AG29-Govt!AG29 -> 2226.8 | AH29: ='Total NF'!AH29-Govt!AH29 -> 2225.7 | AI29: ='Total NF'!AI29-Govt!AI29 -> 2231.7 | AJ29: ='Total NF'!AJ29-Govt!AJ29 -> 2229.3 | AK29: ='Total NF'!AK29-Govt!AK29 -> 2233.5 | AL29: ='Total NF'!AL29-Govt!AL29 -> 2231.7 | AM29: ='Total NF'!AM29-Govt!AM29 -> 2234 | AN29: ='Total NF'!AN29-Govt!AN29 -> 2237.7 | AP29: ='Total NF'!AP29-Govt!AP29 -> 2240.8 | AQ29: ='Total NF'!AQ29-Govt!AQ29 -> 2239.9 | AR29: ='Total NF'!AR29-Govt!AR29 -> 2243.8 | AS29: ='Total NF'!AS29-Govt!AS29 -> 2243 | AT29: ='Total NF'!AT29-Govt!AT29 -> 2242.3 | AU29: ='Total NF'!AU29-Govt!AU29 -> 2244.7 | AV29: ='Total NF'!AV29-Govt!AV29 -> 2245.9 | AW29: ='Total NF'!AW29-Govt!AW29 -> 2244.6 | AX29: ='Total NF'!AX29-Govt!AX29 -> 2246.6 | AY29: ='Total NF'!AY29-Govt!AY29 -> 2254.1 | AZ29: ='Total NF'!AZ29-Govt!AZ29 -> 2257.9 | BA29: ='Total NF'!BA29-Govt!BA29 -> 2259.7 | BC29: ='Total NF'!BC29-Govt!BC29 -> 2261.5 | BD29: ='Total NF'!BD29-Govt!BD29 -> 2267.9 | BE29: ='Total NF'!BE29-Govt!BE29 -> 2261.8 | BF29: ='Total NF'!BF29-Govt!BF29 -> 2272.8 | BG29: ='Total NF'!BG29-Govt!BG29 -> 2273 | BH29: ='Total NF'!BH29-Govt!BH29 -> 2274.9 | BI29: ='Total NF'!BI29-Govt!BI29 -> 2279.4 | BJ29: ='Total NF'!BJ29-Govt!BJ29 -> 2281 | BK29: ='Total NF'!BK29-Govt!BK29 -> 2283.8 | BL29: ='Total NF'!BL29-Govt!BL29 -> 2289.6 | BM29: ='Total NF'!BM29-Govt!BM29 -> 2299 | BN29: ='Total NF'!BN29-Govt!BN29 -> 2297.6 | BO29: ='Total NF'!BO29-Govt!BO29 -> 0 | BP29: ='Total NF'!BP29-Govt!BP29 -> 2283.4 | BQ29: ='Total NF'!BQ29-Govt!BQ29 -> 2291.6 | BR29: ='Total NF'!BR29-Govt!BR29 -> 2289.7 | BS29: ='Total NF'!BS29-Govt!BS29 -> 2300.8 | BT29: ='Total NF'!BT29-Govt!BT29 -> 2302.6 | BU29: ='Total NF'!BU29-Govt!BU29 -> 2302.7 | BV29: ='Total NF'!BV29-Govt!BV29 -> 2305.6 | BW29: ='Total NF'!BW29-Govt!BW29 -> 2308.4 | BX29: ='Total NF'!BX29-Govt!BX29 -> 2307.8 | BY29: ='Total NF'!BY29-Govt!BY29 -> 2307.9 | BZ29: ='Total NF'!BZ29-Govt!BZ29 -> 2308.1 | CA29: ='Total NF'!CA29-Govt!CA29 -> 2313.1 | CB29: ='Total NF'!CB29-Govt!CB29 -> 2340.9 | CC29: ='Total NF'!CC29-Govt!CC29 -> 2344 | CD29: ='Total NF'!CD29-Govt!CD29 -> 2339 | CE29: ='Total NF'!CE29-Govt!CE29 -> 2345.1 | CF29: ='Total NF'!CF29-Govt!CF29 -> 2351.1 | CG29: ='Total NF'!CG29-Govt!CG29 -> 2351.5 | CH29: ='Total NF'!CH29-Govt!CH29 -> 2359.2 | CI29: ='Total NF'!CI29-Govt!CI29 -> 2358.7 | CJ29: ='Total NF'!CJ29-Govt!CJ29 -> 2362.8 | CK29: ='Total NF'!CK29-Govt!CK29 -> 2355.4 | CL29: ='Total NF'!CL29-Govt!CL29 -> 2353.1 | CM29: ='Total NF'!CM29-Govt!CM29 -> 2351.7 | CN29: ='Total NF'!CN29-Govt!CN29 -> 2391.4 | CO29: ='Total NF'!CO29-Govt!CO29 -> 2397.5 | CP29: ='Total NF'!CP29-Govt!CP29 -> 2398.7 | CQ29: ='Total NF'!CQ29-Govt!CQ29 -> 2403 | CR29: ='Total NF'!CR29-Govt!CR29 -> 2399.7 | CS29: ='Total NF'!CS29-Govt!CS29 -> 2402.6 | CT29: ='Total NF'!CT29-Govt!CT29 -> 2407.7 | CU29: ='Total NF'!CU29-Govt!CU29 -> 2410 | CV29: ='Total NF'!CV29-Govt!CV29 -> 2414 | CW29: ='Total NF'!CW29-Govt!CW29 -> 2424.2 | CX29: ='Total NF'!CX29-Govt!CX29 -> 2428.5 | CY29: ='Total NF'!CY29-Govt!CY29 -> 2435.8 | CZ29: ='Total NF'!CZ29-Govt!CZ29 -> 2441.8 | DA29: ='Total NF'!DA29-Govt!DA29 -> 2447.8 | DB29: ='Total NF'!DB29-Govt!DB29 -> 2433.3 | DC29: ='Total NF'!DC29-Govt!DC29 -> 2438.4 | DD29: ='Total NF'!DD29-Govt!DD29 -> 2444.1 | DE29: ='Total NF'!DE29-Govt!DE29 -> 2450.1 | DF29: ='Total NF'!DF29-Govt!DF29 -> 2449.2 | DG29: ='Total NF'!DG29-Govt!DG29 -> 2450.2 | DH29: ='Total NF'!DH29-Govt!DH29 -> 2451.1 | DI29: ='Total NF'!DI29-Govt!DI29 -> 2456.4 | DJ29: ='Total NF'!DJ29-Govt!DJ29 -> 2459.9 | DK29: 3.5 | DL29: 0.001424849373 | DM29: 18 | DN29: 24 | DO29: 31.4 | DP29: 0.01292979205 | DQ29: 24 | DR29: 30 | DS29: 24.1 | DT29: 0.009894079974 | DU29: 26 | DV29: 36 | DW29: 230.3 | DX29: 0.1032920703 | DY29: 25 | DZ29: 33
A30: Montana | B30: SMS30000004000000001 | C30: ='Total NF'!C30-Govt!C30 -> 346.2 | D30: ='Total NF'!D30-Govt!D30 -> 343.8 | E30: ='Total NF'!E30-Govt!E30 -> 339.8 | F30: ='Total NF'!F30-Govt!F30 -> 339.8 | G30: ='Total NF'!G30-Govt!G30 -> 339.2 | H30: ='Total NF'!H30-Govt!H30 -> 339.3 | I30: ='Total NF'!I30-Govt!I30 -> 338.5 | J30: ='Total NF'!J30-Govt!J30 -> 337.6 | K30: ='Total NF'!K30-Govt!K30 -> 337.1 | L30: ='Total NF'!L30-Govt!L30 -> 337.1 | M30: ='Total NF'!M30-Govt!M30 -> 336.9 | N30: ='Total NF'!N30-Govt!N30 -> 335.3 | P30: ='Total NF'!P30-Govt!P30 -> 335.9 | Q30: ='Total NF'!Q30-Govt!Q30 -> 335.4 | R30: ='Total NF'!R30-Govt!R30 -> 335.5 | S30: ='Total NF'!S30-Govt!S30 -> 335.7 | T30: ='Total NF'!T30-Govt!T30 -> 335.7 | U30: ='Total NF'!U30-Govt!U30 -> 336.2 | V30: ='Total NF'!V30-Govt!V30 -> 336.4 | W30: ='Total NF'!W30-Govt!W30 -> 336.6 | X30: ='Total NF'!X30-Govt!X30 -> 336.8 | Y30: ='Total NF'!Y30-Govt!Y30 -> 337.1 | Z30: ='Total NF'!Z30-Govt!Z30 -> 336.1 | AA30: ='Total NF'!AA30-Govt!AA30 -> 336.5 | AC30: ='Total NF'!AC30-Govt!AC30 -> 336.9 | AD30: ='Total NF'!AD30-Govt!AD30 -> 337.7 | AE30: ='Total NF'!AE30-Govt!AE30 -> 338 | AF30: ='Total NF'!AF30-Govt!AF30 -> 338.5 | AG30: ='Total NF'!AG30-Govt!AG30 -> 339.6 | AH30: ='Total NF'!AH30-Govt!AH30 -> 339 | AI30: ='Total NF'!AI30-Govt!AI30 -> 341.5 | AJ30: ='Total NF'!AJ30-Govt!AJ30 -> 342.3 | AK30: ='Total NF'!AK30-Govt!AK30 -> 343.4 | AL30: ='Total NF'!AL30-Govt!AL30 -> 344.3 | AM30: ='Total NF'!AM30-Govt!AM30 -> 345 | AN30: ='Total NF'!AN30-Govt!AN30 -> 346.1 | AP30: ='Total NF'!AP30-Govt!AP30 -> 346.9 | AQ30: ='Total NF'!AQ30-Govt!AQ30 -> 347.3 | AR30: ='Total NF'!AR30-Govt!AR30 -> 347.7 | AS30: ='Total NF'!AS30-Govt!AS30 -> 349.7 | AT30: ='Total NF'!AT30-Govt!AT30 -> 350.1 | AU30: ='Total NF'!AU30-Govt!AU30 -> 350.5 | AV30: ='Total NF'!AV30-Govt!AV30 -> 350.7 | AW30: ='Total NF'!AW30-Govt!AW30 -> 351.6 | AX30: ='Total NF'!AX30-Govt!AX30 -> 352.2 | AY30: ='Total NF'!AY30-Govt!AY30 -> 353.5 | AZ30: ='Total NF'!AZ30-Govt!AZ30 -> 354.1 | BA30: ='Total NF'!BA30-Govt!BA30 -> 354.9 | BC30: ='Total NF'!BC30-Govt!BC30 -> 354.9 | BD30: ='Total NF'!BD30-Govt!BD30 -> 357.2 | BE30: ='Total NF'!BE30-Govt!BE30 -> 357.3 | BF30: ='Total NF'!BF30-Govt!BF30 -> 358.8 | BG30: ='Total NF'!BG30-Govt!BG30 -> 359.1 | BH30: ='Total NF'!BH30-Govt!BH30 -> 359.1 | BI30: ='Total NF'!BI30-Govt!BI30 -> 359.3 | BJ30: ='Total NF'!BJ30-Govt!BJ30 -> 359.2 | BK30: ='Total NF'!BK30-Govt!BK30 -> 359.4 | BL30: ='Total NF'!BL30-Govt!BL30 -> 359.2 | BM30: ='Total NF'!BM30-Govt!BM30 -> 360.6 | BN30: ='Total NF'!BN30-Govt!BN30 -> 361.4 | BO30: ='Total NF'!BO30-Govt!BO30 -> 0 | BP30: ='Total NF'!BP30-Govt!BP30 -> 363.7 | BQ30: ='Total NF'!BQ30-Govt!BQ30 -> 363.9 | BR30: ='Total NF'!BR30-Govt!BR30 -> 362.8 | BS30: ='Total NF'!BS30-Govt!BS30 -> 364.4 | BT30: ='Total NF'!BT30-Govt!BT30 -> 364 | BU30: ='Total NF'!BU30-Govt!BU30 -> 365 | BV30: ='Total NF'!BV30-Govt!BV30 -> 365.1 | BW30: ='Total NF'!BW30-Govt!BW30 -> 365.3 | BX30: ='Total NF'!BX30-Govt!BX30 -> 364.7 | BY30: ='Total NF'!BY30-Govt!BY30 -> 365.7 | BZ30: ='Total NF'!BZ30-Govt!BZ30 -> 365.9 | CA30: ='Total NF'!CA30-Govt!CA30 -> 367.1 | CB30: ='Total NF'!CB30-Govt!CB30 -> 368.9 | CC30: ='Total NF'!CC30-Govt!CC30 -> 369.7 | CD30: ='Total NF'!CD30-Govt!CD30 -> 371 | CE30: ='Total NF'!CE30-Govt!CE30 -> 370.2 | CF30: ='Total NF'!CF30-Govt!CF30 -> 370.6 | CG30: ='Total NF'!CG30-Govt!CG30 -> 371 | CH30: ='Total NF'!CH30-Govt!CH30 -> 370.7 | CI30: ='Total NF'!CI30-Govt!CI30 -> 370.8 | CJ30: ='Total NF'!CJ30-Govt!CJ30 -> 370.8 | CK30: ='Total NF'!CK30-Govt!CK30 -> 370.6 | CL30: ='Total NF'!CL30-Govt!CL30 -> 370.7 | CM30: ='Total NF'!CM30-Govt!CM30 -> 371.1 | CN30: ='Total NF'!CN30-Govt!CN30 -> 374.8 | CO30: ='Total NF'!CO30-Govt!CO30 -> 375.4 | CP30: ='Total NF'!CP30-Govt!CP30 -> 375.7 | CQ30: ='Total NF'!CQ30-Govt!CQ30 -> 376.5 | CR30: ='Total NF'!CR30-Govt!CR30 -> 376.1 | CS30: ='Total NF'!CS30-Govt!CS30 -> 375.6 | CT30: ='Total NF'!CT30-Govt!CT30 -> 376.2 | CU30: ='Total NF'!CU30-Govt!CU30 -> 376.1 | CV30: ='Total NF'!CV30-Govt!CV30 -> 377.1 | CW30: ='Total NF'!CW30-Govt!CW30 -> 377.5 | CX30: ='Total NF'!CX30-Govt!CX30 -> 380.2 | CY30: ='Total NF'!CY30-Govt!CY30 -> 379.8 | CZ30: ='Total NF'!CZ30-Govt!CZ30 -> 382.8 | DA30: ='Total NF'!DA30-Govt!DA30 -> 385.3 | DB30: ='Total NF'!DB30-Govt!DB30 -> 384.8 | DC30: ='Total NF'!DC30-Govt!DC30 -> 383.4 | DD30: ='Total NF'!DD30-Govt!DD30 -> 382.1 | DE30: ='Total NF'!DE30-Govt!DE30 -> 381.2 | DF30: ='Total NF'!DF30-Govt!DF30 -> 380.9 | DG30: ='Total NF'!DG30-Govt!DG30 -> 382 | DH30: ='Total NF'!DH30-Govt!DH30 -> 381.4 | DI30: ='Total NF'!DI30-Govt!DI30 -> 383.3 | DJ30: ='Total NF'!DJ30-Govt!DJ30 -> 383.5 | DK30: 0.2 | DL30: 0.000521784503 | DM30: 36 | DN30: 33 | DO30: 3.3 | DP30: 0.008679642294 | DQ30: 43 | DR30: 38 | DS30: 3.7 | DT30: 0.009741969458 | DU30: 41 | DV30: 37 | DW30: 45 | DX30: 0.1329394387 | DY30: 42 | DZ30: 22
A31: Nebraska | B31: SMS31000004000000001 | C31: ='Total NF'!C31-Govt!C31 -> 796.1 | D31: ='Total NF'!D31-Govt!D31 -> 792.5 | E31: ='Total NF'!E31-Govt!E31 -> 788.8 | F31: ='Total NF'!F31-Govt!F31 -> 781.8 | G31: ='Total NF'!G31-Govt!G31 -> 781.9 | H31: ='Total NF'!H31-Govt!H31 -> 779.6 | I31: ='Total NF'!I31-Govt!I31 -> 778.1 | J31: ='Total NF'!J31-Govt!J31 -> 776.5 | K31: ='Total NF'!K31-Govt!K31 -> 775.5 | L31: ='Total NF'!L31-Govt!L31 -> 773.5 | M31: ='Total NF'!M31-Govt!M31 -> 774 | N31: ='Total NF'!N31-Govt!N31 -> 771.2 | P31: ='Total NF'!P31-Govt!P31 -> 771.6 | Q31: ='Total NF'!Q31-Govt!Q31 -> 772.1 | R31: ='Total NF'!R31-Govt!R31 -> 770.6 | S31: ='Total NF'!S31-Govt!S31 -> 773.5 | T31: ='Total NF'!T31-Govt!T31 -> 774.2 | U31: ='Total NF'!U31-Govt!U31 -> 776.6 | V31: ='Total NF'!V31-Govt!V31 -> 778.5 | W31: ='Total NF'!W31-Govt!W31 -> 778.3 | X31: ='Total NF'!X31-Govt!X31 -> 776.8 | Y31: ='Total NF'!Y31-Govt!Y31 -> 778.7 | Z31: ='Total NF'!Z31-Govt!Z31 -> 777.1 | AA31: ='Total NF'!AA31-Govt!AA31 -> 778.9 | AC31: ='Total NF'!AC31-Govt!AC31 -> 778.6 | AD31: ='Total NF'!AD31-Govt!AD31 -> 778.9 | AE31: ='Total NF'!AE31-Govt!AE31 -> 779.8 | AF31: ='Total NF'!AF31-Govt!AF31 -> 782.7 | AG31: ='Total NF'!AG31-Govt!AG31 -> 783.5 | AH31: ='Total NF'!AH31-Govt!AH31 -> 782.6 | AI31: ='Total NF'!AI31-Govt!AI31 -> 784.8 | AJ31: ='Total NF'!AJ31-Govt!AJ31 -> 785.7 | AK31: ='Total NF'!AK31-Govt!AK31 -> 787.9 | AL31: ='Total NF'!AL31-Govt!AL31 -> 788 | AM31: ='Total NF'!AM31-Govt!AM31 -> 789.8 | AN31: ='Total NF'!AN31-Govt!AN31 -> 791.2 | AP31: ='Total NF'!AP31-Govt!AP31 -> 794.9 | AQ31: ='Total NF'!AQ31-Govt!AQ31 -> 794.4 | AR31: ='Total NF'!AR31-Govt!AR31 -> 798.6 | AS31: ='Total NF'!AS31-Govt!AS31 -> 799.1 | AT31: ='Total NF'!AT31-Govt!AT31 -> 798.8 | AU31: ='Total NF'!AU31-Govt!AU31 -> 800.7 | AV31: ='Total NF'!AV31-Govt!AV31 -> 800.5 | AW31: ='Total NF'!AW31-Govt!AW31 -> 800.2 | AX31: ='Total NF'!AX31-Govt!AX31 -> 801.8 | AY31: ='Total NF'!AY31-Govt!AY31 -> 803.4 | AZ31: ='Total NF'!AZ31-Govt!AZ31 -> 804.4 | BA31: ='Total NF'!BA31-Govt!BA31 -> 807.1 | BC31: ='Total NF'!BC31-Govt!BC31 -> 806.1 | BD31: ='Total NF'!BD31-Govt!BD31 -> 806.9 | BE31: ='Total NF'!BE31-Govt!BE31 -> 807.2 | BF31: ='Total NF'!BF31-Govt!BF31 -> 806.2 | BG31: ='Total NF'!BG31-Govt!BG31 -> 808.3 | BH31: ='Total NF'!BH31-Govt!BH31 -> 809.2 | BI31: ='Total NF'!BI31-Govt!BI31 -> 810.2 | BJ31: ='Total NF'!BJ31-Govt!BJ31 -> 812.2 | BK31: ='Total NF'!BK31-Govt!BK31 -> 813.1 | BL31: ='Total NF'!BL31-Govt!BL31 -> 814.3 | BM31: ='Total NF'!BM31-Govt!BM31 -> 813.9 | BN31: ='Total NF'!BN31-Govt!BN31 -> 813.5 | BO31: ='Total NF'!BO31-Govt!BO31 -> 0 | BP31: ='Total NF'!BP31-Govt!BP31 -> 820 | BQ31: ='Total NF'!BQ31-Govt!BQ31 -> 821.4 | BR31: ='Total NF'!BR31-Govt!BR31 -> 821.6 | BS31: ='Total NF'!BS31-Govt!BS31 -> 823.1 | BT31: ='Total NF'!BT31-Govt!BT31 -> 823 | BU31: ='Total NF'!BU31-Govt!BU31 -> 823.5 | BV31: ='Total NF'!BV31-Govt!BV31 -> 823.4 | BW31: ='Total NF'!BW31-Govt!BW31 -> 824.1 | BX31: ='Total NF'!BX31-Govt!BX31 -> 823.7 | BY31: ='Total NF'!BY31-Govt!BY31 -> 824.1 | BZ31: ='Total NF'!BZ31-Govt!BZ31 -> 824.4 | CA31: ='Total NF'!CA31-Govt!CA31 -> 825.1 | CB31: ='Total NF'!CB31-Govt!CB31 -> 829.7 | CC31: ='Total NF'!CC31-Govt!CC31 -> 831.1 | CD31: ='Total NF'!CD31-Govt!CD31 -> 831.8 | CE31: ='Total NF'!CE31-Govt!CE31 -> 831.1 | CF31: ='Total NF'!CF31-Govt!CF31 -> 832.4 | CG31: ='Total NF'!CG31-Govt!CG31 -> 834.1 | CH31: ='Total NF'!CH31-Govt!CH31 -> 835.8 | CI31: ='Total NF'!CI31-Govt!CI31 -> 836.6 | CJ31: ='Total NF'!CJ31-Govt!CJ31 -> 836.9 | CK31: ='Total NF'!CK31-Govt!CK31 -> 840.9 | CL31: ='Total NF'!CL31-Govt!CL31 -> 842.3 | CM31: ='Total NF'!CM31-Govt!CM31 -> 842 | CN31: ='Total NF'!CN31-Govt!CN31 -> 838.8 | CO31: ='Total NF'!CO31-Govt!CO31 -> 839.4 | CP31: ='Total NF'!CP31-Govt!CP31 -> 841.8 | CQ31: ='Total NF'!CQ31-Govt!CQ31 -> 840.1 | CR31: ='Total NF'!CR31-Govt!CR31 -> 841.5 | CS31: ='Total NF'!CS31-Govt!CS31 -> 840 | CT31: ='Total NF'!CT31-Govt!CT31 -> 842.4 | CU31: ='Total NF'!CU31-Govt!CU31 -> 843.1 | CV31: ='Total NF'!CV31-Govt!CV31 -> 844.1 | CW31: ='Total NF'!CW31-Govt!CW31 -> 846 | CX31: ='Total NF'!CX31-Govt!CX31 -> 850.4 | CY31: ='Total NF'!CY31-Govt!CY31 -> 850.9 | CZ31: ='Total NF'!CZ31-Govt!CZ31 -> 847.6 | DA31: ='Total NF'!DA31-Govt!DA31 -> 854.1 | DB31: ='Total NF'!DB31-Govt!DB31 -> 851.5 | DC31: ='Total NF'!DC31-Govt!DC31 -> 853.1 | DD31: ='Total NF'!DD31-Govt!DD31 -> 853.8 | DE31: ='Total NF'!DE31-Govt!DE31 -> 856.4 | DF31: ='Total NF'!DF31-Govt!DF31 -> 858.2 | DG31: ='Total NF'!DG31-Govt!DG31 -> 856.8 | DH31: ='Total NF'!DH31-Govt!DH31 -> 860.8 | DI31: ='Total NF'!DI31-Govt!DI31 -> 856.5 | DJ31: ='Total NF'!DJ31-Govt!DJ31 -> 859.4 | DK31: 2.9 | DL31: 0.003385872738 | DM31: 21 | DN31: 8 | DO31: 9 | DP31: 0.01058325494 | DQ31: 38 | DR31: 36 | DS31: 8.5 | DT31: 0.009989422964 | DU31: 37 | DV31: 35 | DW31: 81.3 | DX31: 0.1044852847 | DY31: 34 | DZ31: 32
A32: Nevada | B32: SMS32000004000000001 | C32: ='Total NF'!C32-Govt!C32 -> 1038.2 | D32: ='Total NF'!D32-Govt!D32 -> 1025.3 | E32: ='Total NF'!E32-Govt!E32 -> 1011.5 | F32: ='Total NF'!F32-Govt!F32 -> 997.4 | G32: ='Total NF'!G32-Govt!G32 -> 991.8 | H32: ='Total NF'!H32-Govt!H32 -> 986.4 | I32: ='Total NF'!I32-Govt!I32 -> 979.1 | J32: ='Total NF'!J32-Govt!J32 -> 974.8 | K32: ='Total NF'!K32-Govt!K32 -> 972.2 | L32: ='Total NF'!L32-Govt!L32 -> 970.9 | M32: ='Total NF'!M32-Govt!M32 -> 970.2 | N32: ='Total NF'!N32-Govt!N32 -> 972.3 | P32: ='Total NF'!P32-Govt!P32 -> 966.6 | Q32: ='Total NF'!Q32-Govt!Q32 -> 964.3 | R32: ='Total NF'!R32-Govt!R32 -> 961.9 | S32: ='Total NF'!S32-Govt!S32 -> 963.5 | T32: ='Total NF'!T32-Govt!T32 -> 963.9 | U32: ='Total NF'!U32-Govt!U32 -> 965.1 | V32: ='Total NF'!V32-Govt!V32 -> 964.8 | W32: ='Total NF'!W32-Govt!W32 -> 964.8 | X32: ='Total NF'!X32-Govt!X32 -> 959 | Y32: ='Total NF'!Y32-Govt!Y32 -> 963.4 | Z32: ='Total NF'!Z32-Govt!Z32 -> 965.2 | AA32: ='Total NF'!AA32-Govt!AA32 -> 968.4 | AC32: ='Total NF'!AC32-Govt!AC32 -> 971.1 | AD32: ='Total NF'!AD32-Govt!AD32 -> 970.2 | AE32: ='Total NF'!AE32-Govt!AE32 -> 970.8 | AF32: ='Total NF'!AF32-Govt!AF32 -> 971.9 | AG32: ='Total NF'!AG32-Govt!AG32 -> 972.8 | AH32: ='Total NF'!AH32-Govt!AH32 -> 972.8 | AI32: ='Total NF'!AI32-Govt!AI32 -> 975.6 | AJ32: ='Total NF'!AJ32-Govt!AJ32 -> 975.7 | AK32: ='Total NF'!AK32-Govt!AK32 -> 979.1 | AL32: ='Total NF'!AL32-Govt!AL32 -> 980.5 | AM32: ='Total NF'!AM32-Govt!AM32 -> 981.8 | AN32: ='Total NF'!AN32-Govt!AN32 -> 982.6 | AP32: ='Total NF'!AP32-Govt!AP32 -> 988 | AQ32: ='Total NF'!AQ32-Govt!AQ32 -> 988.2 | AR32: ='Total NF'!AR32-Govt!AR32 -> 989.6 | AS32: ='Total NF'!AS32-Govt!AS32 -> 991.4 | AT32: ='Total NF'!AT32-Govt!AT32 -> 992.5 | AU32: ='Total NF'!AU32-Govt!AU32 -> 994.3 | AV32: ='Total NF'!AV32-Govt!AV32 -> 992.1 | AW32: ='Total NF'!AW32-Govt!AW32 -> 995.5 | AX32: ='Total NF'!AX32-Govt!AX32 -> 998.6 | AY32: ='Total NF'!AY32-Govt!AY32 -> 1002.2 | AZ32: ='Total NF'!AZ32-Govt!AZ32 -> 1006.5 | BA32: ='Total NF'!BA32-Govt!BA32 -> 1003.6 | BC32: ='Total NF'!BC32-Govt!BC32 -> 1010.3 | BD32: ='Total NF'!BD32-Govt!BD32 -> 1011.7 | BE32: ='Total NF'!BE32-Govt!BE32 -> 1015.3 | BF32: ='Total NF'!BF32-Govt!BF32 -> 1018.2 | BG32: ='Total NF'!BG32-Govt!BG32 -> 1019.2 | BH32: ='Total NF'!BH32-Govt!BH32 -> 1022.6 | BI32: ='Total NF'!BI32-Govt!BI32 -> 1023 | BJ32: ='Total NF'!BJ32-Govt!BJ32 -> 1026.3 | BK32: ='Total NF'!BK32-Govt!BK32 -> 1027.6 | BL32: ='Total NF'!BL32-Govt!BL32 -> 1034.2 | BM32: ='Total NF'!BM32-Govt!BM32 -> 1038.7 | BN32: ='Total NF'!BN32-Govt!BN32 -> 1042 | BO32: ='Total NF'!BO32-Govt!BO32 -> 0 | BP32: ='Total NF'!BP32-Govt!BP32 -> 1041.8 | BQ32: ='Total NF'!BQ32-Govt!BQ32 -> 1046.8 | BR32: ='Total NF'!BR32-Govt!BR32 -> 1051.2 | BS32: ='Total NF'!BS32-Govt!BS32 -> 1055.6 | BT32: ='Total NF'!BT32-Govt!BT32 -> 1060.6 | BU32: ='Total NF'!BU32-Govt!BU32 -> 1062.3 | BV32: ='Total NF'!BV32-Govt!BV32 -> 1063.3 | BW32: ='Total NF'!BW32-Govt!BW32 -> 1070.1 | BX32: ='Total NF'!BX32-Govt!BX32 -> 1072.9 | BY32: ='Total NF'!BY32-Govt!BY32 -> 1071.4 | BZ32: ='Total NF'!BZ32-Govt!BZ32 -> 1075.7 | CA32: ='Total NF'!CA32-Govt!CA32 -> 1078 | CB32: ='Total NF'!CB32-Govt!CB32 -> 1087.9 | CC32: ='Total NF'!CC32-Govt!CC32 -> 1092.8 | CD32: ='Total NF'!CD32-Govt!CD32 -> 1093.8 | CE32: ='Total NF'!CE32-Govt!CE32 -> 1095.9 | CF32: ='Total NF'!CF32-Govt!CF32 -> 1098.9 | CG32: ='Total NF'!CG32-Govt!CG32 -> 1099.7 | CH32: ='Total NF'!CH32-Govt!CH32 -> 1103.3 | CI32: ='Total NF'!CI32-Govt!CI32 -> 1108.5 | CJ32: ='Total NF'!CJ32-Govt!CJ32 -> 1109.7 | CK32: ='Total NF'!CK32-Govt!CK32 -> 1115 | CL32: ='Total NF'!CL32-Govt!CL32 -> 1110.9 | CM32: ='Total NF'!CM32-Govt!CM32 -> 1111 | CN32: ='Total NF'!CN32-Govt!CN32 -> 1122 | CO32: ='Total NF'!CO32-Govt!CO32 -> 1127 | CP32: ='Total NF'!CP32-Govt!CP32 -> 1128.6 | CQ32: ='Total NF'!CQ32-Govt!CQ32 -> 1134.3 | CR32: ='Total NF'!CR32-Govt!CR32 -> 1135 | CS32: ='Total NF'!CS32-Govt!CS32 -> 1138.7 | CT32: ='Total NF'!CT32-Govt!CT32 -> 1147.8 | CU32: ='Total NF'!CU32-Govt!CU32 -> 1149.5 | CV32: ='Total NF'!CV32-Govt!CV32 -> 1156.7 | CW32: ='Total NF'!CW32-Govt!CW32 -> 1156 | CX32: ='Total NF'!CX32-Govt!CX32 -> 1159.6 | CY32: ='Total NF'!CY32-Govt!CY32 -> 1162.3 | CZ32: ='Total NF'!CZ32-Govt!CZ32 -> 1161.9 | DA32: ='Total NF'!DA32-Govt!DA32 -> 1166 | DB32: ='Total NF'!DB32-Govt!DB32 -> 1165.9 | DC32: ='Total NF'!DC32-Govt!DC32 -> 1175.4 | DD32: ='Total NF'!DD32-Govt!DD32 -> 1172 | DE32: ='Total NF'!DE32-Govt!DE32 -> 1178.1 | DF32: ='Total NF'!DF32-Govt!DF32 -> 1182.8 | DG32: ='Total NF'!DG32-Govt!DG32 -> 1183.8 | DH32: ='Total NF'!DH32-Govt!DH32 -> 1184.9 | DI32: ='Total NF'!DI32-Govt!DI32 -> 1188.2 | DJ32: ='Total NF'!DJ32-Govt!DJ32 -> 1189.1 | DK32: 0.9 | DL32: 0.000757448241 | DM32: 29 | DN32: 29 | DO32: 29.5 | DP32: 0.02543980683 | DQ32: 26 | DR32: 3 | DS32: 26.8 | DT32: 0.02305773036 | DU32: 25 | DV32: 4 | DW32: 210 | DX32: 0.2144826882 | DY32: 26 | DZ32: 7
A33: New Hampshire | B33: SMS33000004000000001 | C33: ='Total NF'!C33-Govt!C33 -> 543.7 | D33: ='Total NF'!D33-Govt!D33 -> 540.3 | E33: ='Total NF'!E33-Govt!E33 -> 535.9 | F33: ='Total NF'!F33-Govt!F33 -> 532.7 | G33: ='Total NF'!G33-Govt!G33 -> 533.6 | H33: ='Total NF'!H33-Govt!H33 -> 530.6 | I33: ='Total NF'!I33-Govt!I33 -> 528.5 | J33: ='Total NF'!J33-Govt!J33 -> 528 | K33: ='Total NF'!K33-Govt!K33 -> 528.9 | L33: ='Total NF'!L33-Govt!L33 -> 527.7 | M33: ='Total NF'!M33-Govt!M33 -> 526.9 | N33: ='Total NF'!N33-Govt!N33 -> 528 | P33: ='Total NF'!P33-Govt!P33 -> 526 | Q33: ='Total NF'!Q33-Govt!Q33 -> 526.2 | R33: ='Total NF'!R33-Govt!R33 -> 526.7 | S33: ='Total NF'!S33-Govt!S33 -> 527.7 | T33: ='Total NF'!T33-Govt!T33 -> 528.5 | U33: ='Total NF'!U33-Govt!U33 -> 528.8 | V33: ='Total NF'!V33-Govt!V33 -> 529.9 | W33: ='Total NF'!W33-Govt!W33 -> 529.7 | X33: ='Total NF'!X33-Govt!X33 -> 530.1 | Y33: ='Total NF'!Y33-Govt!Y33 -> 531.9 | Z33: ='Total NF'!Z33-Govt!Z33 -> 531 | AA33: ='Total NF'!AA33-Govt!AA33 -> 532.5 | AC33: ='Total NF'!AC33-Govt!AC33 -> 533.2 | AD33: ='Total NF'!AD33-Govt!AD33 -> 533.9 | AE33: ='Total NF'!AE33-Govt!AE33 -> 534.8 | AF33: ='Total NF'!AF33-Govt!AF33 -> 536.7 | AG33: ='Total NF'!AG33-Govt!AG33 -> 534.9 | AH33: ='Total NF'!AH33-Govt!AH33 -> 533.5 | AI33: ='Total NF'!AI33-Govt!AI33 -> 536.2 | AJ33: ='Total NF'!AJ33-Govt!AJ33 -> 537.2 | AK33: ='Total NF'!AK33-Govt!AK33 -> 538.2 | AL33: ='Total NF'!AL33-Govt!AL33 -> 538.1 | AM33: ='Total NF'!AM33-Govt!AM33 -> 539.5 | AN33: ='Total NF'!AN33-Govt!AN33 -> 539.6 | AP33: ='Total NF'!AP33-Govt!AP33 -> 540.6 | AQ33: ='Total NF'!AQ33-Govt!AQ33 -> 540.3 | AR33: ='Total NF'!AR33-Govt!AR33 -> 541.8 | AS33: ='Total NF'!AS33-Govt!AS33 -> 541.7 | AT33: ='Total NF'!AT33-Govt!AT33 -> 541.4 | AU33: ='Total NF'!AU33-Govt!AU33 -> 543.4 | AV33: ='Total NF'!AV33-Govt!AV33 -> 542.6 | AW33: ='Total NF'!AW33-Govt!AW33 -> 543.9 | AX33: ='Total NF'!AX33-Govt!AX33 -> 544.4 | AY33: ='Total NF'!AY33-Govt!AY33 -> 545.5 | AZ33: ='Total NF'!AZ33-Govt!AZ33 -> 545.6 | BA33: ='Total NF'!BA33-Govt!BA33 -> 545.9 | BC33: ='Total NF'!BC33-Govt!BC33 -> 547 | BD33: ='Total NF'!BD33-Govt!BD33 -> 547.8 | BE33: ='Total NF'!BE33-Govt!BE33 -> 547.8 | BF33: ='Total NF'!BF33-Govt!BF33 -> 548.5 | BG33: ='Total NF'!BG33-Govt!BG33 -> 549.8 | BH33: ='Total NF'!BH33-Govt!BH33 -> 550.7 | BI33: ='Total NF'!BI33-Govt!BI33 -> 549.9 | BJ33: ='Total NF'!BJ33-Govt!BJ33 -> 550 | BK33: ='Total NF'!BK33-Govt!BK33 -> 549.7 | BL33: ='Total NF'!BL33-Govt!BL33 -> 552.4 | BM33: ='Total NF'!BM33-Govt!BM33 -> 553.8 | BN33: ='Total NF'!BN33-Govt!BN33 -> 554.3 | BO33: ='Total NF'!BO33-Govt!BO33 -> 0 | BP33: ='Total NF'!BP33-Govt!BP33 -> 555.1 | BQ33: ='Total NF'!BQ33-Govt!BQ33 -> 556 | BR33: ='Total NF'!BR33-Govt!BR33 -> 555.8 | BS33: ='Total NF'!BS33-Govt!BS33 -> 556.2 | BT33: ='Total NF'!BT33-Govt!BT33 -> 557.2 | BU33: ='Total NF'!BU33-Govt!BU33 -> 557.7 | BV33: ='Total NF'!BV33-Govt!BV33 -> 558.7 | BW33: ='Total NF'!BW33-Govt!BW33 -> 551.8 | BX33: ='Total NF'!BX33-Govt!BX33 -> 559 | BY33: ='Total NF'!BY33-Govt!BY33 -> 560.5 | BZ33: ='Total NF'!BZ33-Govt!BZ33 -> 561 | CA33: ='Total NF'!CA33-Govt!CA33 -> 562.7 | CB33: ='Total NF'!CB33-Govt!CB33 -> 561.8 | CC33: ='Total NF'!CC33-Govt!CC33 -> 561.1 | CD33: ='Total NF'!CD33-Govt!CD33 -> 562.9 | CE33: ='Total NF'!CE33-Govt!CE33 -> 563.8 | CF33: ='Total NF'!CF33-Govt!CF33 -> 565.9 | CG33: ='Total NF'!CG33-Govt!CG33 -> 566.4 | CH33: ='Total NF'!CH33-Govt!CH33 -> 567.7 | CI33: ='Total NF'!CI33-Govt!CI33 -> 567.8 | CJ33: ='Total NF'!CJ33-Govt!CJ33 -> 567.6 | CK33: ='Total NF'!CK33-Govt!CK33 -> 569.9 | CL33: ='Total NF'!CL33-Govt!CL33 -> 570.8 | CM33: ='Total NF'!CM33-Govt!CM33 -> 571.7 | CN33: ='Total NF'!CN33-Govt!CN33 -> 573.6 | CO33: ='Total NF'!CO33-Govt!CO33 -> 575.1 | CP33: ='Total NF'!CP33-Govt!CP33 -> 574.6 | CQ33: ='Total NF'!CQ33-Govt!CQ33 -> 575.6 | CR33: ='Total NF'!CR33-Govt!CR33 -> 575.1 | CS33: ='Total NF'!CS33-Govt!CS33 -> 575.4 | CT33: ='Total NF'!CT33-Govt!CT33 -> 577.9 | CU33: ='Total NF'!CU33-Govt!CU33 -> 578.1 | CV33: ='Total NF'!CV33-Govt!CV33 -> 579.2 | CW33: ='Total NF'!CW33-Govt!CW33 -> 582.8 | CX33: ='Total NF'!CX33-Govt!CX33 -> 583 | CY33: ='Total NF'!CY33-Govt!CY33 -> 583 | CZ33: ='Total NF'!CZ33-Govt!CZ33 -> 589.3 | DA33: ='Total NF'!DA33-Govt!DA33 -> 587 | DB33: ='Total NF'!DB33-Govt!DB33 -> 584.6 | DC33: ='Total NF'!DC33-Govt!DC33 -> 587.6 | DD33: ='Total NF'!DD33-Govt!DD33 -> 584.9 | DE33: ='Total NF'!DE33-Govt!DE33 -> 586.4 | DF33: ='Total NF'!DF33-Govt!DF33 -> 589 | DG33: ='Total NF'!DG33-Govt!DG33 -> 590.4 | DH33: ='Total NF'!DH33-Govt!DH33 -> 587.4 | DI33: ='Total NF'!DI33-Govt!DI33 -> 590.3 | DJ33: ='Total NF'!DJ33-Govt!DJ33 -> 592.2 | DK33: 1.9 | DL33: 0.003218702355 | DM33: 23 | DN33: 11 | DO33: 9.2 | DP33: 0.01578044597 | DQ33: 37 | DR33: 24 | DS33: 9.2 | DT33: 0.01578044597 | DU33: 36 | DV33: 19 | DW33: 63.7 | DX33: 0.1205298013 | DY33: 40 | DZ33: 26
A34: New Jersey | B34: SMS34000004000000001 | C34: ='Total NF'!C34-Govt!C34 -> 3305.3 | D34: ='Total NF'!D34-Govt!D34 -> 3289.6 | E34: ='Total NF'!E34-Govt!E34 -> 3267.4 | F34: ='Total NF'!F34-Govt!F34 -> 3244.7 | G34: ='Total NF'!G34-Govt!G34 -> 3247.9 | H34: ='Total NF'!H34-Govt!H34 -> 3237.1 | I34: ='Total NF'!I34-Govt!I34 -> 3227.4 | J34: ='Total NF'!J34-Govt!J34 -> 3220.8 | K34: ='Total NF'!K34-Govt!K34 -> 3217.7 | L34: ='Total NF'!L34-Govt!L34 -> 3211.6 | M34: ='Total NF'!M34-Govt!M34 -> 3211.3 | N34: ='Total NF'!N34-Govt!N34 -> 3211.2 | P34: ='Total NF'!P34-Govt!P34 -> 3202.1 | Q34: ='Total NF'!Q34-Govt!Q34 -> 3191.6 | R34: ='Total NF'!R34-Govt!R34 -> 3195.5 | S34: ='Total NF'!S34-Govt!S34 -> 3208.7 | T34: ='Total NF'!T34-Govt!T34 -> 3208 | U34: ='Total NF'!U34-Govt!U34 -> 3210.5 | V34: ='Total NF'!V34-Govt!V34 -> 3208.6 | W34: ='Total NF'!W34-Govt!W34 -> 3209.3 | X34: ='Total NF'!X34-Govt!X34 -> 3209.1 | Y34: ='Total NF'!Y34-Govt!Y34 -> 3218.3 | Z34: ='Total NF'!Z34-Govt!Z34 -> 3217.3 | AA34: ='Total NF'!AA34-Govt!AA34 -> 3219.4 | AC34: ='Total NF'!AC34-Govt!AC34 -> 3215 | AD34: ='Total NF'!AD34-Govt!AD34 -> 3214.5 | AE34: ='Total NF'!AE34-Govt!AE34 -> 3217.2 | AF34: ='Total NF'!AF34-Govt!AF34 -> 3221.8 | AG34: ='Total NF'!AG34-Govt!AG34 -> 3220 | AH34: ='Total NF'!AH34-Govt!AH34 -> 3220.5 | AI34: ='Total NF'!AI34-Govt!AI34 -> 3231.8 | AJ34: ='Total NF'!AJ34-Govt!AJ34 -> 3229.8 | AK34: ='Total NF'!AK34-Govt!AK34 -> 3238.7 | AL34: ='Total NF'!AL34-Govt!AL34 -> 3237 | AM34: ='Total NF'!AM34-Govt!AM34 -> 3244.1 | AN34: ='Total NF'!AN34-Govt!AN34 -> 3248.2 | AP34: ='Total NF'!AP34-Govt!AP34 -> 3260.3 | AQ34: ='Total NF'!AQ34-Govt!AQ34 -> 3265.9 | AR34: ='Total NF'!AR34-Govt!AR34 -> 3273.8 | AS34: ='Total NF'!AS34-Govt!AS34 -> 3261.9 | AT34: ='Total NF'!AT34-Govt!AT34 -> 3268.7 | AU34: ='Total NF'!AU34-Govt!AU34 -> 3274.2 | AV34: ='Total NF'!AV34-Govt!AV34 -> 3269.1 | AW34: ='Total NF'!AW34-Govt!AW34 -> 3275.2 | AX34: ='Total NF'!AX34-Govt!AX34 -> 3282.9 | AY34: ='Total NF'!AY34-Govt!AY34 -> 3285.4 | AZ34: ='Total NF'!AZ34-Govt!AZ34 -> 3280.9 | BA34: ='Total NF'!BA34-Govt!BA34 -> 3293.6 | BC34: ='Total NF'!BC34-Govt!BC34 -> 3301.2 | BD34: ='Total NF'!BD34-Govt!BD34 -> 3304.4 | BE34: ='Total NF'!BE34-Govt!BE34 -> 3310.8 | BF34: ='Total NF'!BF34-Govt!BF34 -> 3318.2 | BG34: ='Total NF'!BG34-Govt!BG34 -> 3323.7 | BH34: ='Total NF'!BH34-Govt!BH34 -> 3325 | BI34: ='Total NF'!BI34-Govt!BI34 -> 3324.1 | BJ34: ='Total NF'!BJ34-Govt!BJ34 -> 3328.7 | BK34: ='Total NF'!BK34-Govt!BK34 -> 3330.6 | BL34: ='Total NF'!BL34-Govt!BL34 -> 3326.9 | BM34: ='Total NF'!BM34-Govt!BM34 -> 3332.1 | BN34: ='Total NF'!BN34-Govt!BN34 -> 3313.4 | BO34: ='Total NF'!BO34-Govt!BO34 -> 0 | BP34: ='Total NF'!BP34-Govt!BP34 -> 3327.6 | BQ34: ='Total NF'!BQ34-Govt!BQ34 -> 3321.1 | BR34: ='Total NF'!BR34-Govt!BR34 -> 3323.5 | BS34: ='Total NF'!BS34-Govt!BS34 -> 3337.1 | BT34: ='Total NF'!BT34-Govt!BT34 -> 3346.4 | BU34: ='Total NF'!BU34-Govt!BU34 -> 3343.6 | BV34: ='Total NF'!BV34-Govt!BV34 -> 3345.8 | BW34: ='Total NF'!BW34-Govt!BW34 -> 3345.2 | BX34: ='Total NF'!BX34-Govt!BX34 -> 3348.3 | BY34: ='Total NF'!BY34-Govt!BY34 -> 3352.1 | BZ34: ='Total NF'!BZ34-Govt!BZ34 -> 3359.5 | CA34: ='Total NF'!CA34-Govt!CA34 -> 3359.8 | CB34: ='Total NF'!CB34-Govt!CB34 -> 3374.5 | CC34: ='Total NF'!CC34-Govt!CC34 -> 3375.3 | CD34: ='Total NF'!CD34-Govt!CD34 -> 3377.5 | CE34: ='Total NF'!CE34-Govt!CE34 -> 3389.3 | CF34: ='Total NF'!CF34-Govt!CF34 -> 3401.7 | CG34: ='Total NF'!CG34-Govt!CG34 -> 3405 | CH34: ='Total NF'!CH34-Govt!CH34 -> 3409.7 | CI34: ='Total NF'!CI34-Govt!CI34 -> 3411.7 | CJ34: ='Total NF'!CJ34-Govt!CJ34 -> 3416.5 | CK34: ='Total NF'!CK34-Govt!CK34 -> 3437.7 | CL34: ='Total NF'!CL34-Govt!CL34 -> 3446 | CM34: ='Total NF'!CM34-Govt!CM34 -> 3458.2 | CN34: ='Total NF'!CN34-Govt!CN34 -> 3433.4 | CO34: ='Total NF'!CO34-Govt!CO34 -> 3442.8 | CP34: ='Total NF'!CP34-Govt!CP34 -> 3446.2 | CQ34: ='Total NF'!CQ34-Govt!CQ34 -> 3451.3 | CR34: ='Total NF'!CR34-Govt!CR34 -> 3446.1 | CS34: ='Total NF'!CS34-Govt!CS34 -> 3456 | CT34: ='Total NF'!CT34-Govt!CT34 -> 3469.3 | CU34: ='Total NF'!CU34-Govt!CU34 -> 3474.2 | CV34: ='Total NF'!CV34-Govt!CV34 -> 3480.4 | CW34: ='Total NF'!CW34-Govt!CW34 -> 3483.4 | CX34: ='Total NF'!CX34-Govt!CX34 -> 3482.8 | CY34: ='Total NF'!CY34-Govt!CY34 -> 3492.3 | CZ34: ='Total NF'!CZ34-Govt!CZ34 -> 3508.2 | DA34: ='Total NF'!DA34-Govt!DA34 -> 3519.4 | DB34: ='Total NF'!DB34-Govt!DB34 -> 3505.3 | DC34: ='Total NF'!DC34-Govt!DC34 -> 3508.2 | DD34: ='Total NF'!DD34-Govt!DD34 -> 3497.7 | DE34: ='Total NF'!DE34-Govt!DE34 -> 3512.2 | DF34: ='Total NF'!DF34-Govt!DF34 -> 3517.3 | DG34: ='Total NF'!DG34-Govt!DG34 -> 3517.5 | DH34: ='Total NF'!DH34-Govt!DH34 -> 3514.9 | DI34: ='Total NF'!DI34-Govt!DI34 -> 3521.9 | DJ34: ='Total NF'!DJ34-Govt!DJ34 -> 3528.2 | DK34: 6.3 | DL34: 0.001788807178 | DM34: 11 | DN34: 20 | DO34: 45.4 | DP34: 0.01303548869 | DQ34: 12 | DR34: 29 | DS34: 35.9 | DT34: 0.01027975833 | DU34: 16 | DV34: 33 | DW34: 300.8 | DX34: 0.09320195823 | DY34: 18 | DZ34: 38
A35: New Mexico | B35: SMS35000004000000001 | C35: ='Total NF'!C35-Govt!C35 -> 630.2 | D35: ='Total NF'!D35-Govt!D35 -> 626 | E35: ='Total NF'!E35-Govt!E35 -> 620.2 | F35: ='Total NF'!F35-Govt!F35 -> 614.7 | G35: ='Total NF'!G35-Govt!G35 -> 614.3 | H35: ='Total NF'!H35-Govt!H35 -> 611.7 | I35: ='Total NF'!I35-Govt!I35 -> 609.7 | J35: ='Total NF'!J35-Govt!J35 -> 610.2 | K35: ='Total NF'!K35-Govt!K35 -> 609.4 | L35: ='Total NF'!L35-Govt!L35 -> 606.1 | M35: ='Total NF'!M35-Govt!M35 -> 605 | N35: ='Total NF'!N35-Govt!N35 -> 603.9 | P35: ='Total NF'!P35-Govt!P35 -> 603.7 | Q35: ='Total NF'!Q35-Govt!Q35 -> 603.7 | R35: ='Total NF'!R35-Govt!R35 -> 603 | S35: ='Total NF'!S35-Govt!S35 -> 603.4 | T35: ='Total NF'!T35-Govt!T35 -> 603.5 | U35: ='Total NF'!U35-Govt!U35 -> 604.4 | V35: ='Total NF'!V35-Govt!V35 -> 603.8 | W35: ='Total NF'!W35-Govt!W35 -> 603.3 | X35: ='Total NF'!X35-Govt!X35 -> 601.8 | Y35: ='Total NF'!Y35-Govt!Y35 -> 603 | Z35: ='Total NF'!Z35-Govt!Z35 -> 603.4 | AA35: ='Total NF'!AA35-Govt!AA35 -> 604.9 | AC35: ='Total NF'!AC35-Govt!AC35 -> 604.5 | AD35: ='Total NF'!AD35-Govt!AD35 -> 606 | AE35: ='Total NF'!AE35-Govt!AE35 -> 605.8 | AF35: ='Total NF'!AF35-Govt!AF35 -> 608.1 | AG35: ='Total NF'!AG35-Govt!AG35 -> 608.5 | AH35: ='Total NF'!AH35-Govt!AH35 -> 607.4 | AI35: ='Total NF'!AI35-Govt!AI35 -> 609.1 | AJ35: ='Total NF'!AJ35-Govt!AJ35 -> 607.8 | AK35: ='Total NF'!AK35-Govt!AK35 -> 608.9 | AL35: ='Total NF'!AL35-Govt!AL35 -> 606.7 | AM35: ='Total NF'!AM35-Govt!AM35 -> 607.8 | AN35: ='Total NF'!AN35-Govt!AN35 -> 606.7 | AP35: ='Total NF'!AP35-Govt!AP35 -> 607.4 | AQ35: ='Total NF'!AQ35-Govt!AQ35 -> 609.2 | AR35: ='Total NF'!AR35-Govt!AR35 -> 610.8 | AS35: ='Total NF'!AS35-Govt!AS35 -> 610.5 | AT35: ='Total NF'!AT35-Govt!AT35 -> 610 | AU35: ='Total NF'!AU35-Govt!AU35 -> 611.3 | AV35: ='Total NF'!AV35-Govt!AV35 -> 610.1 | AW35: ='Total NF'!AW35-Govt!AW35 -> 609.4 | AX35: ='Total NF'!AX35-Govt!AX35 -> 611.3 | AY35: ='Total NF'!AY35-Govt!AY35 -> 619.5 | AZ35: ='Total NF'!AZ35-Govt!AZ35 -> 619.4 | BA35: ='Total NF'!BA35-Govt!BA35 -> 617.8 | BC35: ='Total NF'!BC35-Govt!BC35 -> 618.7 | BD35: ='Total NF'!BD35-Govt!BD35 -> 619.4 | BE35: ='Total NF'!BE35-Govt!BE35 -> 617.1 | BF35: ='Total NF'!BF35-Govt!BF35 -> 619.2 | BG35: ='Total NF'!BG35-Govt!BG35 -> 619.2 | BH35: ='Total NF'!BH35-Govt!BH35 -> 617.7 | BI35: ='Total NF'!BI35-Govt!BI35 -> 619.4 | BJ35: ='Total NF'!BJ35-Govt!BJ35 -> 619 | BK35: ='Total NF'!BK35-Govt!BK35 -> 616.9 | BL35: ='Total NF'!BL35-Govt!BL35 -> 617.8 | BM35: ='Total NF'!BM35-Govt!BM35 -> 618.3 | BN35: ='Total NF'!BN35-Govt!BN35 -> 618.8 | BO35: ='Total NF'!BO35-Govt!BO35 -> 0 | BP35: ='Total NF'!BP35-Govt!BP35 -> 623.8 | BQ35: ='Total NF'!BQ35-Govt!BQ35 -> 624 | BR35: ='Total NF'!BR35-Govt!BR35 -> 623.7 | BS35: ='Total NF'!BS35-Govt!BS35 -> 625 | BT35: ='Total NF'!BT35-Govt!BT35 -> 627.6 | BU35: ='Total NF'!BU35-Govt!BU35 -> 626.3 | BV35: ='Total NF'!BV35-Govt!BV35 -> 629.4 | BW35: ='Total NF'!BW35-Govt!BW35 -> 629.6 | BX35: ='Total NF'!BX35-Govt!BX35 -> 629.3 | BY35: ='Total NF'!BY35-Govt!BY35 -> 632.6 | BZ35: ='Total NF'!BZ35-Govt!BZ35 -> 637 | CA35: ='Total NF'!CA35-Govt!CA35 -> 635.8 | CB35: ='Total NF'!CB35-Govt!CB35 -> 635.1 | CC35: ='Total NF'!CC35-Govt!CC35 -> 636.2 | CD35: ='Total NF'!CD35-Govt!CD35 -> 636.3 | CE35: ='Total NF'!CE35-Govt!CE35 -> 635.8 | CF35: ='Total NF'!CF35-Govt!CF35 -> 636.3 | CG35: ='Total NF'!CG35-Govt!CG35 -> 635 | CH35: ='Total NF'!CH35-Govt!CH35 -> 636.7 | CI35: ='Total NF'!CI35-Govt!CI35 -> 636.1 | CJ35: ='Total NF'!CJ35-Govt!CJ35 -> 635.1 | CK35: ='Total NF'!CK35-Govt!CK35 -> 636.3 | CL35: ='Total NF'!CL35-Govt!CL35 -> 638.2 | CM35: ='Total NF'!CM35-Govt!CM35 -> 637.3 | CN35: ='Total NF'!CN35-Govt!CN35 -> 637.1 | CO35: ='Total NF'!CO35-Govt!CO35 -> 639.9 | CP35: ='Total NF'!CP35-Govt!CP35 -> 638.1 | CQ35: ='Total NF'!CQ35-Govt!CQ35 -> 638.8 | CR35: ='Total NF'!CR35-Govt!CR35 -> 638.2 | CS35: ='Total NF'!CS35-Govt!CS35 -> 637.1 | CT35: ='Total NF'!CT35-Govt!CT35 -> 639.3 | CU35: ='Total NF'!CU35-Govt!CU35 -> 639.3 | CV35: ='Total NF'!CV35-Govt!CV35 -> 639.7 | CW35: ='Total NF'!CW35-Govt!CW35 -> 639.8 | CX35: ='Total NF'!CX35-Govt!CX35 -> 643.1 | CY35: ='Total NF'!CY35-Govt!CY35 -> 645 | CZ35: ='Total NF'!CZ35-Govt!CZ35 -> 644 | DA35: ='Total NF'!DA35-Govt!DA35 -> 645.4 | DB35: ='Total NF'!DB35-Govt!DB35 -> 645.9 | DC35: ='Total NF'!DC35-Govt!DC35 -> 648.9 | DD35: ='Total NF'!DD35-Govt!DD35 -> 648.5 | DE35: ='Total NF'!DE35-Govt!DE35 -> 649.8 | DF35: ='Total NF'!DF35-Govt!DF35 -> 647.7 | DG35: ='Total NF'!DG35-Govt!DG35 -> 650.7 | DH35: ='Total NF'!DH35-Govt!DH35 -> 653.2 | DI35: ='Total NF'!DI35-Govt!DI35 -> 654.7 | DJ35: ='Total NF'!DJ35-Govt!DJ35 -> 656.2 | DK35: 1.5 | DL35: 0.002291125706 | DM35: 28 | DN35: 17 | DO35: 13.1 | DP35: 0.02037008241 | DQ35: 33 | DR35: 13 | DS35: 11.2 | DT35: 0.01736434109 | DU35: 33 | DV35: 14 | DW35: 46.5 | DX35: 0.07626701657 | DY35: 41 | DZ35: 44
A36: New York | B36: SMS36000004000000001 | C36: ='Total NF'!C36-Govt!C36 -> 7146.2 | D36: ='Total NF'!D36-Govt!D36 -> 7114.3 | E36: ='Total NF'!E36-Govt!E36 -> 7076.9 | F36: ='Total NF'!F36-Govt!F36 -> 7006.7 | G36: ='Total NF'!G36-Govt!G36 -> 7017.7 | H36: ='Total NF'!H36-Govt!H36 -> 7004.4 | I36: ='Total NF'!I36-Govt!I36 -> 6984.9 | J36: ='Total NF'!J36-Govt!J36 -> 6977.9 | K36: ='Total NF'!K36-Govt!K36 -> 6992.3 | L36: ='Total NF'!L36-Govt!L36 -> 6976.7 | M36: ='Total NF'!M36-Govt!M36 -> 6976.6 | N36: ='Total NF'!N36-Govt!N36 -> 6977.8 | P36: ='Total NF'!P36-Govt!P36 -> 6986.9 | Q36: ='Total NF'!Q36-Govt!Q36 -> 6985 | R36: ='Total NF'!R36-Govt!R36 -> 7000.5 | S36: ='Total NF'!S36-Govt!S36 -> 7031.4 | T36: ='Total NF'!T36-Govt!T36 -> 7031.5 | U36: ='Total NF'!U36-Govt!U36 -> 7040.2 | V36: ='Total NF'!V36-Govt!V36 -> 7047.6 | W36: ='Total NF'!W36-Govt!W36 -> 7061.2 | X36: ='Total NF'!X36-Govt!X36 -> 7058.4 | Y36: ='Total NF'!Y36-Govt!Y36 -> 7086.7 | Z36: ='Total NF'!Z36-Govt!Z36 -> 7097 | AA36: ='Total NF'!AA36-Govt!AA36 -> 7102.6 | AC36: ='Total NF'!AC36-Govt!AC36 -> 7127.5 | AD36: ='Total NF'!AD36-Govt!AD36 -> 7140.5 | AE36: ='Total NF'!AE36-Govt!AE36 -> 7146.8 | AF36: ='Total NF'!AF36-Govt!AF36 -> 7174 | AG36: ='Total NF'!AG36-Govt!AG36 -> 7178.5 | AH36: ='Total NF'!AH36-Govt!AH36 -> 7184.6 | AI36: ='Total NF'!AI36-Govt!AI36 -> 7211.2 | AJ36: ='Total NF'!AJ36-Govt!AJ36 -> 7201.6 | AK36: ='Total NF'!AK36-Govt!AK36 -> 7230.4 | AL36: ='Total NF'!AL36-Govt!AL36 -> 7227.5 | AM36: ='Total NF'!AM36-Govt!AM36 -> 7245.4 | AN36: ='Total NF'!AN36-Govt!AN36 -> 7255.8 | AP36: ='Total NF'!AP36-Govt!AP36 -> 7284.8 | AQ36: ='Total NF'!AQ36-Govt!AQ36 -> 7301.7 | AR36: ='Total NF'!AR36-Govt!AR36 -> 7317 | AS36: ='Total NF'!AS36-Govt!AS36 -> 7312.1 | AT36: ='Total NF'!AT36-Govt!AT36 -> 7327.4 | AU36: ='Total NF'!AU36-Govt!AU36 -> 7332.9 | AV36: ='Total NF'!AV36-Govt!AV36 -> 7329.4 | AW36: ='Total NF'!AW36-Govt!AW36 -> 7351.5 | AX36: ='Total NF'!AX36-Govt!AX36 -> 7369.1 | AY36: ='Total NF'!AY36-Govt!AY36 -> 7383.6 | AZ36: ='Total NF'!AZ36-Govt!AZ36 -> 7364 | BA36: ='Total NF'!BA36-Govt!BA36 -> 7398.5 | BC36: ='Total NF'!BC36-Govt!BC36 -> 7403.8 | BD36: ='Total NF'!BD36-Govt!BD36 -> 7413.6 | BE36: ='Total NF'!BE36-Govt!BE36 -> 7431.2 | BF36: ='Total NF'!BF36-Govt!BF36 -> 7459.4 | BG36: ='Total NF'!BG36-Govt!BG36 -> 7465.5 | BH36: ='Total NF'!BH36-Govt!BH36 -> 7469.8 | BI36: ='Total NF'!BI36-Govt!BI36 -> 7484.4 | BJ36: ='Total NF'!BJ36-Govt!BJ36 -> 7488.4 | BK36: ='Total NF'!BK36-Govt!BK36 -> 7500.2 | BL36: ='Total NF'!BL36-Govt!BL36 -> 7502.1 | BM36: ='Total NF'!BM36-Govt!BM36 -> 7516.8 | BN36: ='Total NF'!BN36-Govt!BN36 -> 7523.8 | BO36: ='Total NF'!BO36-Govt!BO36 -> 0 | BP36: ='Total NF'!BP36-Govt!BP36 -> 7580.5 | BQ36: ='Total NF'!BQ36-Govt!BQ36 -> 7594 | BR36: ='Total NF'!BR36-Govt!BR36 -> 7607.3 | BS36: ='Total NF'!BS36-Govt!BS36 -> 7626.6 | BT36: ='Total NF'!BT36-Govt!BT36 -> 7649.8 | BU36: ='Total NF'!BU36-Govt!BU36 -> 7651.7 | BV36: ='Total NF'!BV36-Govt!BV36 -> 7668.2 | BW36: ='Total NF'!BW36-Govt!BW36 -> 7680 | BX36: ='Total NF'!BX36-Govt!BX36 -> 7695.6 | BY36: ='Total NF'!BY36-Govt!BY36 -> 7690.9 | BZ36: ='Total NF'!BZ36-Govt!BZ36 -> 7694.4 | CA36: ='Total NF'!CA36-Govt!CA36 -> 7717 | CB36: ='Total NF'!CB36-Govt!CB36 -> 7753 | CC36: ='Total NF'!CC36-Govt!CC36 -> 7759.5 | CD36: ='Total NF'!CD36-Govt!CD36 -> 7767.6 | CE36: ='Total NF'!CE36-Govt!CE36 -> 7775.3 | CF36: ='Total NF'!CF36-Govt!CF36 -> 7805.8 | CG36: ='Total NF'!CG36-Govt!CG36 -> 7821.7 | CH36: ='Total NF'!CH36-Govt!CH36 -> 7839.3 | CI36: ='Total NF'!CI36-Govt!CI36 -> 7840.5 | CJ36: ='Total NF'!CJ36-Govt!CJ36 -> 7835.9 | CK36: ='Total NF'!CK36-Govt!CK36 -> 7837.3 | CL36: ='Total NF'!CL36-Govt!CL36 -> 7848.9 | CM36: ='Total NF'!CM36-Govt!CM36 -> 7853.5 | CN36: ='Total NF'!CN36-Govt!CN36 -> 7903.7 | CO36: ='Total NF'!CO36-Govt!CO36 -> 7918.9 | CP36: ='Total NF'!CP36-Govt!CP36 -> 7935 | CQ36: ='Total NF'!CQ36-Govt!CQ36 -> 7945 | CR36: ='Total NF'!CR36-Govt!CR36 -> 7923.3 | CS36: ='Total NF'!CS36-Govt!CS36 -> 7939.7 | CT36: ='Total NF'!CT36-Govt!CT36 -> 7970.6 | CU36: ='Total NF'!CU36-Govt!CU36 -> 7975.4 | CV36: ='Total NF'!CV36-Govt!CV36 -> 7977.4 | CW36: ='Total NF'!CW36-Govt!CW36 -> 7970 | CX36: ='Total NF'!CX36-Govt!CX36 -> 7984.8 | CY36: ='Total NF'!CY36-Govt!CY36 -> 8007.1 | CZ36: ='Total NF'!CZ36-Govt!CZ36 -> 8033.1 | DA36: ='Total NF'!DA36-Govt!DA36 -> 8046.3 | DB36: ='Total NF'!DB36-Govt!DB36 -> 8027.6 | DC36: ='Total NF'!DC36-Govt!DC36 -> 8031.1 | DD36: ='Total NF'!DD36-Govt!DD36 -> 8055.3 | DE36: ='Total NF'!DE36-Govt!DE36 -> 8081.6 | DF36: ='Total NF'!DF36-Govt!DF36 -> 8092.8 | DG36: ='Total NF'!DG36-Govt!DG36 -> 8098.1 | DH36: ='Total NF'!DH36-Govt!DH36 -> 8080 | DI36: ='Total NF'!DI36-Govt!DI36 -> 8072.4 | DJ36: ='Total NF'!DJ36-Govt!DJ36 -> 8098.4 | DK36: 26 | DL36: 0.003220851296 | DM36: 3 | DN36: 10 | DO36: 113.6 | DP36: 0.01422703136 | DQ36: 4 | DR36: 25 | DS36: 91.3 | DT36: 0.01140238039 | DU36: 4 | DV36: 30 | DW36: 1113.5 | DX36: 0.1594153102 | DY36: 4 | DZ36: 18
A37: North Carolina | B37: SMS37000004000000001 | C37: ='Total NF'!C37-Govt!C37 -> 3271.3 | D37: ='Total NF'!D37-Govt!D37 -> 3253.1 | E37: ='Total NF'!E37-Govt!E37 -> 3220.4 | F37: ='Total NF'!F37-Govt!F37 -> 3189.2 | G37: ='Total NF'!G37-Govt!G37 -> 3185.1 | H37: ='Total NF'!H37-Govt!H37 -> 3170.8 | I37: ='Total NF'!I37-Govt!I37 -> 3156.9 | J37: ='Total NF'!J37-Govt!J37 -> 3150.3 | K37: ='Total NF'!K37-Govt!K37 -> 3143.9 | L37: ='Total NF'!L37-Govt!L37 -> 3138.7 | M37: ='Total NF'!M37-Govt!M37 -> 3138.3 | N37: ='Total NF'!N37-Govt!N37 -> 3129.7 | P37: ='Total NF'!P37-Govt!P37 -> 3125.9 | Q37: ='Total NF'!Q37-Govt!Q37 -> 3122.1 | R37: ='Total NF'!R37-Govt!R37 -> 3130.5 | S37: ='Total NF'!S37-Govt!S37 -> 3136.4 | T37: ='Total NF'!T37-Govt!T37 -> 3139.7 | U37: ='Total NF'!U37-Govt!U37 -> 3143 | V37: ='Total NF'!V37-Govt!V37 -> 3153.1 | W37: ='Total NF'!W37-Govt!W37 -> 3155.9 | X37: ='Total NF'!X37-Govt!X37 -> 3156.1 | Y37: ='Total NF'!Y37-Govt!Y37 -> 3170.9 | Z37: ='Total NF'!Z37-Govt!Z37 -> 3174.4 | AA37: ='Total NF'!AA37-Govt!AA37 -> 3175.2 | AC37: ='Total NF'!AC37-Govt!AC37 -> 3170.1 | AD37: ='Total NF'!AD37-Govt!AD37 -> 3185.5 | AE37: ='Total NF'!AE37-Govt!AE37 -> 3189.8 | AF37: ='Total NF'!AF37-Govt!AF37 -> 3195.6 | AG37: ='Total NF'!AG37-Govt!AG37 -> 3197.3 | AH37: ='Total NF'!AH37-Govt!AH37 -> 3202.2 | AI37: ='Total NF'!AI37-Govt!AI37 -> 3207.7 | AJ37: ='Total NF'!AJ37-Govt!AJ37 -> 3211.8 | AK37: ='Total NF'!AK37-Govt!AK37 -> 3218.3 | AL37: ='Total NF'!AL37-Govt!AL37 -> 3218 | AM37: ='Total NF'!AM37-Govt!AM37 -> 3224.9 | AN37: ='Total NF'!AN37-Govt!AN37 -> 3232.4 | AP37: ='Total NF'!AP37-Govt!AP37 -> 3248.3 | AQ37: ='Total NF'!AQ37-Govt!AQ37 -> 3252.2 | AR37: ='Total NF'!AR37-Govt!AR37 -> 3259.1 | AS37: ='Total NF'!AS37-Govt!AS37 -> 3265 | AT37: ='Total NF'!AT37-Govt!AT37 -> 3269.5 | AU37: ='Total NF'!AU37-Govt!AU37 -> 3272 | AV37: ='Total NF'!AV37-Govt!AV37 -> 3274.7 | AW37: ='Total NF'!AW37-Govt!AW37 -> 3276.3 | AX37: ='Total NF'!AX37-Govt!AX37 -> 3280.2 | AY37: ='Total NF'!AY37-Govt!AY37 -> 3289.2 | AZ37: ='Total NF'!AZ37-Govt!AZ37 -> 3295 | BA37: ='Total NF'!BA37-Govt!BA37 -> 3300.4 | BC37: ='Total NF'!BC37-Govt!BC37 -> 3308.6 | BD37: ='Total NF'!BD37-Govt!BD37 -> 3315.9 | BE37: ='Total NF'!BE37-Govt!BE37 -> 3318 | BF37: ='Total NF'!BF37-Govt!BF37 -> 3326.7 | BG37: ='Total NF'!BG37-Govt!BG37 -> 3330.1 | BH37: ='Total NF'!BH37-Govt!BH37 -> 3337.1 | BI37: ='Total NF'!BI37-Govt!BI37 -> 3340.7 | BJ37: ='Total NF'!BJ37-Govt!BJ37 -> 3346 | BK37: ='Total NF'!BK37-Govt!BK37 -> 3351.6 | BL37: ='Total NF'!BL37-Govt!BL37 -> 3380 | BM37: ='Total NF'!BM37-Govt!BM37 -> 3376.8 | BN37: ='Total NF'!BN37-Govt!BN37 -> 3384.5 | BO37: ='Total NF'!BO37-Govt!BO37 -> 0 | BP37: ='Total NF'!BP37-Govt!BP37 -> 3379.9 | BQ37: ='Total NF'!BQ37-Govt!BQ37 -> 3372.7 | BR37: ='Total NF'!BR37-Govt!BR37 -> 3391.7 | BS37: ='Total NF'!BS37-Govt!BS37 -> 3408.8 | BT37: ='Total NF'!BT37-Govt!BT37 -> 3417.8 | BU37: ='Total NF'!BU37-Govt!BU37 -> 3423.8 | BV37: ='Total NF'!BV37-Govt!BV37 -> 3430.5 | BW37: ='Total NF'!BW37-Govt!BW37 -> 3434.3 | BX37: ='Total NF'!BX37-Govt!BX37 -> 3437.9 | BY37: ='Total NF'!BY37-Govt!BY37 -> 3459.5 | BZ37: ='Total NF'!BZ37-Govt!BZ37 -> 3473.6 | CA37: ='Total NF'!CA37-Govt!CA37 -> 3487.3 | CB37: ='Total NF'!CB37-Govt!CB37 -> 3474.7 | CC37: ='Total NF'!CC37-Govt!CC37 -> 3489.4 | CD37: ='Total NF'!CD37-Govt!CD37 -> 3485.5 | CE37: ='Total NF'!CE37-Govt!CE37 -> 3496.1 | CF37: ='Total NF'!CF37-Govt!CF37 -> 3509.1 | CG37: ='Total NF'!CG37-Govt!CG37 -> 3518 | CH37: ='Total NF'!CH37-Govt!CH37 -> 3524.4 | CI37: ='Total NF'!CI37-Govt!CI37 -> 3531 | CJ37: ='Total NF'!CJ37-Govt!CJ37 -> 3534 | CK37: ='Total NF'!CK37-Govt!CK37 -> 3540.7 | CL37: ='Total NF'!CL37-Govt!CL37 -> 3552.6 | CM37: ='Total NF'!CM37-Govt!CM37 -> 3556.4 | CN37: ='Total NF'!CN37-Govt!CN37 -> 3577.7 | CO37: ='Total NF'!CO37-Govt!CO37 -> 3587.2 | CP37: ='Total NF'!CP37-Govt!CP37 -> 3592.2 | CQ37: ='Total NF'!CQ37-Govt!CQ37 -> 3604.4 | CR37: ='Total NF'!CR37-Govt!CR37 -> 3604.7 | CS37: ='Total NF'!CS37-Govt!CS37 -> 3605.9 | CT37: ='Total NF'!CT37-Govt!CT37 -> 3619.8 | CU37: ='Total NF'!CU37-Govt!CU37 -> 3624 | CV37: ='Total NF'!CV37-Govt!CV37 -> 3628.7 | CW37: ='Total NF'!CW37-Govt!CW37 -> 3633 | CX37: ='Total NF'!CX37-Govt!CX37 -> 3644.1 | CY37: ='Total NF'!CY37-Govt!CY37 -> 3650.3 | CZ37: ='Total NF'!CZ37-Govt!CZ37 -> 3649.8 | DA37: ='Total NF'!DA37-Govt!DA37 -> 3659 | DB37: ='Total NF'!DB37-Govt!DB37 -> 3654.5 | DC37: ='Total NF'!DC37-Govt!DC37 -> 3649.9 | DD37: ='Total NF'!DD37-Govt!DD37 -> 3665.7 | DE37: ='Total NF'!DE37-Govt!DE37 -> 3667.9 | DF37: ='Total NF'!DF37-Govt!DF37 -> 3675 | DG37: ='Total NF'!DG37-Govt!DG37 -> 3685.4 | DH37: ='Total NF'!DH37-Govt!DH37 -> 3687.1 | DI37: ='Total NF'!DI37-Govt!DI37 -> 3703.5 | DJ37: ='Total NF'!DJ37-Govt!DJ37 -> 3706.5 | DK37: 3 | DL37: 0.0008100445525 | DM37: =RANK(DK37,($DK$5:$DK$54)) -> 20 | DN37: =RANK(DL37,($DL$5:$DL$54)) -> 28 | DO37: 62.4 | DP37: 0.01712356961 | DQ37: =RANK(DO37,($DO$5:$DO$54)) -> 8 | DR37: =RANK(DP37,($DP$5:$DP$54)) -> 21 | DS37: 56.2 | DT37: =DS37/CY37 -> 0.01539599485 | DU37: =RANK(DS37,DS$5:DS$54) -> 8 | DV37: =RANK(DT37,DT$5:DT$54) -> 21 | DW37: 549.6 | DX37: 0.1740948399 | DY37: =RANK(DW37,($DW$5:$DW$54)) -> 7 | DZ37: =RANK(DX37,($DX$5:$DX$54)) -> 16
A38: North Dakota | B38: SMS38000004000000001 | C38: ='Total NF'!C38-Govt!C38 -> 289.6 | D38: ='Total NF'!D38-Govt!D38 -> 289.8 | E38: ='Total NF'!E38-Govt!E38 -> 288.6 | F38: ='Total NF'!F38-Govt!F38 -> 285.6 | G38: ='Total NF'!G38-Govt!G38 -> 288.3 | H38: ='Total NF'!H38-Govt!H38 -> 288.7 | I38: ='Total NF'!I38-Govt!I38 -> 288 | J38: ='Total NF'!J38-Govt!J38 -> 288 | K38: ='Total NF'!K38-Govt!K38 -> 289.3 | L38: ='Total NF'!L38-Govt!L38 -> 289.4 | M38: ='Total NF'!M38-Govt!M38 -> 289.1 | N38: ='Total NF'!N38-Govt!N38 -> 289.5 | P38: ='Total NF'!P38-Govt!P38 -> 289.2 | Q38: ='Total NF'!Q38-Govt!Q38 -> 290.5 | R38: ='Total NF'!R38-Govt!R38 -> 291.4 | S38: ='Total NF'!S38-Govt!S38 -> 294.6 | T38: ='Total NF'!T38-Govt!T38 -> 294.4 | U38: ='Total NF'!U38-Govt!U38 -> 294.4 | V38: ='Total NF'!V38-Govt!V38 -> 295.4 | W38: ='Total NF'!W38-Govt!W38 -> 297 | X38: ='Total NF'!X38-Govt!X38 -> 298.6 | Y38: ='Total NF'!Y38-Govt!Y38 -> 302 | Z38: ='Total NF'!Z38-Govt!Z38 -> 303 | AA38: ='Total NF'!AA38-Govt!AA38 -> 304.6 | AC38: ='Total NF'!AC38-Govt!AC38 -> 305.9 | AD38: ='Total NF'!AD38-Govt!AD38 -> 306.9 | AE38: ='Total NF'!AE38-Govt!AE38 -> 308.9 | AF38: ='Total NF'!AF38-Govt!AF38 -> 310 | AG38: ='Total NF'!AG38-Govt!AG38 -> 312.4 | AH38: ='Total NF'!AH38-Govt!AH38 -> 313.3 | AI38: ='Total NF'!AI38-Govt!AI38 -> 317.5 | AJ38: ='Total NF'!AJ38-Govt!AJ38 -> 319.9 | AK38: ='Total NF'!AK38-Govt!AK38 -> 324.1 | AL38: ='Total NF'!AL38-Govt!AL38 -> 326.2 | AM38: ='Total NF'!AM38-Govt!AM38 -> 330 | AN38: ='Total NF'!AN38-Govt!AN38 -> 333.1 | AP38: ='Total NF'!AP38-Govt!AP38 -> 337.6 | AQ38: ='Total NF'!AQ38-Govt!AQ38 -> 340.4 | AR38: ='Total NF'!AR38-Govt!AR38 -> 342.9 | AS38: ='Total NF'!AS38-Govt!AS38 -> 346.5 | AT38: ='Total NF'!AT38-Govt!AT38 -> 348.5 | AU38: ='Total NF'!AU38-Govt!AU38 -> 351.2 | AV38: ='Total NF'!AV38-Govt!AV38 -> 353.3 | AW38: ='Total NF'!AW38-Govt!AW38 -> 354.5 | AX38: ='Total NF'!AX38-Govt!AX38 -> 354.1 | AY38: ='Total NF'!AY38-Govt!AY38 -> 355.1 | AZ38: ='Total NF'!AZ38-Govt!AZ38 -> 355.1 | BA38: ='Total NF'!BA38-Govt!BA38 -> 355.9 | BC38: ='Total NF'!BC38-Govt!BC38 -> 356.9 | BD38: ='Total NF'!BD38-Govt!BD38 -> 359.5 | BE38: ='Total NF'!BE38-Govt!BE38 -> 360 | BF38: ='Total NF'!BF38-Govt!BF38 -> 358.5 | BG38: ='Total NF'!BG38-Govt!BG38 -> 362 | BH38: ='Total NF'!BH38-Govt!BH38 -> 363.1 | BI38: ='Total NF'!BI38-Govt!BI38 -> 365.1 | BJ38: ='Total NF'!BJ38-Govt!BJ38 -> 366.9 | BK38: ='Total NF'!BK38-Govt!BK38 -> 367.7 | BL38: ='Total NF'!BL38-Govt!BL38 -> 368.9 | BM38: ='Total NF'!BM38-Govt!BM38 -> 371.4 | BN38: ='Total NF'!BN38-Govt!BN38 -> 371.5 | BO38: ='Total NF'!BO38-Govt!BO38 -> 0 | BP38: ='Total NF'!BP38-Govt!BP38 -> 371 | BQ38: ='Total NF'!BQ38-Govt!BQ38 -> 373 | BR38: ='Total NF'!BR38-Govt!BR38 -> 374.2 | BS38: ='Total NF'!BS38-Govt!BS38 -> 376.8 | BT38: ='Total NF'!BT38-Govt!BT38 -> 378.7 | BU38: ='Total NF'!BU38-Govt!BU38 -> 380.2 | BV38: ='Total NF'!BV38-Govt!BV38 -> 382.2 | BW38: ='Total NF'!BW38-Govt!BW38 -> 383.4 | BX38: ='Total NF'!BX38-Govt!BX38 -> 385.2 | BY38: ='Total NF'!BY38-Govt!BY38 -> 387.2 | BZ38: ='Total NF'!BZ38-Govt!BZ38 -> 389.2 | CA38: ='Total NF'!CA38-Govt!CA38 -> 389.2 | CB38: ='Total NF'!CB38-Govt!CB38 -> 386.2 | CC38: ='Total NF'!CC38-Govt!CC38 -> 383.6 | CD38: ='Total NF'!CD38-Govt!CD38 -> 380.4 | CE38: ='Total NF'!CE38-Govt!CE38 -> 376.8 | CF38: ='Total NF'!CF38-Govt!CF38 -> 374.3 | CG38: ='Total NF'!CG38-Govt!CG38 -> 372.3 | CH38: ='Total NF'!CH38-Govt!CH38 -> 370.1 | CI38: ='Total NF'!CI38-Govt!CI38 -> 368.1 | CJ38: ='Total NF'!CJ38-Govt!CJ38 -> 367.1 | CK38: ='Total NF'!CK38-Govt!CK38 -> 367.8 | CL38: ='Total NF'!CL38-Govt!CL38 -> 365.4 | CM38: ='Total NF'!CM38-Govt!CM38 -> 362.3 | CN38: ='Total NF'!CN38-Govt!CN38 -> 355.2 | CO38: ='Total NF'!CO38-Govt!CO38 -> 353.6 | CP38: ='Total NF'!CP38-Govt!CP38 -> 352.4 | CQ38: ='Total NF'!CQ38-Govt!CQ38 -> 352.3 | CR38: ='Total NF'!CR38-Govt!CR38 -> 350.4 | CS38: ='Total NF'!CS38-Govt!CS38 -> 349.9 | CT38: ='Total NF'!CT38-Govt!CT38 -> 351.2 | CU38: ='Total NF'!CU38-Govt!CU38 -> 351.4 | CV38: ='Total NF'!CV38-Govt!CV38 -> 350.9 | CW38: ='Total NF'!CW38-Govt!CW38 -> 352.4 | CX38: ='Total NF'!CX38-Govt!CX38 -> 350.9 | CY38: ='Total NF'!CY38-Govt!CY38 -> 350.4 | CZ38: ='Total NF'!CZ38-Govt!CZ38 -> 350.9 | DA38: ='Total NF'!DA38-Govt!DA38 -> 349.9 | DB38: ='Total NF'!DB38-Govt!DB38 -> 351 | DC38: ='Total NF'!DC38-Govt!DC38 -> 353.3 | DD38: ='Total NF'!DD38-Govt!DD38 -> 355.8 | DE38: ='Total NF'!DE38-Govt!DE38 -> 356.1 | DF38: ='Total NF'!DF38-Govt!DF38 -> 358.2 | DG38: ='Total NF'!DG38-Govt!DG38 -> 357.6 | DH38: ='Total NF'!DH38-Govt!DH38 -> 356.9 | DI38: ='Total NF'!DI38-Govt!DI38 -> 355 | DJ38: ='Total NF'!DJ38-Govt!DJ38 -> 352.4 | DK38: -2.6 | DL38: -0.007323943662 | DM38: 43 | DN38: 49 | DO38: 1.5 | DP38: 0.004274722143 | DQ38: 46 | DR38: 44 | DS38: 2 | DT38: 0.005707762557 | DU38: 45 | DV38: 42 | DW38: 64.4 | DX38: 0.2236111111 | DY38: 39 | DZ38: 4
A39: Ohio | B39: SMS39000004000000001 | C39: ='Total NF'!C39-Govt!C39 -> 4409.6 | D39: ='Total NF'!D39-Govt!D39 -> 4382 | E39: ='Total NF'!E39-Govt!E39 -> 4343.8 | F39: ='Total NF'!F39-Govt!F39 -> 4296.8 | G39: ='Total NF'!G39-Govt!G39 -> 4282.6 | H39: ='Total NF'!H39-Govt!H39 -> 4254.5 | I39: ='Total NF'!I39-Govt!I39 -> 4243.6 | J39: ='Total NF'!J39-Govt!J39 -> 4237.2 | K39: ='Total NF'!K39-Govt!K39 -> 4236.5 | L39: ='Total NF'!L39-Govt!L39 -> 4226.8 | M39: ='Total NF'!M39-Govt!M39 -> 4225.1 | N39: ='Total NF'!N39-Govt!N39 -> 4224.4 | P39: ='Total NF'!P39-Govt!P39 -> 4222.8 | Q39: ='Total NF'!Q39-Govt!Q39 -> 4218.8 | R39: ='Total NF'!R39-Govt!R39 -> 4221.5 | S39: ='Total NF'!S39-Govt!S39 -> 4233.2 | T39: ='Total NF'!T39-Govt!T39 -> 4235.8 | U39: ='Total NF'!U39-Govt!U39 -> 4240.3 | V39: ='Total NF'!V39-Govt!V39 -> 4256.9 | W39: ='Total NF'!W39-Govt!W39 -> 4259 | X39: ='Total NF'!X39-Govt!X39 -> 4264.9 | Y39: ='Total NF'!Y39-Govt!Y39 -> 4279.6 | Z39: ='Total NF'!Z39-Govt!Z39 -> 4283.7 | AA39: ='Total NF'!AA39-Govt!AA39 -> 4286.4 | AC39: ='Total NF'!AC39-Govt!AC39 -> 4290.9 | AD39: ='Total NF'!AD39-Govt!AD39 -> 4300.4 | AE39: ='Total NF'!AE39-Govt!AE39 -> 4302.3 | AF39: ='Total NF'!AF39-Govt!AF39 -> 4314.5 | AG39: ='Total NF'!AG39-Govt!AG39 -> 4317.9 | AH39: ='Total NF'!AH39-Govt!AH39 -> 4313.1 | AI39: ='Total NF'!AI39-Govt!AI39 -> 4343.5 | AJ39: ='Total NF'!AJ39-Govt!AJ39 -> 4349.5 | AK39: ='Total NF'!AK39-Govt!AK39 -> 4355.6 | AL39: ='Total NF'!AL39-Govt!AL39 -> 4356.5 | AM39: ='Total NF'!AM39-Govt!AM39 -> 4371.6 | AN39: ='Total NF'!AN39-Govt!AN39 -> 4380.7 | AP39: ='Total NF'!AP39-Govt!AP39 -> 4394.2 | AQ39: ='Total NF'!AQ39-Govt!AQ39 -> 4405.9 | AR39: ='Total NF'!AR39-Govt!AR39 -> 4421.8 | AS39: ='Total NF'!AS39-Govt!AS39 -> 4419.1 | AT39: ='Total NF'!AT39-Govt!AT39 -> 4423.2 | AU39: ='Total NF'!AU39-Govt!AU39 -> 4430.7 | AV39: ='Total NF'!AV39-Govt!AV39 -> 4428.8 | AW39: ='Total NF'!AW39-Govt!AW39 -> 4429.3 | AX39: ='Total NF'!AX39-Govt!AX39 -> 4434.5 | AY39: ='Total NF'!AY39-Govt!AY39 -> 4449.5 | AZ39: ='Total NF'!AZ39-Govt!AZ39 -> 4452.6 | BA39: ='Total NF'!BA39-Govt!BA39 -> 4458.8 | BC39: ='Total NF'!BC39-Govt!BC39 -> 4458.3 | BD39: ='Total NF'!BD39-Govt!BD39 -> 4470.8 | BE39: ='Total NF'!BE39-Govt!BE39 -> 4472.5 | BF39: ='Total NF'!BF39-Govt!BF39 -> 4483 | BG39: ='Total NF'!BG39-Govt!BG39 -> 4493.7 | BH39: ='Total NF'!BH39-Govt!BH39 -> 4500.9 | BI39: ='Total NF'!BI39-Govt!BI39 -> 4506 | BJ39: ='Total NF'!BJ39-Govt!BJ39 -> 4511.3 | BK39: ='Total NF'!BK39-Govt!BK39 -> 4510.8 | BL39: ='Total NF'!BL39-Govt!BL39 -> 4510.7 | BM39: ='Total NF'!BM39-Govt!BM39 -> 4507.4 | BN39: ='Total NF'!BN39-Govt!BN39 -> 4514.9 | BO39: ='Total NF'!BO39-Govt!BO39 -> 0 | BP39: ='Total NF'!BP39-Govt!BP39 -> 4538.2 | BQ39: ='Total NF'!BQ39-Govt!BQ39 -> 4544 | BR39: ='Total NF'!BR39-Govt!BR39 -> 4550.3 | BS39: ='Total NF'!BS39-Govt!BS39 -> 4561.5 | BT39: ='Total NF'!BT39-Govt!BT39 -> 4569.9 | BU39: ='Total NF'!BU39-Govt!BU39 -> 4574.5 | BV39: ='Total NF'!BV39-Govt!BV39 -> 4581.2 | BW39: ='Total NF'!BW39-Govt!BW39 -> 4590.1 | BX39: ='Total NF'!BX39-Govt!BX39 -> 4589.2 | BY39: ='Total NF'!BY39-Govt!BY39 -> 4591 | BZ39: ='Total NF'!BZ39-Govt!BZ39 -> 4605.4 | CA39: ='Total NF'!CA39-Govt!CA39 -> 4609.7 | CB39: ='Total NF'!CB39-Govt!CB39 -> 4628.5 | CC39: ='Total NF'!CC39-Govt!CC39 -> 4630.3 | CD39: ='Total NF'!CD39-Govt!CD39 -> 4630.6 | CE39: ='Total NF'!CE39-Govt!CE39 -> 4637.6 | CF39: ='Total NF'!CF39-Govt!CF39 -> 4647.8 | CG39: ='Total NF'!CG39-Govt!CG39 -> 4647.2 | CH39: ='Total NF'!CH39-Govt!CH39 -> 4659.8 | CI39: ='Total NF'!CI39-Govt!CI39 -> 4656.9 | CJ39: ='Total NF'!CJ39-Govt!CJ39 -> 4656.7 | CK39: ='Total NF'!CK39-Govt!CK39 -> 4679 | CL39: ='Total NF'!CL39-Govt!CL39 -> 4687.7 | CM39: ='Total NF'!CM39-Govt!CM39 -> 4699.8 | CN39: ='Total NF'!CN39-Govt!CN39 -> 4695.7 | CO39: ='Total NF'!CO39-Govt!CO39 -> 4700.3 | CP39: ='Total NF'!CP39-Govt!CP39 -> 4705.2 | CQ39: ='Total NF'!CQ39-Govt!CQ39 -> 4700.6 | CR39: ='Total NF'!CR39-Govt!CR39 -> 4698.6 | CS39: ='Total NF'!CS39-Govt!CS39 -> 4694.5 | CT39: ='Total NF'!CT39-Govt!CT39 -> 4712.3 | CU39: ='Total NF'!CU39-Govt!CU39 -> 4708.1 | CV39: ='Total NF'!CV39-Govt!CV39 -> 4716 | CW39: ='Total NF'!CW39-Govt!CW39 -> 4717.1 | CX39: ='Total NF'!CX39-Govt!CX39 -> 4726.1 | CY39: ='Total NF'!CY39-Govt!CY39 -> 4732.1 | CZ39: ='Total NF'!CZ39-Govt!CZ39 -> 4734.1 | DA39: ='Total NF'!DA39-Govt!DA39 -> 4753.3 | DB39: ='Total NF'!DB39-Govt!DB39 -> 4749.5 | DC39: ='Total NF'!DC39-Govt!DC39 -> 4742.2 | DD39: ='Total NF'!DD39-Govt!DD39 -> 4743.8 | DE39: ='Total NF'!DE39-Govt!DE39 -> 4757.5 | DF39: ='Total NF'!DF39-Govt!DF39 -> 4758.3 | DG39: ='Total NF'!DG39-Govt!DG39 -> 4770.2 | DH39: ='Total NF'!DH39-Govt!DH39 -> 4777.3 | DI39: ='Total NF'!DI39-Govt!DI39 -> 4777.7 | DJ39: ='Total NF'!DJ39-Govt!DJ39 -> 4774.4 | DK39: -3.3 | DL39: -0.0006907089185 | DM39: 45 | DN39: 38 | DO39: 48.3 | DP39: 0.010219843 | DQ39: 11 | DR39: 37 | DS39: 42.3 | DT39: 0.008938948881 | DU39: 13 | DV39: 38 | DW39: 530.8 | DX39: 0.1250824771 | DY39: 8 | DZ39: 24
A40: Oklahoma | B40: SMS40000004000000001 | C40: ='Total NF'!C40-Govt!C40 -> 1260.2 | D40: ='Total NF'!D40-Govt!D40 -> 1253 | E40: ='Total NF'!E40-Govt!E40 -> 1241.2 | F40: ='Total NF'!F40-Govt!F40 -> 1226.5 | G40: ='Total NF'!G40-Govt!G40 -> 1222.1 | H40: ='Total NF'!H40-Govt!H40 -> 1218.5 | I40: ='Total NF'!I40-Govt!I40 -> 1212.4 | J40: ='Total NF'!J40-Govt!J40 -> 1206.6 | K40: ='Total NF'!K40-Govt!K40 -> 1203.2 | L40: ='Total NF'!L40-Govt!L40 -> 1198.6 | M40: ='Total NF'!M40-Govt!M40 -> 1196.2 | N40: ='Total NF'!N40-Govt!N40 -> 1194.4 | P40: ='Total NF'!P40-Govt!P40 -> 1193.6 | Q40: ='Total NF'!Q40-Govt!Q40 -> 1194 | R40: ='Total NF'!R40-Govt!R40 -> 1195.5 | S40: ='Total NF'!S40-Govt!S40 -> 1200.9 | T40: ='Total NF'!T40-Govt!T40 -> 1205.3 | U40: ='Total NF'!U40-Govt!U40 -> 1207.3 | V40: ='Total NF'!V40-Govt!V40 -> 1209.7 | W40: ='Total NF'!W40-Govt!W40 -> 1211 | X40: ='Total NF'!X40-Govt!X40 -> 1210.3 | Y40: ='Total NF'!Y40-Govt!Y40 -> 1217.6 | Z40: ='Total NF'!Z40-Govt!Z40 -> 1219.6 | AA40: ='Total NF'!AA40-Govt!AA40 -> 1222.9 | AC40: ='Total NF'!AC40-Govt!AC40 -> 1219.3 | AD40: ='Total NF'!AD40-Govt!AD40 -> 1213 | AE40: ='Total NF'!AE40-Govt!AE40 -> 1223.7 | AF40: ='Total NF'!AF40-Govt!AF40 -> 1229.6 | AG40: ='Total NF'!AG40-Govt!AG40 -> 1230.7 | AH40: ='Total NF'!AH40-Govt!AH40 -> 1231.4 | AI40: ='Total NF'!AI40-Govt!AI40 -> 1239.2 | AJ40: ='Total NF'!AJ40-Govt!AJ40 -> 1239.9 | AK40: ='Total NF'!AK40-Govt!AK40 -> 1243.2 | AL40: ='Total NF'!AL40-Govt!AL40 -> 1243 | AM40: ='Total NF'!AM40-Govt!AM40 -> 1244.6 | AN40: ='Total NF'!AN40-Govt!AN40 -> 1247.1 | AP40: ='Total NF'!AP40-Govt!AP40 -> 1251.3 | AQ40: ='Total NF'!AQ40-Govt!AQ40 -> 1255.2 | AR40: ='Total NF'!AR40-Govt!AR40 -> 1257.9 | AS40: ='Total NF'!AS40-Govt!AS40 -> 1263.6 | AT40: ='Total NF'!AT40-Govt!AT40 -> 1266.1 | AU40: ='Total NF'!AU40-Govt!AU40 -> 1268.7 | AV40: ='Total NF'!AV40-Govt!AV40 -> 1266.6 | AW40: ='Total NF'!AW40-Govt!AW40 -> 1267.5 | AX40: ='Total NF'!AX40-Govt!AX40 -> 1268.9 | AY40: ='Total NF'!AY40-Govt!AY40 -> 1275.7 | AZ40: ='Total NF'!AZ40-Govt!AZ40 -> 1278.2 | BA40: ='Total NF'!BA40-Govt!BA40 -> 1281.6 | BC40: ='Total NF'!BC40-Govt!BC40 -> 1275 | BD40: ='Total NF'!BD40-Govt!BD40 -> 1277 | BE40: ='Total NF'!BE40-Govt!BE40 -> 1278.8 | BF40: ='Total NF'!BF40-Govt!BF40 -> 1279 | BG40: ='Total NF'!BG40-Govt!BG40 -> 1281.2 | BH40: ='Total NF'!BH40-Govt!BH40 -> 1283.4 | BI40: ='Total NF'!BI40-Govt!BI40 -> 1285.5 | BJ40: ='Total NF'!BJ40-Govt!BJ40 -> 1287.5 | BK40: ='Total NF'!BK40-Govt!BK40 -> 1289.4 | BL40: ='Total NF'!BL40-Govt!BL40 -> 1290.3 | BM40: ='Total NF'!BM40-Govt!BM40 -> 1296 | BN40: ='Total NF'!BN40-Govt!BN40 -> 1297.6 | BO40: ='Total NF'!BO40-Govt!BO40 -> 0 | BP40: ='Total NF'!BP40-Govt!BP40 -> 1297.2 | BQ40: ='Total NF'!BQ40-Govt!BQ40 -> 1299.6 | BR40: ='Total NF'!BR40-Govt!BR40 -> 1298.1 | BS40: ='Total NF'!BS40-Govt!BS40 -> 1298.4 | BT40: ='Total NF'!BT40-Govt!BT40 -> 1299.2 | BU40: ='Total NF'!BU40-Govt!BU40 -> 1302.1 | BV40: ='Total NF'!BV40-Govt!BV40 -> 1308 | BW40: ='Total NF'!BW40-Govt!BW40 -> 1309 | BX40: ='Total NF'!BX40-Govt!BX40 -> 1309.7 | BY40: ='Total NF'!BY40-Govt!BY40 -> 1315.1 | BZ40: ='Total NF'!BZ40-Govt!BZ40 -> 1317.5 | CA40: ='Total NF'!CA40-Govt!CA40 -> 1320.3 | CB40: ='Total NF'!CB40-Govt!CB40 -> 1325.3 | CC40: ='Total NF'!CC40-Govt!CC40 -> 1325.2 | CD40: ='Total NF'!CD40-Govt!CD40 -> 1320.2 | CE40: ='Total NF'!CE40-Govt!CE40 -> 1315 | CF40: ='Total NF'!CF40-Govt!CF40 -> 1315.5 | CG40: ='Total NF'!CG40-Govt!CG40 -> 1315.9 | CH40: ='Total NF'!CH40-Govt!CH40 -> 1316.4 | CI40: ='Total NF'!CI40-Govt!CI40 -> 1314.8 | CJ40: ='Total NF'!CJ40-Govt!CJ40 -> 1313.3 | CK40: ='Total NF'!CK40-Govt!CK40 -> 1315.8 | CL40: ='Total NF'!CL40-Govt!CL40 -> 1314.3 | CM40: ='Total NF'!CM40-Govt!CM40 -> 1310.7 | CN40: ='Total NF'!CN40-Govt!CN40 -> 1308 | CO40: ='Total NF'!CO40-Govt!CO40 -> 1308.8 | CP40: ='Total NF'!CP40-Govt!CP40 -> 1303.4 | CQ40: ='Total NF'!CQ40-Govt!CQ40 -> 1300.6 | CR40: ='Total NF'!CR40-Govt!CR40 -> 1297.4 | CS40: ='Total NF'!CS40-Govt!CS40 -> 1293.2 | CT40: ='Total NF'!CT40-Govt!CT40 -> 1295.2 | CU40: ='Total NF'!CU40-Govt!CU40 -> 1295.2 | CV40: ='Total NF'!CV40-Govt!CV40 -> 1294.9 | CW40: ='Total NF'!CW40-Govt!CW40 -> 1298.6 | CX40: ='Total NF'!CX40-Govt!CX40 -> 1295.9 | CY40: ='Total NF'!CY40-Govt!CY40 -> 1296.7 | CZ40: ='Total NF'!CZ40-Govt!CZ40 -> 1298.3 | DA40: ='Total NF'!DA40-Govt!DA40 -> 1301.4 | DB40: ='Total NF'!DB40-Govt!DB40 -> 1300.8 | DC40: ='Total NF'!DC40-Govt!DC40 -> 1297.7 | DD40: ='Total NF'!DD40-Govt!DD40 -> 1298.2 | DE40: ='Total NF'!DE40-Govt!DE40 -> 1302.8 | DF40: ='Total NF'!DF40-Govt!DF40 -> 1310.6 | DG40: ='Total NF'!DG40-Govt!DG40 -> 1314.9 | DH40: ='Total NF'!DH40-Govt!DH40 -> 1313.9 | DI40: ='Total NF'!DI40-Govt!DI40 -> 1317.3 | DJ40: ='Total NF'!DJ40-Govt!DJ40 -> 1314 | DK40: -3.3 | DL40: -0.002505124118 | DM40: 46 | DN40: 47 | DO40: 18.1 | DP40: 0.01396712709 | DQ40: 30 | DR40: 26 | DS40: 17.3 | DT40: 0.01334155934 | DU40: 31 | DV40: 26 | DW40: 101.6 | DX40: 0.08380072583 | DY40: 32 | DZ40: 42
A41: Oregon | B41: SMS41000004000000001 | C41: ='Total NF'!C41-Govt!C41 -> 1355.9 | D41: ='Total NF'!D41-Govt!D41 -> 1341.5 | E41: ='Total NF'!E41-Govt!E41 -> 1327 | F41: ='Total NF'!F41-Govt!F41 -> 1316 | G41: ='Total NF'!G41-Govt!G41 -> 1313.3 | H41: ='Total NF'!H41-Govt!H41 -> 1310 | I41: ='Total NF'!I41-Govt!I41 -> 1305.1 | J41: ='Total NF'!J41-Govt!J41 -> 1300.1 | K41: ='Total NF'!K41-Govt!K41 -> 1300 | L41: ='Total NF'!L41-Govt!L41 -> 1295.5 | M41: ='Total NF'!M41-Govt!M41 -> 1294.8 | N41: ='Total NF'!N41-Govt!N41 -> 1294.3 | P41: ='Total NF'!P41-Govt!P41 -> 1294 | Q41: ='Total NF'!Q41-Govt!Q41 -> 1292.8 | R41: ='Total NF'!R41-Govt!R41 -> 1294.9 | S41: ='Total NF'!S41-Govt!S41 -> 1297.5 | T41: ='Total NF'!T41-Govt!T41 -> 1299.6 | U41: ='Total NF'!U41-Govt!U41 -> 1302.2 | V41: ='Total NF'!V41-Govt!V41 -> 1301.4 | W41: ='Total NF'!W41-Govt!W41 -> 1303.5 | X41: ='Total NF'!X41-Govt!X41 -> 1304.8 | Y41: ='Total NF'!Y41-Govt!Y41 -> 1310.9 | Z41: ='Total NF'!Z41-Govt!Z41 -> 1310.6 | AA41: ='Total NF'!AA41-Govt!AA41 -> 1312 | AC41: ='Total NF'!AC41-Govt!AC41 -> 1316.3 | AD41: ='Total NF'!AD41-Govt!AD41 -> 1318.4 | AE41: ='Total NF'!AE41-Govt!AE41 -> 1320.4 | AF41: ='Total NF'!AF41-Govt!AF41 -> 1321.2 | AG41: ='Total NF'!AG41-Govt!AG41 -> 1320.9 | AH41: ='Total NF'!AH41-Govt!AH41 -> 1321.2 | AI41: ='Total NF'!AI41-Govt!AI41 -> 1324.9 | AJ41: ='Total NF'!AJ41-Govt!AJ41 -> 1328.3 | AK41: ='Total NF'!AK41-Govt!AK41 -> 1331.1 | AL41: ='Total NF'!AL41-Govt!AL41 -> 1328.7 | AM41: ='Total NF'!AM41-Govt!AM41 -> 1332.9 | AN41: ='Total NF'!AN41-Govt!AN41 -> 1334.9 | AP41: ='Total NF'!AP41-Govt!AP41 -> 1339.6 | AQ41: ='Total NF'!AQ41-Govt!AQ41 -> 1340.9 | AR41: ='Total NF'!AR41-Govt!AR41 -> 1343 | AS41: ='Total NF'!AS41-Govt!AS41 -> 1344.5 | AT41: ='Total NF'!AT41-Govt!AT41 -> 1347.1 | AU41: ='Total NF'!AU41-Govt!AU41 -> 1346.4 | AV41: ='Total NF'!AV41-Govt!AV41 -> 1349.2 | AW41: ='Total NF'!AW41-Govt!AW41 -> 1351.5 | AX41: ='Total NF'!AX41-Govt!AX41 -> 1351.5 | AY41: ='Total NF'!AY41-Govt!AY41 -> 1355.5 | AZ41: ='Total NF'!AZ41-Govt!AZ41 -> 1358.8 | BA41: ='Total NF'!BA41-Govt!BA41 -> 1360.8 | BC41: ='Total NF'!BC41-Govt!BC41 -> 1365.5 | BD41: ='Total NF'!BD41-Govt!BD41 -> 1370.1 | BE41: ='Total NF'!BE41-Govt!BE41 -> 1373.9 | BF41: ='Total NF'!BF41-Govt!BF41 -> 1378.6 | BG41: ='Total NF'!BG41-Govt!BG41 -> 1382.5 | BH41: ='Total NF'!BH41-Govt!BH41 -> 1382.6 | BI41: ='Total NF'!BI41-Govt!BI41 -> 1386.3 | BJ41: ='Total NF'!BJ41-Govt!BJ41 -> 1388.7 | BK41: ='Total NF'!BK41-Govt!BK41 -> 1391.8 | BL41: ='Total NF'!BL41-Govt!BL41 -> 1395.7 | BM41: ='Total NF'!BM41-Govt!BM41 -> 1400.9 | BN41: ='Total NF'!BN41-Govt!BN41 -> 1404.8 | BO41: ='Total NF'!BO41-Govt!BO41 -> 0 | BP41: ='Total NF'!BP41-Govt!BP41 -> 1406.3 | BQ41: ='Total NF'!BQ41-Govt!BQ41 -> 1407.2 | BR41: ='Total NF'!BR41-Govt!BR41 -> 1412.3 | BS41: ='Total NF'!BS41-Govt!BS41 -> 1419.9 | BT41: ='Total NF'!BT41-Govt!BT41 -> 1421.8 | BU41: ='Total NF'!BU41-Govt!BU41 -> 1423.3 | BV41: ='Total NF'!BV41-Govt!BV41 -> 1427.3 | BW41: ='Total NF'!BW41-Govt!BW41 -> 1428.9 | BX41: ='Total NF'!BX41-Govt!BX41 -> 1433 | BY41: ='Total NF'!BY41-Govt!BY41 -> 1440.3 | BZ41: ='Total NF'!BZ41-Govt!BZ41 -> 1449.9 | CA41: ='Total NF'!CA41-Govt!CA41 -> 1453 | CB41: ='Total NF'!CB41-Govt!CB41 -> 1456 | CC41: ='Total NF'!CC41-Govt!CC41 -> 1463.7 | CD41: ='Total NF'!CD41-Govt!CD41 -> 1465.7 | CE41: ='Total NF'!CE41-Govt!CE41 -> 1467.5 | CF41: ='Total NF'!CF41-Govt!CF41 -> 1471.7 | CG41: ='Total NF'!CG41-Govt!CG41 -> 1476.3 | CH41: ='Total NF'!CH41-Govt!CH41 -> 1479.2 | CI41: ='Total NF'!CI41-Govt!CI41 -> 1483.3 | CJ41: ='Total NF'!CJ41-Govt!CJ41 -> 1484 | CK41: ='Total NF'!CK41-Govt!CK41 -> 1492.8 | CL41: ='Total NF'!CL41-Govt!CL41 -> 1500 | CM41: ='Total NF'!CM41-Govt!CM41 -> 1500.3 | CN41: ='Total NF'!CN41-Govt!CN41 -> 1508.1 | CO41: ='Total NF'!CO41-Govt!CO41 -> 1516.8 | CP41: ='Total NF'!CP41-Govt!CP41 -> 1518.3 | CQ41: ='Total NF'!CQ41-Govt!CQ41 -> 1520.4 | CR41: ='Total NF'!CR41-Govt!CR41 -> 1521.6 | CS41: ='Total NF'!CS41-Govt!CS41 -> 1522.8 | CT41: ='Total NF'!CT41-Govt!CT41 -> 1524.3 | CU41: ='Total NF'!CU41-Govt!CU41 -> 1530.8 | CV41: ='Total NF'!CV41-Govt!CV41 -> 1532.4 | CW41: ='Total NF'!CW41-Govt!CW41 -> 1536.8 | CX41: ='Total NF'!CX41-Govt!CX41 -> 1540.8 | CY41: ='Total NF'!CY41-Govt!CY41 -> 1544 | CZ41: ='Total NF'!CZ41-Govt!CZ41 -> 1548.1 | DA41: ='Total NF'!DA41-Govt!DA41 -> 1552.1 | DB41: ='Total NF'!DB41-Govt!DB41 -> 1552.4 | DC41: ='Total NF'!DC41-Govt!DC41 -> 1559.6 | DD41: ='Total NF'!DD41-Govt!DD41 -> 1561.9 | DE41: ='Total NF'!DE41-Govt!DE41 -> 1569.6 | DF41: ='Total NF'!DF41-Govt!DF41 -> 1574.8 | DG41: ='Total NF'!DG41-Govt!DG41 -> 1571.2 | DH41: ='Total NF'!DH41-Govt!DH41 -> 1567.2 | DI41: ='Total NF'!DI41-Govt!DI41 -> 1576.9 | DJ41: ='Total NF'!DJ41-Govt!DJ41 -> 1574.8 | DK41: -2.1 | DL41: -0.001331726806 | DM41: 41 | DN41: 39 | DO41: 34 | DP41: 0.02206645898 | DQ41: 20 | DR41: 9 | DS41: 30.8 | DT41: 0.01994818653 | DU41: 21 | DV41: 8 | DW41: 269.7 | DX41: 0.2066508314 | DY41: 22 | DZ41: 9
A42: Pennsylvania | B42: SMS42000004000000001 | C42: ='Total NF'!C42-Govt!C42 -> 4945.5 | D42: ='Total NF'!D42-Govt!D42 -> 4924.6 | E42: ='Total NF'!E42-Govt!E42 -> 4889.6 | F42: ='Total NF'!F42-Govt!F42 -> 4856.1 | G42: ='Total NF'!G42-Govt!G42 -> 4853.4 | H42: ='Total NF'!H42-Govt!H42 -> 4835.3 | I42: ='Total NF'!I42-Govt!I42 -> 4822.5 | J42: ='Total NF'!J42-Govt!J42 -> 4815.7 | K42: ='Total NF'!K42-Govt!K42 -> 4811.5 | L42: ='Total NF'!L42-Govt!L42 -> 4811.2 | M42: ='Total NF'!M42-Govt!M42 -> 4813.7 | N42: ='Total NF'!N42-Govt!N42 -> 4810.3 | P42: ='Total NF'!P42-Govt!P42 -> 4815.2 | Q42: ='Total NF'!Q42-Govt!Q42 -> 4798.6 | R42: ='Total NF'!R42-Govt!R42 -> 4818 | S42: ='Total NF'!S42-Govt!S42 -> 4838.3 | T42: ='Total NF'!T42-Govt!T42 -> 4848.1 | U42: ='Total NF'!U42-Govt!U42 -> 4852.1 | V42: ='Total NF'!V42-Govt!V42 -> 4859.5 | W42: ='Total NF'!W42-Govt!W42 -> 4866.8 | X42: ='Total NF'!X42-Govt!X42 -> 4865.8 | Y42: ='Total NF'!Y42-Govt!Y42 -> 4882.7 | Z42: ='Total NF'!Z42-Govt!Z42 -> 4888.4 | AA42: ='Total NF'!AA42-Govt!AA42 -> 4895.3 | AC42: ='Total NF'!AC42-Govt!AC42 -> 4899.6 | AD42: ='Total NF'!AD42-Govt!AD42 -> 4905.1 | AE42: ='Total NF'!AE42-Govt!AE42 -> 4912.7 | AF42: ='Total NF'!AF42-Govt!AF42 -> 4926.3 | AG42: ='Total NF'!AG42-Govt!AG42 -> 4931.2 | AH42: ='Total NF'!AH42-Govt!AH42 -> 4932.1 | AI42: ='Total NF'!AI42-Govt!AI42 -> 4938.7 | AJ42: ='Total NF'!AJ42-Govt!AJ42 -> 4940.2 | AK42: ='Total NF'!AK42-Govt!AK42 -> 4951.8 | AL42: ='Total NF'!AL42-Govt!AL42 -> 4955.3 | AM42: ='Total NF'!AM42-Govt!AM42 -> 4964.8 | AN42: ='Total NF'!AN42-Govt!AN42 -> 4966.7 | AP42: ='Total NF'!AP42-Govt!AP42 -> 4977.8 | AQ42: ='Total NF'!AQ42-Govt!AQ42 -> 4988.4 | AR42: ='Total NF'!AR42-Govt!AR42 -> 5007.1 | AS42: ='Total NF'!AS42-Govt!AS42 -> 4995.8 | AT42: ='Total NF'!AT42-Govt!AT42 -> 4993 | AU42: ='Total NF'!AU42-Govt!AU42 -> 4989.1 | AV42: ='Total NF'!AV42-Govt!AV42 -> 4987.7 | AW42: ='Total NF'!AW42-Govt!AW42 -> 4988.3 | AX42: ='Total NF'!AX42-Govt!AX42 -> 4998.3 | AY42: ='Total NF'!AY42-Govt!AY42 -> 4999.1 | AZ42: ='Total NF'!AZ42-Govt!AZ42 -> 5004.5 | BA42: ='Total NF'!BA42-Govt!BA42 -> 5001.8 | BC42: ='Total NF'!BC42-Govt!BC42 -> 5005.2 | BD42: ='Total NF'!BD42-Govt!BD42 -> 5016.3 | BE42: ='Total NF'!BE42-Govt!BE42 -> 5018.9 | BF42: ='Total NF'!BF42-Govt!BF42 -> 5011.5 | BG42: ='Total NF'!BG42-Govt!BG42 -> 5011.1 | BH42: ='Total NF'!BH42-Govt!BH42 -> 5016.9 | BI42: ='Total NF'!BI42-Govt!BI42 -> 5019.4 | BJ42: ='Total NF'!BJ42-Govt!BJ42 -> 5022.2 | BK42: ='Total NF'!BK42-Govt!BK42 -> 5028.3 | BL42: ='Total NF'!BL42-Govt!BL42 -> 5036.9 | BM42: ='Total NF'!BM42-Govt!BM42 -> 5047.9 | BN42: ='Total NF'!BN42-Govt!BN42 -> 5040.6 | BO42: ='Total NF'!BO42-Govt!BO42 -> 0 | BP42: ='Total NF'!BP42-Govt!BP42 -> 5043.1 | BQ42: ='Total NF'!BQ42-Govt!BQ42 -> 5042.2 | BR42: ='Total NF'!BR42-Govt!BR42 -> 5052.7 | BS42: ='Total NF'!BS42-Govt!BS42 -> 5068.8 | BT42: ='Total NF'!BT42-Govt!BT42 -> 5077.4 | BU42: ='Total NF'!BU42-Govt!BU42 -> 5078.6 | BV42: ='Total NF'!BV42-Govt!BV42 -> 5079 | BW42: ='Total NF'!BW42-Govt!BW42 -> 5088.1 | BX42: ='Total NF'!BX42-Govt!BX42 -> 5090.4 | BY42: ='Total NF'!BY42-Govt!BY42 -> 5099.6 | BZ42: ='Total NF'!BZ42-Govt!BZ42 -> 5107.1 | CA42: ='Total NF'!CA42-Govt!CA42 -> 5117.1 | CB42: ='Total NF'!CB42-Govt!CB42 -> 5113.5 | CC42: ='Total NF'!CC42-Govt!CC42 -> 5117.5 | CD42: ='Total NF'!CD42-Govt!CD42 -> 5106.3 | CE42: ='Total NF'!CE42-Govt!CE42 -> 5118.1 | CF42: ='Total NF'!CF42-Govt!CF42 -> 5127.3 | CG42: ='Total NF'!CG42-Govt!CG42 -> 5128.6 | CH42: ='Total NF'!CH42-Govt!CH42 -> 5131 | CI42: ='Total NF'!CI42-Govt!CI42 -> 5134.9 | CJ42: ='Total NF'!CJ42-Govt!CJ42 -> 5138.5 | CK42: ='Total NF'!CK42-Govt!CK42 -> 5155.8 | CL42: ='Total NF'!CL42-Govt!CL42 -> 5150.4 | CM42: ='Total NF'!CM42-Govt!CM42 -> 5161.3 | CN42: ='Total NF'!CN42-Govt!CN42 -> 5159.1 | CO42: ='Total NF'!CO42-Govt!CO42 -> 5165.5 | CP42: ='Total NF'!CP42-Govt!CP42 -> 5170.8 | CQ42: ='Total NF'!CQ42-Govt!CQ42 -> 5178.2 | CR42: ='Total NF'!CR42-Govt!CR42 -> 5167 | CS42: ='Total NF'!CS42-Govt!CS42 -> 5160.7 | CT42: ='Total NF'!CT42-Govt!CT42 -> 5181.3 | CU42: ='Total NF'!CU42-Govt!CU42 -> 5183.4 | CV42: ='Total NF'!CV42-Govt!CV42 -> 5192.1 | CW42: ='Total NF'!CW42-Govt!CW42 -> 5203.5 | CX42: ='Total NF'!CX42-Govt!CX42 -> 5209.8 | CY42: ='Total NF'!CY42-Govt!CY42 -> 5213.2 | CZ42: ='Total NF'!CZ42-Govt!CZ42 -> 5228.7 | DA42: ='Total NF'!DA42-Govt!DA42 -> 5248.5 | DB42: ='Total NF'!DB42-Govt!DB42 -> 5229 | DC42: ='Total NF'!DC42-Govt!DC42 -> 5225.6 | DD42: ='Total NF'!DD42-Govt!DD42 -> 5229.6 | DE42: ='Total NF'!DE42-Govt!DE42 -> 5229.9 | DF42: ='Total NF'!DF42-Govt!DF42 -> 5256 | DG42: ='Total NF'!DG42-Govt!DG42 -> 5254.3 | DH42: ='Total NF'!DH42-Govt!DH42 -> 5273.5 | DI42: ='Total NF'!DI42-Govt!DI42 -> 5274.1 | DJ42: ='Total NF'!DJ42-Govt!DJ42 -> 5275.8 | DK42: 1.7 | DL42: 0.0003223298762 | DM42: 25 | DN42: 36 | DO42: 66 | DP42: 0.01266843257 | DQ42: 7 | DR42: 32 | DS42: 62.6 | DT42: 0.01200797974 | DU42: 6 | DV42: 28 | DW42: 453.3 | DX42: 0.09399688958 | DY42: 11 | DZ42: 37
A43: Rhode Island | B43: SMS44000004000000001 | C43: ='Total NF'!C43-Govt!C43 -> 405.4 | D43: ='Total NF'!D43-Govt!D43 -> 403.4 | E43: ='Total NF'!E43-Govt!E43 -> 400.9 | F43: ='Total NF'!F43-Govt!F43 -> 397.2 | G43: ='Total NF'!G43-Govt!G43 -> 397.7 | H43: ='Total NF'!H43-Govt!H43 -> 396.5 | I43: ='Total NF'!I43-Govt!I43 -> 394.3 | J43: ='Total NF'!J43-Govt!J43 -> 394.5 | K43: ='Total NF'!K43-Govt!K43 -> 394.2 | L43: ='Total NF'!L43-Govt!L43 -> 394 | M43: ='Total NF'!M43-Govt!M43 -> 394.5 | N43: ='Total NF'!N43-Govt!N43 -> 394.5 | P43: ='Total NF'!P43-Govt!P43 -> 395.3 | Q43: ='Total NF'!Q43-Govt!Q43 -> 394.5 | R43: ='Total NF'!R43-Govt!R43 -> 395.5 | S43: ='Total NF'!S43-Govt!S43 -> 395.2 | T43: ='Total NF'!T43-Govt!T43 -> 395 | U43: ='Total NF'!U43-Govt!U43 -> 394.8 | V43: ='Total NF'!V43-Govt!V43 -> 396.5 | W43: ='Total NF'!W43-Govt!W43 -> 397.7 | X43: ='Total NF'!X43-Govt!X43 -> 397.4 | Y43: ='Total NF'!Y43-Govt!Y43 -> 397.2 | Z43: ='Total NF'!Z43-Govt!Z43 -> 397.7 | AA43: ='Total NF'!AA43-Govt!AA43 -> 397.5 | AC43: ='Total NF'!AC43-Govt!AC43 -> 397.4 | AD43: ='Total NF'!AD43-Govt!AD43 -> 397.5 | AE43: ='Total NF'!AE43-Govt!AE43 -> 398.1 | AF43: ='Total NF'!AF43-Govt!AF43 -> 400.3 | AG43: ='Total NF'!AG43-Govt!AG43 -> 400 | AH43: ='Total NF'!AH43-Govt!AH43 -> 400.3 | AI43: ='Total NF'!AI43-Govt!AI43 -> 402.3 | AJ43: ='Total NF'!AJ43-Govt!AJ43 -> 400.3 | AK43: ='Total NF'!AK43-Govt!AK43 -> 400.4 | AL43: ='Total NF'!AL43-Govt!AL43 -> 401.1 | AM43: ='Total NF'!AM43-Govt!AM43 -> 401.4 | AN43: ='Total NF'!AN43-Govt!AN43 -> 400.9 | AP43: ='Total NF'!AP43-Govt!AP43 -> 402.5 | AQ43: ='Total NF'!AQ43-Govt!AQ43 -> 404.7 | AR43: ='Total NF'!AR43-Govt!AR43 -> 405.3 | AS43: ='Total NF'!AS43-Govt!AS43 -> 404 | AT43: ='Total NF'!AT43-Govt!AT43 -> 404.6 | AU43: ='Total NF'!AU43-Govt!AU43 -> 405.4 | AV43: ='Total NF'!AV43-Govt!AV43 -> 405.1 | AW43: ='Total NF'!AW43-Govt!AW43 -> 406.3 | AX43: ='Total NF'!AX43-Govt!AX43 -> 407.4 | AY43: ='Total NF'!AY43-Govt!AY43 -> 406 | AZ43: ='Total NF'!AZ43-Govt!AZ43 -> 406.4 | BA43: ='Total NF'!BA43-Govt!BA43 -> 408 | BC43: ='Total NF'!BC43-Govt!BC43 -> 408.9 | BD43: ='Total NF'!BD43-Govt!BD43 -> 408.5 | BE43: ='Total NF'!BE43-Govt!BE43 -> 409.4 | BF43: ='Total NF'!BF43-Govt!BF43 -> 409.2 | BG43: ='Total NF'!BG43-Govt!BG43 -> 410 | BH43: ='Total NF'!BH43-Govt!BH43 -> 412.3 | BI43: ='Total NF'!BI43-Govt!BI43 -> 411.5 | BJ43: ='Total NF'!BJ43-Govt!BJ43 -> 411.8 | BK43: ='Total NF'!BK43-Govt!BK43 -> 412.6 | BL43: ='Total NF'!BL43-Govt!BL43 -> 412.7 | BM43: ='Total NF'!BM43-Govt!BM43 -> 413.8 | BN43: ='Total NF'!BN43-Govt!BN43 -> 411.2 | BO43: ='Total NF'!BO43-Govt!BO43 -> 0 | BP43: ='Total NF'!BP43-Govt!BP43 -> 414.9 | BQ43: ='Total NF'!BQ43-Govt!BQ43 -> 415 | BR43: ='Total NF'!BR43-Govt!BR43 -> 415 | BS43: ='Total NF'!BS43-Govt!BS43 -> 416.9 | BT43: ='Total NF'!BT43-Govt!BT43 -> 417.7 | BU43: ='Total NF'!BU43-Govt!BU43 -> 417.5 | BV43: ='Total NF'!BV43-Govt!BV43 -> 419.6 | BW43: ='Total NF'!BW43-Govt!BW43 -> 419.6 | BX43: ='Total NF'!BX43-Govt!BX43 -> 418.9 | BY43: ='Total NF'!BY43-Govt!BY43 -> 417.8 | BZ43: ='Total NF'!BZ43-Govt!BZ43 -> 418.7 | CA43: ='Total NF'!CA43-Govt!CA43 -> 419.2 | CB43: ='Total NF'!CB43-Govt!CB43 -> 423.1 | CC43: ='Total NF'!CC43-Govt!CC43 -> 420.2 | CD43: ='Total NF'!CD43-Govt!CD43 -> 421.7 | CE43: ='Total NF'!CE43-Govt!CE43 -> 423.5 | CF43: ='Total NF'!CF43-Govt!CF43 -> 425.1 | CG43: ='Total NF'!CG43-Govt!CG43 -> 424.4 | CH43: ='Total NF'!CH43-Govt!CH43 -> 425.6 | CI43: ='Total NF'!CI43-Govt!CI43 -> 424.7 | CJ43: ='Total NF'!CJ43-Govt!CJ43 -> 424.6 | CK43: ='Total NF'!CK43-Govt!CK43 -> 425.4 | CL43: ='Total NF'!CL43-Govt!CL43 -> 427 | CM43: ='Total NF'!CM43-Govt!CM43 -> 428.5 | CN43: ='Total NF'!CN43-Govt!CN43 -> 427.9 | CO43: ='Total NF'!CO43-Govt!CO43 -> 428.9 | CP43: ='Total NF'!CP43-Govt!CP43 -> 430.3 | CQ43: ='Total NF'!CQ43-Govt!CQ43 -> 429.3 | CR43: ='Total NF'!CR43-Govt!CR43 -> 428.2 | CS43: ='Total NF'!CS43-Govt!CS43 -> 429.3 | CT43: ='Total NF'!CT43-Govt!CT43 -> 429.9 | CU43: ='Total NF'!CU43-Govt!CU43 -> 429.4 | CV43: ='Total NF'!CV43-Govt!CV43 -> 429.6 | CW43: ='Total NF'!CW43-Govt!CW43 -> 430.5 | CX43: ='Total NF'!CX43-Govt!CX43 -> 431.4 | CY43: ='Total NF'!CY43-Govt!CY43 -> 430.6 | CZ43: ='Total NF'!CZ43-Govt!CZ43 -> 432.5 | DA43: ='Total NF'!DA43-Govt!DA43 -> 434.7 | DB43: ='Total NF'!DB43-Govt!DB43 -> 434.3 | DC43: ='Total NF'!DC43-Govt!DC43 -> 434.2 | DD43: ='Total NF'!DD43-Govt!DD43 -> 435.8 | DE43: ='Total NF'!DE43-Govt!DE43 -> 435.5 | DF43: ='Total NF'!DF43-Govt!DF43 -> 438.8 | DG43: ='Total NF'!DG43-Govt!DG43 -> 438.4 | DH43: ='Total NF'!DH43-Govt!DH43 -> 435.2 | DI43: ='Total NF'!DI43-Govt!DI43 -> 436.4 | DJ43: ='Total NF'!DJ43-Govt!DJ43 -> 437.2 | DK43: 0.8 | DL43: 0.001833180568 | DM43: 31 | DN43: 19 | DO43: 5.8 | DP43: 0.01344459898 | DQ43: 39 | DR43: 28 | DS43: 6.6 | DT43: 0.01532745007 | DU43: 39 | DV43: 22 | DW43: 42.9 | DX43: 0.1088004058 | DY43: 43 | DZ43: 27
A44: South Carolina | B44: SMS45000004000000001 | C44: ='Total NF'!C44-Govt!C44 -> 1509.1 | D44: ='Total NF'!D44-Govt!D44 -> 1495.7 | E44: ='Total NF'!E44-Govt!E44 -> 1482 | F44: ='Total NF'!F44-Govt!F44 -> 1467.9 | G44: ='Total NF'!G44-Govt!G44 -> 1465.2 | H44: ='Total NF'!H44-Govt!H44 -> 1457.2 | I44: ='Total NF'!I44-Govt!I44 -> 1452.5 | J44: ='Total NF'!J44-Govt!J44 -> 1449.8 | K44: ='Total NF'!K44-Govt!K44 -> 1444.9 | L44: ='Total NF'!L44-Govt!L44 -> 1443.8 | M44: ='Total NF'!M44-Govt!M44 -> 1442.1 | N44: ='Total NF'!N44-Govt!N44 -> 1437.9 | P44: ='Total NF'!P44-Govt!P44 -> 1443.7 | Q44: ='Total NF'!Q44-Govt!Q44 -> 1444.9 | R44: ='Total NF'!R44-Govt!R44 -> 1443.9 | S44: ='Total NF'!S44-Govt!S44 -> 1454 | T44: ='Total NF'!T44-Govt!T44 -> 1457.4 | U44: ='Total NF'!U44-Govt!U44 -> 1458.2 | V44: ='Total NF'!V44-Govt!V44 -> 1462.5 | W44: ='Total NF'!W44-Govt!W44 -> 1464.3 | X44: ='Total NF'!X44-Govt!X44 -> 1467.6 | Y44: ='Total NF'!Y44-Govt!Y44 -> 1469 | Z44: ='Total NF'!Z44-Govt!Z44 -> 1469.6 | AA44: ='Total NF'!AA44-Govt!AA44 -> 1475.6 | AC44: ='Total NF'!AC44-Govt!AC44 -> 1468.6 | AD44: ='Total NF'!AD44-Govt!AD44 -> 1478 | AE44: ='Total NF'!AE44-Govt!AE44 -> 1479.5 | AF44: ='Total NF'!AF44-Govt!AF44 -> 1484 | AG44: ='Total NF'!AG44-Govt!AG44 -> 1486.3 | AH44: ='Total NF'!AH44-Govt!AH44 -> 1487.8 | AI44: ='Total NF'!AI44-Govt!AI44 -> 1489.2 | AJ44: ='Total NF'!AJ44-Govt!AJ44 -> 1489.5 | AK44: ='Total NF'!AK44-Govt!AK44 -> 1491.4 | AL44: ='Total NF'!AL44-Govt!AL44 -> 1487.9 | AM44: ='Total NF'!AM44-Govt!AM44 -> 1491.2 | AN44: ='Total NF'!AN44-Govt!AN44 -> 1496.6 | AP44: ='Total NF'!AP44-Govt!AP44 -> 1503.3 | AQ44: ='Total NF'!AQ44-Govt!AQ44 -> 1504.3 | AR44: ='Total NF'!AR44-Govt!AR44 -> 1509 | AS44: ='Total NF'!AS44-Govt!AS44 -> 1509.1 | AT44: ='Total NF'!AT44-Govt!AT44 -> 1508.8 | AU44: ='Total NF'!AU44-Govt!AU44 -> 1511.5 | AV44: ='Total NF'!AV44-Govt!AV44 -> 1508.1 | AW44: ='Total NF'!AW44-Govt!AW44 -> 1510.8 | AX44: ='Total NF'!AX44-Govt!AX44 -> 1510.7 | AY44: ='Total NF'!AY44-Govt!AY44 -> 1516 | AZ44: ='Total NF'!AZ44-Govt!AZ44 -> 1527 | BA44: ='Total NF'!BA44-Govt!BA44 -> 1527.3 | BC44: ='Total NF'!BC44-Govt!BC44 -> 1530 | BD44: ='Total NF'!BD44-Govt!BD44 -> 1531.8 | BE44: ='Total NF'!BE44-Govt!BE44 -> 1531.6 | BF44: ='Total NF'!BF44-Govt!BF44 -> 1535.3 | BG44: ='Total NF'!BG44-Govt!BG44 -> 1537.4 | BH44: ='Total NF'!BH44-Govt!BH44 -> 1540.3 | BI44: ='Total NF'!BI44-Govt!BI44 -> 1545.6 | BJ44: ='Total NF'!BJ44-Govt!BJ44 -> 1548 | BK44: ='Total NF'!BK44-Govt!BK44 -> 1550 | BL44: ='Total NF'!BL44-Govt!BL44 -> 1560.3 | BM44: ='Total NF'!BM44-Govt!BM44 -> 1563.8 | BN44: ='Total NF'!BN44-Govt!BN44 -> 1568.7 | BO44: ='Total NF'!BO44-Govt!BO44 -> 0 | BP44: ='Total NF'!BP44-Govt!BP44 -> 1574.4 | BQ44: ='Total NF'!BQ44-Govt!BQ44 -> 1571.1 | BR44: ='Total NF'!BR44-Govt!BR44 -> 1581.2 | BS44: ='Total NF'!BS44-Govt!BS44 -> 1586.9 | BT44: ='Total NF'!BT44-Govt!BT44 -> 1589.3 | BU44: ='Total NF'!BU44-Govt!BU44 -> 1590.3 | BV44: ='Total NF'!BV44-Govt!BV44 -> 1590.7 | BW44: ='Total NF'!BW44-Govt!BW44 -> 1592.1 | BX44: ='Total NF'!BX44-Govt!BX44 -> 1595.2 | BY44: ='Total NF'!BY44-Govt!BY44 -> 1606.8 | BZ44: ='Total NF'!BZ44-Govt!BZ44 -> 1613.6 | CA44: ='Total NF'!CA44-Govt!CA44 -> 1615.2 | CB44: ='Total NF'!CB44-Govt!CB44 -> 1623.6 | CC44: ='Total NF'!CC44-Govt!CC44 -> 1629.2 | CD44: ='Total NF'!CD44-Govt!CD44 -> 1628.3 | CE44: ='Total NF'!CE44-Govt!CE44 -> 1628 | CF44: ='Total NF'!CF44-Govt!CF44 -> 1636.6 | CG44: ='Total NF'!CG44-Govt!CG44 -> 1638.9 | CH44: ='Total NF'!CH44-Govt!CH44 -> 1646.6 | CI44: ='Total NF'!CI44-Govt!CI44 -> 1651.2 | CJ44: ='Total NF'!CJ44-Govt!CJ44 -> 1653.4 | CK44: ='Total NF'!CK44-Govt!CK44 -> 1658.6 | CL44: ='Total NF'!CL44-Govt!CL44 -> 1663.5 | CM44: ='Total NF'!CM44-Govt!CM44 -> 1672.7 | CN44: ='Total NF'!CN44-Govt!CN44 -> 1673.4 | CO44: ='Total NF'!CO44-Govt!CO44 -> 1680 | CP44: ='Total NF'!CP44-Govt!CP44 -> 1679.2 | CQ44: ='Total NF'!CQ44-Govt!CQ44 -> 1684.9 | CR44: ='Total NF'!CR44-Govt!CR44 -> 1685.7 | CS44: ='Total NF'!CS44-Govt!CS44 -> 1687.1 | CT44: ='Total NF'!CT44-Govt!CT44 -> 1694.8 | CU44: ='Total NF'!CU44-Govt!CU44 -> 1694.7 | CV44: ='Total NF'!CV44-Govt!CV44 -> 1699.3 | CW44: ='Total NF'!CW44-Govt!CW44 -> 1696.3 | CX44: ='Total NF'!CX44-Govt!CX44 -> 1703.7 | CY44: ='Total NF'!CY44-Govt!CY44 -> 1705.6 | CZ44: ='Total NF'!CZ44-Govt!CZ44 -> 1711.4 | DA44: ='Total NF'!DA44-Govt!DA44 -> 1712.1 | DB44: ='Total NF'!DB44-Govt!DB44 -> 1709.3 | DC44: ='Total NF'!DC44-Govt!DC44 -> 1707.5 | DD44: ='Total NF'!DD44-Govt!DD44 -> 1713.9 | DE44: ='Total NF'!DE44-Govt!DE44 -> 1718.3 | DF44: ='Total NF'!DF44-Govt!DF44 -> 1720.2 | DG44: ='Total NF'!DG44-Govt!DG44 -> 1724.9 | DH44: ='Total NF'!DH44-Govt!DH44 -> 1723.7 | DI44: ='Total NF'!DI44-Govt!DI44 -> 1735.9 | DJ44: ='Total NF'!DJ44-Govt!DJ44 -> 1744.4 | DK44: 8.5 | DL44: 0.004896595426 | DM44: 7 | DN44: 3 | DO44: 40.7 | DP44: 0.02388918237 | DQ44: 17 | DR44: 5 | DS44: 38.8 | DT44: 0.02274859287 | DU44: 15 | DV44: 5 | DW44: 291.9 | DX44: 0.2009638554 | DY44: 20 | DZ44: 12
A45: South Dakota | B45: SMS46000004000000001 | C45: ='Total NF'!C45-Govt!C45 -> 332.2 | D45: ='Total NF'!D45-Govt!D45 -> 330.8 | E45: ='Total NF'!E45-Govt!E45 -> 328.8 | F45: ='Total NF'!F45-Govt!F45 -> 323.9 | G45: ='Total NF'!G45-Govt!G45 -> 326.3 | H45: ='Total NF'!H45-Govt!H45 -> 325.8 | I45: ='Total NF'!I45-Govt!I45 -> 325.1 | J45: ='Total NF'!J45-Govt!J45 -> 323.7 | K45: ='Total NF'!K45-Govt!K45 -> 324 | L45: ='Total NF'!L45-Govt!L45 -> 323.1 | M45: ='Total NF'!M45-Govt!M45 -> 323.5 | N45: ='Total NF'!N45-Govt!N45 -> 323 | P45: ='Total NF'!P45-Govt!P45 -> 321.8 | Q45: ='Total NF'!Q45-Govt!Q45 -> 321.5 | R45: ='Total NF'!R45-Govt!R45 -> 321.9 | S45: ='Total NF'!S45-Govt!S45 -> 323.1 | T45: ='Total NF'!T45-Govt!T45 -> 323.7 | U45: ='Total NF'!U45-Govt!U45 -> 324.4 | V45: ='Total NF'!V45-Govt!V45 -> 325.1 | W45: ='Total NF'!W45-Govt!W45 -> 325.5 | X45: ='Total NF'!X45-Govt!X45 -> 325.7 | Y45: ='Total NF'!Y45-Govt!Y45 -> 326.7 | Z45: ='Total NF'!Z45-Govt!Z45 -> 326.9 | AA45: ='Total NF'!AA45-Govt!AA45 -> 326.5 | AC45: ='Total NF'!AC45-Govt!AC45 -> 326 | AD45: ='Total NF'!AD45-Govt!AD45 -> 326.5 | AE45: ='Total NF'!AE45-Govt!AE45 -> 327 | AF45: ='Total NF'!AF45-Govt!AF45 -> 327.4 | AG45: ='Total NF'!AG45-Govt!AG45 -> 328.4 | AH45: ='Total NF'!AH45-Govt!AH45 -> 328.7 | AI45: ='Total NF'!AI45-Govt!AI45 -> 329.4 | AJ45: ='Total NF'!AJ45-Govt!AJ45 -> 330.5 | AK45: ='Total NF'!AK45-Govt!AK45 -> 331.4 | AL45: ='Total NF'!AL45-Govt!AL45 -> 332 | AM45: ='Total NF'!AM45-Govt!AM45 -> 332.3 | AN45: ='Total NF'!AN45-Govt!AN45 -> 333 | AP45: ='Total NF'!AP45-Govt!AP45 -> 334 | AQ45: ='Total NF'!AQ45-Govt!AQ45 -> 334.5 | AR45: ='Total NF'!AR45-Govt!AR45 -> 335.8 | AS45: ='Total NF'!AS45-Govt!AS45 -> 337.7 | AT45: ='Total NF'!AT45-Govt!AT45 -> 336.7 | AU45: ='Total NF'!AU45-Govt!AU45 -> 337.2 | AV45: ='Total NF'!AV45-Govt!AV45 -> 336.8 | AW45: ='Total NF'!AW45-Govt!AW45 -> 336.7 | AX45: ='Total NF'!AX45-Govt!AX45 -> 337 | AY45: ='Total NF'!AY45-Govt!AY45 -> 337.1 | AZ45: ='Total NF'!AZ45-Govt!AZ45 -> 337.8 | BA45: ='Total NF'!BA45-Govt!BA45 -> 338.5 | BC45: ='Total NF'!BC45-Govt!BC45 -> 338.6 | BD45: ='Total NF'!BD45-Govt!BD45 -> 339.4 | BE45: ='Total NF'!BE45-Govt!BE45 -> 339.4 | BF45: ='Total NF'!BF45-Govt!BF45 -> 338.4 | BG45: ='Total NF'!BG45-Govt!BG45 -> 340.1 | BH45: ='Total NF'!BH45-Govt!BH45 -> 340.5 | BI45: ='Total NF'!BI45-Govt!BI45 -> 340.5 | BJ45: ='Total NF'!BJ45-Govt!BJ45 -> 340.3 | BK45: ='Total NF'!BK45-Govt!BK45 -> 340.2 | BL45: ='Total NF'!BL45-Govt!BL45 -> 339.2 | BM45: ='Total NF'!BM45-Govt!BM45 -> 340.6 | BN45: ='Total NF'!BN45-Govt!BN45 -> 340.9 | BO45: ='Total NF'!BO45-Govt!BO45 -> 0 | BP45: ='Total NF'!BP45-Govt!BP45 -> 344.5 | BQ45: ='Total NF'!BQ45-Govt!BQ45 -> 344.7 | BR45: ='Total NF'!BR45-Govt!BR45 -> 344.6 | BS45: ='Total NF'!BS45-Govt!BS45 -> 345.2 | BT45: ='Total NF'!BT45-Govt!BT45 -> 345.2 | BU45: ='Total NF'!BU45-Govt!BU45 -> 345.3 | BV45: ='Total NF'!BV45-Govt!BV45 -> 346.1 | BW45: ='Total NF'!BW45-Govt!BW45 -> 346.1 | BX45: ='Total NF'!BX45-Govt!BX45 -> 346.3 | BY45: ='Total NF'!BY45-Govt!BY45 -> 346.5 | BZ45: ='Total NF'!BZ45-Govt!BZ45 -> 345.7 | CA45: ='Total NF'!CA45-Govt!CA45 -> 346.7 | CB45: ='Total NF'!CB45-Govt!CB45 -> 348.9 | CC45: ='Total NF'!CC45-Govt!CC45 -> 349.1 | CD45: ='Total NF'!CD45-Govt!CD45 -> 350.2 | CE45: ='Total NF'!CE45-Govt!CE45 -> 350.2 | CF45: ='Total NF'!CF45-Govt!CF45 -> 350.2 | CG45: ='Total NF'!CG45-Govt!CG45 -> 349.8 | CH45: ='Total NF'!CH45-Govt!CH45 -> 349.4 | CI45: ='Total NF'!CI45-Govt!CI45 -> 350.1 | CJ45: ='Total NF'!CJ45-Govt!CJ45 -> 350.5 | CK45: ='Total NF'!CK45-Govt!CK45 -> 350.5 | CL45: ='Total NF'!CL45-Govt!CL45 -> 351.8 | CM45: ='Total NF'!CM45-Govt!CM45 -> 353 | CN45: ='Total NF'!CN45-Govt!CN45 -> 352.4 | CO45: ='Total NF'!CO45-Govt!CO45 -> 352.4 | CP45: ='Total NF'!CP45-Govt!CP45 -> 352.9 | CQ45: ='Total NF'!CQ45-Govt!CQ45 -> 353.4 | CR45: ='Total NF'!CR45-Govt!CR45 -> 353.1 | CS45: ='Total NF'!CS45-Govt!CS45 -> 353.8 | CT45: ='Total NF'!CT45-Govt!CT45 -> 354.7 | CU45: ='Total NF'!CU45-Govt!CU45 -> 354.5 | CV45: ='Total NF'!CV45-Govt!CV45 -> 354.8 | CW45: ='Total NF'!CW45-Govt!CW45 -> 355.7 | CX45: ='Total NF'!CX45-Govt!CX45 -> 356.1 | CY45: ='Total NF'!CY45-Govt!CY45 -> 356.4 | CZ45: ='Total NF'!CZ45-Govt!CZ45 -> 355.1 | DA45: ='Total NF'!DA45-Govt!DA45 -> 357 | DB45: ='Total NF'!DB45-Govt!DB45 -> 358.3 | DC45: ='Total NF'!DC45-Govt!DC45 -> 359 | DD45: ='Total NF'!DD45-Govt!DD45 -> 356.6 | DE45: ='Total NF'!DE45-Govt!DE45 -> 355.1 | DF45: ='Total NF'!DF45-Govt!DF45 -> 355.2 | DG45: ='Total NF'!DG45-Govt!DG45 -> 355.5 | DH45: ='Total NF'!DH45-Govt!DH45 -> 356.7 | DI45: ='Total NF'!DI45-Govt!DI45 -> 355.2 | DJ45: ='Total NF'!DJ45-Govt!DJ45 -> 355.8 | DK45: 0.6 | DL45: 0.001689189189 | DM45: 32 | DN45: 22 | DO45: -0.3 | DP45: -0.0008424599832 | DQ45: 48 | DR45: 48 | DS45: -0.6 | DT45: -0.001683501684 | DU45: 49 | DV45: 48 | DW45: 30.7 | DX45: 0.09443248231 | DY45: 45 | DZ45: 36
